Workbook

Sheet Controllo_UPLOAD
A1: ID_ATO | B1: ID_Aeeg_Gestore | D1: SONO PRESENTI ATO E GESTORE ? | E1: il file può essere caricato ?
A2: =idato -> 0 | B2: =Codice_Aeeg -> 0 | D2: =IF(A2*B2>0,"SI","NO") -> NO | E2: SI
D3: PRECOMPILATO
D4: 0
D5: 1 = precompilato; 0 = deve fornire tutti i dati
D7: Tipo_file
D8: Tool

Sheet Menu
B1: RACCOLTA DATI TARIFFARI | F1: Per la compilazione seguire l'ordine dei fogli
B2: ATO | E2: GESTORE
B3: ID_ATO | C3: ATO | D3: campo_vuoto | E3: ID_Aeeg_Gestore | F3: Gestore | H3: DATA CALCOLO
H4: ToolMTI-2_V3_
F6: Dichiarazione relativa alla natura dei dati forniti per l'anno 2015
F7: dati 2015 preconsutivi
B8: Sono presenti Errori | C8: elenco schede: | G8: foglio | I8: nomi delle tabelle
C9: Dati tecnici | G9: Dati_tecnici | H9: scrittura
C10: Dati di conto economico | G10: Dati_conto_econ | H10: scrittura
C11: Altri dati economico finanziari | G11: Altri dati economico_finanziari | H11: scrittura
C12: Elenco soggetti proprietari (infrastrutture di terzi e/o corrispettivi) | G12: Soggetti_proprietari_infrastrut | H12: lettura/scrittura | I12: Elenco_Proprietari
C13: Corrispettivi su infrastrutture di terzi | G13: Corrispettivi Infrast Terzi | H13: lettura/scrittura | I13: Corrispettivi_Proprietari
C14: Elenco Ambiti Tariffari | G14: Elenco_Ambiti_Tariffari | I14: AmbitiTariffariElenco
C15: Ambiti Tariffari e Comuni per Ambito Tariffario | G15: Ambiti_Tariffari_Comuni | H15: scrittura | I15: Ambiti_Tariffari_Comuni
C16: Articolazione Tariffaria - Quota Variabile | G16: Articolaz tariff QV | H16: lettura
C17: Articolazione Tariffaria - Quota Fissa | G17: Articolaz tariff QF | H17: lettura
C18: Ricavi tariffari totali per Ambito Tariffario | G18: Ricavi_ambiti_tariffari | H18: lettura/scrittura | I18: Ambiti_Tariffari_Ricavi
C19: Proposta cambio articolazione: quota variabile | G19: Proposta nuova art QV
C20: Proposta cambio articolazione: quota fissa | G20: Proposta nuova art QF
C21: Servizi all'ingrosso: soggetti | G21: Soggetti_Scambio | H21: scrittura | I21: Soggetti_Elenco
C22: Servizi all'ingrosso: vendita | G22: Vendita_Servizi_ingrosso | H22: scrittura | I22: Vendita_Servizi
C23: Servizi all'ingrosso: acquisto | G23: Acquisto_Servizi_ingrosso | H23: scrittura | I23: Acquisto_Servizi
C24: Nuovi investimenti | G24: Nuovi_Investimenti | H24: scrittura | I24: Nuovi_Investimenti
C25: Dismissioni | G25: Dismissioni | H25: scrittura | I25: Dismissioni
C26: Ammortamento finanziario | G26: Ammortamento_Finanziario | H26: lettura/scrittura
C27: Informazioni su aggregazioni | G27: Info_eventuali_aggregazioni | I27: Info_Soggetti_Aggregati
C28: Dati_exGestioni_incomplete | G28: Dati_exGestioni_incomplete | H28: scrittura | I28: Gestioni_Aggregate_Ricavi
C29: Dati anni precedenti | G29: Dati_Anni_precedenti | H29: lettura
C30: Vite utili anni precedenti | G30: Vite_utili_precedenti | H30: lettura/scrittura
C31: RAB cespiti ante 2013 | G31: RAB_cespiti_ante2013 | H31: lettura
C32: Conferma Investimenti MTI (2013) | G32: conferma_investimenti_mti | H32: lettura/scrittura | I32: Conferma_Investimenti_2013
C33: Ricostruzione RAB MTI del gestore | G33: consolidamento_RAB_gestore
C34: Calcolo RAB gestore al 2015 | G34: RAB_gestore_MTI
C35: RAB dei proprietari | G35: rab_proprietari | H35: lettura | I35: RAB_PROPRIETARI
C36: Storico articolazione tariffaria - Quota Variabile | G36: storico articolazione QV
C37: Storico articolazione tariffaria - Quota Fissa | G37: storico articolazione Qf
C38: Ricostruzione RAB del gestore | G38: consolidamento_RAB_mti2 | H38: lettura
C39: Calcolo RAB gestore MTI-2 | G39: RAB_gestore_MTI-2 | H39: lettura
C40: Riepilogo RAB del gestore | G40: riepilogo RAB MTI -2 | H40: lettura
C41: FRAMEWORK SCHEMI | G41: framework_schemi | H41: calcolo
C42: VRG TETA | G42: vrg_teta | H42: calcolo
C43: DCUIT | G43: dcuit | H43: calcolo
C44: CAPEX | G44: capex | H44: calcolo
C45: FoNI | G45: FoNI | H45: calcolo
C46: OPEX | G46: opex | H46: calcolo
C47: ERC | G47: erc | H47: calcolo
C48: RC | G48: rc | H48: calcolo
C49: Schema virtuale: calcolo VRGgest_incomplete | G49: VRG_gest_incomplete | H49: calcolo
C50: Input per completamento proposta tariffaria | G50: Input_per_calcoli_finali | H50: lettura/scrittura
C51: PEF - Piano tariffario | G51: piano_tariffario | H51: lettura/scrittura
C52: PEF - Conto economico | G52: conto_economico | H52: scrittura
C53: PEF - Rendiconto finanziario | G53: rendiconto_finanziario | H53: scrittura
C54: Elenco Gestori | G54: TT_Gestori | H54: lettura?
C55: Tabelle di supporto anagrafica territorio | G55: TT_Comuni_ATO | H55: lettura?
C56: Tabelle di riferimento (per i menù) | G56: TT_Tabelle_Riferimento | H56: foglio da nascondere
C57: Parametri | G57: TT_parametri | H57: sola lettura

Sheet Dati_tecnici
B1: DATI TECNICI
B2: FORNITURA ELETTRICA | E2: ANNO 2014 | F2: ANNO 2015 | G2: ANNO 2013 | K2: controllo compilazione | L2: integrità dati per EE | M2: integrità dati pop | N2: controllo finale dati_tecnici
C3: Consumo di energia elettrica | D3: kwh | K3: =+COUNTA(F5:F6,E5:E6,E3:F3,E29,E30,E31,E32,E33,E34,E35)=13 -> FALSE | L3: =+E3*F3*E5*F5>0 -> FALSE | M3: =+SUM(E9,E17,E23)*SUM(F9,F17,F23)>0 -> FALSE | N3: =+AND(K3:M3) -> FALSE
C4: Costo energia elettrica a bilancio | D4: Euro
C5: Costo medio della fornitura elettrica | D5: Euro/kwh
C6: Si esclude di avere acquistato energia elettrica in regime di salvaguardia per almeno 4 mesi | D6: SI/NO
B7: SERVIZIO ACQUEDOTTO
C8: Numero di comuni serviti (ComA) | D8: N
C9: Popolazione residente servita (PRA) | D9: N
C10: Volume di acqua fatturato (A20) | D10: m3
C11: Utenze totali (UtT) | D11: N
C12: Popolazione fluttuante (PFA) | D12: N
C13: Superficie (SUA) | D13: km2
C14: Lunghezza rete (L) | D14: km
B15: SERVIZIO FOGNATURA
C16: Numero di comuni serviti (ComF) | D16: N
C17: Popolazione residente servita (PRF) | D17: N
C18: Lunghezza rete fognaria (LL) | D18: km
C19: Popolazione fluttuante (PFF) | D19: N
C20: Superficie (SUF) | D20: km2
B21: SERVIZIO DEPURAZIONE
C22: Numero di comuni serviti (ComD) | D22: N
C23: Popolazione residente servita (PRD) | D23: N
C24: Popolazione fluttuante (PFD) | D24: N
C25: Superficie (SUD) | D25: km2
C26: Abitanti Equivalenti serviti da depurazione | D26: A.E.
B28: TERRITORIO GESTITO E AFFIDAMENTO
C29: Tipo affidamento | D29: -
C30: Data inizio affidamento | D30: gg/mm/aaaa
C31: Data fine affidamento | D31: gg/mm/aaaa
C32: Presenza Carta dei servizi | D32: SI/NO
C33: Presenza di un consumo minimo impegnato per la fatturazione delle utenze domestiche | D33: SI/NO
C34: Adempimento obblighi di verifica qualità dell'acqua | D34: conforme/non conforme
C35: Versamento delle componenti perequative a CSEA | D35: SI/NO

Sheet Dati_conto_econ
B1: DATI DI CONTO ECONOMICO | P1: ERRORE NEI SUBTOTALI | R1: assenza errori voci "di cui" | S1: assenza errori "di cui ERC" 2014 | T1: assenza errori "di cui ERC" 2015
C2: ANNO 2014 | I2: ANNO 2015 | P2: =+IF(AND(R2=TRUE,S2=TRUE,T2=TRUE),TRUE,FALSE) -> TRUE | R2: =IF(COUNTIF(P4:P85,TRUE)>=1,FALSE,TRUE) -> TRUE | S2: =+IF(MIN(E4:E85)<0,FALSE,TRUE) -> TRUE | T2: =+IF(MIN(K4:K85)<0,FALSE,TRUE) -> TRUE
C3: Totale SII | D3: di cui ERC | E3: SII escluso ERC | F3: Altre attività idriche (c.d. Attività b) | G3: Attività diverse | I3: Totale SII | J3: di cui ERC | K3: SII escluso ERC | L3: Altre attività idriche (c.d. Attività b) | M3: Attività diverse | O3: n_riga
A4: VALORE DELLA PRODUZIONE (Euro) | C4: =C5+C7+C8+C9+C11 -> 0 | E4: =+C4-D4 -> 0 | F4: =F5+F7+F8+F9+F11 -> 0 | G4: =G5+G7+G8+G9+G11 -> 0 | I4: =I5+I7+I8+I9+I11 -> 0 | K4: =+I4-J4 -> 0 | L4: =L5+L7+L8+L9+L11 -> 0 | M4: =M5+M7+M8+M9+M11 -> 0 | O4: 0 | P4: =OR(C13>C4,F13>F4,G13>G4,I13>I4,L13>L4,M13>M4) -> FALSE
B5: A1) Ricavi delle vendite e delle prestazioni | E5: =+C5-D5 -> 0 | K5: =+I5-J5 -> 0 | O5: 1
B6: di cui da altre imprese del gruppo | E6: =+C6-D6 -> 0 | K6: =+I6-J6 -> 0 | O6: 2 | P6: =OR(C6>C5,F6>F5,G6>G5,I6>I5,L6>L5,M6>M5) -> FALSE
B7: A2) Variazioni rimanenze di prodotti in corso di lavorazione, semilavorati e finiti | E7: 0 | K7: 0 | O7: 3
B8: A3) Variazioni dei lavori in corso su ordinazione | E8: 0 | K8: 0 | O8: 4
B9: A4) Incrementi di immobilizzazioni per lavori interni (inclusi costi del personale) | E9: 0 | K9: 0 | O9: 5
B10: di cui per realizzazione allacciamenti idrici e fognari | E10: 0 | K10: 0 | O10: 6 | P10: =OR(C10>C9,F10>F9,G10>G9,I10>I9,L10>L9,M10>M9) -> FALSE
B11: A5) Altri ricavi e proventi | E11: 0 | K11: 0 | O11: 7
B12: di cui da altre imprese del gruppo | E12: 0 | K12: 0 | O12: 8 | P12: =OR(C12>C11,F12>F11,G12>G11,I12>I11,L12>L11,M12>M11) -> FALSE
A13: ULTERIORI SPECIFICAZIONI DEI RICAVI (Euro) | C13: =SUM(C14:C40) -> 0 | E13: =+C13-D13 -> 0 | F13: =SUM(F14:F40) -> 0 | G13: =SUM(G14:G40) -> 0 | I13: =SUM(I14:I40) -> 0 | K13: =+I13-J13 -> 0 | L13: =SUM(L14:L40) -> 0 | M13: =SUM(M14:M40) -> 0 | O13: 9
B14: Ricavi da articolazione tariffaria | E14: =+C14-D14 -> 0 | K14: =+I14-J14 -> 0 | O14: 10
B15: Vendita di acqua all’ingrosso | E15: 0 | K15: 0 | O15: 11
B16: Acquedotto (utenti non allacciati alla pubblica fognatura) | E16: 0 | K16: 0 | O16: 12
B17: Vendita di acqua non potabile o ad uso industriale | E17: 0 | K17: 0 | O17: 13
B18: Vendita di acqua forfetaria | E18: 0 | K18: 0 | O18: 14
B19: Fornitura bocche antincendio | E19: 0 | K19: 0 | O19: 15
B20: Fognatura e depurazione civile (approvvigionamento autonomo) | E20: 0 | K20: 0 | O20: 16
B21: Fognatura e depurazione di acque reflue industriali | E21: 0 | K21: 0 | O21: 17
B22: Contributi di allacciamento | E22: 0 | K22: 0 | O22: 18
B23: Prestazioni e servizi accessori (v. comma 1.1 All.A del 664/2015/R/idr) | E23: 0 | K23: =+I23-J23 -> 0 | O23: 19
B24: Vendita di acqua con autobotte (v. comma 1.1 All.A del 664/2015/R/idr) | E24: 0 | K24: =+I24-J24 -> 0 | O24: 20
B25: Trattamento percolati | O25: 21
B26: Trattamento bottini | O26: 22
B27: Gestione fognature bianche (v. comma 1.1 All.A del 664/2015/R/idr) | E27: 0 | K27: 0 | O27: 23
B28: Pulizia e manutenzione caditoie stradali (v. comma 1.1 All.A del 664/2015/R/idr) | E28: 0 | K28: 0 | O28: 24
B29: Installazione/gestione bocche antincendio | O29: 25
B30: Vendita di servizi a terzi | O30: 26
B31: Lavori conto terzi | E31: 0 | K31: 0 | O31: 27
B32: Spurgo pozzi neri | O32: 28
B33: Rilascio autorizzazioni allo scarico | O33: 29
B34: Lottizzazioni | O34: 30
B35: Riuso delle acque di depurazione | O35: 31
B36: Case dell’acqua | O36: 32
B37: Proventi straordinari | E37: 0 | K37: 0 | O37: 33
B38: Contributi in conto esercizio | E38: 0 | K38: 0 | O38: 34
B39: Rimborsi e indennizzi | E39: 0 | K39: 0 | O39: 35
B40: Ricavi da altre attività (non inclusi nelle suddette voci) | O40: 36
O41: 37
A42: COSTI DELLA PRODUZIONE (Euro) | C42: =C43+C44+C49+C52+SUM(C54:C57) -> 0 | D42: =D43+D44+D49+D52+SUM(D54:D57) -> 0 | E42: =+C42-D42 -> 0 | F42: =F43+F44+F49+F52+SUM(F54:F57) -> 0 | G42: 0 | I42: =I43+I44+I49+I52+SUM(I54:I57) -> 0 | J42: 0 | K42: =+I42-J42 -> 0 | L42: =L43+L44+L49+L52+SUM(L54:L57) -> 0 | M42: 0 | O42: 38 | P42: =OR(C58>C42,D58>D42,F58>F42,G58>G42,I58>I42,J58>J42,L58>L42,M58>M42) -> FALSE
B43: B6) Per materie prime, sussidiarie, di consumo e merci | E43: =+C43-D43 -> 0 | K43: =+I43-J43 -> 0 | O43: 39
B44: B7) Per servizi | C44: =+SUM(C45:C48) -> 0 | D44: =+SUM(D45:D48) -> 0 | E44: =+C44-D44 -> 0 | F44: =+SUM(F45:F48) -> 0 | G44: 0 | I44: =+SUM(I45:I48) -> 0 | J44: 0 | K44: =+I44-J44 -> 0 | L44: =+SUM(L45:L48) -> 0 | M44: 0 | O44: 40
B45: energia elettrica da altre imprese del gruppo | E45: =+C45-D45 -> 0 | K45: =+I45-J45 -> 0 | O45: 41
B46: energia elettrica da altre imprese | E46: 0 | K46: 0 | O46: 42
B47: altri servizi da altre imprese del gruppo | E47: 0 | K47: 0 | O47: 43
B48: altri servizi da altre imprese | E48: 0 | K48: 0 | O48: 44
B49: B8) Per godimento beni di terzi | E49: 0 | K49: 0 | O49: 45 | P49: =OR(C49<SUM(C50:C51),D49<SUM(D50:D51),F49<SUM(F50:F51),G49<SUM(G50:G51),I49<SUM(I50:I51),J49<SUM(J50:J51),L49<SUM(L50:L51),M49<SUM(M50:M51)) -> FALSE
B50: di cui per uso impianti di altre imprese del gruppo | E50: 0 | K50: 0 | O50: 46
B51: di cui altre spese verso altre imprese del gruppo | E51: 0 | K51: 0 | O51: 47
B52: B9) Per il personale | E52: 0 | K52: 0 | O52: 48
B53: di cui per trattamento di fine rapporto (inclusa rivalutazione) | E53: 0 | K53: 0 | O53: 49 | P53: =OR(C53>C52,D53>D52,F53>F52,G53>G52,I53>I52,J53>J52,L53>L52,M53>M52) -> FALSE
B54: B11) Variazione delle rimanenze | E54: 0 | K54: 0 | O54: 50
B55: B12) Accantonamenti per rischi | E55: 0 | K55: 0 | O55: 51
B56: B13) Altri accantonamenti | E56: 0 | K56: 0 | O56: 52
B57: B14) Oneri diversi di gestione | E57: 0 | K57: 0 | O57: 53
A58: ULTERIORI SPECIFICAZIONI DEI COSTI (Euro) | C58: =SUM(C59:C74)+C75+C79 -> 0 | D58: =SUM(D59:D74)+D75+D79 -> 0 | E58: 0 | F58: =SUM(F59:F74)+F75+F79 -> 0 | G58: 0 | I58: =SUM(I59:I74)+I75+I79 -> 0 | J58: 0 | K58: 0 | L58: =SUM(L59:L74)+L75+L79 -> 0 | M58: 0 | O58: 54
B59: Accantonamenti e rettifiche in eccesso rispetto all'applicazione di norme tributarie | E59: 0 | K59: 0 | O59: 55
B60: Rettifiche di valori di attività finanziarie | E60: 0 | K60: 0 | O60: 56
B61: Costi connessi all'erogazione di liberalità | E61: 0 | K61: 0 | O61: 57
B62: Costi pubblicitari e di marketing (incluse le imposte connesse) | E62: 0 | K62: 0 | O62: 58
B63: Oneri per sanzioni, penalità, risarcimenti automatici e simili | E63: 0 | K63: 0 | O63: 59
B64: Oneri straordinari | E64: 0 | K64: 0 | O64: 60
B65: Spese processuali in cui la parte è risultata soccombente | E65: 0 | K65: 0 | O65: 61
B66: Contributi associativi | E66: 0 | K66: 0 | O66: 62
B67: Spese di viaggio e di rappresentanza | E67: 0 | K67: 0 | O67: 63
B68: Spese di funzionamento Ente d'Ambito | E68: 0 | K68: 0 | O68: 64
B69: Canoni di affitto immobili non industriali | E69: 0 | K69: 0 | O69: 65
B70: Costi di realizzazione degli allacciamenti idrici e fognari | E70: 0 | K70: 0 | O70: 66
B71: Gestione fognature bianche (* solo se già incluse nel SII; v. comma 1.1 All.A del 643/2013/R/idr) | E71: 0 | K71: 0 | O71: 67
B72: Pulizia e manutenzione caditoie stradali (* solo se già incluse nel SII; v. comma 1.1 All.A del 643/2013/R/idr) | E72: 0 | K72: 0 | O72: 68
B73: Perdite su crediti per la sola quota parte eccedente l'utilizzo del fondo | E73: 0 | K73: 0 | O73: 69
B74: Costi di strutturazione dei progetti di finanziamento (non capitalizzati) | E74: 0 | K74: 0 | O74: 70
B75: Uso infrastrutture di terzi | C75: =+SUM(C76:C78) -> 0 | D75: =+SUM(D76:D78) -> 0 | E75: 0 | F75: =+SUM(F76:F78) -> 0 | G75: 0 | I75: =+SUM(I76:I78) -> 0 | J75: 0 | K75: 0 | L75: =+SUM(L76:L78) -> 0 | M75: 0 | O75: 71
B76: rimborso mutui di comuni, aziende speciali, società patrimoniali | E76: 0 | K76: =+I76-J76 -> 0 | O76: 72
B77: altri corrispettivi a comuni, aziende speciali, società patrimoniali | E77: 0 | K77: =+I77-J77 -> 0 | O77: 73
B78: corrispettivi a gestori preesistenti, altri proprietari | E78: 0 | K78: =+I78-J78 -> 0 | O78: 74
B79: Oneri locali | C79: =+SUM(C80:C85) -> 0 | D79: =+SUM(D80:D85) -> 0 | E79: 0 | F79: =+SUM(F80:F85) -> 0 | G79: 0 | I79: =+SUM(I80:I85) -> 0 | J79: 0 | K79: =+I79-J79 -> 0 | L79: =+SUM(L80:L85) -> 0 | M79: 0 | O79: 75
B80: canoni di derivazione/sottensione idrica | E80: 0 | K80: =+I80-J80 -> 0 | O80: 76
B81: contributi per consorzi di bonifica | E81: 0 | K81: 0 | O81: 77
B82: contributi a comunità montane | E82: 0 | K82: 0 | O82: 78
B83: canoni per restituzione acque | E83: 0 | K83: 0 | O83: 79
B84: oneri per la gestione di aree di salvaguardia | E84: 0 | K84: 0 | O84: 80
B85: altri oneri locali (TOSAP, COSAP, TARSU) | E85: 0 | K85: 0 | O85: 81

Sheet Altri dati economico_finanziari
B1: FONTI DI FINANZIAMENTO
E2: ANNO 2014 | F2: ANNO 2015 | N2: integrità dati per morosità | O2: integrità dati in valore assoluto | P2: controllo coerenza voci "di cui" | Q2: controllo finale altri_dati_economico_finanziari
C3: Mezzi Propri | D3: Euro | N3: =+IF(OR(E30<0,F30<0,E30="",F30="",),FALSE,TRUE) -> FALSE | O3: =+E17*F17*E18*F18*E19*F19*E24*F24*E25*F25*E26*F26*E31*F31*E39*F39*G39*H39*E45*F45*E46*F46*E47*F47*E48*F48*E49*F49*E52*F52*G52*H52>=0 -> TRUE | P3: =+IF(OR(E6>E5,F6>F5,E12>E11,F12>F11,E47>E46,F47>F46),FALSE,TRUE) -> TRUE | Q3: =+N3*O3*P3=1 -> FALSE
B4: MEZZI DI TERZI
C5: Finanziamenti a medio-lungo termine | D5: Euro
C6: di cui verso società controllate e collegate e verso controllanti | D6: Euro
C7: Tasso medio finanziamenti a medio-lungo termine | D7: %
C8: Prestiti obbligazionari | D8: Euro
C9: Tasso medio Prestiti obbligazionari | D9: %
C10: Altre passitivtà consolidate | D10: Euro
C11: Finanziamenti a breve termine | D11: Euro
C12: di cui verso società controllate e collegate e verso controllanti | D12: Euro
C13: Tasso medio Finanziamenti a breve termine | D13: %
C14: Altre passività correnti | D14: Euro
C15: Debiti tributari | D15: Euro
B16: TFR, FONDO RISCHI E ALTRI
C17: TFR | D17: Euro
C18: Fondo di quiescenza | D18: Euro
C19: Fondo rischi e oneri | D19: Euro
C20: Fondo rischi su crediti | D20: Euro
C21: Fondo svalutazione crediti | D21: Euro
C22: Valore Deposito cauzionale | D22: Euro
C23: Fondo imposte e tasse (anche differite) | D23: Euro
C24: Fondo sentenza Corte Costituzionale 335/2008 | D24: Euro
C25: Fondo per il ripristino di beni di terzi | D25: Euro
C26: Fondo per il finanziamento di tariffe sociali o di solidarietà | D26: Euro
B28: ALTRI DATI ECONOMICO FINANZIARI
B29: MOROSITA' | E29: ANNO 2014 | F29: ANNO 2015 | G29: ANNO 2016 | H29: ANNO 2017
C30: Unpaid Ratio (UR) a 24 mesi effettivamente rilevato | D30: %
C31: Rimborsi dagli utenti finali relativi alla gestione della morosità | D31: Euro
B32: IMPOSTE
C33: IRES | D33: Euro
C34: IRAP | D34: Euro
C35: Imposte differite | D35: Euro
C36: Imposte anticipate | D36: Euro
C37: Aliquota media di tassazione, IRAP inclusa | D37: %
B38: FoNI spesa
C39: FoNI speso per agevolazioni tariffarie | D39: Euro
B40: AGEVOLAZIONI TARIFFARIE E ALTRI IMPORTI IN BOLLETTA
C41: Agevolazioni tariffarie da regolamento erogate (Euro) | D41: Euro
C42: Ui1 (importo fatturato componente Ui1) | D42: Euro
C43: Altre componenti perequative | D43: Euro
B44: ALTRI DATI PER CALCOLO RC
C45: Contributo versato all'AEEG | D45: Euro
C46: Costi per variazioni sistemiche o per eventi eccezionali | D46: Euro
C47: di cui: per eventi eccezionali | D47: Euro
C48: Costo delle forniture all’ingrosso transfrontaliere | D48: Euro
C49: Rimborsi effettuati ai sensi sentenza CC 335/2008 ed eccedenti la quota riconosciuta in tariffa negli anni 2012-2015 | D49: Euro
B51: ALTRI DATI PER IL CALCOLO DELLA COMPONENTE CAPEX | E51: ANNO 2016 | F51: ANNO 2017 | G51: ANNO 2018 | H51: ANNO 2019
C52: DCUIT capex (dettagliare nella relazione le motivazioni della collocazione tra i capex) | D52: Euro
C53: Ammortamento finanziario ammissibile ai sensi del comma 16.5 lettera a) | D53: SI/NO

Sheet Soggetti_proprietari_infrastrut
B1: ELENCO SOGGETTI PROPRIETARI
C3: Elenco proprietari infrastrutture per calcolo Mutui/Altri corrispettivi ed eventuale Stratificazione di terzi | O3: Non sono presenti Errori
O4: =+IF(AND(O5=TRUE,P5=TRUE,Q5=TRUE),TRUE,FALSE) -> TRUE
O5: =AND(INDEX(Elenco_Proprietari,0,15)) -> TRUE | P5: =AND(INDEX(Elenco_Proprietari,0,16)) -> TRUE | Q5: =AND(INDEX(Elenco_Proprietari,0,17)) -> TRUE
A7: N_riga | B7: Key_Prop | C7: Soggetto Proprietario | D7: Tipologia di proprietario | E7: P. IVA Proprietario | F7: Codice Istat Comune proprietario | G7: Proprietario ai fini dei corrispettivi AC/MT | H7: Proprietario non più presente ai fini della RAB di terzi | I7: Fusione | J7: Numero Cespiti | K7: Key_Prop_bis | L7: New_Key_prop | M7: Proprietario risultante dalla fusione | N7: per costruzione | O7: Proprietario non duplicato | P7: presenza PIVA o CodiceISTAT | Q7: Presenza tipologia
A8: 1 | B8: =idato & "_" & idgestore & "-" & IF($D8="Comune",$F8,"") & "-" &IF($D8="Comune","",$E8) -> _-- | I8: NO | K8: =B8 -> _-- | L8: =IF(I8="SI",VLOOKUP(M8,$C$8:$K$7929,9,0),K8) -> _-- | N8: =+IF(H8="SI",L8,0) -> 0 | O8: =IF(COUNTIF(B:B,B8)>1,FALSE,TRUE) -> TRUE | P8: =IF(ISBLANK(C8),TRUE,IF(COUNTA(E8:F8)<1,FALSE,TRUE)) -> TRUE | Q8: =IF(ISBLANK(C8),TRUE,IF(COUNTA(D8)<1,FALSE,TRUE)) -> TRUE

Sheet Corrispettivi Infrast Terzi
B1: COSTI ASSOCIATI AI SOGGETTI PROPRIETARI
C3: Imputare per ciascun soggetto proprietario il valore dei Mutui MT e altri corrispettivi AC
AF4: Non esistono duplicati | AI4: ---> se errori indicazione FALSO
AF5: =OR(INDEX(Corrispettivi_Proprietari,0,32)) -> TRUE
I6: Rimborso della rata dei mutui (MT) | M6: Altri corrispettivi (AC) | R6: AC - controllo Anno deliberazione | W6: AC - controllo Anno deliberazione e Tipologia Proprietario | AB6: MT - controllo Tipologia Proprietario
A7: N_riga | B7: Key_Prop | C7: Soggetto Proprietario | D7: Tipologia di proprietario | E7: P. IVA Proprietario | F7: Codice Istat Comune proprietario | G7: Anno di deliberazione | H7: previsto 2016 (€) | I7: previsto 2017 (€) | J7: previsto 2018 (€) | K7: previsto 2019 (€) | L7: Anno di deliberazione | M7: previsto 2016 (€) | N7: previsto 2017 (€) | O7: previsto 2018 (€) | P7: previsto 2019 (€) | R7: AC 2016 | S7: AC 2017 | T7: AC 2018 | U7: AC 2019 | W7: AC 2016 | X7: AC 2017 | Y7: AC 2018 | Z7: AC 2019 | AB7: MT 2016 | AC7: MT 2017 | AD7: MT 2018 | AE7: MT 2019 | AF7: Key_prop duplicato
A8: 1 | B8: =IF(ISNA(VLOOKUP(C8,Soggetti_proprietari_infrastrut!C:K,9,0)),"",VLOOKUP(C8,Soggetti_proprietari_infrastrut!C:K,9,0)) ->  | D8: =IF(ISNA(VLOOKUP(C8,Soggetti_proprietari_infrastrut!C:K,2,0)),"",VLOOKUP(C8,Soggetti_proprietari_infrastrut!C:K,2,0)) ->  | E8: =IF(ISNA(VLOOKUP(C8,Soggetti_proprietari_infrastrut!C:K,3,0)),"",VLOOKUP(C8,Soggetti_proprietari_infrastrut!C:K,3,0)) ->  | F8: =IF(ISNA(VLOOKUP(C8,Soggetti_proprietari_infrastrut!C:K,4,0)),"",VLOOKUP(C8,Soggetti_proprietari_infrastrut!C:K,4,0)) ->  | R8: =+IF(AND($L8<=2006,$L8<>"",$B8<>""),M8,0) -> 0 | S8: =+IF(AND($L8<=2006,$L8<>"",$B8<>""),N8,0) -> 0 | T8: 0 | U8: 0 | W8: =+IF(AND($L8<=2006,$L8<>"",$D8<>"Altra società privata",$B8<>""),M8,0) -> 0 | X8: =+IF(AND($L8<=2006,$L8<>"",$D8<>"Altra società privata",$B8<>""),N8,0) -> 0 | Y8: 0 | Z8: 0 | AB8: =+IF(AND($D8<>"Altra società privata",$B8<>""),H8,0) -> 0 | AC8: =+IF(AND($D8<>"Altra società privata",$B8<>""),I8,0) -> 0 | AD8: 0 | AE8: 0 | AF8: =IF(B8<>"",IF(COUNTIF(B:B,B8)>1,FALSE,TRUE),TRUE) -> TRUE

Sheet Elenco_Ambiti_Tariffari
B1: RICAVI TARIFFARI
F2: Non sono presenti errori
F3: =+IF(COUNTIF(F8:G995,FALSE)>=1,FALSE,TRUE) -> TRUE | H3: ---> se errori indicazione FALSO
B5: 1 - Ambiti Tariffari
B7: N_Riga | C7: Ambito Tariffario | D7: N_Riga bis | F7: Ambiti non duplicati | G7: Presenza nome Ambito
B8: 1 | C8: - | D8: =+B8 -> 1 | F8: =+IF(COUNTIF($C$8:C992,C8)>1,FALSE,TRUE) -> TRUE | G8: =+IF(C8="",FALSE,TRUE) -> TRUE

Sheet Ambiti_Tariffari_Comuni
B1: RICAVI TARIFFARI
B5: 2 - Comuni per ciascun Ambito Tariffario
A7: N_Riga | B7: Ambito tariffario | C7: Comune | D7: Codice ISTAT
A8: 1 | D8: =IF(ISNA(VLOOKUP(C8,TT_Comuni_ATO!X:Y,2,0)),"",VLOOKUP(C8,TT_Comuni_ATO!X:Y,2,0)) -> 

Sheet Articolaz tariff QV
B1: RICAVI TARIFFARI
B3: riportare l'articolazione (tipologia d'uso e scaglioni) applicata agli utenti finali negli anni indicati
B5: 3 - Articolazione Tariffaria - quota variabile
H8: vigente al 31/12/2015
B9: Ambito tariffario | C9: Servizio idrico | D9: Tipologia d'uso | E9: Sottotipologia | F9: 1° scaglione a tariffa agevolata | G9: Minimo impegnato | H9: Min di scaglione (m3/anno) | I9: Max di scaglione (m3/anno) | J9: QV (Euro/m3) 2014 | K9: QV (Euro/m3) 2015 | L9: Volumi fatturati (m3/anno) anno 2014 | M9: Volumi fatturati (m3/anno) anno 2015 | N9: Ambito_Tariffario | O9: tar2014*vscal2014 | P9: tar2015*vscal2014 | Q9: tar2015*vscal2015
H10: Min_Scaglione | I10: Max_Scaglione | J10: QV | K10: QV | L10: Volumi | M10: Volumi_Anno_succ | N10: Ambito_Tariffario
H11: 0 | N11: =B11 -> 0 | O11: =+J11*L11 -> 0 | P11: =+K11*L11 -> 0 | Q11: =+K11*M11 -> 0
H12: =+IF(I11=0,"",I11+1) ->  | N12: =N11 -> 0 | O12: 0 | P12: 0 | Q12: 0
N13: 0 | O13: 0 | P13: 0 | Q13: 0
N14: 0 | O14: 0 | P14: 0 | Q14: 0
N15: 0 | O15: 0 | P15: 0 | Q15: 0
N16: 0 | O16: 0 | P16: 0 | Q16: 0
N17: 0 | O17: 0 | P17: 0 | Q17: 0
N18: 0 | O18: 0 | P18: 0 | Q18: 0
N19: 0 | O19: 0 | P19: 0 | Q19: 0
N20: 0 | O20: 0 | P20: 0 | Q20: 0

Sheet Articolaz tariff QF
B1: RICAVI TARIFFARI
B3: riportare l'articolazione (tipologia d'uso e scaglioni) applicata agli utenti finali negli anni indicati
B5: 4- Articolazione Tariffaria - quota fissa
H8: vigente al 31/12/2015
B9: Ambito tariffario | C9: servizio idrico | D9: Tipologia d'uso | E9: Sottotipologia | F9: campo vuoto1 | G9: campo vuoto2 | H9: Min di scaglione (m3/anno) | I9: Max di scaglione (m3/anno) | J9: QF (Euro/utente/ anno) 2014 | K9: QF (Euro/utente/ anno) 2015 | L9: Utenze (numero) anno 2014 | M9: Utenze (numero) anno 2015 | N9: Ambito_Tariffario | O9: tar2014*vscal2014 | P9: tar2015*vscal2014 | Q9: tar2015*vscal2015
H10: Min_Scaglione | I10: Max_Scaglione | J10: QF | K10: QF | L10: Utenze | M10: Utenze_Anno_succ | N10: Ambito_Tariffario
H11: 0 | N11: =B11 -> 0 | O11: =+J11*L11 -> 0 | P11: =+K11*L11 -> 0 | Q11: =+K11*M11 -> 0
H12: =+IF(I11=0,"",I11+1) ->  | N12: =B11 -> 0 | O12: 0 | P12: 0 | Q12: 0
H13: =+IF(I12=0,"",I12+1) ->  | N13: =B11 -> 0 | O13: 0 | P13: 0 | Q13: 0
H14: =+IF(I13=0,"",I13+1) ->  | N14: =B11 -> 0 | O14: 0 | P14: 0 | Q14: 0
H15: =+IF(I14=0,"",I14+1) ->  | N15: =B11 -> 0 | O15: 0 | P15: 0 | Q15: 0
H16: =+IF(I15=0,"",I15+1) ->  | N16: =B11 -> 0 | O16: 0 | P16: 0 | Q16: 0

Sheet Ricavi_ambiti_tariffari
B1: RICAVI TARIFFARI
B3: eventualmente imputare direttamente i ricavi totali nelle colonne G, H e I. I totali si intendono comprensivi dei ricavi da quota fissa e variabile, mentre è da escludere la vendita all'ingrosso
B5: 5 - Totale ricavi tariffari da vendita agli utenti finali per ciascun ambito
D8: da calcolo automatico fogli specifici | G8: da eventuale input manuale
B9: N_riga | C9: Ambito Tariffario | J9: SPIEGAZIONE EVENTUALE DIFFERENZA CON LA STRUTTURA TARIFFARIA (QUOTA VAR+QUOTA FISSA) DEI FOGLI SPECIFICI | M9: tar2014*vscal2014 | N9: tar2015*vscal2014 | O9: tar2015*vscal2015
D10: per calcolo RCvol 2016 | E10: per calcolo J 2016 | F10: per calcolo J 2017 e RCvol 2017 | G10: per calcolo RCvol 2016 | H10: per calcolo J 2016 | I10: per calcolo J 2017 e RCvol 2017
B11: 1 | D11: =+SUMIF('Articolaz tariff QV'!$N:$N,Ricavi_ambiti_tariffari!$C11,'Articolaz tariff QV'!O:O)+SUMIF('Articolaz tariff QF'!$N:$N,Ricavi_ambiti_tariffari!$C11,'Articolaz tariff QF'!O:O) -> 0 | E11: =+SUMIF('Articolaz tariff QV'!$N:$N,Ricavi_ambiti_tariffari!$C11,'Articolaz tariff QV'!P:P)+SUMIF('Articolaz tariff QF'!$N:$N,Ricavi_ambiti_tariffari!$C11,'Articolaz tariff QF'!P:P) -> 0 | F11: =+SUMIF('Articolaz tariff QV'!$N:$N,Ricavi_ambiti_tariffari!$C11,'Articolaz tariff QV'!Q:Q)+SUMIF('Articolaz tariff QF'!$N:$N,Ricavi_ambiti_tariffari!$C11,'Articolaz tariff QF'!Q:Q) -> 0 | M11: =+IF(G11=0,D11,G11) -> 0 | N11: 0 | O11: 0

Sheet Proposta nuova art QV
B1: Proposta modifica articolazione tariffaria nel periodo regolatorio 2016-2019
B3: riportare l'articolazione (tipologia d'uso e scaglioni) proposta per la vendita agli utenti finali - art. 36 e ss. all. A della delibera 664/2015
B5: Nuova proposta Articolazione Tariffaria - quota variabile
B9: Ambito tariffario | C9: Servizio | D9: Tipologia d'uso | E9: Sottotipologia | F9: 1° scaglione a tariffa agevolata | G9: Minimo impegnato | H9: Min di scaglione (m3/anno) | I9: Max di scaglione (m3/anno) | J9: QV (Euro/m3) 2014 | K9: QV (Euro/m3) 2015 | L9: QV (Euro/m3) 2016 | M9: Volumi fatturati (m3/anno) anno 2014 | N9: Volumi fatturati (m3/anno) anno 2015 | O9: Ambito_Tariffario | P9: tar2014*vscal2014 | Q9: tar2015*vscal2014 | R9: tar2016*vscal2014
H10: Min_Scaglione | I10: Max_Scaglione | J10: QV | K10: QV | M10: Volumi | N10: Volumi_Anno_succ | O10: Ambito_Tariffario
H11: 0 | O11: =B11 -> 0 | P11: =+J11*M11 -> 0 | Q11: =+K11*M11 -> 0 | R11: =+L11*M11 -> 0
H12: =+IF(I11=0,"",I11+1) ->  | O12: =B11 -> 0 | P12: 0 | Q12: 0 | R12: =+L12*M12 -> 0
O13: =B11 -> 0 | P13: 0 | Q13: 0 | R13: 0
O14: =B11 -> 0 | P14: 0 | Q14: 0 | R14: 0
O15: =B11 -> 0 | P15: 0 | Q15: 0 | R15: 0
O16: =B11 -> 0 | P16: 0 | Q16: 0 | R16: 0
O17: =B11 -> 0 | P17: 0 | Q17: 0 | R17: 0
O18: =B11 -> 0 | P18: 0 | Q18: 0 | R18: 0
O19: =B11 -> 0 | P19: 0 | Q19: 0 | R19: 0
O20: =B11 -> 0 | P20: 0 | Q20: 0 | R20: 0

Sheet Proposta nuova art QF
B1: Proposta modifica articolazione tariffaria nel periodo regolatorio 2016-2019
B3: riportare l'articolazione (tipologia d'uso e scaglioni) proposta per la vendita agli utenti finali - art. 36 e ss. all. A della delibera 664/2015
B5: Nuova proposta Articolazione Tariffaria - quota fissa
B9: Ambito tariffario | C9: Servizio | D9: Tipologia d'uso | E9: Sottotipologia | F9: campo vuoto | G9: campo vuoto2 | H9: Min di scaglione (m3/anno) | I9: Max di scaglione (m3/anno) | J9: QF (Euro/utente/ anno) 2014 | K9: QF (Euro/utente/ anno) 2015 | L9: QF (Euro/utente/ anno) 2016 | M9: Utenze (numero) anno 2014 | N9: Utenze (numero) anno 2015 | O9: Ambito_Tariffario | P9: tar2014*vscal2014 | Q9: tar2015*vscal2014 | R9: tar2016*vscal2014
H10: Min_Scaglione | I10: Max_Scaglione | J10: QF | K10: QF | M10: Utenze | N10: Utenze_Anno_succ | O10: Ambito_Tariffario
H11: 0 | O11: =B11 -> 0 | P11: =+J11*M11 -> 0 | Q11: =+K11*M11 -> 0 | R11: =+L11*M11 -> 0
H12: =+IF(I11=0,"",I11+1) ->  | O12: =B11 -> 0 | P12: 0 | Q12: 0 | R12: =+L12*M12 -> 0
H13: =+IF(I12=0,"",I12+1) ->  | O13: =B11 -> 0 | P13: 0 | Q13: 0 | R13: 0
O14: =B11 -> 0 | P14: 0 | Q14: 0 | R14: 0
O15: =B11 -> 0 | P15: 0 | Q15: 0 | R15: 0
O16: =B11 -> 0 | P16: 0 | Q16: 0 | R16: 0

Sheet Soggetti_Scambio
B1: SCAMBI ALL'INGROSSO
P2: controllo compilazione
B3: per ciascun soggetto indicare almeno l'ID gestore oppure la Partita IVA | P3: =+AND(OFFSET(L8,0,0,COUNTA(L:L),1))=TRUE -> TRUE
B5: 1. Soggetti con cui si hanno scambi di Servizi all'ingrosso (Vendita e/o Acquisti)
B7: ID_AEEG | C7: Nome soggetto | D7: Partita Iva | H7: nome_soggetto | I7: id_aeeg_j | J7: controllo 1 | K7: controllo 2 | L7: assenza di IDAEEG o Partita Iva
A8: 1 | H8: =+C8 -> 0 | I8: =+B8 -> 0 | J8: =+AND(B8="",C8="",D8="") -> TRUE | K8: =+AND(C8<>"",OR(B8<>"",D8<>"")) -> FALSE | L8: =+OR(J8=TRUE,K8=TRUE) -> TRUE

Sheet Vendita_Servizi_ingrosso
B1: SCAMBI ALL'INGROSSO
B3: 2. Ricavi da tariffe applicate nella Vendita all'ingrosso
F4: ANNO 2014 | L4: ANNO 2015 | R4: Informazione sui J ANNO 2014 | W4: Informazione sui J ANNO 2015
A5: N_riga | B5: ID_AEEG | C5: Soggetto a cui si vende | D5: ATO | E5: Servizio | F5: Volumi erogati / trattati (m3/anno) | G5: QV (Euro/m3) | H5: Minimo impegnato (m3/anno) | I5: Utenze (numero) | J5: QF (Euro/utente/anno) | K5: Importo (Euro/anno) | L5: Volumi erogati / trattati (m3/anno) | M5: QV (Euro/m3) | N5: Minimo impegnato (m3/anno) | O5: Utenze (numero) | P5: QF (Euro/utente/anno) | Q5: Importo (Euro/anno) | R5: Le tariffe riportane per il 2014 includono l'applicazione del Teta? | S5: Teta medio applicato nella fatturazione dell'anno 2014 | T5: Teta approvato dal soggetto competente per l'anno 2014 | U5: Teta approvato da AEEGSI per l'anno 2014 | V5: delibera AEEGSI | W5: Le tariffe riportane per il 2015 includono l'applicazione del Teta? | X5: Teta medio applicato nella fatturazione dell'anno 2015 | Y5: Teta approvato dal soggetto competente per l'anno 2015 | Z5: Teta approvato da AEEGSI per l'anno 2015 | AA5: delibera AEEGSI | AC5: tar2014*vol2014 | AD5: tar2015*vol2014 | AE5: tar2015*vol2015
A6: 1 | B6: =+IF(ISNA(VLOOKUP(C6,soggetto_j,2,FALSE)),0,VLOOKUP(C6,soggetto_j,2,FALSE)) -> 0 | K6: =+I6*J6+IF(H6>F6,H6*G6,F6*G6) -> 0 | Q6: =+O6*P6+IF(N6>L6,N6*M6,L6*M6) -> 0 | U6: =+Dati_Anni_precedenti!$D$5 -> 0 | V6: =Dati_Anni_precedenti!$C$4 -> 0 | Z6: =+Dati_Anni_precedenti!$E$5 -> 0 | AA6: =Dati_Anni_precedenti!$C$4 -> 0 | AC6: =+K6 -> 0 | AD6: =+I6*P6+IF(N6>F6,N6*M6,F6*M6) -> 0 | AE6: =+Q6 -> 0

Sheet Acquisto_Servizi_ingrosso
B1: SCAMBI ALL'INGROSSO
B3: 3. Costi per acquisto all'ingrosso | F3: costi sostenuti di fornitura all'ingrosso, criterio di competenza | Q3: costi a seguito dell'applicazione del J al grossista | W3: costi sostenuti di fornitura all'ingrosso, criterio di competenza | AH3: costi a seguito dell'applicazione del J al grossista
F4: ANNO 2014 - COeffettivo,2014 ai fini del COws art.26 del. 664/2015/R/idr | L4: informazione sui J ANNO 2014 | Q4: ANNO 2014 - COeffettivo,2014 ai fini del RCws art.29 del. 664/2015/R/idr | W4: ANNO 2015 - COeffettivo,2014 ai fini del COws art.26 del. 664/2015/R/idr | AC4: informazione sui J ANNO 2015 | AH4: ANNO 2015 - COeffettivo,2015 ai fini del RCws art.29 del. 664/2015/R/idr
A5: N_riga | B5: ID_AEEG | C5: Soggetto da cui si acquista | D5: ATO | E5: Servizio | F5: Volumi erogati / trattati (m3/anno) | G5: QV (Euro/m3) | H5: Minimo impegnato (m3/anno) | I5: Utenze (numero) | J5: QF (Euro/utente/anno) | K5: Importo (Euro/anno) | L5: Le tariffe applicate per la fatturazione 2014 includono l'applicazione del Teta? | M5: Teta medio applicato dal grossista nella fatturazione dell'anno 2014 | N5: Teta approvato dal soggetto competente per l'anno 2014 | O5: Teta approvato da AEEGSI per l'anno 2014 | P5: delibera AEEGSI | Q5: Volumi erogati / trattati (m3/anno) | R5: QV (Euro/m3) | S5: Minimo impegnato (m3/anno) | T5: Utenze (numero) | U5: QF (Euro/utente/anno) | V5: Importo (Euro/anno) | W5: Volumi erogati / trattati (m3/anno) | X5: QV (Euro/m3) | Y5: Minimo impegnato (m3/anno) | Z5: Utenze (numero) | AA5: QF (Euro/utente/anno) | AB5: Importo (Euro/anno) | AC5: Le tariffe applicate per la fatturazione 2015 includono l'applicazione del Teta? | AD5: Teta medio applicato dal grossista nella fatturazione dell'anno 2015 | AE5: Teta approvato dal soggetto competente per l'anno 2015 | AF5: Teta approvato da AEEGSI per l'anno 2015 | AG5: delibera AEEGSI | AH5: Volumi erogati / trattati (m3/anno) | AI5: QV (Euro/m3) | AJ5: Minimo impegnato (m3/anno) | AK5: Utenze (numero) | AL5: QF (Euro/utente/anno) | AM5: Importo (Euro/anno) | AO5: water/other | AP5: J2015/J2014 | AQ5: (J2015/J2014 - 0,03) | AR5: COwater2015*colonna AB | AS5: check per RCws2016 | AT5: check per RCws2016
A6: 1 | B6: =+IF(ISNA(VLOOKUP(C6,soggetto_j,2,FALSE)),0,VLOOKUP(C6,soggetto_j,2,FALSE)) -> 0 | K6: =+I6*J6+IF(H6>F6,H6*G6,F6*G6) -> 0 | V6: =+T6*U6+IF(S6>Q6,S6*R6,Q6*R6) -> 0 | AB6: =+Z6*AA6+IF(Y6>W6,Y6*X6,W6*X6) -> 0 | AM6: =+AK6*AL6+IF(AJ6>AH6,AJ6*AI6,AH6*AI6) -> 0 | AO6: =+IF(ISNA(VLOOKUP(E6,TT_Tabelle_Riferimento!$B$3:$C$10,2,FALSE)),0,VLOOKUP(E6,TT_Tabelle_Riferimento!$B$3:$C$10,2,FALSE)) -> 0 | AP6: =+IF(ISERR(AE6/N6),0,AE6/N6) -> 0 | AQ6: =+IF(AP6>1.03,(AP6-0.03),1) -> 1 | AR6: =+AO6*AB6*AQ6 -> 0 | AS6: =IF(OR(K6=0,V6=0),0,1) -> 0 | AT6: =IF(OR(AB6=0,AM6=0),0,1) -> 0

Sheet Nuovi_Investimenti
B1: IMMOBILIZZAZIONI DEL GESTORE | G1: Tutti i valori si intendono a moneta dell'anno del cespite
A2: 1. LAVORI IN CORSO
D3: 2014 | E3: 2015 | F3: 2016 | G3: 2017
C4: Saldo LIC (*già nettati dai lavori a saldo invariato da più di 5 anni) | D4: 0 | E4: 0 | F4: 0 | G4: 0
A6: 2. NUOVI INVESTIMENTI
D7: 2014 | E7: 2015 | F7: 2016 | G7: 2017
C8: FoNI speso in Investimenti | D8: =FoNI!C34+Input_per_calcoli_finali!I101 -> 0 | E8: =FoNI!D34+Input_per_calcoli_finali!K101 -> 0 | F8: =FoNI!E34 -> 0 | G8: =FoNI!F34 -> 0
C9: Totale nuovi investimenti | D9: =+SUMIF($D$13:$D$553,D3,$E$13:$E$553) -> 0 | E9: =+SUMIF($D$13:$D$553,E3,$E$13:$E$553) -> 0 | F9: =+SUMIF($D$13:$D$553,F3,$E$13:$E$553) -> 0 | G9: =+SUMIF($D$13:$D$553,G3,$E$13:$E$553) -> 0
C10: % | D10: =IF(AND(D8=0,D9=0),0,D8/D9) -> 0 | E10: =IF(AND(E8=0,E9=0),0,E8/E9) -> 0 | F10: 0 | G10: 0
A12: N_riga | B12: Categoria del cespite | C12: Categoria di Immobilizzazione | D12: Anno cespite | E12: IP (Euro) | F12: CFP (Euro) | G12: CFP da FoNI | H12: CFP Totale | I12: IDATO | J12: IDAEEG | K12: Gestore_Proprietario | L12: N_prop | M12: Fonte | N12: ID_Categoria_Cespite | O12: CategoriaCespite | P12: ID_Immobilizzazione | Q12: IMMOBILIZZAZIONE | R12: AnnoCespite | S12: IP | T12: FAIP | U12: CFP | V12: FACP | W12: foglio di origine
A13: 1 | G13: =+IF(ISNA(HLOOKUP(D13,$D$7:$G$10,4,FALSE)),0,HLOOKUP(D13,$D$7:$G$10,4,FALSE))*E13 -> 0 | H13: =+G13+F13 -> 0 | I13: =idato -> 0 | J13: =idgestore -> 0 | K13: Gestore | L13: 0 | N13: =IF(ISNA(VLOOKUP(B13,TT_Tabelle_Riferimento!$G$32:$H$48,2,0)),0,VLOOKUP(B13,TT_Tabelle_Riferimento!$G$32:$H$48,2,0)) -> 0 | O13: =B13 -> 0 | P13: =IF(ISNA(VLOOKUP(C13,TT_Tabelle_Riferimento!$G$2:$H$6,2,0)),0,VLOOKUP(C13,TT_Tabelle_Riferimento!$G$2:$H$6,2,0)) -> 0 | Q13: =C13 -> 0 | R13: =D13 -> 0 | S13: 0 | T13: 0 | U13: =H13 -> 0 | V13: 0 | W13: Nuovi_Investimenti

Sheet Dismissioni
B1: IMMOBILIZZAZIONI DEL GESTORE | G1: Tutti i valori si intendono a moneta dell'anno del cespite
A2: 3. DISMISSIONI
A7: N_riga | B7: Categoria del cespite | C7: Categoria di Immobilizzazione | D7: Anno dismissione | E7: Anno cespite | F7: IP (Euro) | G7: FA (Euro) | H7: CFP (Euro) | I7: FA cfp (Euro) | J7: IDATO | K7: IDAEEG | L7: Gestore_Proprietario | M7: N_prop | N7: Fonte | O7: ID_Categoria_Cespite | P7: CategoriaCespite | Q7: ID_Immobilizzazione | R7: IMMOBILIZZAZIONE | S7: Anno dismissione | T7: IP (valore anno calcolo) | U7: FAIP (valore anno calcolo) | V7: CFP (valore anno calcolo) | W7: FACFP (valore anno calcolo) | X7: foglio di origine | Y7: VU 2012 | Z7: IP 2012 | AA7: FAIP 2012 | AB7: IP netto 2012 | AC7: AMM 2012 | AD7: componente tariffaria AMM 2012 | AE7: CFP 2012 | AF7: FA CFP 2012 | AG7: CFP netto 2012 | AH7: AMM CFP 2012 | AI7: VU 2013 | AJ7: IP 2013 | AK7: FAIP 2013 | AL7: IP netto 2013 | AM7: AMM 2013 | AN7: componente tariffaria AMM 2013 | AO7: CFP 2013 | AP7: FA CFP 2013 | AQ7: CFP netto 2013 | AR7: AMM CFP 2013 | AS7: VU 2014 | AT7: IP 2014 | AU7: FAIP 2014 | AV7: IP netto 2014 | AW7: AMM 2014 | AX7: componente tariffaria AMM 2014 | AY7: CFP 2014 | AZ7: FA CFP 2014 | BA7: CFP netto 2014 | BB7: AMM CFP 2014 | BC7: VU 2015 | BD7: IP 2015 | BE7: FAIP 2015 | BF7: IP netto 2015 | BG7: AMM 2015 | BH7: componente tariffaria AMM 2015 | BI7: CFP 2015 | BJ7: FA CFP 2015 | BK7: CFP netto 2015 | BL7: AMM CFP 2015 | BM7: VU 2016 | BN7: IP 2016 | BO7: FAIP 2016 | BP7: IP netto 2016 | BQ7: AMM 2016 | BR7: componente tariffaria AMM 2016 | BS7: CFP 2016 | BT7: FA CFP 2016 | BU7: CFP netto 2016 | BV7: AMM CFP 2016 | BW7: VU 2017 | BX7: IP 2017 | BY7: FAIP 2017 | BZ7: IP netto 2017 | CA7: AMM 2017 | CB7: componente tariffaria AMM 2017 | CC7: CFP 2017 | CD7: FA CFP 2017 | CE7: CFP netto 2017 | CF7: AMM CFP 2017 | CG7: VU 2018 | CH7: IP 2018 | CI7: FAIP 2018 | CJ7: IP netto 2018 | CK7: AMM 2018 | CL7: componente tariffaria AMM 2018 | CM7: CFP 2018 | CN7: FA CFP 2018 | CO7: CFP netto 2018 | CP7: AMM CFP 2018 | CQ7: VU 2019 | CR7: IP 2019 | CS7: FAIP 2019 | CT7: IP netto 2019 | CU7: AMM 2019 | CV7: componente tariffaria AMM 2019 | CW7: CFP 2019 | CX7: FA CFP 2019 | CY7: CFP netto 2019 | CZ7: AMM CFP 2019
A8: 1 | J8: =idato -> 0 | K8: =idgestore -> 0 | L8: Gestore | M8: 0 | O8: =IF(ISNA(VLOOKUP(B8,TT_Tabelle_Riferimento!$G$32:$H$48,2,0)),0,VLOOKUP(B8,TT_Tabelle_Riferimento!$G$32:$H$48,2,0)) -> 0 | P8: =B8 -> 0 | Q8: =IF(ISNA(VLOOKUP(C8,TT_Tabelle_Riferimento!$G$2:$H$6,2,0)),0,VLOOKUP(C8,TT_Tabelle_Riferimento!$G$2:$H$6,2,0)) -> 0 | R8: =C8 -> 0 | S8: =+D8 -> 0 | T8: =-IF($D8=2012,AT8,IF($D8=2013,BD8,IF($D8=2014,BN8,IF($D8=2015,BX8,IF($D8=2016,CH8,IF($D8=2017,CR8,0)))))) -> 0 | U8: 0 | V8: =-IF($D8=2012,AY8,IF($D8=2013,BI8,IF($D8=2014,BS8,IF($D8=2015,CC8,IF($D8=2016,CM8,IF($D8=2017,CW8,0)))))) -> 0 | W8: =-IF($D8=2012,AZ8,IF($D8=2013,BJ8,IF($D8=2014,BT8,IF($D8=2015,CD8,IF($D8=2016,CN8,IF($D8=2017,CX8,0)))))) -> 0 | X8: Dismissioni | Y8: =+IF(OR($O8=0,$O8=""),0,+INDEX(vite_regolatorie,MATCH($O8,categ_new,0)+2,MATCH(IF(VALUE(LEFT($E8,4))<=2011,2011,VALUE(LEFT($E8,4))),anni_new,0)+1)) -> 0 | Z8: =IF(OR($O8=0,$O8=""),0,IF($E8<=2011,$F8,IF(VALUE(RIGHT(Z$7,4))-$E8>=2,$F8,0))*VLOOKUP($E8,ifl,VALUE(RIGHT(Z$7,4))-2010,FALSE)) -> 0 | AA8: =IF(OR($O8=0,$O8=""),0,IF(VALUE(RIGHT(AA$7,4))-$E8=2,$G8,IF($E8<=2011,$G8,IF(VALUE(RIGHT(AA$7,4))-$E8>=2,$G8,0))*VLOOKUP($E8,ifl,VALUE(RIGHT(AA$7,4))-2010,FALSE))) -> 0 | AB8: =+Z8-AA8 -> 0 | AC8: =IF(OR($B8="(vuoto)",$B8="",Y8=0),0,+MIN(Z8/Y8,MAX(AB8,0))) -> 0 | AE8: =IF(OR($O8=0,$O8=""),0,IF($E8<=2011,$H8,IF(VALUE(RIGHT(AE$7,4))-$E8>=2,$H8,0))*VLOOKUP($E8,ifl,VALUE(RIGHT(AE$7,4))-2010,FALSE)) -> 0 | AF8: =IF(OR($O8=0,$O8=""),0,IF(VALUE(RIGHT(AF$7,4))-$E8=2,$I8,IF($E8<=2011,$I8,IF(VALUE(RIGHT(AF$7,4))-$E8>=2,$I8,0))*VLOOKUP($E8,ifl,VALUE(RIGHT(AF$7,4))-2010,FALSE))) -> 0 | AG8: =+AE8-AF8 -> 0 | AH8: =IF(OR($B8="(vuoto)",$B8="",Y8=0),0,+MIN(AE8/Y8,MAX(AG8,0))) -> 0 | AI8: =+IF(OR($O8=0,$O8=""),0,+INDEX(vite_regolatorie,MATCH($O8,categ_new,0)+2,MATCH(IF(VALUE(LEFT($E8,4))<=2011,2011,VALUE(LEFT($E8,4))),anni_new,0)+1)) -> 0 | AJ8: =IF(OR($O8=0,$O8=""),0,IF(VALUE(RIGHT(AJ$7,4))-$E8=2,$F8*VLOOKUP($E8,ifl,VALUE(RIGHT(AJ$7,4))-2010,FALSE),IF(VALUE(RIGHT(AJ$7,4))-$E8>2,Z8*VLOOKUP(VALUE(RIGHT(AJ$7,4))-1,ifl,VALUE(RIGHT(AJ$7,4))-2010,FALSE),0))) -> 0 | AK8: =IF(OR($O8=0,$O8=""),0,IF(VALUE(RIGHT(AK$7,4))-VALUE(RIGHT($E8,4))=2,$G8,IF(VALUE(RIGHT(AK$7,4))-VALUE(RIGHT($E8,4))>=2,(AA8+AC8)*VLOOKUP(VALUE(RIGHT(AK$7,4))-1,ifl,VALUE(RIGHT(AK$7,4))-2010,FALSE),0))) -> 0 | AL8: =+AJ8-AK8 -> 0 | AM8: =IF(OR($B8="(vuoto)",$B8="",AI8=0),0,+MIN(AJ8/AI8,MAX(AL8,0))) -> 0 | AO8: =IF(OR($O8=0,$O8=""),0,IF(VALUE(RIGHT(AO$7,4))-$E8=2,$H8*VLOOKUP($E8,ifl,VALUE(RIGHT(AO$7,4))-2010,FALSE),IF(VALUE(RIGHT(AO$7,4))-$E8>2,AE8*VLOOKUP(VALUE(RIGHT(AO$7,4))-1,ifl,VALUE(RIGHT(AO$7,4))-2010,FALSE),0))) -> 0 | AP8: =IF(OR($O8=0,$O8=""),0,IF(VALUE(RIGHT(AP$7,4))-VALUE(RIGHT($E8,4))=2,$I8,IF(VALUE(RIGHT(AP$7,4))-VALUE(RIGHT($E8,4))>=2,(AF8)*VLOOKUP(VALUE(RIGHT(AP$7,4))-1,ifl,VALUE(RIGHT(AP$7,4))-2010,FALSE),0))) -> 0 | AQ8: =+AO8-AP8 -> 0 | AR8: =IF(OR($B8="(vuoto)",$B8="",AI8=0),0,+MIN(AO8/AI8,MAX(AQ8,0))) -> 0 | AS8: =+IF(OR($O8=0,$O8=""),0,+INDEX(vite_regolatorie,MATCH($O8,categ_new,0)+2,MATCH(VALUE(RIGHT(AS$7,4)-2),anni_new,0)+1)) -> 0 | AT8: =IF(OR($O8=0,$O8=""),0,IF(VALUE(RIGHT(AT$7,4))-$E8=2,$F8*VLOOKUP($E8,ifl,VALUE(RIGHT(AT$7,4))-2010,FALSE),IF(VALUE(RIGHT(AT$7,4))-$E8>2,AJ8*VLOOKUP(VALUE(RIGHT(AT$7,4))-1,ifl,VALUE(RIGHT(AT$7,4))-2010,FALSE),0))) -> 0 | AU8: =IF(OR($O8=0,$O8=""),0,IF(VALUE(RIGHT(AU$7,4))-VALUE(RIGHT($E8,4))=2,$G8,IF(VALUE(RIGHT(AU$7,4))-VALUE(RIGHT($E8,4))>=2,(AK8+AM8)*VLOOKUP(VALUE(RIGHT(AU$7,4))-1,ifl,VALUE(RIGHT(AU$7,4))-2010,FALSE),0))) -> 0 | AV8: =+AT8-AU8 -> 0 | AW8: =IF(OR($B8="(vuoto)",$B8="",AS8=0),0,+MIN(AT8/AS8,MAX(AV8,0))) -> 0 | AY8: =IF(OR($O8=0,$O8=""),0,IF(VALUE(RIGHT(AY$7,4))-$E8=2,$H8*VLOOKUP($E8,ifl,VALUE(RIGHT(AY$7,4))-2010,FALSE),IF(VALUE(RIGHT(AY$7,4))-$E8>2,AO8*VLOOKUP(VALUE(RIGHT(AY$7,4))-1,ifl,VALUE(RIGHT(AY$7,4))-2010,FALSE),0))) -> 0 | AZ8: =IF(OR($O8=0,$O8=""),0,IF(VALUE(RIGHT(AZ$7,4))-VALUE(RIGHT($E8,4))=2,$I8,IF(VALUE(RIGHT(AZ$7,4))-VALUE(RIGHT($E8,4))>=2,(AP8+AR8)*VLOOKUP(VALUE(RIGHT(AZ$7,4))-1,ifl,VALUE(RIGHT(AZ$7,4))-2010,FALSE),0))) -> 0 | BA8: =+AY8-AZ8 -> 0 | BB8: =IF(OR($B8="(vuoto)",$B8="",AS8=0),0,+MIN(AY8/AS8,MAX(BA8,0))) -> 0 | BC8: =+IF(OR($O8=0,$O8=""),0,+INDEX(vite_regolatorie,MATCH($O8,categ_new,0)+2,MATCH(VALUE(RIGHT(BC$7,4)-2),anni_new,0)+1)) -> 0 | BD8: =IF(OR($O8=0,$O8=""),0,IF(VALUE(RIGHT(BD$7,4))-$E8=2,$F8*VLOOKUP($E8,ifl,VALUE(RIGHT(BD$7,4))-2010,FALSE),IF(VALUE(RIGHT(BD$7,4))-$E8>2,AT8*VLOOKUP(VALUE(RIGHT(BD$7,4))-1,ifl,VALUE(RIGHT(BD$7,4))-2010,FALSE),0))) -> 0 | BE8: =IF(OR($O8=0,$O8=""),0,IF(VALUE(RIGHT(BE$7,4))-VALUE(RIGHT($E8,4))=2,$G8,IF(VALUE(RIGHT(BE$7,4))-VALUE(RIGHT($E8,4))>=2,(AU8+AW8)*VLOOKUP(VALUE(RIGHT(BE$7,4))-1,ifl,VALUE(RIGHT(BE$7,4))-2010,FALSE),0))) -> 0 | BF8: =+BD8-BE8 -> 0 | BG8: =IF(OR($B8="(vuoto)",$B8="",BC8=0),0,+MIN(BD8/BC8,MAX(BF8,0))) -> 0 | BI8: =IF(OR($O8=0,$O8=""),0,IF(VALUE(RIGHT(BI$7,4))-$E8=2,$H8*VLOOKUP($E8,ifl,VALUE(RIGHT(BI$7,4))-2010,FALSE),IF(VALUE(RIGHT(BI$7,4))-$E8>2,AY8*VLOOKUP(VALUE(RIGHT(BI$7,4))-1,ifl,VALUE(RIGHT(BI$7,4))-2010,FALSE),0))) -> 0 | BJ8: =IF(OR($O8=0,$O8=""),0,IF(VALUE(RIGHT(BJ$7,4))-VALUE(RIGHT($E8,4))=2,$I8,IF(VALUE(RIGHT(BJ$7,4))-VALUE(RIGHT($E8,4))>=2,(AZ8+BB8)*VLOOKUP(VALUE(RIGHT(BJ$7,4))-1,ifl,VALUE(RIGHT(BJ$7,4))-2010,FALSE),0))) -> 0 | BK8: =+BI8-BJ8 -> 0 | BL8: =IF(OR($B8="(vuoto)",$B8="",BC8=0),0,+MIN(BI8/BC8,MAX(BK8,0))) -> 0 | BM8: =+IF(OR($O8=0,$O8=""),0,+INDEX(vite_regolatorie,MATCH($O8,categ_new,0)+2,MATCH(VALUE(RIGHT(BM$7,4)-2),anni_new,0)+1)) -> 0 | BN8: =IF(OR($O8=0,$O8=""),0,IF(VALUE(RIGHT(BN$7,4))-$E8=2,$F8*VLOOKUP($E8,ifl,VALUE(RIGHT(BN$7,4))-2010,FALSE),IF(VALUE(RIGHT(BN$7,4))-$E8>2,BD8*VLOOKUP(VALUE(RIGHT(BN$7,4))-1,ifl,VALUE(RIGHT(BN$7,4))-2010,FALSE),0))) -> 0 | BO8: =IF(OR($O8=0,$O8=""),0,IF(VALUE(RIGHT(BO$7,4))-VALUE(RIGHT($E8,4))=2,$G8,IF(VALUE(RIGHT(BO$7,4))-VALUE(RIGHT($E8,4))>=2,(BE8+BG8)*VLOOKUP(VALUE(RIGHT(BO$7,4))-1,ifl,VALUE(RIGHT(BO$7,4))-2010,FALSE),0))) -> 0 | BP8: =+BN8-BO8 -> 0 | BQ8: =IF(OR($B8="(vuoto)",$B8="",BM8=0),0,+MIN(BN8/BM8,MAX(BP8,0))) -> 0 | BS8: =IF(OR($O8=0,$O8=""),0,IF(VALUE(RIGHT(BS$7,4))-$E8=2,$H8*VLOOKUP($E8,ifl,VALUE(RIGHT(BS$7,4))-2010,FALSE),IF(VALUE(RIGHT(BS$7,4))-$E8>2,BI8*VLOOKUP(VALUE(RIGHT(BS$7,4))-1,ifl,VALUE(RIGHT(BS$7,4))-2010,FALSE),0))) -> 0 | BT8: =IF(OR($B8="(vuoto)",$B8=""),0,+VLOOKUP(VALUE(RIGHT(BT$7,4))-1,ifl,VALUE(RIGHT(BT$7,4))-2010,FALSE)*(BJ8+BL8)) -> 0 | BU8: =+BS8-BT8 -> 0 | BV8: =IF(OR($B8="(vuoto)",$B8="",BM8=0),0,+MIN(BS8/BM8,MAX(BU8,0))) -> 0 | BW8: =+IF(OR($O8=0,$O8=""),0,+INDEX(vite_regolatorie,MATCH($O8,categ_new,0)+2,MATCH(VALUE(RIGHT(BW$7,4)-2),anni_new,0)+1)) -> 0 | BX8: =IF(OR($O8=0,$O8=""),0,IF(VALUE(RIGHT(BX$7,4))-$E8=2,$F8*VLOOKUP($E8,ifl,VALUE(RIGHT(BX$7,4))-2010,FALSE),IF(VALUE(RIGHT(BX$7,4))-$E8>2,BN8*VLOOKUP(VALUE(RIGHT(BX$7,4))-1,ifl,VALUE(RIGHT(BX$7,4))-2010,FALSE),0))) -> 0 | BY8: =IF(OR($O8=0,$O8=""),0,IF(VALUE(RIGHT(BY$7,4))-VALUE(RIGHT($E8,4))=2,$G8,IF(VALUE(RIGHT(BY$7,4))-VALUE(RIGHT($E8,4))>=2,(BO8+BQ8)*VLOOKUP(VALUE(RIGHT(BY$7,4))-1,ifl,VALUE(RIGHT(BY$7,4))-2010,FALSE),0))) -> 0 | BZ8: =+BX8-BY8 -> 0 | CA8: =IF(OR($B8="(vuoto)",$B8="",BW8=0),0,+MIN(BX8/BW8,MAX(BZ8,0))) -> 0 | CC8: =IF(OR($O8=0,$O8=""),0,IF(VALUE(RIGHT(CC$7,4))-$E8=2,$H8*VLOOKUP($E8,ifl,VALUE(RIGHT(CC$7,4))-2010,FALSE),IF(VALUE(RIGHT(CC$7,4))-$E8>2,BS8*VLOOKUP(VALUE(RIGHT(CC$7,4))-1,ifl,VALUE(RIGHT(CC$7,4))-2010,FALSE),0))) -> 0 | CD8: =IF(OR($O8=0,$O8=""),0,IF(VALUE(RIGHT(CD$7,4))-VALUE(RIGHT($E8,4))=2,$I8,IF(VALUE(RIGHT(CD$7,4))-VALUE(RIGHT($E8,4))>=2,(BT8+BV8)*VLOOKUP(VALUE(RIGHT(CD$7,4))-1,ifl,VALUE(RIGHT(CD$7,4))-2010,FALSE),0))) -> 0 | CE8: =+CC8-CD8 -> 0 | CF8: =IF(OR($B8="(vuoto)",$B8="",BW8=0),0,+MIN(CC8/BW8,MAX(CE8,0))) -> 0 | CG8: =+IF(OR($O8=0,$O8=""),0,+INDEX(vite_regolatorie,MATCH($O8,categ_new,0)+2,MATCH(VALUE(RIGHT(CG$7,4)-2),anni_new,0)+1)) -> 0 | CH8: =IF(OR($O8=0,$O8=""),0,IF(VALUE(RIGHT(CH$7,4))-$E8=2,$F8*VLOOKUP($E8,ifl,VALUE(RIGHT(CH$7,4))-2010,FALSE),IF(VALUE(RIGHT(CH$7,4))-$E8>2,BX8*VLOOKUP(VALUE(RIGHT(CH$7,4))-1,ifl,VALUE(RIGHT(CH$7,4))-2010,FALSE),0))) -> 0 | CI8: =IF(OR($O8=0,$O8=""),0,IF(VALUE(RIGHT(CI$7,4))-VALUE(RIGHT($E8,4))=2,$G8,IF(VALUE(RIGHT(CI$7,4))-VALUE(RIGHT($E8,4))>=2,(BY8+CA8)*VLOOKUP(VALUE(RIGHT(CI$7,4))-1,ifl,VALUE(RIGHT(CI$7,4))-2010,FALSE),0))) -> 0 | CJ8: =+CH8-CI8 -> 0 | CK8: =IF(OR($B8="(vuoto)",$B8="",CG8=0),0,+MIN(CH8/CG8,MAX(CJ8,0))) -> 0 | CM8: =IF(OR($O8=0,$O8=""),0,IF(VALUE(RIGHT(CM$7,4))-$E8=2,$H8*VLOOKUP($E8,ifl,VALUE(RIGHT(CM$7,4))-2010,FALSE),IF(VALUE(RIGHT(CM$7,4))-$E8>2,CC8*VLOOKUP(VALUE(RIGHT(CM$7,4))-1,ifl,VALUE(RIGHT(CM$7,4))-2010,FALSE),0))) -> 0 | CN8: =IF(OR($O8=0,$O8=""),0,IF(VALUE(RIGHT(CN$7,4))-VALUE(RIGHT($E8,4))=2,$I8,IF(VALUE(RIGHT(CN$7,4))-VALUE(RIGHT($E8,4))>=2,(CD8+CF8)*VLOOKUP(VALUE(RIGHT(CN$7,4))-1,ifl,VALUE(RIGHT(CN$7,4))-2010,FALSE),0))) -> 0 | CO8: =+CM8-CN8 -> 0 | CP8: =IF(OR($B8="(vuoto)",$B8="",CG8=0),0,+MIN(CM8/CG8,MAX(CO8,0))) -> 0 | CQ8: =+IF(OR($B8="(vuoto)",$B8=""),0,+INDEX(vite_regolatorie,MATCH(VLOOKUP($B8,TT_Tabelle_Riferimento!$G$32:$H$48,2,FALSE),categ_new,0)+2,MATCH(IF($E8<2011,2011,$E8),anni_new,0)+1)) -> 0 | CR8: =IF(OR($O8=0,$O8=""),0,IF(VALUE(RIGHT(CR$7,4))-$E8=2,$F8*VLOOKUP($E8,ifl,VALUE(RIGHT(CR$7,4))-2010,FALSE),IF(VALUE(RIGHT(CR$7,4))-$E8>2,CH8*VLOOKUP(VALUE(RIGHT(CR$7,4))-1,ifl,VALUE(RIGHT(CR$7,4))-2010,FALSE),0))) -> 0 | CS8: =IF(OR($O8=0,$O8=""),0,IF(VALUE(RIGHT(CS$7,4))-VALUE(RIGHT($E8,4))=2,$G8,IF(VALUE(RIGHT(CS$7,4))-VALUE(RIGHT($E8,4))>=2,(CI8+CK8)*VLOOKUP(VALUE(RIGHT(CS$7,4))-1,ifl,VALUE(RIGHT(CS$7,4))-2010,FALSE),0))) -> 0 | CT8: =+CR8-CS8 -> 0 | CU8: =IF(OR($B8="(vuoto)",$B8="",CQ8=0),0,+MIN(CR8/CQ8,MAX(CT8,0))) -> 0 | CW8: =IF(OR($O8=0,$O8=""),0,IF(VALUE(RIGHT(CW$7,4))-$E8=2,$H8*VLOOKUP($E8,ifl,VALUE(RIGHT(CW$7,4))-2010,FALSE),IF(VALUE(RIGHT(CW$7,4))-$E8>2,CM8*VLOOKUP(VALUE(RIGHT(CW$7,4))-1,ifl,VALUE(RIGHT(CW$7,4))-2010,FALSE),0))) -> 0 | CX8: =IF(OR($O8=0,$O8=""),0,IF(VALUE(RIGHT(CX$7,4))-VALUE(RIGHT($E8,4))=2,$I8,IF(VALUE(RIGHT(CX$7,4))-VALUE(RIGHT($E8,4))>=2,(CN8+CP8)*VLOOKUP(VALUE(RIGHT(CX$7,4))-1,ifl,VALUE(RIGHT(CX$7,4))-2010,FALSE),0))) -> 0 | CY8: =+CW8-CX8 -> 0 | CZ8: =IF(OR($B8="(vuoto)",$B8="",CQ8=0),0,+MIN(CW8/CQ8,MAX(CY8,0))) -> 0

Sheet Ammortamento_Finanziario
B1: IMMOBILIZZAZIONI DEL GESTORE | D1: Vite utili per il calcolo degli ammortamenti MTI-2 sulle immobilizzazioni al 2013 | J1: Vite utili per il calcolo degli ammortamenti MTI-2 sui nuovi investimenti
A2: 4. VITE UTILI PER LO SVILUPPO DELLA RAB | D2: area dati storici | J2: area disponibile per la compilazione | W2: scarico dal DB (MTT e exCipe) | Y2: scarico dal DB (MTI) | AA2: scarico dal DB (MTI) | AC2: come da compilazione ma dopo controllo di coerenza | AE2: come da compilazione ma dopo controllo di coerenza | AG2: come da compilazione ma dopo controllo di coerenza | AI2: come da compilazione ma dopo controllo di coerenza
D3: ANNI 1963 - 2011 | F3: ANNO 2012 | H3: ANNO 2013 | J3: ANNO 2014 | L3: ANNO 2015 | N3: ANNO 2016 | P3: ANNO 2017 | W3: ANNI 1963 - 2011 | Y3: ANNO 2012 | AA3: ANNO 2013 | AC3: ANNO 2014 | AE3: ANNO 2015 | AG3: ANNO 2016 | AI3: ANNO 2017
B4: Ricorso all'Ammortamento finanziario (a partire dall'anno 2014 scegliere "SI"/"NO" dal menu a tendina) | D4: =+IF(OR(iAF="SI",schema="IV",schema="V",schema="VI",Dati_Anni_precedenti!C43="SI"),"SI","NO") -> NO | F4: =+IF(OR(iAF="SI",schema="IV",schema="V",schema="VI",Dati_Anni_precedenti!C43="SI"),"SI","NO") -> NO | H4: =+IF(OR(iAF="SI",schema="IV",schema="V",schema="VI",Dati_Anni_precedenti!C43="SI"),"SI","NO") -> NO | J4: NO | L4: NO | N4: NO | P4: NO | W4: =+pre_af_2011 -> NO | Y4: =+pre_af_2012 -> NO | AA4: =+pre_af_2013 -> NO | AC4: =+IF(J31="OK",pre_af_2014,"NO") -> NO | AE4: =+IF(L31="OK",pre_af_2015,"NO") -> NO | AG4: =+IF(N31="OK",pre_af_2016,"NO") -> NO | AI4: =+IF(P31="OK",pre_af_2017,"NO") -> NO
D5: Periodo di ammortamento: | F5: Periodo di ammortamento: | H5: Periodo di ammortamento: | J5: Periodo di ammortamento: | L5: Periodo di ammortamento: | N5: Periodo di ammortamento: | P5: Periodo di ammortamento: | W5: Periodo di ammortamento: | Y5: Periodo di ammortamento: | AA5: Periodo di ammortamento: | AC5: Periodo di ammortamento: | AE5: Periodo di ammortamento: | AG5: Periodo di ammortamento: | AI5: Periodo di ammortamento:
B6: ID | C6: Categoria Cespite | D6: vite utili regolatorie (MTT) | E6: durata ammortamento finanziario | F6: vite utili regolatorie (MTT) | G6: durata ammortamento finanziario | H6: vite utili regolatorie (MTT) | I6: durata ammortamento finanziario | J6: vite utili regolatorie (MTT) | K6: durata ammortamento finanziario | L6: vite utili regolatorie (MTT) | M6: durata ammortamento finanziario | N6: vite utili regolatorie (MTT) | O6: durata ammortamento finanziario | P6: vite utili regolatorie (MTT) | Q6: durata ammortamento finanziario | U6: ID | V6: Categoria Cespite | W6: vite utili regolatorie (MTT) | X6: durata ammortamento finanziario | Y6: vite utili regolatorie (MTT) | Z6: durata ammortamento finanziario | AA6: vite utili regolatorie (MTT) | AB6: durata ammortamento finanziario | AC6: vite utili regolatorie (MTT) | AD6: durata ammortamento finanziario | AE6: vite utili regolatorie (MTT) | AF6: durata ammortamento finanziario | AG6: vite utili regolatorie (MTT) | AH6: durata ammortamento finanziario | AI6: vite utili regolatorie (MTT) | AJ6: durata ammortamento finanziario
B7: 1 | C7: Terreni | U7: 1 | V7: Terreni
B8: 2 | C8: Fabbricati non industriali | D8: 40 | E8: =+Vite_utili_precedenti!X8 -> 40 | F8: 40 | G8: =+Vite_utili_precedenti!Z8 -> 40 | H8: 40 | I8: =+Vite_utili_precedenti!AB8 -> 40 | J8: 40 | L8: 40 | N8: 40 | P8: 40 | U8: 2 | V8: Fabbricati non industriali | W8: 40 | X8: =+IF(af_2011="NO",D8,E8) -> 40 | Y8: 40 | Z8: =+IF(af_2012="NO",F8,G8) -> 40 | AA8: 40 | AB8: =+IF(af_2013="NO",H8,I8) -> 40 | AC8: 40 | AD8: =+IF(af_2014="NO",J8,K8) -> 40 | AE8: 40 | AF8: =+IF(af_2015="NO",L8,M8) -> 40 | AG8: 40 | AH8: =+IF(af_2016="NO",N8,O8) -> 40 | AI8: 40 | AJ8: =+IF(af_2017="NO",P8,Q8) -> 40
B9: 3 | C9: Fabbricati industriali | D9: 40 | E9: =+Vite_utili_precedenti!X9 -> 40 | F9: 40 | G9: =+Vite_utili_precedenti!Z9 -> 40 | H9: 40 | I9: =+Vite_utili_precedenti!AB9 -> 40 | J9: 40 | L9: 40 | N9: 40 | P9: 40 | U9: 3 | V9: Fabbricati industriali | W9: 40 | X9: 40 | Y9: 40 | Z9: 40 | AA9: 40 | AB9: 40 | AC9: 40 | AD9: 40 | AE9: 40 | AF9: 40 | AG9: 40 | AH9: 40 | AI9: 40 | AJ9: 40
B10: 4 | C10: Costruzioni leggere | D10: 40 | E10: =+Vite_utili_precedenti!X10 -> 40 | F10: 40 | G10: =+Vite_utili_precedenti!Z10 -> 40 | H10: 40 | I10: =+Vite_utili_precedenti!AB10 -> 40 | J10: 40 | L10: 40 | N10: 40 | P10: 40 | U10: 4 | V10: Costruzioni leggere | W10: 40 | X10: 40 | Y10: 40 | Z10: 40 | AA10: 40 | AB10: 40 | AC10: 40 | AD10: 40 | AE10: 40 | AF10: 40 | AG10: 40 | AH10: 40 | AI10: 40 | AJ10: 40
B11: 5 | C11: Condutture e opere idrauliche fisse | D11: 40 | E11: =+Vite_utili_precedenti!X11 -> 40 | F11: 40 | G11: =+Vite_utili_precedenti!Z11 -> 40 | H11: 40 | I11: =+Vite_utili_precedenti!AB11 -> 40 | J11: 40 | L11: 40 | N11: 40 | P11: 40 | U11: 5 | V11: Condutture e opere idrauliche fisse | W11: 40 | X11: 40 | Y11: 40 | Z11: 40 | AA11: 40 | AB11: 40 | AC11: 40 | AD11: 40 | AE11: 40 | AF11: 40 | AG11: 40 | AH11: 40 | AI11: 40 | AJ11: 40
B12: 6 | C12: Serbatoi | D12: 50 | E12: =+Vite_utili_precedenti!X12 -> 50 | F12: 50 | G12: =+Vite_utili_precedenti!Z12 -> 50 | H12: 50 | I12: =+Vite_utili_precedenti!AB12 -> 50 | J12: 50 | L12: 50 | N12: 50 | P12: 50 | U12: 6 | V12: Serbatoi | W12: 50 | X12: 50 | Y12: 50 | Z12: 50 | AA12: 50 | AB12: 50 | AC12: 50 | AD12: 50 | AE12: 50 | AF12: 50 | AG12: 50 | AH12: 50 | AI12: 50 | AJ12: 50
B13: 7 | C13: Impianti di trattamento | D13: 12 | E13: =+Vite_utili_precedenti!X13 -> 12 | F13: 12 | G13: =+Vite_utili_precedenti!Z13 -> 12 | H13: 12 | I13: =+Vite_utili_precedenti!AB13 -> 12 | J13: 12 | L13: 12 | N13: 12 | P13: 12 | U13: 7 | V13: Impianti di trattamento | W13: 12 | X13: 12 | Y13: 12 | Z13: 12 | AA13: 12 | AB13: 12 | AC13: 12 | AD13: 12 | AE13: 12 | AF13: 12 | AG13: 12 | AH13: 12 | AI13: 12 | AJ13: 12
B14: 8 | C14: Impianti di sollevamento e pompaggio | D14: 8 | E14: =+Vite_utili_precedenti!X14 -> 8 | F14: 8 | G14: =+Vite_utili_precedenti!Z14 -> 8 | H14: 8 | I14: =+Vite_utili_precedenti!AB14 -> 8 | J14: 8 | L14: 8 | N14: 8 | P14: 8 | U14: 8 | V14: Impianti di sollevamento e pompaggio | W14: 8 | X14: 8 | Y14: 8 | Z14: 8 | AA14: 8 | AB14: 8 | AC14: 8 | AD14: 8 | AE14: 8 | AF14: 8 | AG14: 8 | AH14: 8 | AI14: 8 | AJ14: 8
B15: 9 | C15: Gruppi di misura meccanici | D15: 15 | E15: =+Vite_utili_precedenti!X15 -> 15 | F15: 15 | G15: =+Vite_utili_precedenti!Z15 -> 15 | H15: 15 | I15: =+Vite_utili_precedenti!AB15 -> 15 | J15: 15 | L15: 15 | N15: 15 | P15: 15 | U15: 9 | V15: Gruppi di misura meccanici | W15: 15 | X15: 15 | Y15: 15 | Z15: 15 | AA15: 15 | AB15: 15 | AC15: 15 | AD15: 15 | AE15: 15 | AF15: 15 | AG15: 15 | AH15: 15 | AI15: 15 | AJ15: 15
B16: 10 | C16: Gruppi di misura elettronici | D16: 15 | E16: =+Vite_utili_precedenti!X16 -> 15 | F16: 15 | G16: =+Vite_utili_precedenti!Z16 -> 15 | H16: 15 | I16: =+Vite_utili_precedenti!AB16 -> 15 | J16: 15 | L16: 15 | N16: 15 | P16: 15 | U16: 10 | V16: Gruppi di misura elettronici | W16: 15 | X16: 15 | Y16: 15 | Z16: 15 | AA16: 15 | AB16: 15 | AC16: 15 | AD16: 15 | AE16: 15 | AF16: 15 | AG16: 15 | AH16: 15 | AI16: 15 | AJ16: 15
B17: 11 | C17: Altri impianti | D17: 20 | E17: =+Vite_utili_precedenti!X17 -> 20 | F17: 20 | G17: =+Vite_utili_precedenti!Z17 -> 20 | H17: 20 | I17: =+Vite_utili_precedenti!AB17 -> 20 | J17: 20 | L17: 20 | N17: 20 | P17: 20 | U17: 11 | V17: Altri impianti | W17: 20 | X17: 20 | Y17: 20 | Z17: 20 | AA17: 20 | AB17: 20 | AC17: 20 | AD17: 20 | AE17: 20 | AF17: 20 | AG17: 20 | AH17: 20 | AI17: 20 | AJ17: 20
B18: 12 | C18: Laboratori | D18: 10 | E18: =+Vite_utili_precedenti!X18 -> 10 | F18: 10 | G18: =+Vite_utili_precedenti!Z18 -> 10 | H18: 10 | I18: =+Vite_utili_precedenti!AB18 -> 10 | J18: 10 | L18: 10 | N18: 10 | P18: 10 | U18: 12 | V18: Laboratori | W18: 10 | X18: 10 | Y18: 10 | Z18: 10 | AA18: 10 | AB18: 10 | AC18: 10 | AD18: 10 | AE18: 10 | AF18: 10 | AG18: 10 | AH18: 10 | AI18: 10 | AJ18: 10
B19: 13 | C19: Telecontrollo | D19: 8 | E19: =+Vite_utili_precedenti!X19 -> 8 | F19: 8 | G19: =+Vite_utili_precedenti!Z19 -> 8 | H19: 8 | I19: =+Vite_utili_precedenti!AB19 -> 8 | J19: 8 | L19: 8 | N19: 8 | P19: 8 | U19: 13 | V19: Telecontrollo | W19: 8 | X19: 8 | Y19: 8 | Z19: 8 | AA19: 8 | AB19: 8 | AC19: 8 | AD19: 8 | AE19: 8 | AF19: 8 | AG19: 8 | AH19: 8 | AI19: 8 | AJ19: 8
B20: 14 | C20: Autoveicoli | D20: 5 | E20: =+Vite_utili_precedenti!X20 -> 5 | F20: 5 | G20: =+Vite_utili_precedenti!Z20 -> 5 | H20: 5 | I20: =+Vite_utili_precedenti!AB20 -> 5 | J20: 5 | L20: 5 | N20: 5 | P20: 5 | U20: 14 | V20: Autoveicoli | W20: 5 | X20: 5 | Y20: 5 | Z20: 5 | AA20: 5 | AB20: 5 | AC20: 5 | AD20: 5 | AE20: 5 | AF20: 5 | AG20: 5 | AH20: 5 | AI20: 5 | AJ20: 5
B21: 15 | C21: Studi, ricerche, brevetti, diritti di utilizzazione | D21: 5 | E21: =+Vite_utili_precedenti!X21 -> 5 | F21: 5 | G21: =+Vite_utili_precedenti!Z21 -> 5 | H21: 5 | I21: =+Vite_utili_precedenti!AB21 -> 5 | J21: 5 | L21: 5 | N21: 5 | P21: 5 | U21: 15 | V21: Studi, ricerche, brevetti, diritti di utilizzazione | W21: 5 | X21: 5 | Y21: 5 | Z21: 5 | AA21: 5 | AB21: 5 | AC21: 5 | AD21: 5 | AE21: 5 | AF21: 5 | AG21: 5 | AH21: 5 | AI21: 5 | AJ21: 5
B22: 16 | C22: Altre immobilizzazioni materiali e immateriali | D22: 7 | E22: =+Vite_utili_precedenti!X22 -> 7 | F22: 7 | G22: =+Vite_utili_precedenti!Z22 -> 7 | H22: 7 | I22: =+Vite_utili_precedenti!AB22 -> 7 | J22: 7 | L22: 7 | N22: 7 | P22: 7 | U22: 16 | V22: Altre immobilizzazioni materiali e immateriali | W22: 7 | X22: 7 | Y22: 7 | Z22: 7 | AA22: 7 | AB22: 7 | AC22: 7 | AD22: 7 | AE22: 7 | AF22: 7 | AG22: 7 | AH22: 7 | AI22: 7 | AJ22: 7
B23: 17 | C23: Immobilizzazioni immateriali: avviamenti, capitalizzazione concessione, etc. | U23: 17 | V23: Immobilizzazioni immateriali: avviamenti, capitalizzazione concessione, etc.
E25: § | G25: § | I25: §
C26: L'ammortamento finanziario può essere richiesto se si ricade negli shemi IV, V, VI o valgono le ulteriori casistiche di cui al comma 16.5 in tal caso vanno compilate necessariamente tutte le colonne. L'inosservanza di una sola delle due indicazioni determinerà automaticamente lo sviluppo dei costi delle immobilizzazioni secondo le vite utili regolatorie | E26: le vite utili delle colonne E, G e I sono modificabili per le gestioni che hanno la possibilità di ricorrere all'ammortamento finanziario.
A27: riga di servizio | B27: id | C27: tipo | J27: ANNO 2014 | L27: ANNO 2015 | N27: ANNO 2016 | P27: ANNO 2017
A28: riga di servizio | B28: AF_1 | C28: [controllo]: Ammortamento finanziario ai sensi del comma 16.5 | J28: =++IF(iAF="SI","OK","NO") -> NO | L28: =++IF(iAF="SI","OK","NO") -> NO | N28: =++IF(iAF="SI","OK","NO") -> NO | P28: =++IF(iAF="SI","OK","NO") -> NO
A29: riga di servizio | B29: AF_2 | C29: [controllo]: coerenza quadranti e ammortamento finanziario | J29: =++IF(pre_af_2014="NO","OK",IF(pre_af_2014="SI",IF(OR(schema="IV",schema="V",schema="VI"),"OK","check!"))) -> OK | L29: =++IF(pre_af_2015="NO","OK",IF(pre_af_2015="SI",IF(OR(schema="IV",schema="V",schema="VI"),"OK","check!"))) -> OK | N29: =++IF(pre_af_2016="NO","OK",IF(pre_af_2016="SI",IF(OR(schema="IV",schema="V",schema="VI"),"OK","check!"))) -> OK | P29: =++IF(pre_af_2017="NO","OK",IF(pre_af_2017="SI",IF(OR(schema="IV",schema="V",schema="VI"),"OK","check!"))) -> OK | V29: da notare:
A30: riga di servizio | B30: AF_3 | C30: [controllo]: compilazione vu in caso di ammortamento finanziario | J30: =IF(pre_af_2014="si",IF(OR(COUNT(K8:K22)<15,MIN(K8:K22)=0),"ricontrollare valori","OK"),"OK") -> OK | L30: =IF(pre_af_2015="si",IF(OR(COUNT(M8:M22)<15,MIN(M8:M22)=0),"ricontrollare valori","OK"),"OK") -> OK | N30: =IF(pre_af_2016="si",IF(OR(COUNT(O8:O22)<15,MIN(O8:O22)=0),"ricontrollare valori","OK"),"OK") -> OK | P30: =IF(pre_af_2017="si",IF(OR(COUNT(Q8:Q22)<15,MIN(Q8:Q22)=0),"ricontrollare valori","OK"),"OK") -> OK
A31: riga di servizio | B31: AF_4 | C31: [controllo definitivo]: Controllo compilazione per AF | J31: =+IF(J30="OK",IF(OR(J28="OK",J29="OK"),"OK","NO"),"Compilare tutte le vite utili in caso di AF") -> OK | L31: =+IF(L30="OK",IF(OR(L28="OK",L29="OK"),"OK","NO"),"Compilare tutte le vite utili in caso di AF") -> OK | N31: =+IF(N30="OK",IF(OR(N28="OK",N29="OK"),"OK","NO"),"Compilare tutte le vite utili in caso di AF") -> OK | P31: =+IF(P30="OK",IF(OR(P28="OK",P29="OK"),"OK","NO"),"Compilare tutte le vite utili in caso di AF") -> OK
A32: riga di servizio | B32: AF_5 | C32: [info]: il range D3:G21 va scaricato dal db e portato in visione al compilante. Nome di zona vu_mti e sono le vite utili applicate dai gestori nel MTI
A33: riga di servizio | B33: AF_6 | C33: [info]: il range D4:E22 va scaricato dal db e portato in visione al compilante. Nome di zona vu_mtt e sono le vite utili applicate dai gestori nel MTT

Sheet Info_eventuali_aggregazioni
B1: AGGREGAZIONI
V2: controllo compilazione
B3: Informazioni anagrafiche delle gestioni legate a processi di aggregazione | V3: =+AND(OFFSET(R10,0,0,COUNTA(R:R),1))=TRUE -> TRUE
B4: In caso di compilazione, fornire tutte le informazioni richieste
B5: 1. INFORMAZIONI SUI SOGGETTI AGGREGATI
B9: Nome del soggetto | C9: IdAEEG della gestione aggregata | D9: gestore/proprietario di infrastruttura | E9: P. IVA | F9: Codice Istat Comune | G9: gestore esercente il servizio di Acquedotto | H9: gestore esercente il servizio di Fognatura | I9: gestore esercente il servizio di Depurazione | J9: popolazione (la maggiore tra i servizi forniti in origine) | K9: grado di completezza dei dati | L9: grado di acquisizione della gestione | N9: per formule/nome zona | O9: idaeeg | P9: popolazione | R9: controllo compilazione
A10: 1 | N10: =+IF(K10="dati non completi",B10,0) -> 0 | O10: =+IF(K10="dati non completi",C10,0) -> 0 | P10: =+IF(K10="dati non completi",J10,0) -> 0 | R10: =+OR(COUNTA(B10:L10)=11,COUNTA(B10:L10)=0) -> TRUE

Sheet Dati_exGestioni_incomplete
B1: AGGREGAZIONI | R1: controllo compilazione
R2: =+AND(OFFSET(Q11,0,0,COUNTA(Q:Q),1))=TRUE -> TRUE
B3: Ricavi tariffari delle gestioni per le quali non si dispone di un corredo informativo completo (art. 10 All. A MTI2)
B5: 2. SCHEMA REGOLATORIO VIRTUALE: ricavi tariffari delle gestioni aggregate
B9: IdAEEG della gestione incompleta | C9: Nome del gestore | D9: Popolazione | H9: tali ricavi tariffari sono già inseriti nell'articolazione tariffaria dei fogli precedenti (SI/NO) | I9: si conferma che i costi (opex e capex) indicati non siano inclusi né nella determinazione delle componenti tariffarie MTI né nei dati di bilancio oggetto di predisposizione? (SI/NO) | K9: Opexvirt | L9: Capexvirt | M9: VRGvirt | N9: ricavi aggiuntivi denominatore J2016 | O9: ricavi aggiuntivi denominatore J2017 | Q9: controllo compilazione
B10: idaeeg_altro | C10: ragione_altro | F10: tarif2015_vscal2014_altro | G10: tarif2015_vscal2015_altro | H10: ricavi_anche_nel_gestore | I10: ricavi_anche_in_bilancio2014 | Q10: controllo compilazione
A11: 3 | B11: =+IF(ISNA(VLOOKUP(C11,soggetti_aggr,2,FALSE)),0,+VLOOKUP(C11,soggetti_aggr,2,FALSE)) -> 0 | D11: =+IF(ISNA(VLOOKUP(C11,soggetti_aggr,3,FALSE)),0,+VLOOKUP(C11,soggetti_aggr,3,FALSE)) -> 0 | K11: =IF(I11="SI",OPM*0.85*D11,0) -> 0 | L11: =IF(AND(I11="SI",C11<>0),MAX(0,F11-K11),0) -> 0 | M11: =IF(AND(I11="SI",C11<>0),K11+L11,0) -> 0 | N11: =+IF(AND(H11="SI",C11=0),0,F11) -> 0 | O11: =+IF(AND(H11="SI",C11=0),0,G11) -> 0 | Q11: =+OR(COUNTA(C11,F11:I11)=5,COUNTA(C11,F11:I11)=0) -> TRUE

Sheet Dati_Anni_precedenti
I1: ikey | J1: anno | K1: idato | L1: idgestore | M1: regione | N1: ato | O1: gestore | P1: delibera | Q1: J deliberato | R1: J medio | S1: rc_post | T1: ∑Ipexp 2014-2017 | U1: ipexp | V1: ψ | W1: RABMTT | X1: quadrante | Y1: Opnew,a | Z1: vrg approvato | AA1: ∑tarif2012 * vscala-2 | AB1: Rba-2 | AC1: Cba-2 | AD1: ammcapex | AE1: of | AF1: ofisc | AG1: ΔCUITcapex | AH1: iml | AI1: imn | AJ1: fa | AK1: ammfoni | AL1: ΔCUITfoni | AM1: fnifoni | AN1: erc | AO1: coato | AP1: coaeeg | AQ1: comor | AR1: cores | AS1: coee | AT1: cows | AU1: mt | AV1: ac | AW1: opexend | AX1: rcvol | AY1: rcee | AZ1: rcws | BA1: rimb335 | BB1: rcaltro | BC1: AF MTI | BD1: capex | BE1: foni | BF1: opex | BG1: rc_tot | BH1: opexal | BI1: rinuncia_capex | BJ1: checkimn | BK1: checkcomponentitariffarie | BL1: note | BM1: pop_delib | BN1: delibera_mtt
BX2: controllo compilazione | BY2: controllo valori non negativi | BZ2: controllo finale
A3: Sezione | B3: Voce | C3: 2014-2015 | D3: 2014 | E3: 2015 | F3: completare la compilazione nel caso in cui alcuni valori risultino assenti | BX3: =+COUNTA(D5,E5,D9,E9,D15,E15,D29,E29,D30,E30,D31,E31,D32,E32,D33,E33,D34,E34,D37,E37,C43,C52,D53,D54,D55,D56,D57,D58,D25,E25,D26,E26,D27,E27)=34 -> FALSE | BY3: =+OR(D5<0,E5<0,D9<0,E9<0,D15<0,E15<0,D29<0,E29<0,D30<0,E30<0,D31<0,E31<0,D32<0,E32<0,D33<0,E33<0,D34<0,E34<0,D37<0,E37<0,C52<0,D53<0,D54<0,D55<0,D56<0,D57<0,D58<0,D25<0,E25<0,D26<0,E26<0,D27<0,E27<0)=FALSE -> TRUE | BZ3: =+AND(BX3=TRUE,BY3=TRUE) -> FALSE
A4: Delibera AEEGSI | B4: Delibera
A5: Delibera AEEGSI | B5: J deliberato
A6: Delibera AEEGSI | B6: J medio
A7: Delibera AEEGSI | B7: RC post
A8: Schema regolatorio | B8: ∑Ipexp 2014-2017
A9: Schema regolatorio | B9: Ipexp
A10: Schema regolatorio | B10: ψ
A11: Schema regolatorio | B11: RABMTT
A12: Schema regolatorio | B12: Quadrante
A13: Schema regolatorio | B13: Opnew,a
A14: Moltiplicatore | B14: VRG approvato
A15: Moltiplicatore | B15: ∑tarif2012 * vscala-2
A16: Moltiplicatore | B16: Rba-2
A17: Moltiplicatore | B17: Cba-2
A18: Costi delle immobilizzazioni | B18: AMMcapex
A19: Costi delle immobilizzazioni | B19: OF
A20: Costi delle immobilizzazioni | B20: OFisc
A21: Costi delle immobilizzazioni | B21: ΔCUITcapex
A22: Immobilizzazioni | B22: IML
A23: Immobilizzazioni | B23: IMN
A24: Immobilizzazioni | B24: FA
A25: Fondo Nuovi Investimenti | B25: AMMfoni
A26: Fondo Nuovi Investimenti | B26: ΔCUITfoni
A27: Fondo Nuovi Investimenti | B27: FNIfoni
A28: Costi Operativi | B28: ERC
A29: Costi Operativi | B29: COato
A30: Costi Operativi | B30: COaeeg
A31: Costi Operativi | B31: COmor
A32: Costi Operativi | B32: COres
A33: Costi Operativi | B33: COee
A34: Costi Operativi | B34: COws
A35: Costi Operativi | B35: MT
A36: Costi Operativi | B36: AC
A37: Costi Operativi | B37: Opexend
A38: Sezione Conguagli | B38: RcVOL
A39: Sezione Conguagli | B39: RcEE
A40: Sezione Conguagli | B40: RcWS
A41: Sezione Conguagli | B41: Rimb335
A42: Sezione Conguagli | B42: RcALTRO
A43: Ammortamento finanziario MTI | B43: AF MTI
C51: 2012 | D51: 2013
A52: Sezione altri dati | B52: PRA
A53: Sezione altri dati | B53: PopATO
A54: Sezione altri dati | B54: COrealiEE (altre gruppo - SII)
A55: Sezione altri dati | B55: COrealiEE (altre imprese - SII)
A56: Sezione altri dati | B56: COrealiEE (altre gruppo - AAI)
A57: Sezione altri dati | B57: COrealiEE (altre imprese - AAI)
A58: Sezione altri dati | B58: Kwh

Sheet Vite_utili_precedenti
D1: Vite utili per la ricostituzione del fondo ammortamento al 2015
A2: VITE UTILI REGOLATORIE E FINANZIARIE | D2: area dati storici | M2: Sezione relativa ai dati storici del gestore. Eventuali modifiche sono ammissibili se accuratamente dettagliate in relazione di accompagnamento | W2: scarico dal DB (MTT e exCipe) | Y2: scarico dal DB (MTI) | AA2: scarico dal DB (MTI)
D3: ANNI 1963 - 2011 | F3: ANNO 2012 | H3: ANNO 2013 | W3: ANNI 1963 - 2011 | Y3: ANNO 2012 | AA3: ANNO 2013
B4: le vite utili delle colonne E, G e I sono modificabili per le gestioni che hanno la possibilità di ricorrere all'ammortamento finanziario. | D4: =+IF(OR(iAF="SI",schema="IV",schema="V",schema="VI",Dati_Anni_precedenti!C43="SI"),"SI","NO") -> NO | F4: =+IF(OR(iAF="SI",schema="IV",schema="V",schema="VI",Dati_Anni_precedenti!C43="SI"),"SI","NO") -> NO | H4: =+IF(OR(iAF="SI",schema="IV",schema="V",schema="VI",Dati_Anni_precedenti!C43="SI"),"SI","NO") -> NO | W4: =+pre_af_2011 -> NO | Y4: =+pre_af_2012 -> NO | AA4: =+pre_af_2013 -> NO
D5: Periodo di ammortamento: | F5: Periodo di ammortamento: | H5: Periodo di ammortamento: | W5: Periodo di ammortamento: | Y5: Periodo di ammortamento: | AA5: Periodo di ammortamento:
B6: ID | C6: Categoria Cespite | D6: vite utili regolatorie (MTT) | E6: durata ammortamento finanziario | F6: vite utili regolatorie (MTT) | G6: durata ammortamento finanziario | H6: vite utili regolatorie (MTT) | I6: durata ammortamento finanziario | U6: ID | V6: Categoria Cespite | W6: vite utili regolatorie (MTT) | X6: durata ammortamento finanziario | Y6: vite utili regolatorie (MTT) | Z6: durata ammortamento finanziario | AA6: vite utili regolatorie (MTT) | AB6: durata ammortamento finanziario
B7: 1 | C7: Terreni | U7: 1 | V7: Terreni
B8: 2 | C8: Fabbricati non industriali | D8: 40 | E8: 40 | F8: 40 | G8: 40 | H8: 40 | I8: 40 | U8: 2 | V8: Fabbricati non industriali | W8: 40 | X8: =+IF(af_2011="NO",D8,E8) -> 40 | Y8: 40 | Z8: =+IF(af_2012="NO",F8,G8) -> 40 | AA8: 40 | AB8: =+IF(af_2013="NO",H8,I8) -> 40
B9: 3 | C9: Fabbricati industriali | D9: 40 | E9: 40 | F9: 40 | G9: 40 | H9: 40 | I9: 40 | U9: 3 | V9: Fabbricati industriali | W9: 40 | X9: 40 | Y9: 40 | Z9: 40 | AA9: 40 | AB9: 40
B10: 4 | C10: Costruzioni leggere | D10: 40 | E10: 40 | F10: 40 | G10: 40 | H10: 40 | I10: 40 | U10: 4 | V10: Costruzioni leggere | W10: 40 | X10: 40 | Y10: 40 | Z10: 40 | AA10: 40 | AB10: 40
B11: 5 | C11: Condutture e opere idrauliche fisse | D11: 40 | E11: 40 | F11: 40 | G11: 40 | H11: 40 | I11: 40 | U11: 5 | V11: Condutture e opere idrauliche fisse | W11: 40 | X11: 40 | Y11: 40 | Z11: 40 | AA11: 40 | AB11: 40
B12: 6 | C12: Serbatoi | D12: 50 | E12: 50 | F12: 50 | G12: 50 | H12: 50 | I12: 50 | U12: 6 | V12: Serbatoi | W12: 50 | X12: 50 | Y12: 50 | Z12: 50 | AA12: 50 | AB12: 50
B13: 7 | C13: Impianti di trattamento | D13: 12 | E13: 12 | F13: 12 | G13: 12 | H13: 12 | I13: 12 | U13: 7 | V13: Impianti di trattamento | W13: 12 | X13: 12 | Y13: 12 | Z13: 12 | AA13: 12 | AB13: 12
B14: 8 | C14: Impianti di sollevamento e pompaggio | D14: 8 | E14: 8 | F14: 8 | G14: 8 | H14: 8 | I14: 8 | U14: 8 | V14: Impianti di sollevamento e pompaggio | W14: 8 | X14: 8 | Y14: 8 | Z14: 8 | AA14: 8 | AB14: 8
B15: 9 | C15: Gruppi di misura meccanici | D15: 15 | E15: 15 | F15: 15 | G15: 15 | H15: 15 | I15: 15 | U15: 9 | V15: Gruppi di misura meccanici | W15: 15 | X15: 15 | Y15: 15 | Z15: 15 | AA15: 15 | AB15: 15
B16: 10 | C16: Gruppi di misura elettronici | D16: 15 | E16: 15 | F16: 15 | G16: 15 | H16: 15 | I16: 15 | U16: 10 | V16: Gruppi di misura elettronici | W16: 15 | X16: 15 | Y16: 15 | Z16: 15 | AA16: 15 | AB16: 15
B17: 11 | C17: Altri impianti | D17: 20 | E17: 20 | F17: 20 | G17: 20 | H17: 20 | I17: 20 | U17: 11 | V17: Altri impianti | W17: 20 | X17: 20 | Y17: 20 | Z17: 20 | AA17: 20 | AB17: 20
B18: 12 | C18: Laboratori | D18: 10 | E18: 10 | F18: 10 | G18: 10 | H18: 10 | I18: 10 | U18: 12 | V18: Laboratori | W18: 10 | X18: 10 | Y18: 10 | Z18: 10 | AA18: 10 | AB18: 10
B19: 13 | C19: Telecontrollo | D19: 8 | E19: 8 | F19: 8 | G19: 8 | H19: 8 | I19: 8 | U19: 13 | V19: Telecontrollo | W19: 8 | X19: 8 | Y19: 8 | Z19: 8 | AA19: 8 | AB19: 8
B20: 14 | C20: Autoveicoli | D20: 5 | E20: 5 | F20: 5 | G20: 5 | H20: 5 | I20: 5 | U20: 14 | V20: Autoveicoli | W20: 5 | X20: 5 | Y20: 5 | Z20: 5 | AA20: 5 | AB20: 5
B21: 15 | C21: Studi, ricerche, brevetti, diritti di utilizzazione | D21: 5 | E21: 5 | F21: 5 | G21: 5 | H21: 5 | I21: 5 | U21: 15 | V21: Studi, ricerche, brevetti, diritti di utilizzazione | W21: 5 | X21: 5 | Y21: 5 | Z21: 5 | AA21: 5 | AB21: 5
B22: 16 | C22: Altre immobilizzazioni materiali e immateriali | D22: 7 | E22: 7 | F22: 7 | G22: 7 | H22: 7 | I22: 7 | U22: 16 | V22: Altre immobilizzazioni materiali e immateriali | W22: 7 | X22: 7 | Y22: 7 | Z22: 7 | AA22: 7 | AB22: 7
B23: 17 | C23: Immobilizzazioni immateriali: avviamenti, capitalizzazione concessione, etc. | U23: 17 | V23: Immobilizzazioni immateriali: avviamenti, capitalizzazione concessione, etc.
V29: da notare:

Sheet RAB_cespiti_ante2013
H2: RAB Gestore (solo immobilizzazioni al 2012)
A4: RAB gestore ante 2013
A5: IDATO | B5: IDGestore | C5: Gestore_Proprietario | D5: N_prop | E5: Fonte | F5: ID_Categoria_Cespite | G5: CategoriaCespite | H5: ID_Immobilizzazione | I5: IMMOBILIZZAZIONE | J5: AnnoCespite | K5: IP | L5: FAIP | M5: CFP | N5: FACP

Sheet conferma_investimenti_mti
F2: RAB Gestore (solo immobilizzazioni al 2013, da confermare.)
D3: Investimenti 2013 Le colonne da D a J mostrano gli investimenti relativi al 2013 come da predisposizione tariffaria MTI. Indicare nelle colonne K e L eventuali variazioni motivandole in relazione di accompagnamento, altrimenti ricopiare i valori dalle adiacenti colonne. È possibile eventualmente aggiungere ulteriori righe e si sconsiglia la rimozione di quelle già presenti. La mancata compilazione delle colonne K e L escluderà tali cespiti dal calcolo. | K3: spazio per la compilazione manuale nessuna rivalutazione monetaria va effettuata
K4: Investimenti EFFETTIVI del 2013 (non lasciare campi vuoti) | O4: zona per il calcolo RcIP2013
A6: n_riga | B6: IDATO | C6: IDGESTORE | D6: ID_Categoria_Cespite | E6: CategoriaCespite | F6: ID_Immobilizzazione | G6: IMMOBILIZZAZIONE | H6: AnnoCespite | I6: IP (come da approvazione tariffaria) | J6: CFP (come da approvazione tariffaria) | K6: IP | L6: CFP | O6: IP | P6: CFP | Q6: dfl (deflatore) da 2013 al 2014 | R6: dfl (deflatore) dal 2013 al 2015 | S6: dfl (deflatore) dal 2014 al 2015 | T6: VU2015 | U6: AMM 2015 | V6: AMM TARIF 2015 | W6: AMMcfp2015 | X6: IMN2015 | Y6: CINcfp2015
A7: 1 | O7: =+IF(AND(F7<4,H7=2013),K7-I7,0) -> 0 | P7: =+IF(AND(F7<4,H7=2013),L7-J7,0) -> 0 | Q7: =+VLOOKUP(2013,ifl,4,FALSE) -> 1.012 | R7: =+VLOOKUP(2013,ifl,5,FALSE) -> 1.010988 | S7: =+VLOOKUP(2014,ifl,5,FALSE) -> 0.999 | T7: =+IF(ISNA(INDEX(vite_mti,MATCH($D7,categ_old,0)+2,MATCH(VALUE(RIGHT(T$6,4)-2),anni_old,0)+1)),0,INDEX(vite_mti,MATCH($D7,categ_old,0)+2,MATCH(VALUE(RIGHT(T$6,4)-2),anni_old,0)+1)) -> 0 | U7: =+IF(ISERR((O7)*R7/T7),0,(O7)*R7/T7) -> 0 | V7: =+IF(ISERR((O7-P7)*R7/T7),0,+(O7-P7)*R7/T7) -> 0 | W7: =+IF(ISERR(P7*R7/T7),0,P7*R7/T7) -> 0 | X7: =+O7*R7 -> 0 | Y7: =+P7*R7 -> 0

Sheet consolidamento_RAB_gestore
A3: consolidamento RAB MTI - include le immobilizzazioni al 2013 come confermate (foglio di solo supporto alle elaborazioni)
E4: RAB MTI
A5: IDATO | B5: IDAEEG | C5: Gestore_Proprietario | D5: N_prop | E5: Fonte | F5: ID_Categoria_Cespite | G5: CategoriaCespite | H5: ID_Immobilizzazione | I5: IMMOBILIZZAZIONE | J5: AnnoCespite | K5: IP | L5: FAIP | M5: CFP | N5: FACP | O5: foglio di origine

Sheet RAB_gestore_MTI
A1: q_RAB
D2: RABGestore - Foglio di calcolo della RAB al 2015
E4: RAB MTI
A5: Fonte | B5: Gestore_Proprietario | C5: N_prop | D5: ID_Categoria_Cespite | E5: CategoriaCespite | F5: ID_Immobilizzazione | G5: IMMOBILIZZAZIONE | H5: AnnoCespite | I5: Info Dati | J5: IP | K5: FAIP | L5: CFP | M5: FACP | N5: a | O5: VU 2012 | P5: IP 2012 | Q5: FAIP 2012 | R5: IP netto 2012 | S5: AMM 2012 | T5: componente tariffaria AMM 2012 | U5: CFP 2012 | V5: FA CFP 2012 | W5: CFP netto 2012 | X5: AMM CFP 2012 | Z5: VU 2013 | AA5: IP 2013 | AB5: FAIP 2013 | AC5: IP netto 2013 | AD5: AMM 2013 | AE5: componente tariffaria AMM 2013 | AF5: CFP 2013 | AG5: FA CFP 2013 | AH5: CFP netto 2013 | AI5: AMM CFP 2013 | AK5: VU 2014 | AL5: IP 2014 | AM5: FAIP 2014 | AN5: IP netto 2014 | AO5: AMM 2014 | AP5: componente tariffaria AMM 2014 | AQ5: CFP 2014 | AR5: FA CFP 2014 | AS5: CFP netto 2014 | AT5: AMM CFP 2014 | AU5: a | AV5: VU 2015 | AW5: IP 2015 | AX5: FAIP 2015 | AY5: IP netto 2015 | AZ5: AMM 2015 | BA5: componente tariffaria AMM 2015 | BB5: CFP 2015 | BC5: FA CFP 2015 | BD5: CFP netto 2015 | BE5: AMM CFP 2015
A6: (vuoto) | B6: (vuoto) | C6: (vuoto) | D6: (vuoto) | E6: (vuoto) | F6: (vuoto) | G6: (vuoto) | H6: (vuoto) | I6: (vuoto) | J6: 0 | K6: 0 | L6: 0 | M6: 0 | O6: =+IF(OR($D6="(vuoto)",$D6=""),0,+INDEX(vite_mti,MATCH($D6,categ_old,0)+2,MATCH(IF(VALUE(LEFT($H6,4))<=2011,2011,VALUE(LEFT($H6,4))),anni_old,0)+1)) -> 0 | P6: =IF(OR($D6="(vuoto)",$D6=""),0,IF(AND($I6="Dismissioni",VALUE(RIGHT(P$5,4))-$H6=2),$J6,IF($H6<=2011,$J6,IF(VALUE(RIGHT(P$5,4))-$H6>=2,$J6,0))*VLOOKUP($H6,ifl,VALUE(RIGHT(P$5,4))-2010,FALSE))) -> 0 | Q6: =IF(OR($D6="(vuoto)",$D6=""),0,IF(AND($I6="Dismissioni",VALUE(RIGHT(Q$5,4))-$H6=2),$K6,IF($H6<=2011,$K6,IF(VALUE(RIGHT(Q$5,4))-$H6>=2,$K6,0))*VLOOKUP($H6,ifl,VALUE(RIGHT(Q$5,4))-2010,FALSE))) -> 0 | R6: =+P6-Q6 -> 0 | S6: =IF(OR($D6="(vuoto)",$D6="",O6=0),0,+IF($I6="Dismissioni",MAX(P6/O6,MIN(R6,0)),MIN(P6/O6,MAX(R6,0)))) -> 0 | T6: =+S6-X6 -> 0 | U6: =IF(OR($D6="(vuoto)",$D6=""),0,IF(AND($I6="Dismissioni",VALUE(RIGHT(U$5,4))-$H6=2),$L6,IF($H6<=2011,$L6,IF(VALUE(RIGHT(U$5,4))-$H6>=2,$L6,0))*VLOOKUP($H6,ifl,VALUE(RIGHT(U$5,4))-2010,FALSE))) -> 0 | V6: =IF(OR($D6="(vuoto)",$D6=""),0,IF(AND($I6="Dismissioni",VALUE(RIGHT(V$5,4))-$H6=2),$M6,IF($H6<=2011,$M6,IF(VALUE(RIGHT(V$5,4))-$H6>=2,$M6,0))*VLOOKUP($H6,ifl,VALUE(RIGHT(V$5,4))-2010,FALSE))) -> 0 | W6: =+U6-V6 -> 0 | X6: =IF(OR($D6="(vuoto)",$D6="",O6=0),0,+IF($I6="Dismissioni",MAX(U6/O6,MIN(W6,0)),MIN(U6/O6,MAX(W6,0)))) -> 0 | Z6: =+IF(OR($D6="(vuoto)",$D6=""),0,+INDEX(vite_mti,MATCH($D6,categ_old,0)+2,MATCH(IF(VALUE(LEFT($H6,4))<=2011,2011,VALUE(LEFT($H6,4))),anni_old,0)+1)) -> 0 | AA6: =IF(OR($D6="(vuoto)",$D6=""),0,IF(AND($I6="Dismissioni",VALUE(RIGHT(AA$5,4))-$H6=2),$J6,IF(VALUE(RIGHT(AA$5,4))-$H6=2,$J6*VLOOKUP($H6,ifl,VALUE(RIGHT(AA$5,4))-2010,FALSE),IF(VALUE(RIGHT(AA$5,4))-$H6>2,P6*VLOOKUP(VALUE(RIGHT(AA$5,4))-1,ifl,VALUE(RIGHT(AA$5,4))-2010,FALSE),0)))) -> 0 | AB6: =IF(OR($D6="(vuoto)",$D6=""),0,IF(AND($I6="Dismissioni",VALUE(RIGHT(AB$5,4))-VALUE(RIGHT($H6,4))=2),$K6,IF(VALUE(RIGHT(AB$5,4))-VALUE(RIGHT($H6,4))>=2,(Q6+S6)*VLOOKUP(VALUE(RIGHT(AB$5,4))-1,ifl,VALUE(RIGHT(AB$5,4))-2010,FALSE),0))) -> 0 | AC6: =+AA6-AB6 -> 0 | AD6: =IF(OR($D6="(vuoto)",$D6="",Z6=0),0,+IF($I6="Dismissioni",MAX(AA6/Z6,MIN(AC6,0)),MIN(AA6/Z6,MAX(AC6,0)))) -> 0 | AE6: =+AD6-AI6 -> 0 | AF6: =IF(OR($D6="(vuoto)",$D6=""),0,IF(AND($I6="Dismissioni",VALUE(RIGHT(AF$5,4))-$H6=2),$L6,IF(VALUE(RIGHT(AF$5,4))-$H6=2,$L6*VLOOKUP($H6,ifl,VALUE(RIGHT(AF$5,4))-2010,FALSE),IF(VALUE(RIGHT(AF$5,4))-$H6>2,U6*VLOOKUP(VALUE(RIGHT(AF$5,4))-1,ifl,VALUE(RIGHT(AF$5,4))-2010,FALSE),0)))) -> 0 | AG6: =IF(OR($D6="(vuoto)",$D6=""),0,IF(AND($I6="Dismissioni",VALUE(RIGHT(AG$5,4))-VALUE(RIGHT($H6,4))=2),$M6,IF(VALUE(RIGHT(AG$5,4))-VALUE(RIGHT($H6,4))>=2,(V6)*VLOOKUP(VALUE(RIGHT(AG$5,4))-1,ifl,VALUE(RIGHT(AG$5,4))-2010,FALSE),0))) -> 0 | AH6: =+AF6-AG6 -> 0 | AI6: =IF(OR($D6="(vuoto)",$D6="",Z6=0),0,+IF($I6="Dismissioni",MAX(AF6/Z6,MIN(AH6,0)),MIN(AF6/Z6,MAX(AH6,0)))) -> 0 | AK6: =+IF(OR($D6="(vuoto)",$D6=""),0,+INDEX(vite_mti,MATCH($D6,categ_old,0)+2,MATCH(VALUE(RIGHT(AK$5,4)-2),anni_old,0)+1)) -> 0 | AL6: =IF(OR($D6="(vuoto)",$D6=""),0,IF(AND($I6="Dismissioni",VALUE(RIGHT(AL$5,4))-$H6=2),$J6,IF(VALUE(RIGHT(AL$5,4))-$H6=2,$J6*VLOOKUP($H6,ifl,VALUE(RIGHT(AL$5,4))-2010,FALSE),IF(VALUE(RIGHT(AL$5,4))-$H6>2,AA6*VLOOKUP(VALUE(RIGHT(AL$5,4))-1,ifl,VALUE(RIGHT(AL$5,4))-2010,FALSE),0)))) -> 0 | AM6: =IF(OR($D6="(vuoto)",$D6=""),0,IF(AND($I6="Dismissioni",VALUE(RIGHT(AM$5,4))-VALUE(RIGHT($H6,4))=2),$K6,IF(VALUE(RIGHT(AM$5,4))-VALUE(RIGHT($H6,4))>=2,(AB6+AD6)*VLOOKUP(VALUE(RIGHT(AM$5,4))-1,ifl,VALUE(RIGHT(AM$5,4))-2010,FALSE),0))) -> 0 | AN6: =+AL6-AM6 -> 0 | AO6: =IF(OR($D6="(vuoto)",$D6="",AK6=0),0,+IF($I6="Dismissioni",MAX(AL6/AK6,MIN(AN6,0)),MIN(AL6/AK6,MAX(AN6,0)))) -> 0 | AP6: =+AO6-AT6 -> 0 | AQ6: =IF(OR($D6="(vuoto)",$D6=""),0,IF(AND($I6="Dismissioni",VALUE(RIGHT(AQ$5,4))-$H6=2),$L6,IF(VALUE(RIGHT(AQ$5,4))-$H6=2,$L6*VLOOKUP($H6,ifl,VALUE(RIGHT(AQ$5,4))-2010,FALSE),IF(VALUE(RIGHT(AQ$5,4))-$H6>2,AF6*VLOOKUP(VALUE(RIGHT(AQ$5,4))-1,ifl,VALUE(RIGHT(AQ$5,4))-2010,FALSE),0)))) -> 0 | AR6: =IF(OR($D6="(vuoto)",$D6=""),0,IF(AND($I6="Dismissioni",VALUE(RIGHT(AR$5,4))-VALUE(RIGHT($H6,4))=2),$M6,IF(VALUE(RIGHT(AR$5,4))-VALUE(RIGHT($H6,4))>=2,(AG6+AI6)*VLOOKUP(VALUE(RIGHT(AR$5,4))-1,ifl,VALUE(RIGHT(AR$5,4))-2010,FALSE),0))) -> 0 | AS6: =+AQ6-AR6 -> 0 | AT6: =IF(OR($D6="(vuoto)",$D6="",AK6=0),0,+IF($I6="Dismissioni",MAX(AQ6/AK6,MIN(AS6,0)),MIN(AQ6/AK6,MAX(AS6,0)))) -> 0 | AV6: =+IF(OR($D6="(vuoto)",$D6=""),0,+INDEX(vite_mti,MATCH($D6,categ_old,0)+2,MATCH(VALUE(RIGHT(AV$5,4)-2),anni_old,0)+1)) -> 0 | AW6: =IF(OR($D6="(vuoto)",$D6=""),0,IF(AND($I6="Dismissioni",VALUE(RIGHT(AW$5,4))-$H6=2),$J6,IF(VALUE(RIGHT(AW$5,4))-$H6=2,$J6*VLOOKUP($H6,ifl,VALUE(RIGHT(AW$5,4))-2010,FALSE),IF(VALUE(RIGHT(AW$5,4))-$H6>2,AL6*VLOOKUP(VALUE(RIGHT(AW$5,4))-1,ifl,VALUE(RIGHT(AW$5,4))-2010,FALSE),0)))) -> 0 | AX6: =IF(OR($D6="(vuoto)",$D6=""),0,IF(AND($I6="Dismissioni",VALUE(RIGHT(AX$5,4))-VALUE(RIGHT($H6,4))=2),$K6,IF(VALUE(RIGHT(AX$5,4))-VALUE(RIGHT($H6,4))>=2,(AM6+AO6)*VLOOKUP(VALUE(RIGHT(AX$5,4))-1,ifl,VALUE(RIGHT(AX$5,4))-2010,FALSE),0))) -> 0 | AY6: =+AW6-AX6 -> 0 | AZ6: =IF(OR($D6="(vuoto)",$D6="",AV6=0),0,+IF($I6="Dismissioni",MAX(AW6/AV6,MIN(AY6,0)),MIN(AW6/AV6,MAX(AY6,0)))) -> 0 | BA6: =+AZ6-BE6 -> 0 | BB6: =IF(OR($D6="(vuoto)",$D6=""),0,IF(AND($I6="Dismissioni",VALUE(RIGHT(BB$5,4))-$H6=2),$L6,IF(VALUE(RIGHT(BB$5,4))-$H6=2,$L6*VLOOKUP($H6,ifl,VALUE(RIGHT(BB$5,4))-2010,FALSE),IF(VALUE(RIGHT(BB$5,4))-$H6>2,AQ6*VLOOKUP(VALUE(RIGHT(BB$5,4))-1,ifl,VALUE(RIGHT(BB$5,4))-2010,FALSE),0)))) -> 0 | BC6: =IF(OR($D6="(vuoto)",$D6=""),0,IF(AND($I6="Dismissioni",VALUE(RIGHT(BC$5,4))-VALUE(RIGHT($H6,4))=2),$M6,IF(VALUE(RIGHT(BC$5,4))-VALUE(RIGHT($H6,4))>=2,(AR6+AT6)*VLOOKUP(VALUE(RIGHT(BC$5,4))-1,ifl,VALUE(RIGHT(BC$5,4))-2010,FALSE),0))) -> 0 | BD6: =+BB6-BC6 -> 0 | BE6: =IF(OR($D6="(vuoto)",$D6="",AV6=0),0,+IF($I6="Dismissioni",MAX(BB6/AV6,MIN(BD6,0)),MIN(BB6/AV6,MAX(BD6,0)))) -> 0

Sheet RAB_Proprietari
C1: RABProprietari - Sviluppo dei costi di capitale associati alle infrastrutture di terzi
A2: scarico dati
A3: RAB MTI
A5: idato associato al gestore | B5: idaeeg associato al gestore | C5: Tipologia di Proprietario | D5: Key_Prop | E5: ID_Categoria_Cespite | F5: CategoriaCespite | G5: ID_Immobilizzazione | H5: IMMOBILIZZAZIONE | I5: AnnoCespite | J5: IP | K5: FAIP | L5: CFP | M5: FACP | N5: New_Key_prop | O5: dati da non valorizzare RAB | P5: VU 2016 | Q5: IP 2016 | R5: FAIP 2016 | S5: IP netto 2016 | T5: AMM 2016 | U5: CFP 2016 | V5: FA CFP 2016 | W5: CFP netto 2016 | X5: AMM CFP 2016 | Y5: Nriga | Z5: VU 2017 | AA5: IP 2017 | AB5: FAIP 2017 | AC5: IP netto 2017 | AD5: AMM 2017 | AE5: CFP 2017 | AF5: FA CFP 2017 | AG5: CFP netto 2017 | AH5: AMM CFP 2017 | AI5: aaa | AJ5: VU 2018 | AK5: IP 2018 | AL5: FAIP 2018 | AM5: IP netto 2018 | AN5: AMM 2018 | AO5: CFP 2018 | AP5: FA CFP 2018 | AQ5: CFP netto 2018 | AR5: AMM CFP 2018 | AS5: aaaa | AT5: VU 2019 | AU5: IP 2019 | AV5: FAIP 2019 | AW5: IP netto 2019 | AX5: AMM 2019 | AY5: CFP 2019 | AZ5: FA CFP 2019 | BA5: CFP netto 2019 | BB5: AMM CFP 2019
N6: =VLOOKUP(D6,Soggetti_proprietari_infrastrut!K:L,2,0) ->  | O6: =IF(ISNA(VLOOKUP(N6,Soggetti_proprietari_infrastrut!N:N,1,FALSE)),IF(OR(I6=1961,I6=1962),TRUE,FALSE),TRUE) -> FALSE | P6: =+IF(OR($O6,$E6=""),0,VLOOKUP($E6,ViteRegolatorieProp,VALUE(RIGHT(P$5,4))-2011)) -> 0 | Q6: =IF(OR($O6,$E6=""),0,+ip($J6,$R6,T6,$I6,P6,VALUE(RIGHT(Q$5,4)))) -> 0 | R6: =IF(OR($O6,$E6=""),0,FondoAmm($J6,$K6,$I6,$E6,VALUE(RIGHT(R$5,4)),ViteRegolatorieProp)) -> 0 | S6: =+Q6-R6 -> 0 | T6: =IF(OR($O6,$E6=""),0,+qa($J6,$K6,$I6,$E6,VALUE(RIGHT(T$5,4)),ViteRegolatorieProp)) -> 0 | U6: =IF(OR($O6,$E6=""),0,+ip($L6,$V6,X6,$I6,P6,VALUE(RIGHT(U$5,4)))) -> 0 | V6: =IF(OR($O6,$E6=""),0,FondoAmm($L6,$M6,$I6,$E6,VALUE(RIGHT(V$5,4)),ViteRegolatorieProp)) -> 0 | W6: =+U6-V6 -> 0 | X6: =IF(OR($O6,$E6=""),0,qa($L6,$M6,$I6,$E6,VALUE(RIGHT(X$5,4)),ViteRegolatorieProp)) -> 0 | Y6: 7 | Z6: =+IF(OR($O6,$E6=""),0,+VLOOKUP($E6,TT_riepilogo_RAB!$AT$7:$BA$18,VALUE(RIGHT(Z$5,4))-2011)) -> 0 | AA6: =IF(OR($O6,$E6=""),0,+ip($J6,$AB6,AD6,$I6,Z6,VALUE(RIGHT(AA$5,4)))) -> 0 | AB6: =IF(OR($O6,$E6=""),0,FondoAmm($J6,$K6,$I6,$E6,VALUE(RIGHT(AB$5,4)),ViteRegolatorieProp)) -> 0 | AC6: =+AA6-AB6 -> 0 | AD6: =IF(OR($O6,$E6=""),0,+qa($J6,$K6,$I6,$E6,VALUE(RIGHT(AD$5,4)),ViteRegolatorieProp)) -> 0 | AE6: =IF(OR($O6,$E6=""),0,+ip($L6,$AF6,AH6,$I6,Z6,VALUE(RIGHT(AE$5,4)))) -> 0 | AF6: =IF(OR($O6,$E6=""),0,FondoAmm($L6,$M6,$I6,$E6,VALUE(RIGHT(AF$5,4)),ViteRegolatorieProp)) -> 0 | AG6: =+AE6-AF6 -> 0 | AH6: =IF(OR($O6,$E6=""),0,qa($L6,$M6,$I6,$E6,VALUE(RIGHT(AH$5,4)),ViteRegolatorieProp)) -> 0 | AJ6: =+IF(OR($O6,$E6=""),0,+VLOOKUP($E6,TT_riepilogo_RAB!$AT$7:$BA$18,VALUE(RIGHT(AJ$5,4))-2011)) -> 0 | AK6: =IF(OR($O6,$E6=""),0,+ip($J6,$AL6,AN6,$I6,AJ6,VALUE(RIGHT(AK$5,4)))) -> 0 | AL6: =IF(OR($O6,$E6=""),0,FondoAmm($J6,$K6,$I6,$E6,VALUE(RIGHT(AL$5,4)),ViteRegolatorieProp)) -> 0 | AM6: =+AK6-AL6 -> 0 | AN6: =IF(OR($O6,$E6=""),0,+qa($J6,$K6,$I6,$E6,VALUE(RIGHT(AN$5,4)),ViteRegolatorieProp)) -> 0 | AO6: =IF(OR($O6,$E6=""),0,+ip($L6,$AP6,AR6,$I6,AJ6,VALUE(RIGHT(AO$5,4)))) -> 0 | AP6: =IF(OR($O6,$E6=""),0,FondoAmm($L6,$M6,$I6,$E6,VALUE(RIGHT(AP$5,4)),ViteRegolatorieProp)) -> 0 | AQ6: =+AO6-AP6 -> 0 | AR6: =IF(OR($O6,$E6=""),0,qa($L6,$M6,$I6,$E6,VALUE(RIGHT(AR$5,4)),ViteRegolatorieProp)) -> 0 | AT6: =+IF(OR($O6,$E6=""),0,+VLOOKUP($E6,TT_riepilogo_RAB!$AT$7:$BA$18,VALUE(RIGHT(AT$5,4))-2011)) -> 0 | AU6: =IF(OR($O6,$E6=""),0,+ip($J6,$AV6,AX6,$I6,AT6,VALUE(RIGHT(AU$5,4)))) -> 0 | AV6: =IF(OR($O6,$E6=""),0,FondoAmm($J6,$K6,$I6,$E6,VALUE(RIGHT(AV$5,4)),ViteRegolatorieProp)) -> 0 | AW6: =+AU6-AV6 -> 0 | AX6: =IF(OR($O6,$E6=""),0,+qa($J6,$K6,$I6,$E6,VALUE(RIGHT(AX$5,4)),ViteRegolatorieProp)) -> 0 | AY6: =IF(OR($O6,$E6=""),0,+ip($L6,$AZ6,BB6,$I6,AT6,VALUE(RIGHT(AY$5,4)))) -> 0 | AZ6: =IF(OR($O6,$E6=""),0,FondoAmm($L6,$M6,$I6,$E6,VALUE(RIGHT(AZ$5,4)),ViteRegolatorieProp)) -> 0 | BA6: =+AY6-AZ6 -> 0 | BB6: =IF(OR($O6,$E6=""),0,qa($L6,$M6,$I6,$E6,VALUE(RIGHT(BB$5,4)),ViteRegolatorieProp)) -> 0

Sheet storico articolazione QV
B2: Raccolta dati precedente - Articolazione tariffaria MTI - valida anche per Recupero RCvol2015.
B3: riportare l'articolazione (tipologia d'uso e scaglioni) applicata nel 2013 (dati consuntivo) per la vendita agli utenti finali
B5: Articolazione Tariffaria - quota variabile
D6: la tariffa 2015 è stata approvata da AEEGSI? | E6: SI
D7: L'approvazione 2015 è avvenuta su dati del 2013 consuntivi? | E7: NO
E8: =+IF(AND(E6="si",E7="no"),"compilare i seguenti campi per il recupero RCvol2015 dovuto a volumi consuntivi rispetto a quelli utilizzati", "non è previsto alcun recupero") -> compilare i seguenti campi per il recupero RCvol2015 dovuto a volumi consuntivi rispetto a quelli utilizzati
D9: Star2013*vscal2013 utilizzato nell'RCvol2015 dell'approvazione AEEGSI | F9: (inserire la parte relativa alla sola quota variabile sia per le vendite al dettaglio sia per le vendite all'ingrosso)
D10: Star2013*vscal2013 | E10: =+SUM('storico articolazione QV'!O:O)+SUM('storico articolazione QF'!O:O)+'storico articolazione QF'!E10 -> 0 | F10: (Somma di quota variabile e quota fissa, inclusa la vendita all'ingrosso)
G11: 2012 | K11: 2013
B12: Ambito tariffario | C12: Servizio | D12: Tipologia d'uso | E12: Sottotipologia | F12: 1° scaglione a tariffa agevolata | G12: Min di scaglione (m3/anno) | H12: Max di scaglione (m3/anno) | I12: QV (Euro/m3) 2012 | J12: Volumi fatturati (m3/anno) anno 2012 | K12: Min di scaglione (m3/anno) | L12: Max di scaglione (m3/anno) | M12: QV (Euro/m3) 2013 | N12: Volumi fatturati (m3/anno) anno 2013 | O12: tar2013*vscal2013
G13: Min_Scaglione | H13: Max_Scaglione | I13: QV | J13: Volumi | K13: Min_Scaglione | L13: Max_Scaglione | M13: QV | N13: Volumi_Anno_succ
G14: 0 | K14: 0 | O14: =+M14*N14 -> 0
G15: =+IF(H14=0,"",H14+1) ->  | K15: =+IF(L14=0,"",L14+1) ->  | O15: 0
O16: 0
O17: 0
O18: 0
O19: 0
O20: 0
O21: 0
O22: 0
O23: 0

Sheet storico articolazione QF
B2: Raccolta dati precedente - Articolazione tariffaria MTI - valida anche per Recupero RCvol2015.
B3: riportare l'articolazione (tipologia d'uso e scaglioni) applicata nel 2013 (dati consuntivo) per la vendita agli utenti finali
B5: Articolazione Tariffaria - quota fissa
E8: =+'storico articolazione QV'!E8 -> compilare i seguenti campi per il recupero RCvol2015 dovuto a volumi consuntivi rispetto a quelli utilizzati
D9: Star2013*vscal2013 utilizzato nell'RCvol2015 dell'approvazione AEEGSI | G9: (inserire la parte relativa alla sola quota fissa sia per le vendite al dettaglio sia per le vendite all'ingrosso)
D10: Star2013*vscal2013 | G10: (inserire la parte relativa alle sole vendite all'ingrosso, somma di quota fissa e quota variabile)
G11: 2012 | K11: 2013
B12: Ambito tariffario | C12: Servizio | D12: Tipologia d'uso | E12: Sottotipologia | F12: campo vuoto | G12: Min di scaglione (m3/anno) | H12: Max di scaglione (m3/anno) | I12: QF (Euro/utente/ anno) 2012 | J12: Utenze (numero) anno 2012 | K12: Min di scaglione (m3/anno) | L12: Max di scaglione (m3/anno) | M12: QF (Euro/utente/ anno) 2013 | N12: Utenze (numero) anno 2013 | O12: tar2013*vscal2013
G13: Min_Scaglione | H13: Max_Scaglione | I13: QF | J13: Utenze | K13: Min_Scaglione | L13: Max_Scaglione | M13: QF | N13: Utenze_Anno_succ
G14: 0 | K14: 0 | O14: =+M14*N14 -> 0
G15: =+IF(H14=0,"",H14+1) ->  | K15: =+IF(L14=0,"",L14+1) ->  | O15: 0
G16: =+IF(H15=0,"",H15+1) ->  | K16: =+IF(L15=0,"",L15+1) ->  | O16: 0
G17: =+IF(H16=0,"",H16+1) ->  | K17: =+IF(L16=0,"",L16+1) ->  | O17: 0
G18: =+IF(H17=0,"",H17+1) ->  | K18: =+IF(L17=0,"",L17+1) ->  | O18: 0
G19: =+IF(H18=0,"",H18+1) ->  | K19: =+IF(L18=0,"",L18+1) ->  | O19: 0

Sheet consolidamento_RAB_mti2
A3: consolidamento RAB MTI-2 Include le immobilizzazioni relative al MTI a valori 2015 e i nuovi investimenti MTI-2 a moneta dell'anno di inserimento. Il foglio è solo di supporto al calcolo | P3: Sezione di elaborazione dei dati forniti
E4: RAB MTI-2
A5: IDATO | B5: IDAEEG | C5: Gestore_Proprietario | D5: N_prop | E5: Fonte | F5: ID_Categoria_Cespite | G5: CategoriaCespite | H5: ID_Immobilizzazione | I5: IMMOBILIZZAZIONE | J5: AnnoCespite | K5: IP | L5: FAIP | M5: CFP | N5: FACP | O5: foglio di origine
A6: 0

Sheet RAB_gestore_MTI-2
A1: q_RAB
D2: RABGestore
E4: RAB MTI2
A5: Fonte | B5: Gestore_Proprietario | C5: N_prop | D5: ID_Categoria_Cespite | E5: CategoriaCespite | F5: ID_Immobilizzazione | G5: IMMOBILIZZAZIONE | H5: AnnoCespite | I5: Info Dati | J5: IP | K5: FAIP | L5: CFP | M5: FACP | O5: VU 2012 | P5: IP 2012 | Q5: FAIP 2012 | R5: IP netto 2012 | S5: AMM 2012 | T5: componente tariffaria AMM 2012 | U5: CFP 2012 | V5: FA CFP 2012 | W5: CFP netto 2012 | X5: AMM CFP 2012 | Z5: VU 2013 | AA5: IP 2013 | AB5: FAIP 2013 | AC5: IP netto 2013 | AD5: AMM 2013 | AE5: componente tariffaria AMM 2013 | AF5: CFP 2013 | AG5: FA CFP 2013 | AH5: CFP netto 2013 | AI5: AMM CFP 2013 | AK5: VU 2014 | AL5: IP 2014 | AM5: FAIP 2014 | AN5: IP netto 2014 | AO5: AMM 2014 | AP5: componente tariffaria AMM 2014 | AQ5: CFP 2014 | AR5: FA CFP 2014 | AS5: CFP netto 2014 | AT5: AMM CFP 2014 | AU5: a | AV5: VU 2015 | AW5: IP 2015 | AX5: FAIP 2015 | AY5: IP netto 2015 | AZ5: AMM 2015 | BA5: componente tariffaria AMM 2015 | BB5: CFP 2015 | BC5: FA CFP 2015 | BD5: CFP netto 2015 | BE5: AMM CFP 2015 | BG5: VU 2016 | BH5: IP 2016 | BI5: FAIP 2016 | BJ5: IP netto 2016 | BK5: AMM 2016 | BL5: componente tariffaria AMM 2016 | BM5: CFP 2016 | BN5: FA CFP 2016 | BO5: CFP netto 2016 | BP5: AMM CFP 2016 | BQ5: aa | BR5: VU 2017 | BS5: IP 2017 | BT5: FAIP 2017 | BU5: IP netto 2017 | BV5: AMM 2017 | BW5: componente tariffaria AMM 2017 | BX5: CFP 2017 | BY5: FA CFP 2017 | BZ5: CFP netto 2017 | CA5: AMM CFP 2017 | CB5: aaa | CC5: VU 2018 | CD5: IP 2018 | CE5: FAIP 2018 | CF5: IP netto 2018 | CG5: AMM 2018 | CH5: componente tariffaria AMM 2018 | CI5: CFP 2018 | CJ5: FA CFP 2018 | CK5: CFP netto 2018 | CL5: AMM CFP 2018 | CM5: aaaa | CN5: VU 2019 | CO5: IP 2019 | CP5: FAIP 2019 | CQ5: IP netto 2019 | CR5: AMM 2019 | CS5: componente tariffaria AMM 2019 | CT5: CFP 2019 | CU5: FA CFP 2019 | CV5: CFP netto 2019 | CW5: AMM CFP 2019
A6: (vuoto) | B6: (vuoto) | C6: (vuoto) | D6: (vuoto) | E6: (vuoto) | F6: (vuoto) | G6: (vuoto) | H6: (vuoto) | I6: (vuoto) | J6: 0 | K6: 0 | L6: 0 | M6: 0 | O6: =+IF(OR($D6="(vuoto)",$D6=""),0,+INDEX(vite_regolatorie,MATCH($D6,categ_new,0)+2,MATCH(IF(VALUE(LEFT($H6,4))<=2011,2011,VALUE(LEFT($H6,4))),anni_new,0)+1)) -> 0 | P6: =IF(OR($D6="(vuoto)",$D6=""),0,IF(AND($I6="Dismissioni",VALUE(RIGHT(P$5,4))-$H6=2),$J6,IF($H6<=2011,$J6,IF(VALUE(RIGHT(P$5,4))-$H6>=2,$J6,0))*VLOOKUP($H6,ifl,VALUE(RIGHT(P$5,4))-2010,FALSE))) -> 0 | Q6: =IF(OR($D6="(vuoto)",$D6=""),0,IF(AND($I6="Dismissioni",VALUE(RIGHT(Q$5,4))-$H6=2),$K6,IF($H6<=2011,$K6,IF(VALUE(RIGHT(Q$5,4))-$H6>=2,$K6,0))*VLOOKUP($H6,ifl,VALUE(RIGHT(Q$5,4))-2010,FALSE))) -> 0 | R6: =+P6-Q6 -> 0 | S6: =IF(OR($D6="(vuoto)",$D6="",O6=0),0,+IF($I6="Dismissioni",MAX(P6/O6,MIN(R6,0)),MIN(P6/O6,MAX(R6,0)))) -> 0 | T6: =+S6-X6 -> 0 | U6: =IF(OR($D6="(vuoto)",$D6=""),0,IF(AND($I6="Dismissioni",VALUE(RIGHT(U$5,4))-$H6=2),$L6,IF($H6<=2011,$L6,IF(VALUE(RIGHT(U$5,4))-$H6>=2,$L6,0))*VLOOKUP($H6,ifl,VALUE(RIGHT(U$5,4))-2010,FALSE))) -> 0 | V6: =IF(OR($D6="(vuoto)",$D6=""),0,IF(AND($I6="Dismissioni",VALUE(RIGHT(V$5,4))-$H6=2),$M6,IF($H6<=2011,$M6,IF(VALUE(RIGHT(V$5,4))-$H6>=2,$M6,0))*VLOOKUP($H6,ifl,VALUE(RIGHT(V$5,4))-2010,FALSE))) -> 0 | W6: =+U6-V6 -> 0 | X6: =IF(OR($D6="(vuoto)",$D6="",O6=0),0,+IF($I6="Dismissioni",MAX(U6/O6,MIN(W6,0)),MIN(U6/O6,MAX(W6,0)))) -> 0 | Z6: =+IF(OR($D6="(vuoto)",$D6=""),0,+INDEX(vite_regolatorie,MATCH($D6,categ_new,0)+2,MATCH(IF(VALUE(LEFT($H6,4))<=2011,2011,VALUE(LEFT($H6,4))),anni_new,0)+1)) -> 0 | AA6: =IF(OR($D6="(vuoto)",$D6=""),0,IF(AND($I6="Dismissioni",VALUE(RIGHT(AA$5,4))-$H6=2),$J6,IF(VALUE(RIGHT(AA$5,4))-$H6=2,$J6*VLOOKUP($H6,ifl,VALUE(RIGHT(AA$5,4))-2010,FALSE),IF(VALUE(RIGHT(AA$5,4))-$H6>2,P6*VLOOKUP(VALUE(RIGHT(AA$5,4))-1,ifl,VALUE(RIGHT(AA$5,4))-2010,FALSE),0)))) -> 0 | AB6: =IF(OR($D6="(vuoto)",$D6=""),0,IF(AND($I6="Dismissioni",VALUE(RIGHT(AB$5,4))-VALUE(RIGHT($H6,4))=2),$K6,IF(VALUE(RIGHT(AB$5,4))-VALUE(RIGHT($H6,4))>=2,(Q6+S6)*VLOOKUP(VALUE(RIGHT(AB$5,4))-1,ifl,VALUE(RIGHT(AB$5,4))-2010,FALSE),0))) -> 0 | AC6: =+AA6-AB6 -> 0 | AD6: =IF(OR($D6="(vuoto)",$D6="",Z6=0),0,+IF($I6="Dismissioni",MAX(AA6/Z6,MIN(AC6,0)),MIN(AA6/Z6,MAX(AC6,0)))) -> 0 | AE6: =+AD6-AI6 -> 0 | AF6: =IF(OR($D6="(vuoto)",$D6=""),0,IF(AND($I6="Dismissioni",VALUE(RIGHT(AF$5,4))-$H6=2),$L6,IF(VALUE(RIGHT(AF$5,4))-$H6=2,$L6*VLOOKUP($H6,ifl,VALUE(RIGHT(AF$5,4))-2010,FALSE),IF(VALUE(RIGHT(AF$5,4))-$H6>2,U6*VLOOKUP(VALUE(RIGHT(AF$5,4))-1,ifl,VALUE(RIGHT(AF$5,4))-2010,FALSE),0)))) -> 0 | AG6: =IF(OR($D6="(vuoto)",$D6=""),0,IF(AND($I6="Dismissioni",VALUE(RIGHT(AG$5,4))-VALUE(RIGHT($H6,4))=2),$M6,IF(VALUE(RIGHT(AG$5,4))-VALUE(RIGHT($H6,4))>=2,(V6)*VLOOKUP(VALUE(RIGHT(AG$5,4))-1,ifl,VALUE(RIGHT(AG$5,4))-2010,FALSE),0))) -> 0 | AH6: =+AF6-AG6 -> 0 | AI6: =IF(OR($D6="(vuoto)",$D6="",Z6=0),0,+IF($I6="Dismissioni",MAX(AF6/Z6,MIN(AH6,0)),MIN(AF6/Z6,MAX(AH6,0)))) -> 0 | AK6: =+IF(OR($D6="(vuoto)",$D6=""),0,+INDEX(vite_regolatorie,MATCH($D6,categ_new,0)+2,MATCH(VALUE(RIGHT(AK$5,4)-2),anni_new,0)+1)) -> 0 | AL6: =IF(OR($D6="(vuoto)",$D6=""),0,IF(AND($I6="Dismissioni",VALUE(RIGHT(AL$5,4))-$H6=2),$J6,IF(VALUE(RIGHT(AL$5,4))-$H6=2,$J6*VLOOKUP($H6,ifl,VALUE(RIGHT(AL$5,4))-2010,FALSE),IF(VALUE(RIGHT(AL$5,4))-$H6>2,AA6*VLOOKUP(VALUE(RIGHT(AL$5,4))-1,ifl,VALUE(RIGHT(AL$5,4))-2010,FALSE),0)))) -> 0 | AM6: =IF(OR($D6="(vuoto)",$D6=""),0,IF(AND($I6="Dismissioni",VALUE(RIGHT(AM$5,4))-VALUE(RIGHT($H6,4))=2),$K6,IF(VALUE(RIGHT(AM$5,4))-VALUE(RIGHT($H6,4))>=2,(AB6+AD6)*VLOOKUP(VALUE(RIGHT(AM$5,4))-1,ifl,VALUE(RIGHT(AM$5,4))-2010,FALSE),0))) -> 0 | AN6: =+AL6-AM6 -> 0 | AO6: =IF(OR($D6="(vuoto)",$D6="",AK6=0),0,+IF($I6="Dismissioni",MAX(AL6/AK6,MIN(AN6,0)),MIN(AL6/AK6,MAX(AN6,0)))) -> 0 | AP6: =+AO6-AT6 -> 0 | AQ6: =IF(OR($D6="(vuoto)",$D6=""),0,IF(AND($I6="Dismissioni",VALUE(RIGHT(AQ$5,4))-$H6=2),$L6,IF(VALUE(RIGHT(AQ$5,4))-$H6=2,$L6*VLOOKUP($H6,ifl,VALUE(RIGHT(AQ$5,4))-2010,FALSE),IF(VALUE(RIGHT(AQ$5,4))-$H6>2,AF6*VLOOKUP(VALUE(RIGHT(AQ$5,4))-1,ifl,VALUE(RIGHT(AQ$5,4))-2010,FALSE),0)))) -> 0 | AR6: =IF(OR($D6="(vuoto)",$D6=""),0,IF(AND($I6="Dismissioni",VALUE(RIGHT(AR$5,4))-VALUE(RIGHT($H6,4))=2),$M6,IF(VALUE(RIGHT(AR$5,4))-VALUE(RIGHT($H6,4))>=2,(AG6+AI6)*VLOOKUP(VALUE(RIGHT(AR$5,4))-1,ifl,VALUE(RIGHT(AR$5,4))-2010,FALSE),0))) -> 0 | AS6: =+AQ6-AR6 -> 0 | AT6: =IF(OR($D6="(vuoto)",$D6="",AK6=0),0,+IF($I6="Dismissioni",MAX(AQ6/AK6,MIN(AS6,0)),MIN(AQ6/AK6,MAX(AS6,0)))) -> 0 | AV6: =+IF(OR($D6="(vuoto)",$D6=""),0,+INDEX(vite_regolatorie,MATCH($D6,categ_new,0)+2,MATCH(VALUE(RIGHT(AV$5,4)-2),anni_new,0)+1)) -> 0 | AW6: =IF(OR($D6="(vuoto)",$D6=""),0,IF(AND($I6="Dismissioni",VALUE(RIGHT(AW$5,4))-$H6=2),$J6,IF(VALUE(RIGHT(AW$5,4))-$H6=2,$J6*VLOOKUP($H6,ifl,VALUE(RIGHT(AW$5,4))-2010,FALSE),IF(VALUE(RIGHT(AW$5,4))-$H6>2,AL6*VLOOKUP(VALUE(RIGHT(AW$5,4))-1,ifl,VALUE(RIGHT(AW$5,4))-2010,FALSE),0)))) -> 0 | AX6: =IF(OR($D6="(vuoto)",$D6=""),0,IF(AND($I6="Dismissioni",VALUE(RIGHT(AX$5,4))-VALUE(RIGHT($H6,4))=2),$K6,IF(VALUE(RIGHT(AX$5,4))-VALUE(RIGHT($H6,4))>=2,(AM6+AO6)*VLOOKUP(VALUE(RIGHT(AX$5,4))-1,ifl,VALUE(RIGHT(AX$5,4))-2010,FALSE),0))) -> 0 | AY6: =+AW6-AX6 -> 0 | AZ6: =IF(OR($D6="(vuoto)",$D6="",AV6=0),0,+IF($I6="Dismissioni",MAX(AW6/AV6,MIN(AY6,0)),MIN(AW6/AV6,MAX(AY6,0)))) -> 0 | BA6: =+AZ6-BE6 -> 0 | BB6: =IF(OR($D6="(vuoto)",$D6=""),0,IF(AND($I6="Dismissioni",VALUE(RIGHT(BB$5,4))-$H6=2),$L6,IF(VALUE(RIGHT(BB$5,4))-$H6=2,$L6*VLOOKUP($H6,ifl,VALUE(RIGHT(BB$5,4))-2010,FALSE),IF(VALUE(RIGHT(BB$5,4))-$H6>2,AQ6*VLOOKUP(VALUE(RIGHT(BB$5,4))-1,ifl,VALUE(RIGHT(BB$5,4))-2010,FALSE),0)))) -> 0 | BC6: =IF(OR($D6="(vuoto)",$D6=""),0,IF(AND($I6="Dismissioni",VALUE(RIGHT(BC$5,4))-VALUE(RIGHT($H6,4))=2),$M6,IF(VALUE(RIGHT(BC$5,4))-VALUE(RIGHT($H6,4))>=2,(AR6+AT6)*VLOOKUP(VALUE(RIGHT(BC$5,4))-1,ifl,VALUE(RIGHT(BC$5,4))-2010,FALSE),0))) -> 0 | BD6: =+BB6-BC6 -> 0 | BE6: =IF(OR($D6="(vuoto)",$D6="",AV6=0),0,+IF($I6="Dismissioni",MAX(BB6/AV6,MIN(BD6,0)),MIN(BB6/AV6,MAX(BD6,0)))) -> 0 | BG6: =+IF(OR($D6="(vuoto)",$D6=""),0,+INDEX(vite_regolatorie,MATCH($D6,categ_new,0)+2,MATCH(VALUE(RIGHT(BG$5,4)-2),anni_new,0)+1)) -> 0 | BH6: =IF(OR($D6="(vuoto)",$D6=""),0,IF(AND($I6="Dismissioni",VALUE(RIGHT(BH$5,4))-$H6=2),$J6,IF(VALUE(RIGHT(BH$5,4))-$H6=2,$J6*VLOOKUP($H6,ifl,VALUE(RIGHT(BH$5,4))-2010,FALSE),IF(VALUE(RIGHT(BH$5,4))-$H6>2,AW6*VLOOKUP(VALUE(RIGHT(BH$5,4))-1,ifl,VALUE(RIGHT(BH$5,4))-2010,FALSE),0)))) -> 0 | BI6: =IF(OR($D6="(vuoto)",$D6=""),0,IF(AND($I6="Dismissioni",VALUE(RIGHT(BI$5,4))-VALUE(RIGHT($H6,4))=2),$K6,IF(VALUE(RIGHT(BI$5,4))-VALUE(RIGHT($H6,4))>=2,(AX6+AZ6)*VLOOKUP(VALUE(RIGHT(BI$5,4))-1,ifl,VALUE(RIGHT(BI$5,4))-2010,FALSE),0))) -> 0 | BJ6: =+BH6-BI6 -> 0 | BK6: =IF(OR($D6="(vuoto)",$D6="",BG6=0),0,+IF($I6="Dismissioni",MAX(BH6/BG6,MIN(BJ6,0)),MIN(BH6/BG6,MAX(BJ6,0)))) -> 0 | BL6: =+BK6-BP6 -> 0 | BM6: =IF(OR($D6="(vuoto)",$D6=""),0,IF(AND($I6="Dismissioni",VALUE(RIGHT(BM$5,4))-$H6=2),$L6,IF(VALUE(RIGHT(BM$5,4))-$H6=2,$L6*VLOOKUP($H6,ifl,VALUE(RIGHT(BM$5,4))-2010,FALSE),IF(VALUE(RIGHT(BM$5,4))-$H6>2,BB6*VLOOKUP(VALUE(RIGHT(BM$5,4))-1,ifl,VALUE(RIGHT(BM$5,4))-2010,FALSE),0)))) -> 0 | BN6: =IF(OR($D6="(vuoto)",$D6=""),0,IF(AND($I6="Dismissioni",VALUE(RIGHT(BN$5,4))-VALUE(RIGHT($H6,4))=2),$M6,IF(VALUE(RIGHT(BN$5,4))-VALUE(RIGHT($H6,4))>=2,(BC6+BE6)*VLOOKUP(VALUE(RIGHT(BN$5,4))-1,ifl,VALUE(RIGHT(BN$5,4))-2010,FALSE),0))) -> 0 | BO6: =+BM6-BN6 -> 0 | BP6: =IF(OR($D6="(vuoto)",$D6="",BG6=0),0,+IF($I6="Dismissioni",MAX(BM6/BG6,MIN(BO6,0)),MIN(BM6/BG6,MAX(BO6,0)))) -> 0 | BR6: =+IF(OR($D6="(vuoto)",$D6=""),0,+INDEX(vite_regolatorie,MATCH($D6,categ_new,0)+2,MATCH(VALUE(RIGHT(BR$5,4)-2),anni_new,0)+1)) -> 0 | BS6: =IF(OR($D6="(vuoto)",$D6=""),0,IF(AND($I6="Dismissioni",VALUE(RIGHT(BS$5,4))-$H6=2),$J6,IF(VALUE(RIGHT(BS$5,4))-$H6=2,$J6*VLOOKUP($H6,ifl,VALUE(RIGHT(BS$5,4))-2010,FALSE),IF(VALUE(RIGHT(BS$5,4))-$H6>2,BH6*VLOOKUP(VALUE(RIGHT(BS$5,4))-1,ifl,VALUE(RIGHT(BS$5,4))-2010,FALSE),0)))) -> 0 | BT6: =IF(OR($D6="(vuoto)",$D6=""),0,IF(AND($I6="Dismissioni",VALUE(RIGHT(BT$5,4))-VALUE(RIGHT($H6,4))=2),$K6,IF(VALUE(RIGHT(BT$5,4))-VALUE(RIGHT($H6,4))>=2,(BI6+BK6)*VLOOKUP(VALUE(RIGHT(BT$5,4))-1,ifl,VALUE(RIGHT(BT$5,4))-2010,FALSE),0))) -> 0 | BU6: =+BS6-BT6 -> 0 | BV6: =IF(OR($D6="(vuoto)",$D6="",BR6=0),0,+IF($I6="Dismissioni",MAX(BS6/BR6,MIN(BU6,0)),MIN(BS6/BR6,MAX(BU6,0)))) -> 0 | BW6: =+BV6-CA6 -> 0 | BX6: =IF(OR($D6="(vuoto)",$D6=""),0,IF(AND($I6="Dismissioni",VALUE(RIGHT(BX$5,4))-$H6=2),$L6,IF(VALUE(RIGHT(BX$5,4))-$H6=2,$L6*VLOOKUP($H6,ifl,VALUE(RIGHT(BX$5,4))-2010,FALSE),IF(VALUE(RIGHT(BX$5,4))-$H6>2,BM6*VLOOKUP(VALUE(RIGHT(BX$5,4))-1,ifl,VALUE(RIGHT(BX$5,4))-2010,FALSE),0)))) -> 0 | BY6: =IF(OR($D6="(vuoto)",$D6=""),0,IF(AND($I6="Dismissioni",VALUE(RIGHT(BY$5,4))-VALUE(RIGHT($H6,4))=2),$M6,IF(VALUE(RIGHT(BY$5,4))-VALUE(RIGHT($H6,4))>=2,(BN6+BP6)*VLOOKUP(VALUE(RIGHT(BY$5,4))-1,ifl,VALUE(RIGHT(BY$5,4))-2010,FALSE),0))) -> 0 | BZ6: =+BX6-BY6 -> 0 | CA6: =IF(OR($D6="(vuoto)",$D6="",BR6=0),0,+IF($I6="Dismissioni",MAX(BX6/BR6,MIN(BZ6,0)),MIN(BX6/BR6,MAX(BZ6,0)))) -> 0 | CC6: =+IF(OR($D6="(vuoto)",$D6=""),0,+INDEX(vite_regolatorie,MATCH($D6,categ_new,0)+2,MATCH(VALUE(RIGHT(CC$5,4)-2),anni_new,0)+1)) -> 0 | CD6: =IF(OR($D6="(vuoto)",$D6=""),0,IF(AND($I6="Dismissioni",VALUE(RIGHT(CD$5,4))-$H6=2),$J6,IF(VALUE(RIGHT(CD$5,4))-$H6=2,$J6*VLOOKUP($H6,ifl,VALUE(RIGHT(CD$5,4))-2010,FALSE),IF(VALUE(RIGHT(CD$5,4))-$H6>2,BS6*VLOOKUP(VALUE(RIGHT(CD$5,4))-1,ifl,VALUE(RIGHT(CD$5,4))-2010,FALSE),0)))) -> 0 | CE6: =IF(OR($D6="(vuoto)",$D6=""),0,IF(AND($I6="Dismissioni",VALUE(RIGHT(CE$5,4))-VALUE(RIGHT($H6,4))=2),$K6,IF(VALUE(RIGHT(CE$5,4))-VALUE(RIGHT($H6,4))>=2,(BT6+BV6)*VLOOKUP(VALUE(RIGHT(CE$5,4))-1,ifl,VALUE(RIGHT(CE$5,4))-2010,FALSE),0))) -> 0 | CF6: =+CD6-CE6 -> 0 | CG6: =IF(OR($D6="(vuoto)",$D6="",CC6=0),0,+IF($I6="Dismissioni",MAX(CD6/CC6,MIN(CF6,0)),MIN(CD6/CC6,MAX(CF6,0)))) -> 0 | CH6: =+CG6-CL6 -> 0 | CI6: =IF(OR($D6="(vuoto)",$D6=""),0,IF(AND($I6="Dismissioni",VALUE(RIGHT(CI$5,4))-$H6=2),$L6,IF(VALUE(RIGHT(CI$5,4))-$H6=2,$L6*VLOOKUP($H6,ifl,VALUE(RIGHT(CI$5,4))-2010,FALSE),IF(VALUE(RIGHT(CI$5,4))-$H6>2,BX6*VLOOKUP(VALUE(RIGHT(CI$5,4))-1,ifl,VALUE(RIGHT(CI$5,4))-2010,FALSE),0)))) -> 0 | CJ6: =IF(OR($D6="(vuoto)",$D6=""),0,IF(AND($I6="Dismissioni",VALUE(RIGHT(CJ$5,4))-VALUE(RIGHT($H6,4))=2),$M6,IF(VALUE(RIGHT(CJ$5,4))-VALUE(RIGHT($H6,4))>=2,(BY6+CA6)*VLOOKUP(VALUE(RIGHT(CJ$5,4))-1,ifl,VALUE(RIGHT(CJ$5,4))-2010,FALSE),0))) -> 0 | CK6: =+CI6-CJ6 -> 0 | CL6: =IF(OR($D6="(vuoto)",$D6="",CC6=0),0,+IF($I6="Dismissioni",MAX(CI6/CC6,MIN(CK6,0)),MIN(CI6/CC6,MAX(CK6,0)))) -> 0 | CN6: =+IF(OR($D6="(vuoto)",$D6=""),0,+INDEX(vite_regolatorie,MATCH($D6,categ_new,0)+2,MATCH(VALUE(RIGHT(CN$5,4)-2),anni_new,0)+1)) -> 0 | CO6: =IF(OR($D6="(vuoto)",$D6=""),0,IF(AND($I6="Dismissioni",VALUE(RIGHT(CO$5,4))-$H6=2),$J6,IF(VALUE(RIGHT(CO$5,4))-$H6=2,$J6*VLOOKUP($H6,ifl,VALUE(RIGHT(CO$5,4))-2010,FALSE),IF(VALUE(RIGHT(CO$5,4))-$H6>2,CD6*VLOOKUP(VALUE(RIGHT(CO$5,4))-1,ifl,VALUE(RIGHT(CO$5,4))-2010,FALSE),0)))) -> 0 | CP6: =IF(OR($D6="(vuoto)",$D6=""),0,IF(AND($I6="Dismissioni",VALUE(RIGHT(CP$5,4))-VALUE(RIGHT($H6,4))=2),$K6,IF(VALUE(RIGHT(CP$5,4))-VALUE(RIGHT($H6,4))>=2,(CE6+CG6)*VLOOKUP(VALUE(RIGHT(CP$5,4))-1,ifl,VALUE(RIGHT(CP$5,4))-2010,FALSE),0))) -> 0 | CQ6: =+CO6-CP6 -> 0 | CR6: =IF(OR($D6="(vuoto)",$D6="",CN6=0),0,+IF($I6="Dismissioni",MAX(CO6/CN6,MIN(CQ6,0)),MIN(CO6/CN6,MAX(CQ6,0)))) -> 0 | CS6: =+CR6-CW6 -> 0 | CT6: =IF(OR($D6="(vuoto)",$D6=""),0,IF(AND($I6="Dismissioni",VALUE(RIGHT(CT$5,4))-$H6=2),$L6,IF(VALUE(RIGHT(CT$5,4))-$H6=2,$L6*VLOOKUP($H6,ifl,VALUE(RIGHT(CT$5,4))-2010,FALSE),IF(VALUE(RIGHT(CT$5,4))-$H6>2,CI6*VLOOKUP(VALUE(RIGHT(CT$5,4))-1,ifl,VALUE(RIGHT(CT$5,4))-2010,FALSE),0)))) -> 0 | CU6: =IF(OR($D6="(vuoto)",$D6=""),0,IF(AND($I6="Dismissioni",VALUE(RIGHT(CU$5,4))-VALUE(RIGHT($H6,4))=2),$M6,IF(VALUE(RIGHT(CU$5,4))-VALUE(RIGHT($H6,4))>=2,(CJ6+CL6)*VLOOKUP(VALUE(RIGHT(CU$5,4))-1,ifl,VALUE(RIGHT(CU$5,4))-2010,FALSE),0))) -> 0 | CV6: =+CT6-CU6 -> 0 | CW6: =IF(OR($D6="(vuoto)",$D6="",CN6=0),0,+IF($I6="Dismissioni",MAX(CT6/CN6,MIN(CV6,0)),MIN(CT6/CN6,MAX(CV6,0)))) -> 0

Sheet riepilogo RAB MTI -2
A2: art. 13 e seguenti | B2: RAB - Valore delle immobilizzazioni
B4: Area di riepilogo delle immobilizzazioni del GESTORE | I4: Area di riepilogo delle immobilizzazioni dei PROPRIETARI relativi al gestore
B6: RAB del gestore | I6: RAB dei proprietari
C7: 2016 | D7: 2017 | E7: 2018 | F7: 2019 | J7: 2016 | K7: 2017 | L7: 2018 | M7: 2019
B8: IML | C8: =+TT_riepilogo_RAB!E6 -> 0 | D8: =+TT_riepilogo_RAB!F6 -> 0 | E8: =+TT_riepilogo_RAB!G6 -> 0 | F8: =+TT_riepilogo_RAB!H6 -> 0 | I8: IML | J8: =+TT_riepilogo_RAB!AL6 -> 0 | K8: =+TT_riepilogo_RAB!AM6 -> 0 | L8: =+TT_riepilogo_RAB!AN6 -> 0 | M8: =+TT_riepilogo_RAB!AO6 -> 0
B9: FA | C9: =+TT_riepilogo_RAB!E7 -> 0 | D9: =+TT_riepilogo_RAB!F7 -> 0 | E9: =+TT_riepilogo_RAB!G7 -> 0 | F9: =+TT_riepilogo_RAB!H7 -> 0 | I9: FA | J9: =+TT_riepilogo_RAB!AL7 -> 0 | K9: =+TT_riepilogo_RAB!AM7 -> 0 | L9: =+TT_riepilogo_RAB!AN7 -> 0 | M9: =+TT_riepilogo_RAB!AO7 -> 0
B10: IMN | C10: =+TT_riepilogo_RAB!E8 -> 0 | D10: =+TT_riepilogo_RAB!F8 -> 0 | E10: =+TT_riepilogo_RAB!G8 -> 0 | F10: =+TT_riepilogo_RAB!H8 -> 0 | I10: IMN | J10: =+TT_riepilogo_RAB!AL8 -> 0 | K10: =+TT_riepilogo_RAB!AM8 -> 0 | L10: =+TT_riepilogo_RAB!AN8 -> 0 | M10: =+TT_riepilogo_RAB!AO8 -> 0
B12: Contributi a fondo perduto del gestore | I12: Contributi a fondo perduto dei proprietari
C13: 2016 | D13: 2017 | E13: 2018 | F13: 2019 | J13: 2016 | K13: 2017 | L13: 2018 | M13: 2019
B14: CFP | C14: =+TT_riepilogo_RAB!E10 -> 0 | D14: =+TT_riepilogo_RAB!F10 -> 0 | E14: =+TT_riepilogo_RAB!G10 -> 0 | F14: =+TT_riepilogo_RAB!H10 -> 0 | I14: CFP | J14: =+TT_riepilogo_RAB!AL10 -> 0 | K14: =+TT_riepilogo_RAB!AM10 -> 0 | L14: =+TT_riepilogo_RAB!AN10 -> 0 | M14: =+TT_riepilogo_RAB!AO10 -> 0
B15: FAcfp | C15: =+TT_riepilogo_RAB!E11 -> 0 | D15: =+TT_riepilogo_RAB!F11 -> 0 | E15: =+TT_riepilogo_RAB!G11 -> 0 | F15: =+TT_riepilogo_RAB!H11 -> 0 | I15: FAcfp | J15: =+TT_riepilogo_RAB!AL11 -> 0 | K15: =+TT_riepilogo_RAB!AM11 -> 0 | L15: =+TT_riepilogo_RAB!AN11 -> 0 | M15: =+TT_riepilogo_RAB!AO11 -> 0
B16: CINfp | C16: =+TT_riepilogo_RAB!E12 -> 0 | D16: =+TT_riepilogo_RAB!F12 -> 0 | E16: =+TT_riepilogo_RAB!G12 -> 0 | F16: =+TT_riepilogo_RAB!H12 -> 0 | I16: CINfp | J16: =+TT_riepilogo_RAB!AL12 -> 0 | K16: =+TT_riepilogo_RAB!AM12 -> 0 | L16: =+TT_riepilogo_RAB!AN12 -> 0 | M16: =+TT_riepilogo_RAB!AO12 -> 0
B20: RAB del gestore - nuovi investimenti
C21: 2016 | D21: 2017 | E21: 2018 | F21: 2019
B22: IML | C22: =+TT_riepilogo_RAB!E18 -> 0 | D22: =+TT_riepilogo_RAB!F18 -> 0 | E22: =+TT_riepilogo_RAB!G18 -> 0 | F22: =+TT_riepilogo_RAB!H18 -> 0
B23: FA | C23: =+TT_riepilogo_RAB!E19 -> 0 | D23: =+TT_riepilogo_RAB!F19 -> 0 | E23: =+TT_riepilogo_RAB!G19 -> 0 | F23: =+TT_riepilogo_RAB!H19 -> 0
B24: IMN | C24: =+TT_riepilogo_RAB!E20 -> 0 | D24: =+TT_riepilogo_RAB!F20 -> 0 | E24: =+TT_riepilogo_RAB!G20 -> 0 | F24: =+TT_riepilogo_RAB!H20 -> 0
B26: Contributi a fondo perduto del gestore - nuovi investimenti
C27: 2016 | D27: 2017 | E27: 2018 | F27: 2019
B28: CFP | C28: =+TT_riepilogo_RAB!E22 -> 0 | D28: =+TT_riepilogo_RAB!F22 -> 0 | E28: =+TT_riepilogo_RAB!G22 -> 0 | F28: =+TT_riepilogo_RAB!H22 -> 0
B29: FAcfp | C29: =+TT_riepilogo_RAB!E23 -> 0 | D29: =+TT_riepilogo_RAB!F23 -> 0 | E29: =+TT_riepilogo_RAB!G23 -> 0 | F29: =+TT_riepilogo_RAB!H23 -> 0
B30: CINfp | C30: =+TT_riepilogo_RAB!E24 -> 0 | D30: =+TT_riepilogo_RAB!F24 -> 0 | E30: =+TT_riepilogo_RAB!G24 -> 0 | F30: =+TT_riepilogo_RAB!H24 -> 0
A32: art. 16 All.A MTI-2 | B32: AMM - Ammortamento delle immobilizzazioni | I32: comma 16.3 All.A MTI-2
B34: Area di riepilogo delle immobilizzazioni del GESTORE | I34: Area di riepilogo delle immobilizzazioni dei PROPRIETARI relativi al gestore
B36: AMM del gestore | I36: AMM dei proprietari
C37: 2016 | D37: 2017 | E37: 2018 | F37: 2019 | J37: 2016 | K37: 2017 | L37: 2018 | M37: 2019
B38: AMM | C38: =+TT_riepilogo_RAB!E9 -> 0 | D38: =+TT_riepilogo_RAB!F9 -> 0 | E38: =+TT_riepilogo_RAB!G9 -> 0 | F38: =+TT_riepilogo_RAB!H9 -> 0 | I38: AMM | J38: =+TT_riepilogo_RAB!AL9 -> 0 | K38: =+TT_riepilogo_RAB!AM9 -> 0 | L38: =+TT_riepilogo_RAB!AN9 -> 0 | M38: =+TT_riepilogo_RAB!AO9 -> 0
B39: AMMcfp, gestore | C39: =+TT_riepilogo_RAB!E13 -> 0 | D39: =+TT_riepilogo_RAB!F13 -> 0 | E39: =+TT_riepilogo_RAB!G13 -> 0 | F39: =+TT_riepilogo_RAB!H13 -> 0 | I39: AMMcfp,proprietario | J39: =+SUMIF(RAB_Proprietari!$C:$C,"Altra società privata",RAB_Proprietari!$X:$X) -> 0 | K39: =+SUMIF(RAB_Proprietari!$C:$C,"Altra società privata",RAB_Proprietari!$AH:$AH) -> 0 | L39: =+SUMIF(RAB_Proprietari!$C:$C,"Altra società privata",RAB_Proprietari!$AR:$AR) -> 0 | M39: =+SUMIF(RAB_Proprietari!$C:$C,"Altra società privata",RAB_Proprietari!$BB:$BB) -> 0
B41: AMMcfp | C41: =+C39+J39 -> 0 | D41: =+D39+K39 -> 0 | E41: =+E39+L39 -> 0 | F41: =+F39+M39 -> 0

Sheet framework_schemi
B1: framework decisionale (esclusione da aggiornamento e schema regolatorio)
C3: presenza min imp utenze dom | D3: =IF(Input_per_calcoli_finali!I14="","",Input_per_calcoli_finali!I14) ->  | E3: =+IF(D3=TT_Tabelle_Riferimento!$E$4,1,0) -> 0
C4: presenza carta servizi | D4: =IF(Input_per_calcoli_finali!I13="","",Input_per_calcoli_finali!I13) ->  | E4: =+IF(D4=TT_Tabelle_Riferimento!$E$3,1,0) -> 0
C5: check verifiche qualità acqua | D5: =IF(Input_per_calcoli_finali!I15="","",Input_per_calcoli_finali!I15) ->  | E5: =+IF(D5=TT_Tabelle_Riferimento!I14,1,0) -> 0
C6: adempimenti sblocca italia | D6: =IF(Input_per_calcoli_finali!I9="","",Input_per_calcoli_finali!I9) ->  | E6: =+IF(D6=TT_Tabelle_Riferimento!I14,1,0) -> 0
C7: richiesta perequazione | D7: =IF(prq="","",prq) -> NO | E7: =+IF(D7=TT_Tabelle_Riferimento!$E$4,1,0) -> 1
C8: incidenza integrazioni con soggetti tariffa ufficio | D8: =IF(incid="","",incid) ->  | E8: =+IF(OR(D8=TT_Tabelle_Riferimento!G23,D8=TT_Tabelle_Riferimento!G21),1,0) -> 0
C9: Adempimento sul versamento delle componenti perequative a CSEA | D9: =+IF(Input_per_calcoli_finali!I16="","",+Input_per_calcoli_finali!I16) ->  | E9: =+IF(D9="SI",1,0) -> 0
C11: tipo di schema | D11: =IF(OR(D3="",D4="",D5="",D6="",D7="",D8=""),"",IF(PRODUCT(E3:E6,E9)=0,"escluso dall'aggiornamento",IF(AND(PRODUCT(E3:E6,E9)=1,E8=1,E7=1),"schema regolatorio",IF(AND(PRODUCT(E3:E6,E9)=1,E7=0,E8=1),"istruttoria sulle condizioni specifiche",IF(AND(PRODUCT(E3:E6,E9)=1,E8=0),"schema virtuale"))))) -> 
D14: No aggregazioni e nessuna variazione di obiettivi | F14: Aggregazioni o presenza di variazioni negli obiettivi o attività del gestore:
D15: o attività del gestore
B17: Investimenti
D18: Schema I | E18: Schema II | F18: Schema III
D22: Schema IV | E22: Schema V | F22: Schema VI
D30: γk | E30: γx | F30: limite di prezzo | G30: incremento
C31: Schema I | D31: 0 | E31: 0 | F31: =1+rpi+(1+D31)*kschema-(1+E31)*xschema -> 1.06 | G31: =+F31-1 -> 0.06
C32: Schema II | D32: 0 | E32: 1 | F32: 1.055 | G32: 0.055
C33: Schema III | D33: 0 | E33: -1 | F33: 1.065 | G33: 0.065
C34: Schema IV | D34: 0.5 | E34: 0 | F34: 1.085 | G34: 0.085
C35: Schema V | D35: 0.5 | E35: 1 | F35: 1.08 | G35: 0.08
C36: Schema VI | D36: 0.5 | E36: -1 | F36: 1.09 | G36: 0.09
C39: ω | D39: =++IF(Input_per_calcoli_finali!I12="",TT_parametri!S29,IF(YEAR(Input_per_calcoli_finali!I12)-2019<0,(TT_parametri!S29/4)*(YEAR(Input_per_calcoli_finali!I12)-2016+1),TT_parametri!S29)) -> 0.5
C40: rpi | D40: =+TT_parametri!S30 -> 0.015
C41: K | D41: =+TT_parametri!S31 -> 0.05
C42: X | D42: =+TT_parametri!S32 -> 0.005
C43: RAB MTI2015 | D43: =IF(AND(Input_per_calcoli_finali!I49<>0,Input_per_calcoli_finali!I49<>""),Input_per_calcoli_finali!I49,IF(AND(Dati_Anni_precedenti!E23<>"",Dati_Anni_precedenti!E23<>0),Dati_Anni_precedenti!E23,0)) -> 0
C44: ∑Iptexp 2016-2019 | D44: =+Input_per_calcoli_finali!I43 -> 0
C45: IPexp/RABMTI | D45: =+IF(Input_per_calcoli_finali!P27="interamente virtuale",1,IF(ISERR(D44/D43),"",D44/D43)) -> 
C46: Opex2014 | D46: =+SUM(Dati_Anni_precedenti!D29:D37) -> 0
C47: pop 2012 | D47: =+IF(Dati_Anni_precedenti!C52<>0,Dati_Anni_precedenti!C52,+Input_per_calcoli_finali!I39) -> 0
C48: OPM i | D48: =+IF(Input_per_calcoli_finali!P27<>"",108,IF(OR(Input_per_calcoli_finali!G40=0,Input_per_calcoli_finali!G40=""),"",Input_per_calcoli_finali!G40)) -> 
C49: OPM | D49: =+TT_parametri!S33 -> 109
C50: presenza di variazioni | D50: =+var -> 0
C52: selezione del Quadrante | D52: =IF(OR(D45="",OPMi=""),0,IF(AND(D50=TT_Tabelle_Riferimento!$G$28,D48<=D49,D45<=D39),D18,IF(AND(D50=TT_Tabelle_Riferimento!$G$28,D48>D49,D45<=D39),E18,IF(AND(OR(D50=TT_Tabelle_Riferimento!G26,D50=TT_Tabelle_Riferimento!G27,D50=TT_Tabelle_Riferimento!G29),D45<=D39),F18,IF(AND(D50=TT_Tabelle_Riferimento!$G$28,D48<=D49,D45>D39),D22,IF(AND(D50=TT_Tabelle_Riferimento!$G$28,D48>D49,D45>D39),E22,IF(AND(OR(D50=TT_Tabelle_Riferimento!G26,D50=TT_Tabelle_Riferimento!G27,D50=TT_Tabelle_Riferimento!G29),D45>D39),F22,""))))))) -> 0
C53: Ja / Ja-1 limite di prezzo | D53: =IF(ISNA(VLOOKUP(Quad,$C$31:$F$36,4,FALSE)),IF(mti_2="escluso dall'aggiornamento",1,0),IF(mti_2="escluso dall'aggiornamento",1,VLOOKUP(Quad,$C$31:$F$36,4,FALSE))) -> 0

Sheet VRG_Teta
A2: art. 8 All. A | B2: Vincolo riconosciuto ai ricavi del gestore VRG
B4: Sviluppo del VRG
B6: Componenti calcolate | C6: 2014 | D6: 2015 | E6: 2016 | F6: 2017 | G6: 2018 | H6: 2019
B7: VRGa | E7: =+SUM(E8:E12) -> 0 | F7: =+SUM(F8:F12) -> 0 | G7: =+SUM(G8:G12) -> 0 | H7: =+SUM(H8:H12) -> 0
B8: Capexa | E8: =+Capex!E12 -> 0 | F8: =+Capex!F12 -> 0 | G8: =+Capex!G12 -> 0 | H8: =+Capex!H12 -> 0
B9: FoNIa | E9: =+FoNI!E17 -> 0 | F9: =+FoNI!F17 -> 0 | G9: =+FoNI!G17 -> 0 | H9: =+FoNI!H17 -> 0
B10: Opexa | E10: =+Opex!E12 -> 0 | F10: =+Opex!F12 -> 0 | G10: =+Opex!G12 -> 0 | H10: =+Opex!H12 -> 0
B11: ERCa | E11: =+ERC!E7 -> 0 | F11: =+ERC!F7 -> 0 | G11: =+ERC!G7 -> 0 | H11: =+ERC!H7 -> 0
B12: RcTOTa | E12: =+'Rc'!E8 -> 0 | F12: =+'Rc'!F8 -> 0 | G12: =+'Rc'!G8 -> 0 | H12: =+'Rc'!H8 -> 0
B14: Rimodulazioni | C14: 2014 | D14: 2015 | E14: 2016 | F14: 2017 | G14: 2018 | H14: 2019
B15: Capexa | E15: =+IF(Input_per_calcoli_finali!I135<>"",Input_per_calcoli_finali!I135,0) -> 0 | F15: =+IF(Input_per_calcoli_finali!J135<>"",Input_per_calcoli_finali!J135,0) -> 0 | G15: =+IF(Input_per_calcoli_finali!K135<>"",Input_per_calcoli_finali!K135,0) -> 0 | H15: =+IF(Input_per_calcoli_finali!L135<>"",Input_per_calcoli_finali!L135,0) -> 0
B16: FoNIa | E16: =+FoNI!E17-FoNI!E10 -> 0 | F16: =+FoNI!F17-FoNI!F10 -> 0 | G16: =+FoNI!G17-FoNI!G10 -> 0 | H16: =+FoNI!H17-FoNI!H10 -> 0
B17: Opexa | E17: =+IF(Input_per_calcoli_finali!I142<>"",Input_per_calcoli_finali!I142,0) -> 0 | F17: =+IF(Input_per_calcoli_finali!J142<>"",Input_per_calcoli_finali!J142,0) -> 0 | G17: =+IF(Input_per_calcoli_finali!K142<>"",Input_per_calcoli_finali!K142,0) -> 0 | H17: =+IF(Input_per_calcoli_finali!L142<>"",Input_per_calcoli_finali!L142,0) -> 0
B18: ERCa | E18: =+IF(Input_per_calcoli_finali!I149<>"",Input_per_calcoli_finali!I149,0) -> 0 | F18: =+IF(Input_per_calcoli_finali!J149<>"",Input_per_calcoli_finali!J149,0) -> 0 | G18: =+IF(Input_per_calcoli_finali!K149<>"",Input_per_calcoli_finali!K149,0) -> 0 | H18: =+IF(Input_per_calcoli_finali!L149<>"",Input_per_calcoli_finali!L149,0) -> 0
B19: RcTOTa | E19: =+'Rc'!E8-IF('Rc'!E9="",0,'Rc'!E9) -> 0 | F19: =+'Rc'!F8-IF('Rc'!F9="",0,'Rc'!F9) -> 0 | G19: =+'Rc'!G8-IF('Rc'!G9="",0,'Rc'!G9) -> 0 | H19: =+'Rc'!H8-IF('Rc'!H9="",0,'Rc'!H9) -> 0
B21: Componenti post rimodulazioni | C21: 2014 | D21: 2015 | E21: 2016 | F21: 2017 | G21: 2018 | H21: 2019
B22: VRGa | E22: =+SUM(E23:E27) -> 0 | F22: =+SUM(F23:F27) -> 0 | G22: =+SUM(G23:G27) -> 0 | H22: =+SUM(H23:H27) -> 0
B23: Capexa | E23: =+E8-E15 -> 0 | F23: 0 | G23: 0 | H23: 0
B24: FoNIa | E24: 0 | F24: 0 | G24: 0 | H24: 0
B25: Opexa | E25: 0 | F25: 0 | G25: 0 | H25: 0
B26: ERCa | E26: 0 | F26: 0 | G26: 0 | H26: 0
B27: RcTOTa | E27: 0 | F27: 0 | G27: 0 | H27: 0
A32: art. 6 All. A | B32: Moltiplicatore Tariffario J
B34: Sviluppo del Moltiplicatore
B37: anno a | C37: 2014 | D37: 2015 | E37: 2016 | F37: 2017 | G37: 2018 | H37: 2019
B42: STar2015*Vscala-2 (dettag+ingros) | E42: =+SUM(Ricavi_ambiti_tariffari!N:N)+SUM(Vendita_Servizi_ingrosso!AD:AD) -> 0 | F42: =+SUM(Ricavi_ambiti_tariffari!O:O)+SUM(Vendita_Servizi_ingrosso!AE:AE) -> 0 | G42: =+F42 -> 0 | H42: =+G42 -> 0
B43: STar2015*Vscala-2 (gestioni incomplete) | E43: =+VRG_gest_incomplete!E9 -> 0 | F43: =+VRG_gest_incomplete!F9 -> 0 | G43: =+F43 -> 0 | H43: =+G43 -> 0
B44: Rba-2 | E44: =+C95 -> 0 | F44: =+D95 -> 0 | G44: 0 | H44: 0
B45: Raa-2 | E45: =+E130 -> 0 | F45: =+F130 -> 0 | G45: =+G130 -> 0 | H45: =+H130 -> 0
B46: VRGa cappato | E46: =+E47*SUM(E42:E45) -> 0 | F46: =+F47*SUM(F42:F45) -> 0 | G46: 0 | H46: 0
B47: Ja cappato | E47: =cap -> 0 | F47: =+MIN(E47,E53)*cap -> 0 | G47: =+MIN(F47,F53)*cap -> 0 | H47: =+MIN(G47,G53)*cap -> 0
B49: VRGa calcolato | E49: =+E7 -> 0 | F49: =+F7 -> 0 | G49: =+G7 -> 0 | H49: =+H7 -> 0
B50: Ja calcolato | E50: =+IF(SUM(E42:E45)=0,0,E49/(SUM(E42:E45))) -> 0 | F50: =+IF(SUM(F42:F45)=0,0,F49/(SUM(F42:F45))) -> 0 | G50: 0 | H50: 0
B52: VRGa calc post rimodulazioni | E52: =+E22+Input_per_calcoli_finali!I151+Input_per_calcoli_finali!I152+Input_per_calcoli_finali!I153 -> 0 | F52: =+F22+Input_per_calcoli_finali!J151+Input_per_calcoli_finali!J152+Input_per_calcoli_finali!J153 -> 0 | G52: =+G22+Input_per_calcoli_finali!K151+Input_per_calcoli_finali!K152+Input_per_calcoli_finali!K153 -> 0 | H52: =+H22+Input_per_calcoli_finali!L151+Input_per_calcoli_finali!L152+Input_per_calcoli_finali!L153 -> 0
B53: Ja calc post rimodulazioni | E53: =+IF(ISERR(E52/SUM(E42:E45)),0,E52/SUM(E42:E45)) -> 0 | F53: =+IF(ISERR(F52/SUM(F42:F45)),0,F52/SUM(F42:F45)) -> 0 | G53: 0 | H53: 0
B55: Limite al VRGa post rimodulazioni | E55: =++E56*SUM(E42:E45) -> 0 | F55: =++F56*SUM(F42:F45) -> 0 | G55: 0 | H55: 0
B56: Limite al moltiplicatore post rimodulazioni | E56: =+cap -> 0 | F56: =+MIN(E56,E53)*cap -> 0 | G56: =+MIN(F56,F53)*cap -> 0 | H56: =+MIN(G56,G53)*cap -> 0
B57: info predisposizione | E57: =+IF(E53>E56,"sovracap","nei limiti") -> nei limiti | F57: =+IF(F53>F56,"sovracap","nei limiti") -> nei limiti | G57: nei limiti | H57: nei limiti
B59: VRGa (calcolo per applicabile) | E59: =+E52-Input_per_calcoli_finali!I151-Input_per_calcoli_finali!I152-Input_per_calcoli_finali!I153 -> 0 | F59: =+F52-Input_per_calcoli_finali!J151-Input_per_calcoli_finali!J152-Input_per_calcoli_finali!J153 -> 0 | G59: =+G52-Input_per_calcoli_finali!K151-Input_per_calcoli_finali!K152-Input_per_calcoli_finali!K153 -> 0 | H59: =+H52-Input_per_calcoli_finali!L151-Input_per_calcoli_finali!L152-Input_per_calcoli_finali!L153 -> 0
B60: Ja (calcolo per applicabile) | E60: =+IF(ISERR(E59/SUM(E42:E45)),0,E59/SUM(E42:E45)) -> 0 | F60: =+IF(ISERR(F59/SUM(F42:F45)),0,F59/SUM(F42:F45)) -> 0 | G60: 0 | H60: 0
B62: Limite al VRGa (calcolo per applicabile) | E62: =++E63*SUM(E42:E45) -> 0 | F62: =++F63*SUM(F42:F45) -> 0 | G62: 0 | H62: 0
B63: Limite al moltiplicatore (calcolo per applicabile) | E63: =+cap -> 0 | F63: =+MIN(E63,E60)*cap -> 0 | G63: =+MIN(F63,F60)*cap -> 0 | H63: =+MIN(G63,G60)*cap -> 0
B64: info predisposizione | E64: =+IF(E60>E63,"sovracap","nei limiti") -> nei limiti | F64: =+IF(F60>F63,"sovracap","nei limiti") -> nei limiti | G64: nei limiti | H64: nei limiti
A67: All A - definizioni | B67: Rb - Ricavi altre attività idriche
C70: 2014 | D70: 2015 | E70: 2016 | F70: 2017 | G70: 2018 | H70: 2019
B71: Ricavi da articolazione tariffaria
B72: Vendita di acqua all’ingrosso
B73: Acquedotto (utenti non allacciati alla pubblica fognatura)
B74: Vendita di acqua non potabile o ad uso industriale | C74: =+Dati_conto_econ!F17 -> 0 | D74: =+Dati_conto_econ!L17 -> 0
B75: Vendita di acqua forfetaria
B76: Fornitura bocche antincendio
B77: Fognatura e depurazione civile (approvvigionamento autonomo)
B78: Fognatura e depurazione di acque reflue industriali
B79: Contributi di allacciamento
B80: Prestazioni e servizi accessori | C80: =+Dati_conto_econ!F23 -> 0 | D80: =+Dati_conto_econ!L23 -> 0
B81: Vendita di acqua con autobotte | C81: =+Dati_conto_econ!F24 -> 0 | D81: =+Dati_conto_econ!L24 -> 0
B82: Trattamento percolati | C82: =+Dati_conto_econ!F25 -> 0 | D82: =+Dati_conto_econ!L25 -> 0
B83: Trattamento bottini | C83: =+Dati_conto_econ!F26 -> 0 | D83: =+Dati_conto_econ!L26 -> 0
B84: Gestione fognature bianche (* solo se già incluse nel SII; v. comma 1.1 All.A del 643/2013/R/idr)
B85: Pulizia e manutenzione caditoie stradali (* solo se già incluse nel SII; v. comma 1.1 All.A del 643/2013/R/idr)
B86: Installazione/manutenzione bocche antincendio | C86: =+Dati_conto_econ!F29 -> 0 | D86: =+Dati_conto_econ!L29 -> 0
B87: Vendita di servizi a terzi | C87: =+Dati_conto_econ!F30 -> 0 | D87: =+Dati_conto_econ!L30 -> 0
B88: Lavori conto terzi | C88: =+Dati_conto_econ!F31 -> 0 | D88: =+Dati_conto_econ!L31 -> 0
B89: Spurgo pozzi neri | C89: =+Dati_conto_econ!F32 -> 0 | D89: =+Dati_conto_econ!L32 -> 0
B90: Rilascio autorizzazioni allo scarico | C90: =+Dati_conto_econ!F33 -> 0 | D90: =+Dati_conto_econ!L33 -> 0
B91: Lottizzazioni | C91: =+Dati_conto_econ!F34 -> 0 | D91: =+Dati_conto_econ!L34 -> 0
B92: Riuso delle acque di depurazione | C92: =+Dati_conto_econ!F35 -> 0 | D92: =+Dati_conto_econ!L35 -> 0
B93: Case dell’acqua | C93: =+Dati_conto_econ!F36 -> 0 | D93: =+Dati_conto_econ!L36 -> 0
B94: Ricavi da altre attività (non inclusi nelle suddette voci) | C94: =+IF(Dati_conto_econ!F40>0,Dati_conto_econ!F40,0) -> 0 | D94: =+IF(Dati_conto_econ!L40>0,Dati_conto_econ!L40,0) -> 0 | I94: solo se >0
B95: Toatale Ra-2b | C95: =+SUM(C80:C83)+SUM(C86:C94)+C74 -> 0 | D95: =+SUM(D80:D83)+SUM(D86:D94)+D74 -> 0 | E95: =+D95*TT_parametri!$V$7 -> 0 | F95: =+D95*TT_parametri!$W$8 -> 0
B96: ∏(1+It) | E96: =TT_parametri!V8 -> 1.004994 | F96: =TT_parametri!W8 -> 0.999 | G96: =TT_parametri!X8 -> 1 | H96: =TT_parametri!Y8 -> 1
B97: Ra-2b inflazionati | E97: =+C95*E96 -> 0 | F97: =+D95*F96 -> 0 | G97: =+E95*G96 -> 0 | H97: =+F95*H96 -> 0
A100: All A - definizioni | B100: Cb - Costi altre attività idriche
C102: 2014 | D102: 2015 | E102: 2016 | F102: 2017 | G102: 2018 | H102: 2019
B103: CO altre attività idriche | C103: =+Dati_conto_econ!F42 -> 0 | D103: =+Dati_conto_econ!L42 -> 0
B104: Accantonamenti e rettifiche in eccesso rispetto all'applicazione di norme tributarie | C104: =+Dati_conto_econ!F59 -> 0 | D104: =+Dati_conto_econ!L59 -> 0
B105: Rettifiche di valori di attività finanziarie | C105: =+Dati_conto_econ!F60 -> 0 | D105: =+Dati_conto_econ!L60 -> 0
B106: Costi connessi all'erogazione di liberalità | C106: =+Dati_conto_econ!F61 -> 0 | D106: =+Dati_conto_econ!L61 -> 0
B107: Costi pubblicitari e di marketing (incluse le imposte connesse) | C107: =+Dati_conto_econ!F62 -> 0 | D107: =+Dati_conto_econ!L62 -> 0
B108: Oneri per sanzioni, penalità, risarcimenti automatici e simili | C108: =+Dati_conto_econ!F63 -> 0 | D108: =+Dati_conto_econ!L63 -> 0
B109: Oneri straordinari | C109: =+Dati_conto_econ!F64 -> 0 | D109: =+Dati_conto_econ!L64 -> 0
B110: Spese processuali in cui la parte è risultata soccombente | C110: =+Dati_conto_econ!F65 -> 0 | D110: =+Dati_conto_econ!L65 -> 0
B111: Perdite su crediti per la sola quota parte eccedente l'utilizzo del fondo | C111: =+Dati_conto_econ!F73 -> 0 | D111: =+Dati_conto_econ!L73 -> 0
B112: Costi di strutturazione dei progetti di finanziamento (non capitalizzati) | C112: =+Dati_conto_econ!F74 -> 0 | D112: =+Dati_conto_econ!L74 -> 0
B113: A2) Variazioni rimanenze di prodotti in corso di lavorazione, semilavorati e finiti | C113: =+Dati_conto_econ!F7 -> 0 | D113: =+Dati_conto_econ!L7 -> 0
B114: A3) Variazioni dei lavori in corso su ordinazione | C114: =+Dati_conto_econ!F8 -> 0 | D114: =+Dati_conto_econ!L8 -> 0
B115: A4) Incrementi di immobilizzazioni per lavori interni (inclusi costi del personale) | C115: =+Dati_conto_econ!F9 -> 0 | D115: =+Dati_conto_econ!L9 -> 0
B116: Rimborsi e indennizzi | C116: =+Dati_conto_econ!F39 -> 0 | D116: =+Dati_conto_econ!L39 -> 0
B117: Costi di realizzazione degli allacciamenti idrici e fognari | C117: =+Dati_conto_econ!F70 -> 0 | D117: =+Dati_conto_econ!L70 -> 0
B118: Totale Ca-2b | C118: =(C103-SUM(C104:C116)-C117) -> 0 | D118: =(D103-SUM(D104:D116)-D117) -> 0 | E118: =+D118*TT_parametri!$V$7 -> 0 | F118: =+D118*TT_parametri!$W$8 -> 0
B119: ∏(1+It) | E119: =TT_parametri!V8 -> 1.004994 | F119: =TT_parametri!W8 -> 0.999 | G119: =TT_parametri!X8 -> 1 | H119: =TT_parametri!Y8 -> 1
B120: Ca-2b inflazionati | E120: =+C118*E119 -> 0 | F120: =+D118*F119 -> 0 | G120: =+E118*G119 -> 0 | H120: =+F118*H119 -> 0
B123: Ra per le attività legate al cambio perimetro SII
C125: 2014 | D125: 2015 | E125: 2016 | F125: 2017 | G125: 2018 | H125: 2019
B126: Prestazioni e servizi accessori | C126: =+Dati_conto_econ!C23 -> 0 | D126: =+Dati_conto_econ!I23 -> 0
B127: Vendita di acqua con autobotte | C127: =+Dati_conto_econ!C24 -> 0 | D127: =+Dati_conto_econ!I24 -> 0
B128: Gestione fognature bianche (v. comma 1.1 All.A del 664/2015/R/idr) | C128: =+Dati_conto_econ!C27 -> 0 | D128: =+Dati_conto_econ!I27 -> 0
B129: Pulizia e manutenzione caditoie stradali (v. comma 1.1 All.A del 664/2015/R/idr) | C129: =+Dati_conto_econ!C28 -> 0 | D129: =+Dati_conto_econ!I28 -> 0
B130: Totale Ra-2a | E130: =+SUM(C126:C129) -> 0 | F130: =+SUM(D126:D129) -> 0 | G130: =+F130 -> 0 | H130: =+G130 -> 0

Sheet DCUIT
B2: comma 19.1 All. A MTI-2 | C2: ΔCUIT - Immobilizzazioni di terzi
Y5: 2016 | AF5: 2017 | AN5: 2016 | AT5: 2017 | BA5: 2018 | BH5: 2019 | BP5: 2018 | BV5: 2019 | CD5: Parametri finanziari e fiscali
A6: New_Key_prop | B6: IMN 2016 | C6: IMN 2017 | D6: IMN CFP 2016 | E6: IMN CFP 2017 | F6: AMM 2016 | G6: AMM 2017 | H6: AMM CFP 2016 | I6: AMM CFP 2017 | J6: IMN 2018 | K6: IMN 2019 | L6: IMN CFP 2018 | M6: IMN CFP 2019 | N6: AMM 2018 | O6: AMM 2019 | P6: AMM CFP 2018 | Q6: AMM CFP 2019 | T6: DCUIT 2016 | U6: DCUIT 2017 | V6: DCUIT 2018 | W6: DCUIT 2019 | Y6: CINp | Z6: CINfp,p / CIN | AA6: Km | AB6: α | AC6: OFp | AD6: Rai | AE6: OFiscp | AF6: CINp | AG6: CINfp,p / CIN | AH6: Km | AI6: α | AJ6: OFp | AK6: Rai | AL6: OFiscp | AN6: AMMp | AO6: OFp | AP6: OFiscp | AQ6: MT | AR6: AC | AS6: ΔCUIT | AT6: AMMp | AU6: OFp | AV6: OFiscp | AW6: MT | AX6: AC | AY6: ΔCUIT | BA6: CINp | BB6: CINfp,p / CIN | BC6: Km | BD6: α | BE6: OFp | BF6: Rai | BG6: OFiscp | BH6: CINp | BI6: CINfp,p / CIN | BJ6: Km | BK6: α | BL6: OFp | BM6: Rai | BN6: OFiscp | BP6: AMMp | BQ6: OFp | BR6: OFiscp | BS6: MT | BT6: AC | BU6: ΔCUIT | BV6: AMMp | BW6: OFp | BX6: OFiscp | BY6: MT | BZ6: AC | CA6: ΔCUIT | CD6: Voce | CE6: Valore 2016-2017 | CF6: Valore 2018-2019
A7: #N/D | B7: 0 | C7: 0 | D7: 0 | E7: 0 | F7: 0 | G7: 0 | H7: 0 | I7: 0 | J7: 0 | K7: 0 | L7: 0 | M7: 0 | N7: 0 | O7: 0 | P7: 0 | Q7: 0 | T7: =+AS7 -> 0 | U7: =+AY7 -> 0 | V7: =+BU7 -> 0 | W7: =+CA7 -> 0 | Y7: =+B7 -> 0 | Z7: =IF(Y7=0,0,+D7/Y7) -> 0 | AA7: =+((1/(1+$CE$7))*($CE$8+$CE$10))+($CE$9*(1-$CE$14)*($CE$7/(1+$CE$7))) -> 0.02053295 | AB7: =+$CE$11*$CE$12*(1/(1+$CE$7)) -> 0.016 | AC7: =MAX(+(AA7+AB7)*(1-Z7)*Y7,0) -> 0 | AD7: =((1+((AA7+AB7+1)*(1+$CE$13)-1)/(1-$CE$15))/(1+$CE$13)-1)*(1-Z7)*Y7 -> 0 | AE7: =MAX(0.342*AD7,0) -> 0 | AF7: =+C7 -> 0 | AG7: =IF(AF7=0,0,+E7/AF7) -> 0 | AH7: =+AA7 -> 0.02053295 | AI7: =+AB7 -> 0.016 | AJ7: =MAX(+(AH7+AI7)*(1-AG7)*AF7,0) -> 0 | AK7: =((1+((AH7+AI7+1)*(1+$CE$13)-1)/(1-$CE$15))/(1+$CE$13)-1)*(1-AG7)*AF7 -> 0 | AL7: =MAX(0.342*AK7,0) -> 0 | AN7: =IF(B7="(vuoto)",0,F7) -> 0 | AO7: =AC7 -> 0 | AP7: =AE7 -> 0 | AQ7: =IF(ISNA(IF($A7="(vuoto)",0,VLOOKUP($A7,'Corrispettivi Infrast Terzi'!$B:$AE,27,FALSE))),0,IF($A7="(vuoto)",0,VLOOKUP($A7,'Corrispettivi Infrast Terzi'!$B:$AE,27,FALSE))) -> 0 | AR7: =IF(ISNA(IF($A7="(vuoto)",0,VLOOKUP($A7,'Corrispettivi Infrast Terzi'!$B:$AE,22,FALSE))),0,IF($A7="(vuoto)",0,VLOOKUP($A7,'Corrispettivi Infrast Terzi'!$B:$AE,22,FALSE))) -> 0 | AS7: =MAX(0,((AN7+AO7+AP7)-(AQ7+AR7))) -> 0 | AT7: =G7 -> 0 | AU7: =AJ7 -> 0 | AV7: =AL7 -> 0 | AW7: =IF(ISNA(IF($A7="(vuoto)",0,VLOOKUP($A7,'Corrispettivi Infrast Terzi'!$B:$AE,28,FALSE))),0,IF($A7="(vuoto)",0,VLOOKUP($A7,'Corrispettivi Infrast Terzi'!$B:$AE,28,FALSE))) -> 0 | AX7: =IF(ISNA(IF($A7="(vuoto)",0,VLOOKUP($A7,'Corrispettivi Infrast Terzi'!$B:$AE,23,FALSE))),0,IF($A7="(vuoto)",0,VLOOKUP($A7,'Corrispettivi Infrast Terzi'!$B:$AE,23,FALSE))) -> 0 | AY7: =MAX(0,((AT7+AU7+AV7)-(AW7+AX7))) -> 0 | BA7: =+J7 -> 0 | BB7: =IF(BA7=0,0,+L7/BA7) -> 0 | BC7: =+((1/(1+$CF$7))*($CF$8+$CF$10))+($CF$9*(1-$CF$14)*($CF$7/(1+$CF$7))) -> 0.02053295 | BD7: =+$CF$11*$CF$12*(1/(1+$CF$7)) -> 0.016 | BE7: =MAX(+(BC7+BD7)*(1-BB7)*BA7,0) -> 0 | BF7: =((1+((BC7+BD7+1)*(1+$CE$13)-1)/(1-$CE$15))/(1+$CE$13)-1)*(1-BB7)*BA7 -> 0 | BG7: =MAX(0.342*BF7,0) -> 0 | BH7: =+K7 -> 0 | BI7: =IF(BH7=0,0,+M7/BH7) -> 0 | BJ7: =+BC7 -> 0.02053295 | BK7: =+BD7 -> 0.016 | BL7: =MAX(+(BJ7+BK7)*(1-BI7)*BH7,0) -> 0 | BM7: =((1+((BJ7+BK7+1)*(1+$CE$13)-1)/(1-$CE$15))/(1+$CE$13)-1)*(1-BI7)*BH7 -> 0 | BN7: =MAX(0.342*BM7,0) -> 0 | BP7: =IF($B7="(vuoto)",0,N7) -> 0 | BQ7: =BE7 -> 0 | BR7: =BG7 -> 0 | BS7: =IF(ISNA(IF($A7="(vuoto)",0,VLOOKUP($A7,'Corrispettivi Infrast Terzi'!$B:$AE,29,FALSE))),0,IF($A7="(vuoto)",0,VLOOKUP($A7,'Corrispettivi Infrast Terzi'!$B:$AE,29,FALSE))) -> 0 | BT7: =IF(ISNA(IF($A7="(vuoto)",0,VLOOKUP($A7,'Corrispettivi Infrast Terzi'!$B:$AE,24,FALSE))),0,IF($A7="(vuoto)",0,VLOOKUP($A7,'Corrispettivi Infrast Terzi'!$B:$AE,24,FALSE))) -> 0 | BU7: =MAX(0,((BP7+BQ7+BR7)-(BS7+BT7))) -> 0 | BV7: =IF($B7="(vuoto)",0,O7) -> 0 | BW7: =BL7 -> 0 | BX7: =BN7 -> 0 | BY7: =IF(ISNA(IF($A7="(vuoto)",0,VLOOKUP($A7,'Corrispettivi Infrast Terzi'!$B:$AE,30,FALSE))),0,IF($A7="(vuoto)",0,VLOOKUP($A7,'Corrispettivi Infrast Terzi'!$B:$AE,30,FALSE))) -> 0 | BZ7: =IF(ISNA(IF($A7="(vuoto)",0,VLOOKUP($A7,'Corrispettivi Infrast Terzi'!$B:$AE,25,FALSE))),0,IF($A7="(vuoto)",0,VLOOKUP($A7,'Corrispettivi Infrast Terzi'!$B:$AE,25,FALSE))) -> 0 | CA7: =MAX(0,((BV7+BW7+BX7)-(BY7+BZ7))) -> 0 | CD7: CS/CnS | CE7: =+TT_parametri!S16 -> 1 | CF7: =+TT_parametri!T16 -> 1
CD8: risk free rate | CE8: =+TT_parametri!S17 -> 0.005 | CF8: =+TT_parametri!T17 -> 0.005
CD9: Kd | CE9: =+TT_parametri!S18 -> 0.028444 | CF9: =+TT_parametri!T18 -> 0.028444
CD10: WRP | CE10: =+TT_parametri!S19 -> 0.015444 | CF10: =+TT_parametri!T19 -> 0.015444
CD11: β levered | CE11: =+TT_parametri!S20 -> 0.8 | CF11: =+TT_parametri!T20 -> 0.8
CD12: ERP | CE12: =+TT_parametri!S21 -> 0.04 | CF12: =+TT_parametri!T21 -> 0.04
CD13: rpi | CE13: =+TT_parametri!S22 -> 0.015 | CF13: =+TT_parametri!T22 -> 0.015
CD14: tc | CE14: 0.275 | CF14: 0.275
CD15: T | CE15: =+TT_parametri!S24 -> 0.342 | CF15: =+TT_parametri!T24 -> 0.342

Sheet Capex
A2: art. 13 All. A MTI2 | B2: Capex - Costi delle immobilizzazioni
B4: Sviluppo della componente Capex
C6: 2014 | D6: 2015 | E6: 2016 | F6: 2017 | G6: 2018 | H6: 2019
B7: OF | E7: =+E26 -> 0 | F7: =+F26 -> 0 | G7: =+G26 -> 0 | H7: =+H26 -> 0
B8: OFisc | E8: =E30 -> 0 | F8: =F30 -> 0 | G8: =G30 -> 0 | H8: =H30 -> 0
B9: AMM | E9: =+'riepilogo RAB MTI -2'!C38 -> 0 | F9: =+'riepilogo RAB MTI -2'!D38 -> 0 | G9: =+'riepilogo RAB MTI -2'!E38 -> 0 | H9: =+'riepilogo RAB MTI -2'!F38 -> 0
B10: ΔCUITcapex | E10: =+E69 -> 0 | F10: =+F69 -> 0 | G10: =+G69 -> 0 | H10: =+H69 -> 0
B11: Eventuale Capexvirt | E11: =+VRG_gest_incomplete!E15 -> 0 | F11: =+VRG_gest_incomplete!F15 -> 0 | G11: =+VRG_gest_incomplete!G15 -> 0 | H11: =+VRG_gest_incomplete!H15 -> 0
B12: Capex | E12: =SUM(E7:E11) -> 0 | F12: =SUM(F7:F11) -> 0 | G12: 0 | H12: 0
A17: art. 17 All. A MTI2 | B17: OF e OFisc - Oneri finanziari e fiscali
C19: 2014 | D19: 2015 | E19: 2016 | F19: 2017 | G19: 2018 | H19: 2019 | J19: Parametri finanziari e fiscali | K19: 2016-2017 | L19: 2018-2019
B20: CINfp | E20: =TT_riepilogo_RAB!E12 -> 0 | F20: =TT_riepilogo_RAB!F12 -> 0 | G20: =TT_riepilogo_RAB!G12 -> 0 | H20: =TT_riepilogo_RAB!H12 -> 0 | J20: CS/CnS | K20: =+TT_parametri!S16 -> 1 | L20: =+TT_parametri!T16 -> 1
B21: CINfp / CIN | E21: =IF(E55=0,0,+E20/E55) -> 0 | F21: =IF(F55=0,0,+F20/F55) -> 0 | G21: =IF(G55=0,0,+G20/G55) -> 0 | H21: =IF(H55=0,0,+H20/H55) -> 0 | J21: risk free rate | K21: =+TT_parametri!S17 -> 0.005 | L21: =+TT_parametri!T17 -> 0.005
B22: Km | E22: =+(K21+K23)*(1-(K20/(1+K20)))+K22*(1-K27)*(K20/(1+K20)) -> 0.02053295 | F22: =+(K21+K23)*(1-(K20/(1+K20)))+K22*(1-K27)*(K20/(1+K20)) -> 0.02053295 | G22: =+(L21+L23)*(1-(L20/(1+L20)))+L22*(1-L27)*(L20/(1+L20)) -> 0.02053295 | H22: =+(L21+L23)*(1-(L20/(1+L20)))+L22*(1-L27)*(L20/(1+L20)) -> 0.02053295 | J22: Kd | K22: =+TT_parametri!S18 -> 0.028444 | L22: =+TT_parametri!T18 -> 0.028444
B23: α | E23: =+(1-(K20/(1+K20)))*K24*K25 -> 0.016 | F23: =+(1-(K20/(1+K20)))*K24*K25 -> 0.016 | G23: =+(1-(L20/(1+L20)))*L24*L25 -> 0.016 | H23: =+(1-(L20/(1+L20)))*L24*L25 -> 0.016 | J23: WRP | K23: =+TT_parametri!S19 -> 0.015444 | L23: =+TT_parametri!T19 -> 0.015444
B24: OF (senza time lag) | E24: =MAX(+(E22+E23)*(1-E21)*E55,0) -> 0 | F24: =MAX(+(F22+F23)*(1-F21)*F55,0) -> 0 | G24: =MAX(+(G22+G23)*(1-G21)*G55,0) -> 0 | H24: =MAX(+(H22+H23)*(1-H21)*H55,0) -> 0 | J24: β levered | K24: =+TT_parametri!S20 -> 0.8 | L24: =+TT_parametri!T20 -> 0.8
B25: OF (time lag) | E25: =+('riepilogo RAB MTI -2'!C24-'riepilogo RAB MTI -2'!C30)*($K$29) -> 0 | F25: =+('riepilogo RAB MTI -2'!D24-'riepilogo RAB MTI -2'!D30)*($K$29) -> 0 | G25: =+('riepilogo RAB MTI -2'!E24-'riepilogo RAB MTI -2'!E30)*($L$29) -> 0 | H25: =+('riepilogo RAB MTI -2'!F24-'riepilogo RAB MTI -2'!F30)*($L$29) -> 0 | J25: ERP | K25: =+TT_parametri!S21 -> 0.04 | L25: =+TT_parametri!T21 -> 0.04
B26: OF in tariffa | E26: =+E24+E25 -> 0 | F26: =+F24+F25 -> 0 | G26: =+G24+G25 -> 0 | H26: =+H24+H25 -> 0 | J26: rpi | K26: =+TT_parametri!S22 -> 0.015 | L26: =+TT_parametri!T22 -> 0.015
J27: tc | K27: =+TT_parametri!S23 -> 0.275 | L27: =+TT_parametri!T23 -> 0.275
B28: Rai rate | E28: =+(((1+((E22+E23+1)*(1+K26)-1)/(1-K28))/(1+K26))-1) -> 0.06320233616 | F28: =+(((1+((F22+F23+1)*(1+K26)-1)/(1-K28))/(1+K26))-1) -> 0.06320233616 | G28: =+(((1+((G22+G23+1)*(1+L26)-1)/(1-L28))/(1+L26))-1) -> 0.06320233616 | H28: =+(((1+((H22+H23+1)*(1+L26)-1)/(1-L28))/(1+L26))-1) -> 0.06320233616 | J28: T | K28: =+TT_parametri!S24 -> 0.342 | L28: =+TT_parametri!T24 -> 0.342
B29: Rai | E29: =+E28*(E55-E20) -> 0 | F29: =+F28*(F55-F20) -> 0 | G29: 0 | H29: 0 | J29: time lag | K29: =+TT_parametri!S25 -> 0.01 | L29: =+TT_parametri!T25 -> 0.01
B30: OFisc in tariffa | E30: =MAX(0.275*E29,0) -> 0 | F30: =MAX(0.275*F29,0) -> 0 | G30: =MAX(0.275*G29,0) -> 0 | H30: =MAX(0.275*H29,0) -> 0 | J30: Km + α + tc*Rai rate | K30: =+E22+E23+K27*E28 -> 0.05391359244 | L30: =+G22+G23+L27*G28 -> 0.05391359244
A34: art. 15 All. A MTI2 | B34: CIN e CINfp - Capitale Investito Netto
C38: 2014 | D38: 2015 | E38: 2016 | F38: 2017 | G38: 2018 | H38: 2019
B39: IMN | E39: =TT_riepilogo_RAB!E8 -> 0 | F39: =TT_riepilogo_RAB!F8 -> 0 | G39: =TT_riepilogo_RAB!G8 -> 0 | H39: =TT_riepilogo_RAB!H8 -> 0
B40: LIC nettati | E40: =Nuovi_Investimenti!D4*E59 -> 0 | F40: =IF(Nuovi_Investimenti!E4="",E40*TT_parametri!G62,Nuovi_Investimenti!E4*F59) -> 0 | G40: =IF(Nuovi_Investimenti!F4="",F40*TT_parametri!H63,Nuovi_Investimenti!F4*G59) -> 0 | H40: =IF(Nuovi_Investimenti!G4="",G40*TT_parametri!I64,Nuovi_Investimenti!G4*H59) -> 0
B42: TFR | C42: =+'Altri dati economico_finanziari'!E17 -> 0 | D42: =+'Altri dati economico_finanziari'!F17 -> 0
B43: Fondo di quiescenza | C43: =+'Altri dati economico_finanziari'!E18 -> 0 | D43: =+'Altri dati economico_finanziari'!F18 -> 0
B44: Fondo rischi e oneri | C44: =+'Altri dati economico_finanziari'!E19 -> 0 | D44: =+'Altri dati economico_finanziari'!F19 -> 0
B45: Fondo sentenza Corte Costituzionale 335/2008 | C45: =+'Altri dati economico_finanziari'!E24 -> 0 | D45: =+'Altri dati economico_finanziari'!F24 -> 0
B46: Fondo per il ripristino di beni di terzi | C46: =+'Altri dati economico_finanziari'!E25 -> 0 | D46: =+'Altri dati economico_finanziari'!F25 -> 0
B47: Fondo per il finanziamento di tariffe sociali o di solidarietà | C47: =+'Altri dati economico_finanziari'!E26 -> 0 | D47: =+'Altri dati economico_finanziari'!F26 -> 0
B48: Accantonamenti e rettifiche in eccesso rispetto all'applicazione di norme tributarie | C48: =-ABS(Dati_conto_econ!C59)-ABS(Dati_conto_econ!F59) -> 0 | D48: =+-ABS(Dati_conto_econ!I59)-ABS(Dati_conto_econ!L59) -> 0
B49: FACC | E49: =+SUM(C42:C48) -> 0 | F49: =+SUM(D42:D48) -> 0 | G49: =+F49 -> 0 | H49: =+G49 -> 0
J50: giorni di dilazione:
B51: Ricavia,A1 | C51: =+(SUM(Dati_conto_econ!C14:'Dati_conto_econ'!C21)+VRG_Teta!E130) -> 0 | D51: =+(SUM(Dati_conto_econ!I14:'Dati_conto_econ'!I21)+VRG_Teta!F130) -> 0 | E51: =+D51*TT_parametri!V7 -> 0 | F51: =+E51*TT_parametri!W7 -> 0 | J51: fatture | K51: 90
B52: COa,B6+B7 | C52: =+Dati_conto_econ!C43+SUM(Dati_conto_econ!C45:C48) -> 0 | D52: =+Dati_conto_econ!I43+SUM(Dati_conto_econ!I45:I48) -> 0 | E52: =+D52*TT_parametri!V7 -> 0 | F52: =+E52*TT_parametri!W7 -> 0 | J52: fornitori | K52: 60
B53: CCN | E53: =($K$51/365*C51-$K$52/365*C52)*$E$60 -> 0 | F53: =($K$51/365*D51-$K$52/365*D52)*$F$60 -> 0 | G53: =($K$51/365*E51-$K$52/365*E52)*$G$60 -> 0 | H53: =($K$51/365*F51-$K$52/365*F52)*$H$60 -> 0
B54: FoNIanon_inv | E54: =+FoNI!E36 -> 0 | F54: =+FoNI!F36 -> 0 | G54: =+FoNI!G36 -> 0 | H54: =+FoNI!H36 -> 0
B55: CIN | E55: =+E39+E53+E40-E49-E54 -> 0 | F55: =+F39+F53+F40-F49-F54 -> 0 | G55: =+G39+G53+G40-G49-G54 -> 0 | H55: =+H39+H53+H40-H49-H54 -> 0
B56: CINfp | E56: =+'riepilogo RAB MTI -2'!C16 -> 0 | F56: =+'riepilogo RAB MTI -2'!D16 -> 0 | G56: =+'riepilogo RAB MTI -2'!E16 -> 0 | H56: =+'riepilogo RAB MTI -2'!F16 -> 0
E58: 2016 | F58: 2017 | G58: 2018 | H58: 2019
B59: dfl | E59: =+VLOOKUP(E38-2,ifl,E38 - 2010,FALSE) -> 1.002996 | F59: =+VLOOKUP(F38-2,ifl,F38 - 2010,FALSE) -> 1.004 | G59: =+VLOOKUP(G38-2,ifl,G38 - 2010,FALSE) -> 1 | H59: =+VLOOKUP(H38-2,ifl,H38 - 2010,FALSE) -> 1
B60: ∏(1+It) | E60: =+TT_parametri!V8 -> 1.004994 | F60: =+TT_parametri!W8 -> 0.999 | G60: =+TT_parametri!X8 -> 1 | H60: =+TT_parametri!Y8 -> 1
A63: comma 13.1 All. A | B63: DCUITcapex - …
E65: 2016 | F65: 2017 | G65: 2018 | H65: 2019
B66: ΔCUIT | E66: =+SUM(DCUIT!T:T) -> 0 | F66: =+SUM(DCUIT!U:U) -> 0 | G66: =+SUM(DCUIT!V:V) -> 0 | H66: =+SUM(DCUIT!W:W) -> 0
B67: ΔCUITcapex da input | E67: =+'Altri dati economico_finanziari'!E52 -> 0 | F67: =+'Altri dati economico_finanziari'!F52 -> 0 | G67: =+'Altri dati economico_finanziari'!G52 -> 0 | H67: =+'Altri dati economico_finanziari'!H52 -> 0
B68: ΔCUITcapex (controllo ammissibilità) | E68: =+IF(SUM(Dati_Anni_precedenti!$D$21:$E$21)<>0,"SI","NO") -> NO | F68: =+IF(SUM(Dati_Anni_precedenti!$D$21:$E$21)<>0,"SI","NO") -> NO | G68: =+IF(SUM(Dati_Anni_precedenti!$D$21:$E$21)<>0,"SI","NO") -> NO | H68: =+IF(SUM(Dati_Anni_precedenti!$D$21:$E$21)<>0,"SI","NO") -> NO
B69: ΔCUITcapex | E69: =+IF(AND(E67<=E66,E68="SI"),E67,0) -> 0 | F69: =+IF(AND(F67<=F66,F68="SI"),F67,0) -> 0 | G69: 0 | H69: 0

Sheet FoNI
A2: art. 22 All A | B2: FoNI - Fondo nuovi investimenti
B4: Sviluppo della componente FoNI
B6: Componenti post rimodulazioni | C6: 2014 | D6: 2015 | E6: 2016 | F6: 2017 | G6: 2018 | H6: 2019
B7: AMMaFoNI | E7: =E76 -> 0 | F7: =F76 -> 0 | G7: =G76 -> 0 | H7: =H76 -> 0
B8: FNIa | E8: =+E64 -> 0 | F8: =+F64 -> 0 | G8: =+G64 -> 0 | H8: =+H64 -> 0
B9: ΔCUITaFoNI | E9: =+E87 -> 0 | F9: =+F87 -> 0 | G9: =+G87 -> 0 | H9: =+H87 -> 0
B10: FoNIa | E10: =SUM(E7:E9) -> 0 | F10: =SUM(F7:F9) -> 0 | G10: =SUM(G7:G9) -> 0 | H10: =SUM(H7:H9) -> 0
B13: Componenti calcolate (pre rimodulazioni) | C13: 2014 | D13: 2015 | E13: 2016 | F13: 2017 | G13: 2018 | H13: 2019
B14: AMMaFoNI | E14: =+E74 -> 0 | F14: =+F74 -> 0 | G14: 0 | H14: 0
B15: FNIa | E15: =+IF(OR(schema="IV",schema="V",schema="VI"),E62,0) -> 0 | F15: =+IF(OR(schema="IV",schema="V",schema="VI"),F62,0) -> 0 | G15: =+IF(OR(schema="IV",schema="V",schema="VI"),G62,0) -> 0 | H15: =+IF(OR(schema="IV",schema="V",schema="VI"),H62,0) -> 0
B16: ΔCUITaFoNI | E16: =+E85 -> 0 | F16: =+F85 -> 0 | G16: =+G85 -> 0 | H16: =+H85 -> 0
B17: FoNIa | E17: =SUM(E14:E16) -> 0 | F17: =SUM(F14:F16) -> 0 | G17: =SUM(G14:G16) -> 0 | H17: =SUM(H14:H16) -> 0
A21: comma 20.3 All A | B21: Controlli sulle componenti del FoNI
C25: Controllo sull'eventuale presenza di FoNI - MTI non speso
C27: 2014 | D27: 2015 | E27: 2016 | F27: 2017 | G27: 2018 | H27: 2019
B28: FoNIa | C28: =+SUM(Dati_Anni_precedenti!D25:D27) -> 0 | D28: =+SUM(Dati_Anni_precedenti!E25:E27) -> 0 | E28: =+E10 -> 0 | F28: =+F10 -> 0
B30: FoNI speso in IP al netto dell'effetto fiscale | C30: =+MAX(MIN(Nuovi_Investimenti!D9,(FoNI!C28-FoNI!C31)*(1-TT_parametri!S23)),0) -> 0 | D30: =+MAX(MIN(Nuovi_Investimenti!E9,(FoNI!D28-FoNI!D31)*(1-TT_parametri!S23)),0) -> 0 | E30: =+MAX(MIN(Nuovi_Investimenti!F9,(FoNI!E28-FoNI!E31)*(1-TT_parametri!S23)),0) -> 0 | F30: =+MAX(MIN(Nuovi_Investimenti!G9,(FoNI!F28-FoNI!F31)*(1-TT_parametri!S23)),0) -> 0
B31: FoNI speso per agevolazioni tariffarie | C31: =+'Altri dati economico_finanziari'!E39 -> 0 | D31: =+'Altri dati economico_finanziari'!F39 -> 0 | E31: =+'Altri dati economico_finanziari'!G39 -> 0 | F31: =+'Altri dati economico_finanziari'!H39 -> 0
B33: FoNIspeso | C33: =+C31+C30 -> 0 | D33: =+D31+D30 -> 0 | E33: 0 | F33: 0
B34: FoNIspeso da riportare a CFP | C34: =+C30 -> 0 | D34: =+D30 -> 0 | E34: 0 | F34: 0
B36: Fonianoninv | E36: =+MAX(C28-C31-C30/(1-TT_parametri!S23),0)*E39 -> 0 | F36: =+MAX(D28-D31-D30/(1-TT_parametri!T23),0)*F39 -> 0
B37: SFoNInoninv (a moneta dell'anno) | E37: =+MAX((C28-C31-C30/(1-TT_parametri!S23))*E39,0) -> 0 | F37: =+MAX((C28-C31-C30/(1-TT_parametri!S23))*F39+(D28-D31-D30/(1-TT_parametri!S23))*TT_parametri!G61,0) -> 0 | G37: =+MAX((C28-C31-C30/(1-TT_parametri!S23))*G39+(D28-D31-D30/(1-TT_parametri!S23))*TT_parametri!H61,0) -> 0 | H37: =+MAX((C28-C31-C30/(1-TT_parametri!S23))*H39+(D28-D31-D30/(1-TT_parametri!S23))*TT_parametri!I61,0) -> 0
B39: dfl | E39: =+TT_parametri!F60 -> 1.002996 | F39: =+TT_parametri!G61 -> 1.004 | G39: =+TT_parametri!H62 -> 1 | H39: =+TT_parametri!I63 -> 1
C43: Condizioni di azzeramento delle componenti ΔCUITaFoNI e AMMfoni
C45: 2014 | D45: 2015 | E45: 2016 | F45: 2017 | G45: 2018 | H45: 2019
B46: Presenza FoNInoninv | E46: =+IF(E37>1,"SI","NO") -> NO | F46: =+IF(F37>1,"SI","NO") -> NO | G46: =+IF(G37>1,"SI","NO") -> NO | H46: =+IF(H37>1,"SI","NO") -> NO
B47: AMMORTAMENTO FINANZIARIO | E47: =+af_2014 -> NO | F47: =+af_2015 -> NO | G47: =+af_2016 -> NO | H47: =+af_2017 -> NO
B49: Azzeramento ΔCUITaFoNI | E49: =+IF(OR(E47="SI",E46="SI"),"SI","NO") -> NO | F49: =+IF(OR(F47="SI",F46="SI"),"SI","NO") -> NO | G49: =+IF(OR(G47="SI",G46="SI"),"SI","NO") -> NO | H49: =+IF(OR(H47="SI",H46="SI"),"SI","NO") -> NO
B50: Azzeramento AMMaFoNI | E50: =+IF(AND(E46="SI",(C28-C31-C30/(1-TT_parametri!S23))>E87),"SI","NO") -> NO | F50: =+IF(AND(F46="SI",(D28-D31-D30/(1-TT_parametri!S23))>F87),"SI","NO") -> NO | G50: =+IF(AND(G46="SI",(E28-E31-E30/(1-TT_parametri!S23))>G87),"SI","NO") -> NO | H50: =+IF(AND(H46="SI",(F28-E31-E30/(1-TT_parametri!S23))>H87),"SI","NO") -> NO
A54: art. 22 All A | B54: FNI - Anticipazione per il finanziamento di nuovi investimenti
C58: 2014 | D58: 2015 | E58: 2016 | F58: 2017 | G58: 2018 | H58: 2019
B59: IPtexp | E59: =+Input_per_calcoli_finali!I44 -> 0 | F59: =+Input_per_calcoli_finali!J44 -> 0 | G59: =+Input_per_calcoli_finali!K44 -> 0 | H59: =+Input_per_calcoli_finali!L44 -> 0
B60: Capexa | E60: =+Capex!E12 -> 0 | F60: =+Capex!F12 -> 0 | G60: =+Capex!G12 -> 0 | H60: =+Capex!H12 -> 0
B61: ψ [0,4÷0,8] | E61: =+Input_per_calcoli_finali!$I$51 -> 0 | F61: =+Input_per_calcoli_finali!$I$51 -> 0 | G61: =+Input_per_calcoli_finali!$I$51 -> 0 | H61: =+Input_per_calcoli_finali!$I$51 -> 0
B62: FNInew,a da formula | E62: =MAX(0,E61*(E59-E60)) -> 0 | F62: =MAX(0,F61*(F59-F60)) -> 0 | G62: =MAX(0,G61*(G59-G60)) -> 0 | H62: =MAX(0,H61*(H59-H60)) -> 0
B63: FNInew,a rinunciato da soggetto compilante | E63: =IF(Input_per_calcoli_finali!I116="",0,Input_per_calcoli_finali!I116) -> 0 | F63: =IF(Input_per_calcoli_finali!J116="",0,Input_per_calcoli_finali!J116) -> 0 | G63: =IF(Input_per_calcoli_finali!K116="",0,Input_per_calcoli_finali!K116) -> 0 | H63: =IF(Input_per_calcoli_finali!L116="",0,Input_per_calcoli_finali!L116) -> 0
B64: FNIa in tariffa | E64: =IF(OR(schema="IV",schema="V",schema="VI"),MAX(0,E62-E63),0) -> 0 | F64: =IF(OR(schema="IV",schema="V",schema="VI"),MAX(0,F62-F63),0) -> 0 | G64: =IF(OR(schema="IV",schema="V",schema="VI"),MAX(0,G62-G63),0) -> 0 | H64: =IF(OR(schema="IV",schema="V",schema="VI"),MAX(0,H62-H63),0) -> 0
A68: art. 22 All A | B68: AMMFoNI - Ammortamento sui contributi a fondo perduto
C72: 2014 | D72: 2015 | E72: 2016 | F72: 2017 | G72: 2018 | H72: 2019
B73: AMMaCFP da formula | E73: =+'riepilogo RAB MTI -2'!C41 -> 0 | F73: =+'riepilogo RAB MTI -2'!D41 -> 0 | G73: =+'riepilogo RAB MTI -2'!E41 -> 0 | H73: =+'riepilogo RAB MTI -2'!F41 -> 0
B74: AMMaCFP (al netto quota FoNI non inv) | E74: =+IF(E46="si",MAX(0,E73-(E84-E36)),E73) -> 0 | F74: =+IF(F46="si",MAX(0,F73-(F84-F36)),F73) -> 0 | G74: =+IF(G46="si",MAX(0,G73-(G84-G36)),G73) -> 0 | H74: =+IF(H46="si",MAX(0,H73-(H84-H36)),H73) -> 0
B75: AMMaFoNI rinunciato da soggetto compilante | E75: =+IF(Input_per_calcoli_finali!I119="",0,Input_per_calcoli_finali!I119) -> 0 | F75: =+IF(Input_per_calcoli_finali!J119="",0,Input_per_calcoli_finali!J119) -> 0 | G75: =+IF(Input_per_calcoli_finali!K119="",0,Input_per_calcoli_finali!K119) -> 0 | H75: =+IF(Input_per_calcoli_finali!L119="",0,Input_per_calcoli_finali!L119) -> 0
B76: AMMaFoNI in tariffa | E76: =IF(E50="SI",0,MAX(0,E74-E75)) -> 0 | F76: =IF(F50="SI",0,MAX(0,F74-F75)) -> 0 | G76: =IF(G50="SI",0,MAX(0,G74-G75)) -> 0 | H76: =IF(H50="SI",0,MAX(0,H74-H75)) -> 0
A79: art. 22 All A | B79: DCUITFoNI - Eccedenza del costo per l’uso delle infrastrutture di terzi
C83: 2014 | D83: 2015 | E83: 2016 | F83: 2017 | G83: 2018 | H83: 2019
B84: ΔCUITa da formula | E84: =+Capex!E66-Capex!E10 -> 0 | F84: =+Capex!F66-Capex!F10 -> 0 | G84: =+Capex!G66-Capex!G10 -> 0 | H84: =+Capex!H66-Capex!H10 -> 0
B85: ΔCUITa massimo nel FoNI | E85: =+IF(E49="SI",0,E84) -> 0 | F85: =+IF(F49="SI",0,F84) -> 0 | G85: =+IF(G49="SI",0,G84) -> 0 | H85: =+IF(H49="SI",0,H84) -> 0
B86: ΔCUITaFoNI rinunciato dal soggetto compilante | E86: =IF(Input_per_calcoli_finali!I122="",0,Input_per_calcoli_finali!I122) -> 0 | F86: =IF(Input_per_calcoli_finali!J122="",0,Input_per_calcoli_finali!J122) -> 0 | G86: =IF(Input_per_calcoli_finali!K122="",0,Input_per_calcoli_finali!K122) -> 0 | H86: =IF(Input_per_calcoli_finali!L122="",0,Input_per_calcoli_finali!L122) -> 0
B87: ΔCUITaFoNI | E87: =MAX(0,E85-E86) -> 0 | F87: =MAX(0,F85-F86) -> 0 | G87: =MAX(0,G85-G86) -> 0 | H87: =MAX(0,H85-H86) -> 0

Sheet Opex
A2: art. 9 e 22 All. A | B2: Opex - Costi operativi
B4: Sviluppo della componente Opex (include OPnew e OpexQC, con relativi controlli di coerenza)
C6: 2014 | D6: 2015 | E6: 2016 | F6: 2017 | G6: 2018 | H6: 2019
B7: Opexal | E7: =+E29 -> 0 | F7: =+F29 -> 0 | G7: =+G29 -> 0 | H7: =+H29 -> 0
B8: Opexend | E8: =+E22 -> 0 | F8: =+F22 -> 0 | G8: =+G22 -> 0 | H8: =+H22 -> 0
B9: OpexQC (post valutazione istanza) | E9: =+E130 -> 0 | F9: =+F130 -> 0 | G9: =+G130 -> 0 | H9: =+H130 -> 0
B10: Opexnew (post valutazione istanza) | E10: =+E138 -> 0 | F10: =+F138 -> 0 | G10: =+G138 -> 0 | H10: =+H138 -> 0
B11: Eventuale Opexvirt | E11: =+VRG_gest_incomplete!E13 -> 0 | F11: =+VRG_gest_incomplete!F13 -> 0 | G11: =+VRG_gest_incomplete!G13 -> 0 | H11: =+VRG_gest_incomplete!H13 -> 0
B12: Opexa | E12: =+SUM(E7:E11) -> 0 | F12: =+SUM(F7:F11) -> 0 | G12: 0 | H12: 0
A16: art. 23 All. A | B16: Opexend - Costi endogeni
C19: 2014 | D19: 2015 | E19: 2016 | F19: 2017 | G19: 2018 | H19: 2019
B20: ∏(1+It) | E20: =+(1+TT_parametri!$P$9)*(1+TT_parametri!$P$10) -> 1.004994 | F20: =+(1+TT_parametri!$P$9)*(1+TT_parametri!$P$10)*(1+TT_parametri!$P$11) -> 1.004994 | G20: =+(1+TT_parametri!$P$9)*(1+TT_parametri!$P$10)*(1+TT_parametri!$P$11)*(1+TT_parametri!$P$12) -> 1.004994 | H20: =+(1+TT_parametri!$P$9)*(1+TT_parametri!$P$10)*(1+TT_parametri!$P$11)*(1+TT_parametri!$P$12)*(1+TT_parametri!$P$13) -> 1.004994
B21: Opexend al lordo degli ERCend | C21: =+Dati_Anni_precedenti!D37 -> 0 | E21: =+$C$21*E20 -> 0 | F21: =+$C$21*F20 -> 0 | G21: =+$C$21*G20 -> 0 | H21: =+$C$21*H20 -> 0
B22: Opexend al netto degli ERCend | E22: =+E21-ERC!E37 -> 0 | F22: =+F21-ERC!F37 -> 0 | G22: =+G21-ERC!G37 -> 0 | H22: =+H21-ERC!H37 -> 0
A25: art. 24 All. A | B25: Opexal - Costi aggiornabili
C28: 2014 | D28: 2015 | E28: 2016 | F28: 2017 | G28: 2018 | H28: 2019
B29: Opexala | E29: =+E42+E53+E73+E61+E62 -> 0 | F29: =+F42+F53+F73+F61+F62 -> 0 | G29: =+G42+G53+G73+G61+G62 -> 0 | H29: =+H42+H53+H73+H61+H62 -> 0
A32: art. 25 All. A | B32: Coee - Costi di energia elettrica
C36: 2014 | D36: 2015 | E36: 2016 | F36: 2017 | G36: 2018 | H36: 2019
B37: COeff,a-2EE | C37: =+SUM(Dati_conto_econ!C45:C46,Dati_conto_econ!F45:F46) -> 0 | D37: =+SUM(Dati_conto_econ!I45:I46,Dati_conto_econ!L45:L46) -> 0 | E37: =+D37*(1+TT_parametri!$P$10) -> 0 | F37: =E37*(1+TT_parametri!$P$11) -> 0
B38: COmedio,a-2EE | C38: =+TT_parametri!$L32 -> 0.1674 | D38: =+TT_parametri!$L33 -> 0.1674 | E38: =+TT_parametri!$L34 -> 0.1674 | F38: =+TT_parametri!$L35 -> 0.1674
B39: kWh a-2 | C39: =+Dati_tecnici!E3 -> 0 | D39: =+Dati_tecnici!F3 -> 0 | E39: =D39 -> 0 | F39: =E39 -> 0
B40: COEEa pre inflazione | C40: =+MIN(C37,C38*C39*1.1) -> 0 | D40: =+MIN(D37,D38*D39*1.1) -> 0 | E40: =+MIN(E37,E38*E39*1.1) -> 0 | F40: =+MIN(F37,F38*F39*1.1) -> 0
B41: ∏(1+It) | E41: =+(1+TT_parametri!$P$9)*(1+TT_parametri!$P$10) -> 1.004994 | F41: =+(1+TT_parametri!$P$10)*(1+TT_parametri!$P$11) -> 0.999 | G41: =+(1+TT_parametri!$P$11)*(1+TT_parametri!$P$12) -> 1 | H41: =(1+TT_parametri!$P$12)*(1+TT_parametri!$P$13) -> 1
B42: COEEa | E42: =+C40*E41 -> 0 | F42: =+D40*F41 -> 0 | G42: =+E40*G41 -> 0 | H42: =+F40*H41 -> 0
A45: art. 26 All. A | B45: Cows - Costi all'ingrosso
C49: 2014 | D49: 2015 | E49: 2016 | F49: 2017 | G49: 2018 | H49: 2019
B50: COwater effettivo | C50: =+SUMIF(Acquisto_Servizi_ingrosso!AO:AO,1,Acquisto_Servizi_ingrosso!K:K) -> 0 | D50: =+SUMIF(Acquisto_Servizi_ingrosso!AO:AO,1,Acquisto_Servizi_ingrosso!AB:AB) -> 0 | E50: =+D50*(1+TT_parametri!P10) -> 0 | F50: =+E50*(1+TT_parametri!P11) -> 0
B51: COother effettivo | C51: =+SUMIF(Acquisto_Servizi_ingrosso!AO:AO,0,Acquisto_Servizi_ingrosso!K:K) -> 0 | D51: =+SUMIF(Acquisto_Servizi_ingrosso!AO:AO,0,Acquisto_Servizi_ingrosso!AB:AB) -> 0 | E51: =+D51*(1+TT_parametri!P10) -> 0 | F51: =+E51*(1+TT_parametri!P11) -> 0
B52: COws,water2015 con fattore moltiplicativo | G52: =+SUM(Acquisto_Servizi_ingrosso!AR:AR) -> 0 | H52: =+G52 -> 0
B53: COws,a | E53: =+C50+C51 -> 0 | F53: =+D50+D51 -> 0 | G53: =+G52+E51 -> 0 | H53: =+H52+F51 -> 0
A56: comma 24.1 All. A | B56: MT, AC - Mutui e Altri corrispettivi
C60: 2014 | D60: 2015 | E60: 2016 | F60: 2017 | G60: 2018 | H60: 2019
B61: MTa | E61: =+SUM('Corrispettivi Infrast Terzi'!AB:AB) -> 0 | F61: =+SUM('Corrispettivi Infrast Terzi'!AC:AC) -> 0 | G61: =+SUM('Corrispettivi Infrast Terzi'!AD:AD) -> 0 | H61: =+SUM('Corrispettivi Infrast Terzi'!AE:AE) -> 0
B62: ACa | E62: =+SUM('Corrispettivi Infrast Terzi'!W:W) -> 0 | F62: =+SUM('Corrispettivi Infrast Terzi'!X:X) -> 0 | G62: =+SUM('Corrispettivi Infrast Terzi'!Y:Y) -> 0 | H62: =+SUM('Corrispettivi Infrast Terzi'!Z:Z) -> 0
A65: art. 27 All. A | B65: Coaltri - Altri costi
C68: 2014 | D68: 2015 | E68: 2016 | F68: 2017 | G68: 2018 | H68: 2019
B69: COATOa | E69: =+E90 -> 0 | F69: =+F90 -> 0 | G69: =+G90 -> 0 | H69: =+H90 -> 0
B70: COAEEGa | E70: =+E101 -> 0 | F70: =+F101 -> 0 | G70: =+G101 -> 0 | H70: =+H101 -> 0
B71: COmora | E71: =+E113 -> 0 | F71: =+F113 -> 0 | G71: =+G113 -> 0 | H71: =+H113 -> 0
B72: COresa | E72: =+E120 -> 0 | F72: =+F120 -> 0 | G72: =+G120 -> 0 | H72: =+H120 -> 0
B73: COaltria | E73: =SUM(E69:E72) -> 0 | F73: =SUM(F69:F72) -> 0 | G73: =SUM(G69:G72) -> 0 | H73: =SUM(H69:H72) -> 0
A76: comma 27.2 All. A | B76: CoATO - Costi dell'ATO
B80: COmedio,2013ATO | C80: =+TT_parametri!$L$41 -> 1.01
B81: popATO di competenza del gestore | C81: =IF(Dati_Anni_precedenti!D53<>0,Dati_Anni_precedenti!D53,MAX(Dati_tecnici!E9,Dati_tecnici!E17,Dati_tecnici!E23)) -> 0
B82: COmedio,2013ATO * pop2013*z | C82: =+C80*C81*2 -> 0
C85: 2014 | D85: 2015 | E85: 2016 | F85: 2017 | G85: 2018 | H85: 2019
B86: COa-2ATO | C86: =+Dati_conto_econ!C68+Dati_conto_econ!F68 -> 0 | D86: =+Dati_conto_econ!I68+Dati_conto_econ!L68 -> 0 | E86: =+D86*(1+TT_parametri!$P$10) -> 0 | F86: =+E86*(1+TT_parametri!$P$11) -> 0
N87: SI | O87: Accoglimento Istanza per soggetto competente
B88: Produttoria(1+It) bloccata dal 2014 | E88: =(TT_parametri!V9) -> 1.026098874 | F88: =(TT_parametri!W10) -> 1.026098874 | G88: =(TT_parametri!X11) -> 1.026098874 | H88: =(TT_parametri!Y12) -> 1.026098874
B89: Produttoria(1+It) mobile di 2 anni | E89: =+TT_parametri!V8 -> 1.004994 | F89: =+TT_parametri!W8 -> 0.999 | G89: =+TT_parametri!X8 -> 1 | H89: =+TT_parametri!Y8 -> 1
B90: COATOa | E90: =MIN(C86*E89,$C$82*E88) -> 0 | F90: =MIN(D86*F89,$C$82*F88) -> 0 | G90: 0 | H90: 0
E92: =+MIN(C86*E89,$C$82*E88) -> 0 | F92: =+MIN(D86*F89,$C$82*F88) -> 0 | G92: 0 | H92: 0
A94: comma 27.4 All. A | B94: CoAEEG - Costi dell'Autorità per l'energia elettrica, il gas e il sistema idrico
C98: 2014 | D98: 2015 | E98: 2016 | F98: 2017 | G98: 2018 | H98: 2019
B99: Ricavia-2A1+A5 | C99: =+Dati_conto_econ!C5+Dati_conto_econ!C11 -> 0 | D99: =+Dati_conto_econ!I5+Dati_conto_econ!I11 -> 0 | E99: =D99*(1++TT_parametri!$P$10) -> 0 | F99: =+E99*(1++TT_parametri!$P$11) -> 0
B100: quota‰ | C100: =+TT_parametri!$S$41 -> 0.00025 | D100: =+TT_parametri!$S$41 -> 0.00025 | E100: =+TT_parametri!$S$41 -> 0.00025 | F100: =+TT_parametri!$S$41 -> 0.00025
B101: COaAEEG | E101: =+C99*C100 -> 0 | F101: =+D99*D100 -> 0 | G101: 0 | H101: 0
A103: art. 30 All. A | B103: Comor - Costi della morosità
C107: 2014 | D107: 2015 | E107: 2016 | F107: 2017 | G107: 2018 | H107: 2019 | K107: +IVA 10% | L107: =1+0.1 -> 1.1
B108: fatturatoa-2 | C108: =+(SUM(Dati_conto_econ!C14:'Dati_conto_econ'!C21)+VRG_Teta!E130)*$L$107 -> 0 | D108: =+(SUM(Dati_conto_econ!I14:'Dati_conto_econ'!I21)+VRG_Teta!F130)*$L$107 -> 0 | E108: =+D108*(1+TT_parametri!$P$10) -> 0 | F108: =+E108*(1+TT_parametri!$P$11) -> 0 | K108: Area Geogr | L108: =+IF(ISNA(VLOOKUP(VALUE(idato),TT_Comuni_ATO!M2:O98,3,FALSE)),IF(ISNA(VLOOKUP(VALUE(idato),TT_Comuni_ATO!N2:O98,2,FALSE)),0,VLOOKUP(VALUE(idato),TT_Comuni_ATO!N2:O98,2,FALSE)),VLOOKUP(VALUE(idato),TT_Comuni_ATO!M2:O98,3,FALSE)) -> 0
B109: Unpaid Ratio [UR] reale | C109: ='Altri dati economico_finanziari'!E30 -> 0 | D109: ='Altri dati economico_finanziari'!F30 -> 0 | E109: =D109 -> 0 | F109: =D109 -> 0
B110: Unpaid Ratio [UR] art. 30 all. A | C110: =IF(ISNA(VLOOKUP(L108,TT_parametri!$K$46:$L$48,2,FALSE)),0,VLOOKUP(L108,TT_parametri!$K$46:$L$48,2,FALSE)) -> 0 | D110: =+$C$110 -> 0 | E110: =+$C$110 -> 0 | F110: =+$C$110 -> 0
B111: Unpaid Ratio [UR] indicato | C111: =+IF(Input_per_calcoli_finali!I68="","",Input_per_calcoli_finali!I68) ->  | D111: =+IF(Input_per_calcoli_finali!I68="","",Input_per_calcoli_finali!I68) ->  | E111: =+IF(Input_per_calcoli_finali!I68="","",Input_per_calcoli_finali!I68) ->  | F111: =+IF(Input_per_calcoli_finali!I68="","",Input_per_calcoli_finali!I68) -> 
B113: COamor | E113: =MAX(C108*IF(C111="",C110,MIN(C111,C110))-'Altri dati economico_finanziari'!E31,0) -> 0 | F113: =MAX(D108*IF(D111="",D110,MIN(D111,D110))-'Altri dati economico_finanziari'!F31,0) -> 0 | G113: =MAX(E108*IF(E111="",E110,MIN(E111,E110))-'Altri dati economico_finanziari'!G31,0) -> 0 | H113: =MAX(F108*IF(F111="",F110,MIN(F111,F110))-'Altri dati economico_finanziari'!H31,0) -> 0
E115: =MAX(C108*IF(C111="",C110,MIN(C111,C110))-'Altri dati economico_finanziari'!E31,0) -> 0 | F115: =MAX(D108*IF(D111="",D110,MIN(D111,D110))-'Altri dati economico_finanziari'!F31,0) -> 0 | G115: =MAX(E108*IF(E111="",E110,MIN(E111,E110))-'Altri dati economico_finanziari'!G31,0) -> 0 | H115: =MAX(F108*IF(F111="",F110,MIN(F111,F110))-'Altri dati economico_finanziari'!H31,0) -> 0
C117: 2014 | D117: 2015 | E117: 2016 | F117: 2017 | G117: 2018 | H117: 2019
B118: Oneri locali (esclusi ERC) | C118: =+SUM(Dati_conto_econ!E80:F85) -> 0 | D118: =SUM(Dati_conto_econ!K80:L85) -> 0 | E118: =+D118*(1+TT_parametri!$P$10) -> 0 | F118: =+E118*(1+TT_parametri!$P$11) -> 0
B119: contrib in c/e | C119: =+Dati_conto_econ!C38+Dati_conto_econ!F38 -> 0 | D119: =+Dati_conto_econ!I38+Dati_conto_econ!L38 -> 0 | E119: =+D119*(1+TT_parametri!$P$10) -> 0 | F119: =+E119*(1+TT_parametri!$P$11) -> 0
A120: ** | B120: COares | E120: =+C118-C119 -> 0 | F120: =+D118-D119 -> 0 | G120: 0 | H120: 0
A123: comma 23.4 All. A | B123: OpexaQC - Costi aggiuntivi adeguamenti standard qualità Carta Servizi
C128: 2014 | D128: 2015 | E128: 2016 | F128: 2017 | G128: 2018 | H128: 2019
B129: OpexaQC | E129: =+Input_per_calcoli_finali!I36 -> 0 | F129: =+Input_per_calcoli_finali!J36 -> 0 | G129: =+Input_per_calcoli_finali!K36 -> 0 | H129: =+Input_per_calcoli_finali!L36 -> 0 | J129: Accoglimento Istanza | L129: SI
B130: OpexaQC (post valutazione istanza) | E130: =+IF($L$129="no",0,E129) -> 0 | F130: =+IF($L$129="no",0,F129) -> 0 | G130: =+IF($L$129="no",0,G129) -> 0 | H130: =+IF($L$129="no",0,H129) -> 0
A132: comma 23.5 All. A | B132: Opnew,a - costi per schemi III, VI
C136: 2014 | D136: 2015 | E136: 2016 | F136: 2017 | G136: 2018 | H136: 2019
B137: Opexnew,a | E137: =+Input_per_calcoli_finali!I29 -> 0 | F137: =+Input_per_calcoli_finali!J29 -> 0 | G137: =+Input_per_calcoli_finali!K29 -> 0 | H137: =+Input_per_calcoli_finali!L29 -> 0 | J137: Accoglimento Istanza | L137: SI
B138: Opexnew,a (post valutazione istanza) | E138: =+IF($L$137="no",0,IF(OR(Quad="Schema III",Quad="Schema VI"),E137,0)) -> 0 | F138: =+IF($L$137="no",0,IF(OR(Quad="Schema III",Quad="Schema VI"),F137,0)) -> 0 | G138: =+IF($L$137="no",0,IF(OR(Quad="Schema III",Quad="Schema VI"),G137,0)) -> 0 | H138: =+IF($L$137="no",0,IF(OR(Quad="Schema III",Quad="Schema VI"),H137,0)) -> 0

Sheet ERC
A2: art. 28 All. A | B2: ERC - Costi ambientali e della risorsa
B4: Sviluppo della componente ERC
C6: 2014 | D6: 2015 | E6: 2016 | F6: 2017 | G6: 2018 | H6: 2019
B7: ERCa | E7: =+E21+E37 -> 0 | F7: =+F21+F37 -> 0 | G7: =+G21+G37 -> 0 | H7: =+H21+H37 -> 0
A11: art. 28 All. A | B11: ERCal - ERC aggiornabili
C15: 2014 | D15: 2015 | E15: 2016 | F15: 2017 | G15: 2018 | H15: 2019
B16: Canoni di derivaz/sottens idrica (quota ERC) | C16: =+Dati_conto_econ!D80 -> 0 | D16: =+Dati_conto_econ!J80 -> 0 | E16: =+D16*(1+TT_parametri!$P$10) -> 0 | F16: =+E16*(1+TT_parametri!$P$11) -> 0
B17: contributi per consorzi di bonifica | C17: =+Dati_conto_econ!D81 -> 0 | D17: =+Dati_conto_econ!J81 -> 0 | E17: =+D17*(1+TT_parametri!$P$10) -> 0 | F17: =+E17*(1+TT_parametri!$P$11) -> 0
B18: Comunità Montane (quota ERC) | C18: =Dati_conto_econ!D82 -> 0 | D18: =Dati_conto_econ!J82 -> 0 | E18: =+D18*(1+TT_parametri!$P$10) -> 0 | F18: =+E18*(1+TT_parametri!$P$11) -> 0
B19: canoni per restituzione acque | C19: =Dati_conto_econ!D83 -> 0 | D19: =Dati_conto_econ!J83 -> 0 | E19: =+D19*(1+TT_parametri!$P$10) -> 0 | F19: =+E19*(1+TT_parametri!$P$11) -> 0
B20: oneri per la gestione di aree di salvaguardia | C20: =Dati_conto_econ!D84 -> 0 | D20: =Dati_conto_econ!J84 -> 0 | E20: =+D20*(1+TT_parametri!$P$10) -> 0 | F20: =+E20*(1+TT_parametri!$P$11) -> 0
B21: ERCaal | E21: =+SUM(C16:C20) -> 0 | F21: =+SUM(D16:D20) -> 0 | G21: =+SUM(E16:E20) -> 0 | H21: =+SUM(F16:F20) -> 0
A25: art. 28 All. A | B25: ERCend - ERC endogeni
C29: 2014 | D29: 2015 | E29: 2016 | F29: 2017 | G29: 2018 | H29: 2019
B30: B6) Per materie prime, sussidiarie, di consumo e merci | C30: =+Dati_conto_econ!D43 -> 0 | D30: =+Dati_conto_econ!J43 -> 0 | E30: =+D30*(1+TT_parametri!$P$10) -> 0 | F30: =+E30*(1+TT_parametri!$P$11) -> 0
B31: B7) Altri servizi da altre imprese del gruppo | C31: =+Dati_conto_econ!D47 -> 0 | D31: =+Dati_conto_econ!J47 -> 0 | E31: =+D31*(1+TT_parametri!$P$10) -> 0 | F31: =+E31*(1+TT_parametri!$P$11) -> 0
B32: B7) Altri servizi da altre imprese | C32: =+Dati_conto_econ!D48 -> 0 | D32: =+Dati_conto_econ!J48 -> 0 | E32: =+D32*(1+TT_parametri!$P$10) -> 0 | F32: =+E32*(1+TT_parametri!$P$11) -> 0
B33: B8) Per godimento beni di terzi | C33: =+Dati_conto_econ!D49 -> 0 | D33: =+Dati_conto_econ!J49 -> 0 | E33: =+D33*(1+TT_parametri!$P$10) -> 0 | F33: =+E33*(1+TT_parametri!$P$11) -> 0
B34: B9) Per il personale | C34: =+Dati_conto_econ!D52 -> 0 | D34: =+Dati_conto_econ!J52 -> 0 | E34: =+D34*(1+TT_parametri!$P$10) -> 0 | F34: =+E34*(1+TT_parametri!$P$11) -> 0
B35: B14) Oneri diversi di gestione | C35: =+Dati_conto_econ!D57-SUM(C16:C20) -> 0 | D35: =+Dati_conto_econ!J57-SUM(D16:D20) -> 0 | E35: =+D35*(1+TT_parametri!$P$10) -> 0 | F35: =+E35*(1+TT_parametri!$P$11) -> 0
B36: ∏(1+It) | E36: =TT_parametri!V8 -> 1.004994 | F36: =TT_parametri!W8 -> 0.999 | G36: =TT_parametri!X8 -> 1 | H36: =TT_parametri!Y8 -> 1
B37: ERCaend | E37: =+SUM(C30:C35)*E36 -> 0 | F37: =+SUM(D30:D35)*F36 -> 0 | G37: =+SUM(E30:E35)*G36 -> 0 | H37: =+SUM(F30:F35)*H36 -> 0

Sheet Rc
A2: art. 29 All. A MTI2 | B2: Rc tot - componenti a conguaglio
B4: Sviluppo della componente Rc
C6: 2014 | D6: 2015 | E6: 2016 | F6: 2017 | G6: 2018 | H6: 2019
B7: RcTOTa calcolato (pre inflazione) | E7: =E30+E50+E70+E82+E91 -> 0 | F7: =F30+F50+F70+F82+F91 -> 0 | G7: =G30+G50+G70+G82+G91 -> 0 | H7: =H30+H50+H70+H82+H91 -> 0
B8: RcTOTa calcolato (inflazionati) | E8: =+E7*(TT_parametri!V8) -> 0 | F8: =+F7*(TT_parametri!W8) -> 0 | G8: =+G7*(TT_parametri!X8) -> 0 | H8: =+H7*TT_parametri!Y8 -> 0
B9: RcTOTa da input per calcoli finali | E9: =++Input_per_calcoli_finali!I108 -> 0 | F9: =++Input_per_calcoli_finali!J108 -> 0 | G9: =++Input_per_calcoli_finali!K108 -> 0 | H9: =++Input_per_calcoli_finali!L108 -> 0
B10: RcTOTa | E10: =+E9 -> 0 | F10: =+F9 -> 0 | G10: 0 | H10: 0
A15: comma 29.1 All.A MTI2 | B15: RC vol
A18: per a=2016,2017
A21: per a=2018,2019
C24: 2014 | D24: 2015 | E24: 2016 | F24: 2017 | G24: 2018 | H24: 2019 | K24: minuendo | M24: sottraendo
B25: Ja-2 o Jmedioa-2 (solo per il 2014,2015) | C25: =IF(Dati_Anni_precedenti!D6>0,Dati_Anni_precedenti!D6,Dati_Anni_precedenti!D5) -> 0 | D25: =IF(Dati_Anni_precedenti!E6>0,Dati_Anni_precedenti!E6,Dati_Anni_precedenti!E5) -> 0 | E25: =VRG_Teta!E53 -> 0 | F25: =VRG_Teta!F53 -> 0 | J25: a = 2016 | K25: J2014*tar2012*vscal2012 | L25: - | M25: tar2014*vscal2014
B26: tar*vscala-4 (include dettaglio+ingrosso) | E26: =Dati_Anni_precedenti!D15 -> 0 | F26: =Dati_Anni_precedenti!E15 -> 0 | J26: a = 2017 | K26: J2015*tar2012*vscal2013 | L26: - | M26: tar2015*vscal2015
B27: minuendo | E27: =C25*E26 -> 0 | F27: =D25*F26 -> 0 | J27: a = 2018 | K27: J2016*tar2015*vscal2014 | L27: - | M27: tar2016*vscal2016
B28: sottraendo (tara-2*vscala-2) (include dettaglio+ingrosso) | E28: =SUM(Ricavi_ambiti_tariffari!M:M)+SUM(Vendita_Servizi_ingrosso!AC:AC) -> 0 | F28: =SUM(Ricavi_ambiti_tariffari!O:O)+SUM(Vendita_Servizi_ingrosso!AE:AE) -> 0 | J28: a = 2019 | K28: J2017*tar2015*vscal2015 | L28: - | M28: tar2017*vscal2017
B29: Ja-2 ipotizzato | E29: =+MIN(VRG_Teta!E53,VRG_Teta!E56) -> 0 | F29: =+MIN(VRG_Teta!F53,VRG_Teta!F56) -> 0
B30: Rcvola | E30: =IF(E33="manca il dato di input",0,E27-E28) -> 0 | F30: =IF(F33="manca il dato di input",0,F27-F28) -> 0 | G30: 0 | H30: 0
B33: controllo dati anni precedenti | E33: =+IF(Dati_Anni_precedenti!D15="","manca il dato di input", "ok") -> manca il dato di input | F33: =+IF(Dati_Anni_precedenti!E15="","manca il dato di input", "ok") -> manca il dato di input
A35: comma 29.1 All.A MTI2 | B35: Calcolo Rc EE
C43: 2014 | D43: 2015 | E43: 2016 | F43: 2017 | G43: 2018 | H43: 2019
B44: COeff,a-2EE | C44: =+SUM(Dati_conto_econ!C45:C46,Dati_conto_econ!F45:F46) -> 0 | D44: =+SUM(Dati_conto_econ!I45:I46,Dati_conto_econ!L45:L46) -> 0 | E44: =+D44*(1+TT_parametri!P10) -> 0 | F44: =E44*(1+TT_parametri!P11) -> 0
B45: COmedio,a-2EE | C45: =TT_parametri!$L$32 -> 0.1674 | D45: =TT_parametri!$L$33 -> 0.1674 | E45: =TT_parametri!$L$34 -> 0.1674 | F45: =TT_parametri!$L$35 -> 0.1674
B46: kWh a-2 | C46: =Dati_tecnici!E3 -> 0 | D46: =Dati_tecnici!F3 -> 0 | E46: =+D46 -> 0 | F46: =+E46 -> 0
B47: COmedio,a-2EE * kWha-2*1,1 | C47: =+C45*C46*1.1 -> 0 | D47: =+D45*D46*1.1 -> 0 | E47: =+E45*E46*1.1 -> 0 | F47: =+F45*F46*1.1 -> 0
B48: minimo | C48: =+MIN(C44,C47) -> 0 | D48: =+MIN(D44,D47) -> 0 | E48: =+MIN(E44,E47) -> 0 | F48: =+MIN(F44,F47) -> 0
B49: COEEa-2 | C49: =Dati_Anni_precedenti!D33 -> 0 | D49: =Dati_Anni_precedenti!E33 -> 0 | E49: =Opex!E42 -> 0 | F49: =Opex!F42 -> 0
B50: RcEEa | E50: =IF(E53="manca il dato di input",0,C48-C49) -> 0 | F50: =IF(F53="manca il dato di input",0,D48-D49) -> 0 | G50: =E48-E49 -> 0 | H50: =F48-F49 -> 0
B53: controllo dati anni precedenti | E53: =+IF(Dati_Anni_precedenti!D33="","manca il dato di input", "ok") -> manca il dato di input | F53: =+IF(Dati_Anni_precedenti!E33="","manca il dato di input", "ok") -> manca il dato di input
A55: comma 29.1 All.A MTI2 | B55: Calcolo Rc ws
A57: per a=2016,2017
A60: per a=2018,2019
C64: 2014 | D64: 2015 | E64: 2016 | F64: 2017 | G64: 2018 | H64: 2019
B65: COwatereff,a-2 | C65: =+SUMIF(Acquisto_Servizi_ingrosso!AO:AO,1,Acquisto_Servizi_ingrosso!V:V) -> 0 | D65: =+SUMIF(Acquisto_Servizi_ingrosso!AO:AO,1,Acquisto_Servizi_ingrosso!AM:AM) -> 0
B66: COwatera-2
B67: COothereff,a-2 | C67: =+SUMIF(Acquisto_Servizi_ingrosso!AO:AO,0,Acquisto_Servizi_ingrosso!V:V) -> 0 | D67: =+SUMIF(Acquisto_Servizi_ingrosso!AO:AO,0,Acquisto_Servizi_ingrosso!AM:AM) -> 0 | E67: =+D67*(1+TT_parametri!$P$10) -> 0 | F67: =+E67*(1+TT_parametri!$P$11) -> 0
B68: COothera-2 | E68: =+Opex!C51 -> 0 | F68: =+Opex!D51 -> 0
B69: COwatera-2 + COothera-2 | C69: =+Dati_Anni_precedenti!D34 -> 0 | D69: =+Dati_Anni_precedenti!E34 -> 0
B70: Rcwsa | E70: =IF(E73="manca il dato di input",0,+C65+C67-C69) -> 0 | F70: =IF(F73="manca il dato di input",0,+D65+D67-D69) -> 0 | G70: =E67-E68 -> 0 | H70: =F67-F68 -> 0
B73: controllo dati anni precedenti | E73: =+IF(Dati_Anni_precedenti!D34="","manca il dato di input", "ok") -> manca il dato di input | F73: =+IF(Dati_Anni_precedenti!E34="","manca il dato di input", "ok") -> manca il dato di input
A75: comma 29.1 All.A MTI2 | B75: Calcolo Rc ERC
C79: 2014 | D79: 2015 | E79: 2016 | F79: 2017 | G79: 2018 | H79: 2019
B80: ERCala-2 effettivo | C80: 0 | D80: 0 | E80: =+SUM(Dati_conto_econ!J80:J85)*(1+TT_parametri!P10) -> 0 | F80: =+E80*(1+TT_parametri!P11) -> 0
B81: ERCala-2 | C81: 0 | D81: 0 | E81: =+ERC!E21 -> 0 | F81: =+ERC!F21 -> 0
B82: RcERCa | E82: =+C80-C81 -> 0 | F82: =+D80-D81 -> 0 | G82: =+E80-E81 -> 0 | H82: =+F80-F81 -> 0
A86: comma 29.1 All.A MTI2 | B86: Calcolo Rc ALTRO
C90: 2014 | D90: 2015 | E90: 2016 | F90: 2017 | G90: 2018 | H90: 2019
B91: RcaAltro | E91: =+E103+E115+E127+E142+E152+E168 -> 0 | F91: =+F103+F115+F127+F142+F152+F168 -> 0 | G91: =+G103+G115+G127+G142+G152+G168 -> 0 | H91: 0
B95: Margine Attività b
C99: 2014 | D99: 2015 | E99: 2016 | F99: 2017 | G99: 2018 | H99: 2019
B100: %b | C100: 0.5
B101: Rba-2 | C101: =+VRG_Teta!C95 -> 0 | D101: =+VRG_Teta!D95 -> 0 | E101: =+VRG_Teta!E95 -> 0 | F101: =+VRG_Teta!F95 -> 0
B102: Cba-2 | C102: =+VRG_Teta!C118 -> 0 | D102: =+VRG_Teta!D118 -> 0 | E102: =+VRG_Teta!E118 -> 0 | F102: =+VRG_Teta!F118 -> 0
B103: RcaAttiv b | E103: =+IF(C101>C102,$C$100*(C101-C102),0) -> 0 | F103: =+IF(D101>D102,$C$100*(D101-D102),0) -> 0 | G103: =+IF(E101>E102,$C$100*(E101-E102),0) -> 0 | H103: =+IF(F101>F102,$C$100*(F101-F102),0) -> 0
B107: Co residuali
C111: 2014 | D111: 2015 | E111: 2016 | F111: 2017 | G111: 2018 | H111: 2019
B112: Oneri locali | C112: =+SUM(Dati_conto_econ!C80:C85)+SUM(Dati_conto_econ!F80:F85) -> 0 | D112: =SUM(Dati_conto_econ!I80:I85)+SUM(Dati_conto_econ!L80:L85) -> 0 | E112: =+SUM(Dati_conto_econ!K80:L85)*(1+TT_parametri!P10) -> 0 | F112: =+E112*((1+TT_parametri!P11)) -> 0
B113: contrib in c/e | C113: =+Dati_conto_econ!C38+Dati_conto_econ!F38 -> 0 | D113: =+Dati_conto_econ!I38+Dati_conto_econ!L38 -> 0 | E113: =+D113*(1+TT_parametri!P10) -> 0 | F113: =+E113*(1+TT_parametri!P11) -> 0
B114: COres | C114: =+Dati_Anni_precedenti!D32 -> 0 | D114: =+Dati_Anni_precedenti!E32 -> 0 | E114: =+Opex!E120 -> 0 | F114: =+Opex!F120 -> 0
B115: Rcares | E115: =+IF(E118="manca il dato di input",0,C112-C113-C114) -> 0 | F115: =+IF(F118="manca il dato di input",0,D112-D113-D114) -> 0 | G115: =+E112-E113-E114 -> 0 | H115: =+F112-F113-F114 -> 0
B118: controllo dati anni precedenti | E118: =+IF(Dati_Anni_precedenti!D32="","manca il dato di input", "ok") -> manca il dato di input | F118: =+IF(Dati_Anni_precedenti!E32="","manca il dato di input", "ok") -> manca il dato di input
B120: Contributo AEEGSI
C124: 2014 | D124: 2015 | E124: 2016 | F124: 2017 | G124: 2018 | H124: 2019
B125: COa-2AEEG,effettivo | C125: =+'Altri dati economico_finanziari'!E45 -> 0 | D125: =+'Altri dati economico_finanziari'!F45 -> 0 | E125: =+D125*(1+TT_parametri!P10) -> 0 | F125: =+E125*(1+TT_parametri!P11) -> 0
B126: COa-2AEEGSI | C126: =+Dati_Anni_precedenti!D30 -> 0 | D126: =+Dati_Anni_precedenti!E30 -> 0 | E126: =+Opex!E101 -> 0 | F126: =+Opex!F101 -> 0
B127: RcaAEEGSI | E127: =+IF(E130="manca il dato di input",0,C125-C126) -> 0 | F127: =+IF(F130="manca il dato di input",0,D125-D126) -> 0 | G127: =+E125-E126 -> 0 | H127: =+F125-F126 -> 0
B130: controllo dati anni precedenti | E130: =+IF(Dati_Anni_precedenti!D30="","manca il dato di input", "ok") -> manca il dato di input | F130: =+IF(Dati_Anni_precedenti!E30="","manca il dato di input", "ok") -> manca il dato di input
B132: altri conguagli
C136: 2014 | D136: 2015 | E136: 2016 | F136: 2017 | G136: 2018 | H136: 2019 | J136: Voce | K136: RcIP2013 | L136: Voce | M136: RcIP2013
B137: Costi per variazioni sistemiche/ eventi eccezionali | C137: =+'Altri dati economico_finanziari'!E46 -> 0 | D137: =+'Altri dati economico_finanziari'!F46 -> 0 | J137: IMNIP2013 | K137: =+SUM(conferma_investimenti_mti!X:X) -> 0 | L137: AMMIP2013 | M137: =+SUM(conferma_investimenti_mti!V:V) -> 0
B138: Costo forniture all’ingrosso transfrontaliere | C138: =+'Altri dati economico_finanziari'!E48 -> 0 | D138: =+'Altri dati economico_finanziari'!F48 -> 0 | E138: =+D138*(1+TT_parametri!P10) -> 0 | F138: =+E138*(1+TT_parametri!P11) -> 0 | J138: CINfp | K138: =+SUM(conferma_investimenti_mti!Y:Y) -> 0 | L138: OF (senza time lag) | M138: =(K140+K141)*(1-K139)*K137 -> 0
B139: RcIP (valori a moneta a-2) | D139: =($M$140)+Input_per_calcoli_finali!I99 -> 0 | J139: CINfp / CIN | K139: =IF(ISERROR(K138/K137),0,(K138/K137)) -> 0 | L139: OFisc | M139: =0.275*K142 -> 0
B140: Rimb335a | C140: =+'Altri dati economico_finanziari'!E49 -> 0 | D140: =+'Altri dati economico_finanziari'!F49 -> 0 | J140: Km da MTI | K140: 0.02608866995 | L140: RcIP2013 a moneta del 2015 | M140: =+M137+M138+M139 -> 0
B141: Rcaappr (riportato a moneta a-2) | C141: =+IF(Dati_Anni_precedenti!$C$7<>0,Input_per_calcoli_finali!I82,0) -> 0 | D141: =+IF(Dati_Anni_precedenti!$C$7<>0,Input_per_calcoli_finali!J82,0) -> 0 | E141: =+IF(Dati_Anni_precedenti!$C$7<>0,Input_per_calcoli_finali!K82,0) -> 0 | F141: =+IF(Dati_Anni_precedenti!$C$7<>0,Input_per_calcoli_finali!L82,0) -> 0 | J141: α da MTI | K141: 0.0157635468
B142: Totale | E142: =+C137+C138+C140+C141 -> 0 | F142: =+D137+D138+D140+D141+D139 -> 0 | G142: =+E138+E141 -> 0 | H142: =+F138+F141 -> 0 | J142: Rai | K142: =((1+((K140+K141+1)*(1+0.015)-1)/(1-0.317))/(1+0.015)-1)*(1-K139)*K137 -> 0
B145: recupero DRCvol2015
C149: 2014 | D149: 2015 | E149: 2016 | F149: 2017 | G149: 2018 | H149: 2019
B150: minuendo | D150: =+'storico articolazione QV'!E9+'storico articolazione QF'!E9 -> 0
B151: sottraendo | D151: =+'storico articolazione QV'!E10 -> 0
B152: DRCvol2015 | F152: =+IF(AND('storico articolazione QV'!E6="si",'storico articolazione QV'!E7="no"),'Rc'!D150-'Rc'!D151,0) -> 0
B155: controllo dati anni precedenti | F155: =+IF(AND(D150=0,D151=0),"OK",IF(OR(D150=0,D151=0),"manca il dato di input", "ok")) -> OK
B157: recupero DRCee2015
C161: 2014 | D161: 2015 | E161: 2016 | F161: 2017 | G161: 2018 | H161: 2019
B162: Coee,consuntivo 2013 | D162: =+Dati_tecnici!G4 -> 0 | J162: anno | K162: costo medio EE per calcolo COEE | L162: u.d.m.
B163: Kwhconsuntivo 2013 | D163: =+Dati_tecnici!G3 -> 0 | J163: det 3/2014 | K163: =+TT_parametri!L30 -> 0.15164 | L163: =+TT_parametri!M30 -> €/KWh
B164: minuendo | D164: =+MIN(D162,D163*K164*1.1) -> 0 | J164: =+TT_parametri!K31 -> 2013 | K164: =+TT_parametri!L31 -> 0.15164 | L164: =+TT_parametri!M31 -> €/KWh
B165: Coee,preconsuntivo 2013 | D165: =+SUM(Dati_Anni_precedenti!D54:D57) -> 0
B166: Kwhpreconsuntivo 2013 | D166: =+Dati_Anni_precedenti!D58 -> 0
B167: sottraendo | D167: =+MIN(D165,D166*K163*1.1) -> 0
B168: DRCee2015 | F168: =+D164-D167 -> 0
B171: controllo dati anni precedenti | F171: =+IF(AND(D164=0,D167=0),"OK",IF(OR(D164=0,D167=0),"manca il dato di input", "ok")) -> OK
A173: art. 37 All.A MTI2 | B173: premi/penali qualità
C177: 2014 | D177: 2015 | E177: 2016 | F177: 2017 | G177: 2018 | H177: 2019
B178: RC premi | E178: =+Input_per_calcoli_finali!I74 -> 0 | F178: =+Input_per_calcoli_finali!J74 -> 0 | G178: =+Input_per_calcoli_finali!K74 -> 0 | H178: =+Input_per_calcoli_finali!L74 -> 0
B179: Rc penali | E179: =+Input_per_calcoli_finali!I75 -> 0 | F179: =+Input_per_calcoli_finali!J75 -> 0 | G179: =+Input_per_calcoli_finali!K75 -> 0 | H179: =+Input_per_calcoli_finali!L75 -> 0
B180: RcaDQ | E180: =+E178-E179 -> 0 | F180: =+F178-F179 -> 0 | G180: 0 | H180: 0

Sheet VRG_gest_incomplete
A2: art. 10 All. A MTI - 2 | D2: Schema regolatorio virtuale - calcolo del VRGgest_incomplete
E4: 2016 | F4: 2017 | G4: 2018 | H4: 2019
D6: numero delle gestioni per le quali non si dispone di un corredo informativo completo | E6: =+COUNTA(Dati_exGestioni_incomplete!C:C)-2 -> 0 | F6: =+COUNTA(Dati_exGestioni_incomplete!C:C)-2 -> 0 | G6: =+COUNTA(Dati_exGestioni_incomplete!C:C)-2 -> 0 | H6: =+COUNTA(Dati_exGestioni_incomplete!C:C)-2 -> 0
D7: popolazione residente precedentemente servita dai predetti gestori | E7: =+SUM(Dati_exGestioni_incomplete!D:D) -> 0 | F7: =+SUM(Dati_exGestioni_incomplete!D:D) -> 0 | G7: =+SUM(Dati_exGestioni_incomplete!D:D) -> 0 | H7: =+SUM(Dati_exGestioni_incomplete!D:D) -> 0
D9: ricavi tariffari da vendita al dettaglio delle gestioni incomplete | E9: =++IF(E19="schema virtuale",SUM(Dati_exGestioni_incomplete!N:N),0) -> 0 | F9: =++IF(F19="schema virtuale",SUM(Dati_exGestioni_incomplete!O:O),0) -> 0 | G9: =++IF(G19="schema virtuale",SUM(Dati_exGestioni_incomplete!O:O),0) -> 0 | H9: =++IF(H19="schema virtuale",SUM(Dati_exGestioni_incomplete!O:O),0) -> 0
D10: OPM (€/abitante) | E10: =+OPM -> 109 | F10: =+OPM -> 109 | G10: =+OPM -> 109 | H10: =+OPM -> 109
C13: Opex | D13: Opexvirt - costi operativi in tariffa | E13: =+IF(E19="schema virtuale",SUM(Dati_exGestioni_incomplete!K:K),0) -> 0 | F13: =+IF(F19="schema virtuale",SUM(Dati_exGestioni_incomplete!K:K),0) -> 0 | G13: =+IF(G19="schema virtuale",SUM(Dati_exGestioni_incomplete!K:K),0) -> 0 | H13: =+IF(H19="schema virtuale",SUM(Dati_exGestioni_incomplete!K:K),0) -> 0 | J13: tiene conto della domanda di controllo
C15: Capex | D15: Capexvirt - costi di capitale in tariffa | E15: =+IF(E19="schema virtuale",SUM(Dati_exGestioni_incomplete!L:L),0) -> 0 | F15: =+IF(F19="schema virtuale",SUM(Dati_exGestioni_incomplete!L:L),0) -> 0 | G15: =+IF(G19="schema virtuale",SUM(Dati_exGestioni_incomplete!L:L),0) -> 0 | H15: =+IF(H19="schema virtuale",SUM(Dati_exGestioni_incomplete!L:L),0) -> 0 | J15: tiene conto della domanda di controllo
D17: VRGvirt | E17: =+E15+E13 -> 0 | F17: =+F15+F13 -> 0 | G17: 0 | H17: 0
D19: info predisposizione tariffaria | E19: =+mti_2 ->  | F19: =+mti_2 ->  | G19: =+mti_2 ->  | H19: =+mti_2 -> 

Sheet Input_per_calcoli_finali
M1: =+M55 -> 
F3: Compilare - secondo l'ordine proposto - tutti i campi. Utilizzare lo zero, quando è richiesto di "compilare tutti i campi", in luogo della cella vuota
G5: Area dati anni precedenti | I5: Area di input per i soggetti competenti | M5: Area controlli / note
G6: 2014 | H6: 2015 | I6: 2016 | J6: 2017 | K6: 2018 | L6: 2019
I8: Sezione "verifica cause di esclusione dall'aggiornamento tariffario"
F9: Adempimenti sblocca italia | G9: Compilare il campo --> | M9: =+IF(I9="","<-- Iniziare da qui la compilazione",IF(OR(I9="conforme",I9="non conforme"),"OK, continuare la compilazione","Compilare correttamente il campo")) -> <-- Iniziare da qui la compilazione
F10: Tipo affidamento | G10: Assicurarsi di aver correttamente fornito tali informazioni nel foglio dati tecnici | I10: =+IF(AND(Dati_tecnici!E29<>"",LEFT(M9,2)="OK"),Dati_tecnici!E29,"") ->  | M10: =++IF(LEFT(M9,2)="OK",+IF(OR(I10="Affidamento del SII",I10="Aziende speciali, gestioni in economia",I10="Gestioni in economia comuni montani autorizzati da AATO",I10="Gestioni salvaguardate",I10="Gestioni tutelate, concessioni esistenti"),"OK, continuare la compilazione","Compilare il campo"),"") -> 
F11: Data inizio affidamento | I11: =+IF(OR(I10="",Dati_tecnici!E30=""),"",Dati_tecnici!E30) ->  | M11: =++IF(AND(LEFT(M10,2)="OK",I10="Affidamento del SII"),+IF(LEN(I11)=5,"OK, continuare la compilazione","Compilare correttamente il campo. Formato data: gg/mm/aaaa"),IF(I10="","","OK, compilare o continuare la compilazione (formato gg/mm/aaaa)")) -> 
F12: Data fine affidamento | I12: =+IF(OR(Dati_tecnici!E31="",I11=""),"",Dati_tecnici!E31) ->  | M12: =++IF(AND(LEFT(M11,2)="OK",I10="Affidamento del SII"),+IF(LEN(I12)=5,"OK, continuare la compilazione","Compilare correttamente il campo. Formato data: gg/mm/aaaa"),IF(AND(LEFT(M11,2)="OK",I10="Affidamento del SII",I12=""),"Compilare il campo",IF(LEFT(M11,2)="OK","OK, compilare o continuare la compilazione (formato gg/mm/aaaa)",""))) -> 
F13: Presenza Carta dei servizi | I13: =+IF(OR(Dati_tecnici!E32="",I12=""),"",Dati_tecnici!E32) ->  | M13: =++IF(LEFT(M10,2)="OK",+IF(OR(I13="SI",I13="NO"),"OK, continuare la compilazione","Compilare correttamente il campo"),"") -> 
F14: Presenza di un consumo minimo impegnato per la fatturazione delle utenze domestiche | I14: =+IF(OR(Dati_tecnici!E33="",I13=""),"",Dati_tecnici!E33) ->  | M14: =++IF(LEFT(M13,2)="OK",+IF(OR(I14="SI",I14="NO"),"OK, continuare la compilazione","Compilare correttamente il campo"),"") -> 
F15: Adempimento obblighi di verifica qualità dell'acqua comma 10.6 delibera 664/2015 | I15: =+IF(OR(Dati_tecnici!E34="",I14=""),"",Dati_tecnici!E34) ->  | M15: =++IF(LEFT(M14,2)="OK",+IF(OR(I15="conforme",I15="non conforme"),"OK, continuare la compilazione","Compilare correttamente il campo"),"") -> 
F16: Versamento delle componenti perequative a CSEA - comma 10.7 delibera 664/2015 | I16: =+IF(OR(Dati_tecnici!E35="",I15=""),"",Dati_tecnici!E35) ->  | M16: =++IF(LEFT(M15,2)="OK",+IF(OR(I16="SI",I16="NO"),"OK, continuare la compilazione","Compilare correttamente il campo"),"") -> 
I19: Sezione "Interventi sullo schema regolatorio"
G21: 2014 | H21: 2015 | I21: 2016 | J21: 2017 | K21: 2018 | L21: 2019
F22: Richiesta di perequazione | G22: non compilabile | I22: NO | M22: =++IF(LEFT(M16,2)="OK",+IF(OR(I22="SI",I22="NO"),"OK, continuare la compilazione","Compilare correttamente il campo"),"") ->  | P22: Tipo di integrazione | Q22: id | T22: Presenza variazioni | U22: id | W22: id | X22: raccordo integrazioni e variazioni
F23: Integrazione | M23: =+IF(LEFT(M22,2)="OK",IF(integr="","Compilare correttamente il campo","OK, continuare la compilazione"),"") ->  | P23: entrambi | Q23: 1 | T23: nessuna variazione | U23: A | W23: 1B | X23: =+T24 -> integrazione servizio o territorio
F24: Tipo di integrazione (servizio / territorio) | M24: =+IF(LEFT(M23,2)="OK",IF(I24="","Compilare correttamente il campo",IF(AND(integr="SI",I24<>"nessuna"),"OK, continuare la compilazione",IF(AND(integr="NO",I24="nessuna"),"OK, continuare la compilazione","Attenzione: ricontrollare i dati"))),"") ->  | P24: integrazione servizio | Q24: 2 | T24: integrazione servizio o territorio | U24: B | W24: 1D | X24: =+T26 -> integrazione servizio o territorio e miglioramenti qualità
F25: % popolazione di cui non si dispone di corredo informativo completo - comma 10.1 all. A | M25: =+IF(LEFT(M24,2)="OK",IF(AND(I25="",I24<>"nessuna",I24<>"integrazione servizio"),"Compilare correttamente il campo",IF(OR(I24="nessuna",I24="integrazione servizio"),"OK, continuare la compilazione (il campo non va compilato)",IF(AND(I25<=1,I25>0),"OK, continuare la compilazione","Attenzione: compilare correttamente il campo (tra 0 e 100)"))),"") ->  | P25: integrazione territorio | Q25: 3 | T25: miglioramenti qualità | U25: C | W25: 2B | X25: =+T24 -> integrazione servizio o territorio
F26: Variazioni ai fini dell'individuazione dello schema virtuale | I26: =+IF(LEFT(M25,2)="OK",IF(AND(I24<>"entrambi",I24<>"integrazione territorio"),TT_Tabelle_Riferimento!G21,IF(Input_per_calcoli_finali!I25<0.5,TT_Tabelle_Riferimento!G23,TT_Tabelle_Riferimento!G22)),"") ->  | P26: nessuna | Q26: 4 | T26: integrazione servizio o territorio e miglioramenti qualità | U26: D | W26: 2D | X26: =+T26 -> integrazione servizio o territorio e miglioramenti qualità
F27: Aggregazioni, variazioni negli obiettivi o nelle attività del gestore (schemi regolatori comma 9.1) | M27: =+IF(LEFT(M25,2)="OK",IF(ISNA(VLOOKUP(CONCATENATE(VLOOKUP(I24,$P$23:$Q$26,2,FALSE),VLOOKUP(var,$T$23:$U$26,2,FALSE)),$W$23:$X$30,2,FALSE)),IF(var="","Compilare correttamente il campo","Attenzione: ricontrollare i dati"),"OK, continuare la compilazione"),"") ->  | P27: =+IF(OR(I25=0,I25=""),"",IF(AND(incid="Pop servita >= 50% del gestore risultante",I25=1),"interamente virtuale",IF(AND(I25>0.5,incid="Pop servita >= 50% del gestore risultante"),"parzialmente virtuale",""))) ->  | W27: 3B | X27: =+T24 -> integrazione servizio o territorio
W28: 3D | X28: =+T26 -> integrazione servizio o territorio e miglioramenti qualità
F29: Opnew,a | G29: non compilabile | I29: =+I30*IF(OR(RIGHT($M$30,1)=")",LEFT($M$27,2)<>"OK",$M$30=""),0,1)+I31*IF(OR(RIGHT($M$31,1)=")",LEFT($M$27,2)<>"OK",$M$31=""),0,1)+I32*IF(OR(RIGHT($M$32,1)=")",LEFT($M$27,2)<>"OK",$M$32=""),0,1) -> 0 | J29: =+J30*IF(OR(RIGHT($M$30,1)=")",LEFT($M$27,2)<>"OK",$M$30=""),0,1)+J31*IF(OR(RIGHT($M$31,1)=")",LEFT($M$27,2)<>"OK",$M$31=""),0,1)+J32*IF(OR(RIGHT($M$32,1)=")",LEFT($M$27,2)<>"OK",$M$32=""),0,1) -> 0 | K29: 0 | L29: 0 | W29: 4A | X29: =+T23 -> nessuna variazione
F30: di cui qualità | M30: =+IF(AND(LEFT(M27,2)="OK",incid<>"Pop servita >= 50% del gestore risultante",OR(var="integrazione servizio o territorio e miglioramenti qualità",var="miglioramenti qualità")),IF(OR(I30<0,J30<0,K30<0,L30<0),"Attenzione: valori fuori dominio",IF(OR(I30="",J30="",K30="",L30=""),"<--- Continuare da qui la compilazione (compilare tutti i campi)","OK, continuare la compilazione")),IF(LEFT(M27,2)="OK","OK, continuare la compilazione (il campo non va compilato)","")) ->  | W30: 4C | X30: =+T25 -> miglioramenti qualità
F31: di cui integrazione territorio | M31: =+IF(AND(LEFT(M30,2)="OK",incid<>"Pop servita >= 50% del gestore risultante",OR(I24="integrazione territorio",I24="entrambi")),IF(OR(I31<0,J31<0,K31<0,L31<0),"Attenzione: valori fuori dominio",IF(OR(I31="",J31="",K31="",L31=""),"<--- Continuare da qui la compilazione (compilare tutti i campi)","OK, continuare la compilazione")),IF(LEFT(M30,2)="OK","OK, continuare la compilazione (il campo non va compilato)","")) -> 
F32: di cui integrazione servizio | M32: =+IF(AND(LEFT(M31,2)="OK",incid<>"Pop servita >= 50% del gestore risultante",OR(I24="integrazione servizio",I24="entrambi")),IF(OR(I32<0,J32<0,K32<0,L32<0),"Attenzione: valori fuori dominio",IF(OR(I32="",J32="",K32="",L32=""),"<--- Continuare da qui la compilazione (compilare tutti i campi)","OK, continuare la compilazione")),IF(LEFT(M31,2)="OK","OK, continuare la compilazione (il campo non va compilato)","")) -> 
F34: Adeguam. Standard qualità (comma 23.3) | G34: non compilabile | M34: =++IF(LEFT(M32,2)="OK",+IF(I34="","<--- Continuare da qui la compilazione (compilare tutti i campi)",IF(I34>=0,"OK, continuare la compilazione","Errore! Valori fuori dominio")),"") -> 
F35: Opexaqc
F36: Opexaqc - in tariffa | I36: =+IF(AND($I$34="SI",LEFT($M$27,2)="OK"),I35,0) -> 0 | J36: =+IF(AND($I$34="SI",LEFT($M$27,2)="OK"),J35,0) -> 0 | K36: 0 | L36: 0 | M36: =++IF(LEFT(M34,2)="OK",IF(OR(I36<0,J36<0,K36<0,L36<0),"Errore! Valore fuori dominio",IF(OR(I36="",J36="",K36="",L36=""),IF(I34="NO","OK, compilazione non necessaria","Attenzione: compilare tutti i campi"),"OK, continuare la compilazione")),"") -> 
F38: Opex 2014 (calcolo OPM) | G38: =+SUM(Dati_Anni_precedenti!D29:D37) -> 0
F39: Popolazione acq. 2012 | G39: =+Dati_Anni_precedenti!C52 -> 0 | M39: =+IF(AND(LEFT(M36,2)="OK",P27=""),IF(G40="compilare correttamente i campi","Attenzione: compilare i campi necessari", "OK, continuare la compilazione"),IF(P27<>"","OK, continuare la compilazione","")) -> 
F40: OPMi | G40: =+IF(LEFT(M36,2)="OK",IF(ISERR(I38/I39),IF(ISERR(G38/G39),IF(P27="","compilare correttamente i campi",""),G38/G39),I38/I39),"") ->  | I40: non compilabile
F43: ∑Iptexp 2016-2019 | G43: non compilabile | I43: =+SUM(I44:L44) -> 0
F44: Sviluppo Iptexp MTI-2 (al netto dei contributi) | G44: eventualmente modificabili gli importi relativi al 2016 e 2017 | I44: =+SUMIF(Nuovi_Investimenti!$D$13:$D$553,Nuovi_Investimenti!F3,Nuovi_Investimenti!$E$13:$E$553)-SUMIF(Nuovi_Investimenti!$D$13:$D$553,Nuovi_Investimenti!F3,Nuovi_Investimenti!$F$13:$F$553) -> 0 | J44: =+SUMIF(Nuovi_Investimenti!$D$13:$D$553,Nuovi_Investimenti!G3,Nuovi_Investimenti!$E$13:$E$553)-SUMIF(Nuovi_Investimenti!$D$13:$D$553,Nuovi_Investimenti!G3,Nuovi_Investimenti!$F$13:$F$553) -> 0 | M44: =+IF(LEFT(M39,2)="OK",IF(OR(I44="",J44="",K44="",L44=""),"Attenzione: compilare tutti i campi","OK, continuare la compilazione"),"") -> 
F45: Sviluppo contributi relativi agli Iptexp MTI-2 | I45: =+SUMIF(Nuovi_Investimenti!$D$13:$D$553,Nuovi_Investimenti!F3,Nuovi_Investimenti!$F$13:$F$553) -> 0 | J45: =+SUMIF(Nuovi_Investimenti!$D$13:$D$553,Nuovi_Investimenti!G3,Nuovi_Investimenti!$F$13:$F$553) -> 0 | M45: =+IF(LEFT(M44,2)="OK",IF(OR(I45="",J45="",K45="",L45=""),"Attenzione: compilare tutti i campi","OK, continuare la compilazione"),"") -> 
F47: ∑Iptexp 2014-2017 | G47: =+Dati_Anni_precedenti!C8 -> 0 | I47: non compilabile | M47: =+IF(LEFT(M44,2)="OK",IF((G47)>(G48+H48+I44+J44)*1.02,"Gli Ipexp MTI per gli anni 2016-2017 non coincidono con quelli proposti per MTI2",IF(LEFT(M44,2)="OK","","")),"") -> 
F48: Sviluppo Iptexp MTI | G48: =+Dati_Anni_precedenti!D9 -> 0 | H48: =+Dati_Anni_precedenti!E9 -> 0 | I48: non compilabile
F49: RAB MTI | G49: =+framework_schemi!D43 -> 0 | M49: =+IF(LEFT(M45,2)="OK",IF(G50<>"","OK, continuare la compilazione",IF(P27="interamente virtuale","OK, continuare la compilazione","Inserire valore RAB o controllare dati anni precedenti")),"") -> 
G50: =+IF(P27="interamente virtuale","",IF(I49<>"",IF(ISERR(I43/I49),"",I43/I49),IF(ISERR(I43/G49),"",I43/G49))) ->  | I50: non compilabile
F51: ψ (0,4-0,8) | G51: non compilabile | M51: =+IF(P27="interamente virtuale","OK, continuare la compilazione",IF(LEFT(M49,2)="OK",+IF(G49=0,"Inserire valore RAB MTI (cella I48)",IF(G50<=omega,"OK, continuare la compilazione (psi non necessario)",IF(AND(G50>omega,I51=""),"<--- Continuare da qui la compilazione",IF(OR(I51<0.4,I51>0.8),"Attenzione: compilare correttamente i dati","OK, continuare la compilazione")))),"")) -> 
F52: Ammortamento finanziario ammissibile ai sensi del comma 16.5 lettera a) | G52: non compilabile | I52: =+iAF -> 0
F55: output | G55: Tipo di elaborazione tariffaria: | M55: =+IF(LEFT(M51,2)="OK",mti_2,"") -> 
F56: output | G56: Eventuale schema regolatorio | M56: =IF(M55="schema regolatorio",schema,"") -> 
M57: =+IF(M56="","",IF(prq="SI","e richiesta di perequazione","")) -> 
I59: Sezione "Interventi sulle componenti degli Opex"
G61: 2014 | H61: 2015 | I61: 2016 | J61: 2017 | K61: 2018 | L61: 2019
M62: =+IF(LEFT(M51,2)="OK",+IF(OR(I62<0,J62<0,K62<0,L62<0),"Attenzione: valori fuori dominio",IF(OR(I62="",J62="",K62="",L62=""),"OK, compilare o continuare la compilazione","OK, continuare la compilazione")),"") -> 
M64: =+IF(LEFT(M62,2)="OK",+IF(AND(I64=""),"OK, compilare o continuare la compilazione",IF(AND(I64<>""),IF(OR(I64<I66,I64>100),"Attenzione: valori fuori dominio","OK, continuare la compilazione"),"Attenzione: compilare correttamente tutti i campi")),"") -> 
F66: Comor - art. 30 All. A - valore di zona | G66: non compilabile | I66: =+IF(idato<>"",Opex!C110,0) -> 0 | J66: =+I66 -> 0 | K66: =+J66 -> 0 | L66: =+K66 -> 0
F67: Comor - art. 30 All. A - valore effettivo del gestore | I67: ='Altri dati economico_finanziari'!E30 -> 0 | J67: ='Altri dati economico_finanziari'!F30 -> 0 | K67: =+J67 -> 0 | L67: =+K67 -> 0
F68: Comor - Unpaid ratio indicato dal soggetto competente (% compatibile con "costo massimo riconosciuto" come da comma 30.2 all. A) | G68: valori in % | M68: =+IF(AND(I64<>"",LEFT(M51,2)="OK"),"OK, compilazione non necessaria",IF(LEFT(M51,2)="OK",+IF(AND(I68=""),"OK, compilare o continuare la compilazione",IF(AND(I68<I66,I68>=MIN(I67:L67),I68<>""),"OK, continuare la compilazione","Attenzione: compilare correttamente tutti i campi (diversi da 0, inferiori a quelli di zona, superiori a quelli del gestore)")),"")) -> 
I71: Sezione "Meccanismo premi/penalità relativamente alla qualità contrattuale"
I73: 2016 | J73: 2017 | K73: 2018 | L73: 2019
F74: Premi | G74: non compilabile | M74: OK, compilare o proseguire la compilazione
F75: Penali | M75: OK, compilare o proseguire la compilazione
F76: RcDQ (valore pre-inflazione) | I76: =+I74-I75 -> 0 | J76: =+J74-J75 -> 0 | K76: 0 | L76: 0
I79: Sezione "Sviluppo temporale dei conguagli MTI rinviati al futuro"
I81: 2016 | J81: 2017 | K81: 2018 | L81: 2019
F82: importo conguagli MTI (deliberati daAEEGSI) rinviati al futuro (valori a moneta 2015) | G82: =+Dati_Anni_precedenti!C7 -> 0 | M82: =+IF(OR(LEFT(M68,2)="OK"),IF(G82=0,"OK, ricontrollare dati storici o proseguire la compilazione (eventuali compilazioni non avranno impatti)",IF(OR(I82="",J82="",K82="",L82=""),"<--- Continuare da qui la compilazione",IF(AND(I82<>"",J82<>"",K82<>"",L82<>"",I82>=0,J82>=0,K82>=0,L82>=0),"OK, continuare la compilazione","Attenzione: compilare correttamente i campi"))),"") -> 
F83: RC MTI post 2019 | G83: non compilabile | M83: =+IF(LEFT(M82,2)="OK",IF(G91=0,"OK, ricontrollare dati storici o proseguire la compilazione (eventuali compilazioni non avranno impatti)",IF(AND(ISNUMBER(I92)=TRUE,I92>=0,SUM(I91:L92)<=G91),"OK, continuare la compilazione","Attenzione: ricontrollare i dati e compilare correttamente il campo")),"") -> 
F84: eventuale rinuncia a conguagli RC MTI deliberati da AEEGSI | G84: non compilabile | I84: =+IF(LEFT(M83,2)="OK",IF(G82=0,0,G82-SUM(I82:L82)-I83),"") ->  | M84: =+IF(LEFT(M83,2)="OK",IF(I84="","Compilare il campo",IF(AND(ISNUMBER(I84)=TRUE,I84>=0),"OK, continuare la compilazione","Attenzione: compilare correttamente il campo")),"") -> 
I87: Elaborazioni Intermedie
I89: 2016 | J89: 2017 | K89: 2018 | L89: 2019
F90: VRGa al cap | G90: non compilabile | I90: =+IF($M$51<>"",VRG_Teta!E46,"") ->  | J90: =+IF($M$51<>"",VRG_Teta!F46,"") ->  | K90: =+IF($M$51<>"",VRG_Teta!G46,"") ->  | L90: =+IF($M$51<>"",VRG_Teta!H46,"") -> 
F91: ϑa massimo applicabile | G91: non compilabile | I91: =+IF($M$51<>"",VRG_Teta!E47,"") ->  | J91: =+IF($M$51<>"",VRG_Teta!F47,"") ->  | K91: =+IF($M$51<>"",VRG_Teta!G47,"") ->  | L91: =+IF($M$51<>"",VRG_Teta!H47,"") -> 
F92: VRGa calcolato pre rimodulazioni (eventuali) | G92: non compilabile | I92: =+IF($M$51<>"",VRG_Teta!E49,"") ->  | J92: =+IF($M$51<>"",VRG_Teta!F49,"") ->  | K92: =+IF($M$51<>"",VRG_Teta!G49,"") ->  | L92: =+IF($M$51<>"",VRG_Teta!H49,"") -> 
F93: ϑa calcolato (eventuali) | G93: non compilabile | I93: =+IF($M$51<>"",VRG_Teta!E50,"") ->  | J93: =+IF($M$51<>"",VRG_Teta!F50,"") ->  | K93: =+IF($M$51<>"",VRG_Teta!G50,"") ->  | L93: =+IF($M$51<>"",VRG_Teta!H50,"") -> 
I96: Sezione "Sviluppo temporale dei conguagli MTI-2"
F99: Integrazione RC IP | G99: non compilabile | M99: Compilare per correggere eventuali effetti monetari divergenti rispetto alle precedenti predisposizioni tariffarie e/o derivanti dalla eventuale presenza di FoNI 2012, 2013 non riportato a CFP
I100: 2012 | K100: 2013
F101: Eventuale FoNI 2012, 2013 da riportare a CFP | G101: non compilabile | M101: Compilare i valori del 2012 a moneta 2014 e i valori del 2013 a moneta 2015
I103: 2016 | J103: 2017 | K103: 2018 | L103: 2019
F104: RC MTI-2 calcolati | G104: non compilabile | I104: =+'Rc'!E8 -> 0 | J104: =+'Rc'!F8 -> 0 | K104: =+'Rc'!G8 -> 0 | L104: =+'Rc'!H8 -> 0
G105: non compilabile | I105: =+IF(ISERR(MAX(I90-I92,0)),0,MAX(I90-I92,0)) -> 0 | J105: =+IF(ISERR(MAX(J90-J92,0)),0,MAX(J90-J92,0)) -> 0 | K105: =+IF(ISERR(MAX(K90-K92,0)),0,MAX(K90-K92,0)) -> 0 | L105: =+IF(ISERR(MAX(L90-L92,0)),0,MAX(L90-L92,0)) -> 0
F106: Sviluppo richiesto dei conguagli MTI-2 periodo 2016-2019 (il resto inteso post 2019) | G106: non compilabile | M106: =+IF(LEFT(M84,2)="OK",+IF(AND(I106>=0,J106>=0,K106>=0,L106>=0),"OK, continuare la compilazione","OK, riallocare conguagli oppure continuare la compilazione"),"") -> 
F107: eventuale rinuncia a conguagli RC MTI-2 deliberati da AEEGSI | M107: =+IF(AND(LEFT(M106,2)="OK",ISNUMBER(I107)=TRUE,I107>0,I107<SUM(I104:L104)),"OK, continuare la compilazione",IF(LEFT(M106,2)="OK",IF(OR(ISNUMBER(I107)=FALSE,I107<0,ABS(I107)>ABS(SUM(I104:L104))),"Attenzione, compilare correttamente il campo","OK, continuare la compilazione"),"")) -> 
F108: RC MTI-2 in tariffa | G108: non compilabile | I108: =+IF(I106="",I104,I106) -> 0 | J108: =+IF(J106="",J104,J106) -> 0 | K108: 0 | L108: 0
F109: RC MTI-2 post 2019 | G109: non compilabile | I109: =+IF(LEFT(M107,2)="OK",IF(SUM(I104:L104)-(SUM(I108:L108)+I107)<0,IF(SUM(I104:L104)<0,SUM(I104:L104)-(SUM(I108:L108)+I107),"Attenzione, ricontrollare gli addendi"),SUM(I104:L104)-(SUM(I108:L108)+I107)),"") ->  | M109: =+IF(OR(I109="Attenzione, ricontrollare gli addendi",I109=""),"","OK, continuare la compilazione") -> 
I112: Sezione "Interventi sulle componenti del FoNI"
G114: 2014 | H114: 2015 | I114: 2016 | J114: 2017 | K114: 2018 | L114: 2019
F115: FNI calcolato | G115: non compilabile | I115: =++IF($M$55="schema regolatorio",FoNI!E62,"") ->  | J115: =++IF($M$55="schema regolatorio",FoNI!F62,"") ->  | K115: =++IF($M$55="schema regolatorio",FoNI!G62,"") ->  | L115: =++IF($M$55="schema regolatorio",FoNI!H62,"") -> 
F116: Riduzione della componente FNI | M116: =+IF(LEFT(M109,2)="OK",+IF(OR(I116<0,J116<0,K116<0,L116<0,I116>I115,J116>J115,K116>K115,L116>L115),"Attenzione: valori fuori dominio",IF(OR(I116="",J116="",K116="",L116=""),"<--- Continuare da qui la compilazione (compilare tutti i campi)","OK, continuare la compilazione")),"") -> 
F118: AMMcfp calcolato | G118: non compilabile | I118: =++IF($M$55="schema regolatorio",FoNI!E74,"") ->  | J118: =++IF($M$55="schema regolatorio",FoNI!F74,"") ->  | K118: =++IF($M$55="schema regolatorio",FoNI!G74,"") ->  | L118: =++IF($M$55="schema regolatorio",FoNI!H74,"") -> 
F119: Riduzione della componente AMMcfp | M119: =+IF(LEFT(M116,2)="OK",+IF(OR(I119<0,J119<0,K119<0,L119<0,I119>I118,J119>J118,K119>K118,L119>L118),"Attenzione: valori fuori dominio",IF(OR(I119="",J119="",K119="",L119=""),"<--- Continuare da qui la compilazione (compilare tutti i campi)","OK, continuare la compilazione")),"") -> 
F121: DCUIT massimo nel FoNI | G121: non compilabile | I121: =++IF($M$55="schema regolatorio",FoNI!E85,"") ->  | J121: =++IF($M$55="schema regolatorio",FoNI!F85,"") ->  | K121: =++IF($M$55="schema regolatorio",FoNI!G85,"") ->  | L121: =++IF($M$55="schema regolatorio",FoNI!H85,"") ->  | M121: =+IF(LEFT($M$90,2)="OK","OK, continuare la compilazione","") -> 
F122: Riduzione della componente DCUIT | M122: =+IF(LEFT(M119,2)="OK",+IF(OR(I122<0,J122<0,K122<0,L122<0,I122>I121,J122>J121,K122>K121,L122>L121),"Attenzione: valori fuori dominio",IF(OR(I122="",J122="",K122="",L122=""),"<--- Continuare da qui la compilazione (compilare tutti i campi)","OK, continuare la compilazione")),"") -> 
I125: Sezione "Ulteriori interventi sul VRG"
G127: 2014 | H127: 2015 | I127: 2016 | J127: 2017 | K127: 2018 | L127: 2019
F128: Detrazioni alla componente Capex - AMM | G128: non compilabile | M128: =+IF(LEFT(M122,2)="OK","OK, compilare tutti i campi o continuare la compilazione. L'importo valorizzato sarà al massimo pari a quello della componente","") -> 
F129: detrazione AMM | I129: =+IF(I128="",0,MIN(I128,Capex!E9)) -> 0 | J129: =+IF(J128="",0,MIN(J128,Capex!F9)) -> 0 | K129: =+IF(K128="",0,MIN(K128,Capex!G9)) -> 0 | L129: =+IF(L128="",0,MIN(L128,Capex!H9)) -> 0
F130: Detrazioni alla componente Capex - OF | G130: non compilabile | M130: =+IF(LEFT(M128,2)="OK","OK, compilare tutti i campi o continuare la compilazione. L'importo valorizzato sarà al massimo pari a quello della componente","") -> 
F131: detrazione OF | I131: =+IF(I130="",0,MIN(I130,Capex!E7)) -> 0 | J131: =+IF(J130="",0,MIN(J130,Capex!F7)) -> 0 | K131: =+IF(K130="",0,MIN(K130,Capex!G7)) -> 0 | L131: =+IF(L130="",0,MIN(L130,Capex!H7)) -> 0
F132: Detrazioni alla componente Capex - OFisc | G132: non compilabile | M132: =+IF(LEFT(M130,2)="OK","OK, compilare tutti i campi o continuare la compilazione. L'importo valorizzato sarà al massimo pari a quello della componente","") -> 
F133: detrazione OFisc | I133: =+IF(I132="",0,MIN(I132,Capex!E8)) -> 0 | J133: =+IF(J132="",0,MIN(J132,Capex!F8)) -> 0 | K133: =+IF(K132="",0,MIN(K132,Capex!G8)) -> 0 | L133: =+IF(L132="",0,MIN(L132,Capex!H8)) -> 0
F135: Detrazioni alla componente Capex | G135: non compilabile | I135: =+I129+I131+I133 -> 0 | J135: =+J129+J131+J133 -> 0 | K135: 0 | L135: 0 | M135: =+IF(LEFT(M122,2)="OK","OK, compilare tutti i campi o continuare la compilazione","") -> 
F137: Detrazioni alla componente Opex - Opexend | G137: non compilabile | M137: =+IF(LEFT(M132,2)="OK","OK, compilare tutti i campi o continuare la compilazione. L'importo valorizzato sarà al massimo pari a quello della componente","") -> 
F138: detrazione Opexend | I138: =+IF(I137="",0,MIN(I137,Opex!E8)) -> 0 | J138: =+IF(J137="",0,MIN(J137,Opex!F8)) -> 0 | K138: =+IF(K137="",0,MIN(K137,Opex!G8)) -> 0 | L138: =+IF(L137="",0,MIN(L137,Opex!H8)) -> 0
F139: Detrazioni alla componente Opex - Opexal | G139: non compilabile | M139: =+IF(LEFT(M137,2)="OK","OK, compilare tutti i campi o continuare la compilazione. L'importo valorizzato sarà al massimo pari a quello della componente","") -> 
F140: detrazione Opexal | I140: =+IF(I139="",0,MIN(I139,Opex!E7)) -> 0 | J140: =+IF(J139="",0,MIN(J139,Opex!F7)) -> 0 | K140: =+IF(K139="",0,MIN(K139,Opex!G7)) -> 0 | L140: =+IF(L139="",0,MIN(L139,Opex!H7)) -> 0
F142: Detrazioni alla componente Opex | G142: non compilabile | I142: =+I138+I140 -> 0 | J142: =+J138+J140 -> 0 | K142: 0 | L142: 0 | M142: =+IF(LEFT(M135,2)="OK","OK, compilare tutti i campi o continuare la compilazione","") -> 
F144: Detrazioni alla componente ERC - ERCend | G144: non compilabile | M144: =+IF(LEFT(M139,2)="OK","OK, compilare tutti i campi o continuare la compilazione. L'importo valorizzato sarà al massimo pari a quello della componente","") -> 
F145: detrazione ERCend | I145: =+IF(I144="",0,MIN(I144,ERC!E37)) -> 0 | J145: =+IF(J144="",0,MIN(J144,ERC!F37)) -> 0 | K145: =+IF(K144="",0,MIN(K144,ERC!G37)) -> 0 | L145: =+IF(L144="",0,MIN(L144,ERC!H37)) -> 0
F146: Detrazioni alla componente ERC - ERCal | G146: non compilabile | M146: =+IF(LEFT(M144,2)="OK","OK, compilare tutti i campi o continuare la compilazione. L'importo valorizzato sarà al massimo pari a quello della componente","") -> 
F147: detrazione ERCal | I147: =+IF(I146="",0,MIN(I146,ERC!E21)) -> 0 | J147: =+IF(J146="",0,MIN(J146,ERC!F21)) -> 0 | K147: =+IF(K146="",0,MIN(K146,ERC!G21)) -> 0 | L147: =+IF(L146="",0,MIN(L146,ERC!H21)) -> 0
F149: Detrazioni alla componente ERC | G149: non compilabile | I149: =+I145+I147 -> 0 | J149: =+J145+J147 -> 0 | K149: 0 | L149: 0 | M149: =+IF(AND($M$55="schema regolatorio",$M$56<>"",LEFT(M146,2)="OK"),IF(AND(I160="nei limiti",J160="nei limiti",K160="nei limiti",L160="nei limiti"),"Proposta nei limiti del cap","Proposta sovracap per almeno un'annualità"),"") -> 
F151: Rimodulazioni relative alla componente Capex | G151: non compilabile | M151: =+IF(LEFT(M149,2)="OK","OK, compilare tutti i campi o continuare la compilazione","") -> 
F152: Rimodulazioni relative alla componente Opex | G152: non compilabile | M152: =+IF(LEFT(M151,2)="OK","OK, compilare tutti i campi o continuare la compilazione","") -> 
F153: Rimodulazioni relative alla componente ERC | G153: non compilabile | M153: =+IF(LEFT(M152,2)="OK","OK, compilare tutti i campi o continuare la compilazione","") -> 
F155: VRGa calcolato (anche a valle di ulteriori rimodulazioni) | G155: non compilabile | I155: =+IF(AND($M$55="schema regolatorio",$M$56<>"",LEFT($M$146,2)="OK"),VRG_Teta!E52,"") ->  | J155: =+IF(AND($M$55="schema regolatorio",$M$56<>"",LEFT($M$146,2)="OK"),VRG_Teta!F52,"") ->  | K155: =+IF(AND($M$55="schema regolatorio",$M$56<>"",LEFT($M$146,2)="OK"),VRG_Teta!G52,"") ->  | L155: =+IF(AND($M$55="schema regolatorio",$M$56<>"",LEFT($M$146,2)="OK"),VRG_Teta!H52,"") ->  | M155: =+IF(AND($M$55="schema regolatorio",$M$56<>"",LEFT(M146,2)="OK"),IF(AND(I160="nei limiti",J160="nei limiti",K160="nei limiti",L160="nei limiti"),"Proposta nei limiti del cap","Proposta sovracap per almeno un'annualità"),"") -> 
F156: ϑa calcolato (anche a valle di ulteriori rimodulazioni) | G156: non compilabile | I156: =+IF(AND($M$55="schema regolatorio",$M$56<>"",LEFT($M$146,2)="OK"),VRG_Teta!E53,"") ->  | J156: =+IF(AND($M$55="schema regolatorio",$M$56<>"",LEFT($M$146,2)="OK"),VRG_Teta!F53,"") ->  | K156: =+IF(AND($M$55="schema regolatorio",$M$56<>"",LEFT($M$146,2)="OK"),VRG_Teta!G53,"") ->  | L156: =+IF(AND($M$55="schema regolatorio",$M$56<>"",LEFT($M$146,2)="OK"),VRG_Teta!H53,"") -> 
F158: info predisposizione pre rimodulazioni | G158: non compilabile | I158: =+IF(AND($M$55="schema regolatorio",$M$56<>"",LEFT($M$146,2)="OK"),IF(I92>I90,"sovracap","nei limiti"),"") ->  | J158: =+IF(AND($M$55="schema regolatorio",$M$56<>"",LEFT($M$146,2)="OK"),IF(J92>J90,"sovracap","nei limiti"),"") ->  | K158: =+IF(AND($M$55="schema regolatorio",$M$56<>"",LEFT($M$146,2)="OK"),IF(K92>K90,"sovracap","nei limiti"),"") ->  | L158: =+IF(AND($M$55="schema regolatorio",$M$56<>"",LEFT($M$146,2)="OK"),IF(L92>L90,"sovracap","nei limiti"),"") -> 
F159: limite al Ja post rimodulazioni | G159: non compilabile | I159: =+IF(AND($M$55="schema regolatorio",$M$56<>"",LEFT($M$146,2)="OK"),VRG_Teta!E56,"") ->  | J159: =+IF(AND($M$55="schema regolatorio",$M$56<>"",LEFT($M$146,2)="OK"),VRG_Teta!F56,"") ->  | K159: =+IF(AND($M$55="schema regolatorio",$M$56<>"",LEFT($M$146,2)="OK"),VRG_Teta!G56,"") ->  | L159: =+IF(AND($M$55="schema regolatorio",$M$56<>"",LEFT($M$146,2)="OK"),VRG_Teta!H56,"") -> 
F160: info predisposizione post rimodulazioni | G160: non compilabile | I160: =+IF(AND($M$55="schema regolatorio",$M$56<>"",LEFT($M$146,2)="OK"),VRG_Teta!E57,"") ->  | J160: =+IF(AND($M$55="schema regolatorio",$M$56<>"",LEFT($M$146,2)="OK"),VRG_Teta!F57,"") ->  | K160: =+IF(AND($M$55="schema regolatorio",$M$56<>"",LEFT($M$146,2)="OK"),VRG_Teta!G57,"") ->  | L160: =+IF(AND($M$55="schema regolatorio",$M$56<>"",LEFT($M$146,2)="OK"),VRG_Teta!H57,"") -> 

Sheet Piano_Tariffario
C2: PIANO TARIFFARIO
C3: SCHEMI REGOLATORI
I4: Note | J4: UdM | K4: valore
D5: Sezione_Piano_Tariffario | E5: Voce_Piano_Tariffario | F5: n_riga | G5: ID ATO | H5: Codice Aeeg | J5: UdM | K5: 2016 | L5: 2017 | M5: 2018 | N5: 2019 | O5: 2020 | P5: 2021 | Q5: 2022 | R5: 2023 | S5: 2024 | T5: 2025 | U5: 2026 | V5: 2027 | W5: 2028 | X5: 2029 | Y5: 2030 | Z5: 2031 | AA5: 2032 | AB5: 2033 | AC5: 2034 | AD5: 2035 | AE5: 2036 | AF5: 2037 | AG5: 2038 | AH5: 2039 | AI5: 2040 | AJ5: 2041 | AK5: 2042 | AL5: 2043 | AM5: 2044 | AN5: 2045
C6: Opex2014 | D6: SCHEMI REGOLATORI | E6: Op | F6: 1 | G6: 103 | H6: 2937 | J6: euro | K6: =+SUM(Dati_Anni_precedenti!D29:D37) -> 0
C7: Popolazione 2012 | J7: n. abitante | K7: =+Dati_Anni_precedenti!C52 -> 0
D8: SCHEMI REGOLATORI | E8: Sommatoria IP/RAB <= omega | F8: 7 | G8: 103 | H8: 2937 | J8: SI/NO | K8: =+IF(ISERR(Input_per_calcoli_finali!G40),0,IF(Input_per_calcoli_finali!G40>109,"NO","SI")) -> NO
C9: nessuna variazione di obiettivi o attività del gestore: (NO) oppure presenza di variazioni negli obiettivi o nelle attività del gestore: (SI) | D9: SCHEMI REGOLATORI | E9: PresenzaVariazioni | F9: 4 | G9: 103 | H9: 2937 | J9: SI/NO | K9: =+IF(var="nessuna","NO","SI") -> SI
C10: ∑Iptexp 2016-2019 | D10: SCHEMI REGOLATORI | E10: Sommatoria_IP_exp | F10: 5 | G10: 103 | H10: 2937 | J10: euro | K10: =+Input_per_calcoli_finali!I43 -> 0
C11: RABMTI | D11: SCHEMI REGOLATORI | E11: RAB_MTT | F11: 6 | G11: 103 | H11: 2937 | J11: euro | K11: =+Dati_Anni_precedenti!E23 -> 0
J12: SI/NO | K12: =+IF(ISERR(Input_per_calcoli_finali!I43/Input_per_calcoli_finali!G49),0,IF(Input_per_calcoli_finali!I43/Input_per_calcoli_finali!G49<=framework_schemi!D39,"SI","NO")) -> 0
C13: SCHEMA REGOLATORIO (A) SCHEMA VIRTUALE (B) | D13: SCHEMI REGOLATORI | E13: SCHEMA REGOLATORIO | F13: 8 | J13: A/B | K13: =+IF(mti_2="","",IF(mti_2="schema virtuale","schema virtuale","schema regolatorio")) -> 
C14: y | J14: (0,4-0,8) | K14: =+Input_per_calcoli_finali!I51 -> 0
C15: SCHEMA REGOLATORIO | D15: SCHEMI REGOLATORI | E15: SCHEMA REGOLATORIO | F15: 8 | G15: 103 | H15: 2937 | J15: (I, II, III, IV, V, VI) | K15: =+IF(OR(schema="I",schema="II",schema="III",schema="IV",schema="V",schema="VI"),+schema,"") -> 
C20: COMPONENTI DI COSTO Opex, Capex , FNInew, ERC | F20: 10
F21: 11 | I21: Note | J21: UdM | K21: 2016 | L21: 2017 | M21: 2018 | N21: 2019 | O21: 2020 | P21: 2021 | Q21: 2022 | R21: 2023 | S21: 2024 | T21: 2025 | U21: 2026 | V21: 2027 | W21: 2028 | X21: 2029 | Y21: 2030 | Z21: 2031 | AA21: 2032 | AB21: 2033 | AC21: 2034 | AD21: 2035 | AE21: 2036 | AF21: 2037 | AG21: 2038 | AH21: 2039 | AI21: 2040 | AJ21: 2041 | AK21: 2042 | AL21: 2043 | AM21: 2044 | AN21: 2045
C22: Opexaend (al netto degli ERC) | D22: COMPONENTI DI COSTO Opexa, Capexa e FNInew,a | E22: Opex_A_end | F22: 12 | G22: 103 | H22: 2937 | J22: euro | K22: =+Opex!E8-Input_per_calcoli_finali!I138 -> 0 | L22: =+Opex!F8-Input_per_calcoli_finali!J138 -> 0 | M22: =+Opex!G8-Input_per_calcoli_finali!K138 -> 0 | N22: =+Opex!H8-Input_per_calcoli_finali!L138 -> 0
C23: Opexaal (al netto degli ERC) | D23: COMPONENTI DI COSTO Opexa, Capexa e FNInew,a | E23: Opex_A_al | F23: 13 | G23: 103 | H23: 2937 | J23: euro | K23: =+Opex!E7-Input_per_calcoli_finali!I140 -> 0 | L23: =+Opex!F7-Input_per_calcoli_finali!J140 -> 0 | M23: =+Opex!G7-Input_per_calcoli_finali!K140 -> 0 | N23: =+Opex!H7-Input_per_calcoli_finali!L140 -> 0
C24: OpexaQC | J24: euro | K24: =+Opex!E9 -> 0 | L24: =+Opex!F9 -> 0 | M24: =+Opex!G9 -> 0 | N24: =+Opex!H9 -> 0
C25: Opnew,a | J25: euro | K25: =+Opex!E10 -> 0 | L25: =+Opex!F10 -> 0 | M25: =+Opex!G10 -> 0 | N25: =+Opex!H10 -> 0
C26: Opexavirt | J26: euro | K26: =+Opex!E11 -> 0 | L26: =+Opex!F11 -> 0 | M26: =+Opex!G11 -> 0 | N26: =+Opex!H11 -> 0
C27: Opexa | D27: COMPONENTI DI COSTO Opexa, Capexa e FNInew,a | E27: Opex_A | F27: 14 | G27: 103 | H27: 2937 | J27: euro | K27: =SUM(K22:K26) -> 0 | L27: =SUM(L22:L26) -> 0 | M27: 0 | N27: 0
C28: AMMa | D28: COMPONENTI DI COSTO Opexa, Capexa e FNInew,a | E28: OFa | F28: 15 | G28: 103 | H28: 2937 | J28: euro | K28: =+Capex!E9-Input_per_calcoli_finali!I129 -> 0 | L28: =+Capex!F9-Input_per_calcoli_finali!J129 -> 0 | M28: =+Capex!G9-Input_per_calcoli_finali!K129 -> 0 | N28: =+Capex!H9-Input_per_calcoli_finali!L129 -> 0
C29: OFa | D29: COMPONENTI DI COSTO Opexa, Capexa e FNInew,a | E29: OFisca | F29: 16 | G29: 103 | H29: 2937 | J29: euro | K29: =+Capex!E7-Input_per_calcoli_finali!I131 -> 0 | L29: =+Capex!F7-Input_per_calcoli_finali!J131 -> 0 | M29: =+Capex!G7-Input_per_calcoli_finali!K131 -> 0 | N29: =+Capex!H7-Input_per_calcoli_finali!L131 -> 0
C30: OFisca | D30: COMPONENTI DI COSTO Opexa, Capexa e FNInew,a | E30: AMMa | F30: 17 | G30: 103 | H30: 2937 | J30: euro | K30: =+Capex!E8-Input_per_calcoli_finali!I133 -> 0 | L30: =+Capex!F8-Input_per_calcoli_finali!J133 -> 0 | M30: =+Capex!G8-Input_per_calcoli_finali!K133 -> 0 | N30: =+Capex!H8-Input_per_calcoli_finali!L133 -> 0
C31: DCUITaCapex | D31: COMPONENTI DI COSTO Opexa, Capexa e FNInew,a | E31: DCUITa | F31: 18 | G31: 103 | H31: 2937 | J31: euro | K31: =+Capex!E10 -> 0 | L31: =+Capex!F10 -> 0 | M31: =+Capex!G10 -> 0 | N31: =+Capex!H10 -> 0
C32: Capexavirt | J32: euro | K32: =+Capex!E11 -> 0 | L32: =+Capex!F11 -> 0 | M32: =+Capex!G11 -> 0 | N32: =+Capex!H11 -> 0
C33: Capexa | D33: COMPONENTI DI COSTO Opexa, Capexa e FNInew,a | E33: Capexa | F33: 19 | G33: 103 | H33: 2937 | J33: euro | K33: =SUM(K28:K32) -> 0 | L33: =SUM(L28:L32) -> 0 | M33: 0 | N33: 0
C34: IPtexp | D34: COMPONENTI DI COSTO Opexa, Capexa e FNInew,a | E34: IP exp | F34: 20 | G34: 103 | H34: 2937 | J34: euro | K34: =+FoNI!E59 -> 0 | L34: =+FoNI!F59 -> 0 | M34: =+FoNI!G59 -> 0 | N34: =+FoNI!H59 -> 0
C35: Capexa | D35: COMPONENTI DI COSTO Opexa, Capexa e FNInew,a | E35: Capex_a | F35: 21 | G35: 103 | H35: 2937 | J35: euro | K35: =+FoNI!E60 -> 0 | L35: =+FoNI!F60 -> 0 | M35: =+FoNI!G60 -> 0 | N35: =+FoNI!H60 -> 0
C36: FNInew,a | D36: COMPONENTI DI COSTO Opexa, Capexa e FNInew,a | E36: FNI_new,a | F36: 22 | G36: 103 | H36: 2937 | J36: euro | K36: =IF(OR(schema="IV",schema="V",schema="VI"),FoNI!E62,0) -> 0 | L36: =IF(OR(schema="IV",schema="V",schema="VI"),FoNI!F62,0) -> 0 | M36: =IF(OR(schema="IV",schema="V",schema="VI"),FoNI!G62,0) -> 0 | N36: =IF(OR(schema="IV",schema="V",schema="VI"),FoNI!H62,0) -> 0
C37: ERCaend | D37: COMPONENTI DI COSTO Opexa, Capexa e FNInew,a | E37: IP exp | F37: 20 | G37: 103 | H37: 2937 | J37: euro | K37: =+ERC!E37-Input_per_calcoli_finali!I145 -> 0 | L37: =+ERC!F37 -> 0 | M37: =+ERC!G37 -> 0 | N37: =+ERC!H37 -> 0
C38: ERCaal | D38: COMPONENTI DI COSTO Opexa, Capexa e FNInew,a | E38: Capex_a | F38: 21 | G38: 103 | H38: 2937 | J38: euro | K38: =+ERC!E21-Input_per_calcoli_finali!I147 -> 0 | L38: =+ERC!F21 -> 0 | M38: =+ERC!G21 -> 0 | N38: =+ERC!H21 -> 0
C39: ERCa | D39: COMPONENTI DI COSTO Opexa, Capexa e FNInew,a | E39: FNI_new,a | F39: 22 | G39: 103 | H39: 2937 | J39: euro | K39: =+SUM(K37:K38) -> 0 | L39: =+SUM(L37:L38) -> 0 | M39: 0 | N39: 0
F40: 23
C41: FONDO NUOVI INVESTIMENTI | F41: 43
F42: 44 | I42: Note | J42: UdM | K42: 2016 | L42: 2017 | M42: 2018 | N42: 2019 | O42: 2020 | P42: 2021 | Q42: 2022 | R42: 2023 | S42: 2024 | T42: 2025 | U42: 2026 | V42: 2027 | W42: 2028 | X42: 2029 | Y42: 2030 | Z42: 2031 | AA42: 2032 | AB42: 2033 | AC42: 2034 | AD42: 2035 | AE42: 2036 | AF42: 2037 | AG42: 2038 | AH42: 2039 | AI42: 2040 | AJ42: 2041 | AK42: 2042 | AL42: 2043 | AM42: 2044 | AN42: 2045
C43: FNIaFoNI | D43: FONDO NUOVI INVESTIMENTI | E43: AMM_a_FoNI | F43: 45 | G43: 103 | H43: 2937 | J43: euro | K43: =+FoNI!E8 -> 0 | L43: =+FoNI!F8 -> 0 | M43: =+FoNI!G8 -> 0 | N43: =+FoNI!H8 -> 0
C44: AMMaFoNI | D44: FONDO NUOVI INVESTIMENTI | E44: FNI_a_FoNI | F44: 46 | G44: 103 | H44: 2937 | J44: euro | K44: =+FoNI!E7 -> 0 | L44: =+FoNI!F7 -> 0 | M44: =+FoNI!G7 -> 0 | N44: =+FoNI!H7 -> 0
C45: DCUITaFoNI | D45: FONDO NUOVI INVESTIMENTI | E45: DCUIT_a_FoNI | F45: 47 | G45: 103 | H45: 2937 | J45: euro | K45: =+FoNI!E9 -> 0 | L45: =+FoNI!F9 -> 0 | M45: =+FoNI!G9 -> 0 | N45: =+FoNI!H9 -> 0
C46: FoNIa | D46: FONDO NUOVI INVESTIMENTI | E46: FoNI | F46: 48 | G46: 103 | H46: 2937 | J46: euro | K46: =+FoNI!E10 -> 0 | L46: =+FoNI!F10 -> 0 | M46: =+FoNI!G10 -> 0 | N46: =+FoNI!H10 -> 0
F47: 49
C48: SVILUPPO DEL VRG predisposto dal soggetto competente | F48: 24
F49: 25 | I49: Note | J49: UdM | K49: 2016 | L49: 2017 | M49: 2018 | N49: 2019 | O49: 2020 | P49: 2021 | Q49: 2022 | R49: 2023 | S49: 2024 | T49: 2025 | U49: 2026 | V49: 2027 | W49: 2028 | X49: 2029 | Y49: 2030 | Z49: 2031 | AA49: 2032 | AB49: 2033 | AC49: 2034 | AD49: 2035 | AE49: 2036 | AF49: 2037 | AG49: 2038 | AH49: 2039 | AI49: 2040 | AJ49: 2041 | AK49: 2042 | AL49: 2043 | AM49: 2044 | AN49: 2045
C50: Opexa | D50: SVILUPPO DEL VRGcalc | E50: Opex_a | F50: 26 | G50: 103 | H50: 2937 | J50: euro | K50: =+VRG_Teta!E25+Input_per_calcoli_finali!I152 -> 0 | L50: =+VRG_Teta!F25+Input_per_calcoli_finali!J152 -> 0 | M50: =+VRG_Teta!G25+Input_per_calcoli_finali!K152 -> 0 | N50: =+VRG_Teta!H25+Input_per_calcoli_finali!L152 -> 0
C51: Capexa | D51: SVILUPPO DEL VRGcalc | E51: Capex_a | F51: 27 | G51: 103 | H51: 2937 | J51: euro | K51: =+VRG_Teta!E23+Input_per_calcoli_finali!I151 -> 0 | L51: =+VRG_Teta!F23+Input_per_calcoli_finali!J151 -> 0 | M51: =+VRG_Teta!G23+Input_per_calcoli_finali!K151 -> 0 | N51: =+VRG_Teta!H23+Input_per_calcoli_finali!L151 -> 0
C52: FoNIa | D52: SVILUPPO DEL VRGcalc | E52: FoNI_a | F52: 28 | G52: 103 | H52: 2937 | J52: euro | K52: =+VRG_Teta!E24 -> 0 | L52: =+VRG_Teta!F24 -> 0 | M52: =+VRG_Teta!G24 -> 0 | N52: =+VRG_Teta!H24 -> 0
C53: RCaTOT | D53: SVILUPPO DEL VRGcalc | E53: RC_a_TOT | F53: 29 | G53: 103 | H53: 2937 | J53: euro | K53: =+VRG_Teta!E27 -> 0 | L53: =+VRG_Teta!F27 -> 0 | M53: =+VRG_Teta!G27 -> 0 | N53: =+VRG_Teta!H27 -> 0
C54: ERCa | D54: SVILUPPO DEL VRGcalc | E54: ERC_a | F54: 30 | G54: 103 | H54: 2937 | J54: euro | K54: =+VRG_Teta!E26+Input_per_calcoli_finali!I153 -> 0 | L54: =+VRG_Teta!F26+Input_per_calcoli_finali!J153 -> 0 | M54: =+VRG_Teta!G26+Input_per_calcoli_finali!K153 -> 0 | N54: =+VRG_Teta!H26+Input_per_calcoli_finali!L153 -> 0
C55: VRGa predisposto dal soggetto competente | D55: SVILUPPO DEL VRGcalc | E55: VRG_a | F55: 31 | G55: 103 | H55: 2937 | J55: euro | K55: =+VRG_Teta!E52 -> 0 | L55: =+VRG_Teta!F52 -> 0 | M55: =+VRG_Teta!G52 -> 0 | N55: =+VRG_Teta!H52 -> 0
F56: 32
C57: SVILUPPO DEL MOLTIPLICATORE TARIFFARIO predisposto dal soggetto competente | F57: 33
F58: 34 | I58: Note | J58: UdM | K58: 2016 | L58: 2017 | M58: 2018 | N58: 2019 | O58: 2020 | P58: 2021 | Q58: 2022 | R58: 2023 | S58: 2024 | T58: 2025 | U58: 2026 | V58: 2027 | W58: 2028 | X58: 2029 | Y58: 2030 | Z58: 2031 | AA58: 2032 | AB58: 2033 | AC58: 2034 | AD58: 2035 | AE58: 2036 | AF58: 2037 | AG58: 2038 | AH58: 2039 | AI58: 2040 | AJ58: 2041 | AK58: 2042 | AL58: 2043 | AM58: 2044 | AN58: 2045
C59: VRGa predisposto dal soggetto competente | D59: SVILUPPO DEL MOLTIPLICATORE TARIFFARIO | E59: VRG_a | F59: 35 | G59: 103 | H59: 2937 | J59: euro | K59: =+VRG_Teta!E52 -> 0 | L59: =+VRG_Teta!F52 -> 0 | M59: =+VRG_Teta!G52 -> 0 | N59: =+VRG_Teta!H52 -> 0
C60: Ra-2b | D60: SVILUPPO DEL MOLTIPLICATORE TARIFFARIO | E60: Rb_a-2 | F60: 37 | G60: 103 | H60: 2937 | J60: euro | K60: =+VRG_Teta!E44 -> 0 | L60: =+VRG_Teta!F44 -> 0 | M60: =+VRG_Teta!G44 -> 0 | N60: =+VRG_Teta!H44 -> 0
C61: S tarif2015*vscala-2 | D61: SVILUPPO DEL MOLTIPLICATORE TARIFFARIO | E61: Sommatoria di ( tarif_2012*vscal_a-2) | F61: 38 | G61: 103 | H61: 2937 | J61: euro | K61: =+VRG_Teta!E42+VRG_Teta!E43+VRG_Teta!E45 -> 0 | L61: =+VRG_Teta!F42+VRG_Teta!F43+VRG_Teta!F45 -> 0 | M61: =+VRG_Teta!G42+VRG_Teta!G43+VRG_Teta!G45 -> 0 | N61: =+VRG_Teta!H42+VRG_Teta!H43+VRG_Teta!H45 -> 0
C62: Ja predisposto dal soggetto competente | D62: SVILUPPO DEL MOLTIPLICATORE TARIFFARIO | E62: teta_a | F62: 39 | G62: 103 | H62: 2937 | J62: n. (3 cifre decimali) | K62: =+VRG_Teta!E53 -> 0 | L62: =+VRG_Teta!F53 -> 0 | M62: =+VRG_Teta!G53 -> 0 | N62: =+VRG_Teta!H53 -> 0
C64: SVILUPPO DEL MOLTIPLICATORE TARIFFARIO applicabile (nelle more dell'approvazione AEEGSI)
J65: UdM | K65: 2016 | L65: 2017 | M65: 2018 | N65: 2019 | O65: 2020 | P65: 2021 | Q65: 2022 | R65: 2023 | S65: 2024 | T65: 2025 | U65: 2026 | V65: 2027 | W65: 2028 | X65: 2029 | Y65: 2030 | Z65: 2031 | AA65: 2032 | AB65: 2033 | AC65: 2034 | AD65: 2035 | AE65: 2036 | AF65: 2037 | AG65: 2038 | AH65: 2039 | AI65: 2040 | AJ65: 2041 | AK65: 2042 | AL65: 2043 | AM65: 2044 | AN65: 2045
C66: Limite al moltiplicatore tariffario | D66: SVILUPPO DEL MOLTIPLICATORE TARIFFARIO | E66: Limite al moltiplicatore tariffario (co. 9.3 All. A - MTI) | F66: 40 | G66: 103 | H66: 2937 | J66: n. (3 cifre decimali) | K66: =+VRG_Teta!E63 -> 0 | L66: =+VRG_Teta!F63 -> 0 | M66: =+VRG_Teta!G63 -> 0 | N66: =+VRG_Teta!H63 -> 0
C67: VRGa (coerente con J applicabile) | D67: SVILUPPO DEL MOLTIPLICATORE TARIFFARIO | E67: teta_applicabile | F67: 41 | G67: 103 | H67: 2937 | J67: euro | K67: =++MIN(VRG_Teta!E59,VRG_Teta!E62) -> 0 | L67: =++MIN(VRG_Teta!F59,VRG_Teta!F62) -> 0 | M67: =++MIN(VRG_Teta!G59,VRG_Teta!G62) -> 0 | N67: =++MIN(VRG_Teta!H59,VRG_Teta!H62) -> 0
C68: Ja applicabile | J68: n. (3 cifre decimali) | K68: =+IF(mti_2="escluso dall'aggiornamento",1,MIN(VRG_Teta!E60,+VRG_Teta!E63)) -> 0 | L68: =+IF(mti_2="escluso dall'aggiornamento",1,MIN(VRG_Teta!F60,+VRG_Teta!F63)) -> 0 | M68: =+IF(mti_2="escluso dall'aggiornamento",1,MIN(VRG_Teta!G60,+VRG_Teta!G63)) -> 0 | N68: =+IF(mti_2="escluso dall'aggiornamento",1,MIN(VRG_Teta!H60,+VRG_Teta!H63)) -> 0
C70: INVESTIMENTI | F70: 50
F71: 51 | I71: Note | J71: UdM | K71: 2016 | L71: 2017 | M71: 2018 | N71: 2019 | O71: 2020 | P71: 2021 | Q71: 2022 | R71: 2023 | S71: 2024 | T71: 2025 | U71: 2026 | V71: 2027 | W71: 2028 | X71: 2029 | Y71: 2030 | Z71: 2031 | AA71: 2032 | AB71: 2033 | AC71: 2034 | AD71: 2035 | AE71: 2036 | AF71: 2037 | AG71: 2038 | AH71: 2039 | AI71: 2040 | AJ71: 2041 | AK71: 2042 | AL71: 2043 | AM71: 2044 | AN71: 2045
C72: Investimenti al lordo dei contributi | D72: INVESTIMENTI | E72: Investimenti_Lordo | F72: 52 | G72: 103 | H72: 2937 | J72: euro | K72: =+K73+K74 -> 0 | L72: =+L73+L74 -> 0 | M72: 0 | N72: 0
C73: Contributi | D73: INVESTIMENTI | E73: Contributi | F73: 53 | G73: 103 | H73: 2937 | J73: euro | K73: =+Input_per_calcoli_finali!I45 -> 0 | L73: =+Input_per_calcoli_finali!J45 -> 0 | M73: =+Input_per_calcoli_finali!K45 -> 0 | N73: =+Input_per_calcoli_finali!L45 -> 0
C74: Investimenti al netto dei contributi | D74: INVESTIMENTI | E74: Investimenti_Netto | F74: 54 | G74: 103 | H74: 2937 | J74: euro | K74: =++Input_per_calcoli_finali!I44 -> 0 | L74: =++Input_per_calcoli_finali!J44 -> 0 | M74: =++Input_per_calcoli_finali!K44 -> 0 | N74: =++Input_per_calcoli_finali!L44 -> 0
C75: CIN | D75: INVESTIMENTI | E75: CIN | F75: 55 | G75: 103 | H75: 2937 | J75: euro | K75: =+Capex!E55 -> 0 | L75: =+Capex!F55 -> 0 | M75: =+Capex!G55 -> 0 | N75: =+Capex!H55 -> 0
C76: CINfp | D76: INVESTIMENTI | E76: CIN_fp | F76: 56 | G76: 103 | H76: 2937 | J76: euro | K76: =+Capex!E56 -> 0 | L76: =+Capex!F56 -> 0 | M76: =+Capex!G56 -> 0 | N76: =+Capex!H56 -> 0
C77: OF/CIN | D77: INVESTIMENTI | E77: OF_CIN | F77: 57 | G77: 103 | H77: 2937 | J77: % | K77: =+IF(ISERR(K29/K75),0,K29/K75) -> 0 | L77: =+IF(ISERR(L29/L75),0,L29/L75) -> 0 | M77: =+IF(ISERR(M29/M75),0,M29/M75) -> 0 | N77: =+IF(ISERR(N29/N75),0,N29/N75) -> 0
F78: 58
C79: VALORE RESIDUO A FINE CONCESSIONE | F79: 59
F80: 60 | I80: Note | J80: UdM | K80: valore
C81: Ipc,t | D81: VALORE RESIDUO A FINE CONCESSIONE | E81: Ip_c_t | F81: 61 | G81: 103 | H81: 2937 | J81: euro
C82: FAIP,c,t | D82: VALORE RESIDUO A FINE CONCESSIONE | E82: FA_IP_c_t | F82: 62 | G82: 103 | H82: 2937 | J82: euro
C83: CFPc,t | D83: VALORE RESIDUO A FINE CONCESSIONE | E83: CFP_c_t | F83: 63 | G83: 103 | H83: 2937 | J83: euro
C84: FACFP,c,t | D84: VALORE RESIDUO A FINE CONCESSIONE | E84: FACFP_c_t | F84: 64 | G84: 103 | H84: 2937 | J84: euro
C85: LIC | D85: VALORE RESIDUO A FINE CONCESSIONE | E85: LIC | F85: 65 | G85: 103 | H85: 2937 | J85: euro
C86: VR a fine concessione | D86: VALORE RESIDUO A FINE CONCESSIONE | E86: VR a fine concessione | F86: 66 | G86: 103 | H86: 2937 | J86: euro

Sheet conto_economico
B1: CONTO ECONOMICO
B2: Voce_Conto_Economico | C2: UdM | D2: 2016 | E2: 2017 | F2: 2018 | G2: 2019 | H2: 2020 | I2: 2021 | J2: 2022 | K2: 2023 | L2: 2024 | M2: 2025 | N2: 2026 | O2: 2027 | P2: 2028 | Q2: 2029 | R2: 2030 | S2: 2031 | T2: 2032 | U2: 2033 | V2: 2034 | W2: 2035 | X2: 2036 | Y2: 2037 | Z2: 2038 | AA2: 2039 | AB2: 2040 | AC2: 2041 | AD2: 2042 | AE2: 2043 | AF2: 2044 | AG2: 2045
B3: Ricavi da tariffe (al lordo del FoNI) | C3: euro
B4: Contributi di allacciamento | C4: euro
B5: Altri ricavi SII | C5: euro
B6: Ricavi da Altre Attività Idriche | C6: euro
B7: Totale Ricavi | C7: euro
B8: Costi Operativi (al netto del costo del personale) | C8: euro
B9: Costo del personale | C9: euro
B10: Totale Costi | C10: euro
B11: MOL | C11: euro
B12: Ammortamenti | C12: euro
B13: Reddito Operativo | C13: euro
B14: Interessi passivi | C14: euro
B15: Risultato ante imposte | C15: euro
B16: IRES | C16: euro
B17: IRAP | C17: euro
B18: Totale imposte | C18: euro
B19: Risultato di esercizio | C19: euro

Sheet rendiconto_finanziario
H1: RENDICONTO FINANZIARIO
B2: ID ATO | C2: Nome ATO | D2: Codice Aeeg | E2: Ragione Sociale | F2: AnnoRaccoltaDati | G2: AnnoDati | H2: Voce_Rendiconto_Finanziario | I2: n_riga | J2: ID ATO | K2: Codice Aeeg | L2: UdM | M2: 2016 | N2: 2017 | O2: 2018 | P2: 2019 | Q2: 2020 | R2: 2021 | S2: 2022 | T2: 2023 | U2: 2024 | V2: 2025 | W2: 2026 | X2: 2027 | Y2: 2028 | Z2: 2029 | AA2: 2030 | AB2: 2031 | AC2: 2032 | AD2: 2033 | AE2: 2034 | AF2: 2035 | AG2: 2036 | AH2: 2037 | AI2: 2038 | AJ2: 2039 | AK2: 2040 | AL2: 2041 | AM2: 2042 | AN2: 2043 | AO2: 2044 | AP2: 2045
B3: 103 | C3: ATO 3 - TORINO | D3: 2937 | E3: SMAT S.P.A. | F3: 2013 | G3: 2012 | H3: Ricavi da Tariffa SII (al netto del FONI) | I3: 1 | J3: 103 | K3: 2937 | L3: euro
B4: 103 | C4: ATO 3 - TORINO | D4: 2937 | E4: SMAT S.P.A. | F4: 2013 | G4: 2012 | H4: Contributi di allacciamento | I4: 2 | J4: 103 | K4: 2937 | L4: euro
B5: 103 | C5: ATO 3 - TORINO | D5: 2937 | E5: SMAT S.P.A. | F5: 2013 | G5: 2012 | H5: Altri ricavi SII | I5: 3 | J5: 103 | K5: 2937 | L5: euro
B6: 103 | C6: ATO 3 - TORINO | D6: 2937 | E6: SMAT S.P.A. | F6: 2013 | G6: 2012 | H6: Ricavi da Altre Attività Idriche | I6: 4 | J6: 103 | K6: 2937 | L6: euro
B7: 103 | C7: ATO 3 - TORINO | D7: 2937 | E7: SMAT S.P.A. | F7: 2013 | G7: 2012 | H7: RICAVI OPERATIVI | I7: 5 | J7: 103 | K7: 2937 | L7: euro
B8: 103 | C8: ATO 3 - TORINO | D8: 2937 | E8: SMAT S.P.A. | F8: 2013 | G8: 2012 | H8: Costi operativi | I8: 6 | J8: 103 | K8: 2937 | L8: euro
B9: 103 | C9: ATO 3 - TORINO | D9: 2937 | E9: SMAT S.P.A. | F9: 2013 | G9: 2012 | H9: COSTI OPERATIVI MONETARI | I9: 7 | J9: 103 | K9: 2937 | L9: euro
B10: 103 | C10: ATO 3 - TORINO | D10: 2937 | E10: SMAT S.P.A. | F10: 2013 | G10: 2012 | H10: Imposte | I10: 8 | J10: 103 | K10: 2937 | L10: euro
B11: 103 | C11: ATO 3 - TORINO | D11: 2937 | E11: SMAT S.P.A. | F11: 2013 | G11: 2012 | H11: IMPOSTE | I11: 9 | J11: 103 | K11: 2937 | L11: euro
B12: 103 | C12: ATO 3 - TORINO | D12: 2937 | E12: SMAT S.P.A. | F12: 2013 | G12: 2012 | H12: FLUSSI DI CASSA ECONOMICO | I12: 10 | J12: 103 | K12: 2937 | L12: euro
B13: 103 | C13: ATO 3 - TORINO | D13: 2937 | E13: SMAT S.P.A. | F13: 2013 | G13: 2012 | H13: Variazioni circolante commerciale | I13: 11 | J13: 103 | K13: 2937 | L13: euro
B14: 103 | C14: ATO 3 - TORINO | D14: 2937 | E14: SMAT S.P.A. | F14: 2013 | G14: 2012 | H14: Variazione credito IVA | I14: 12 | J14: 103 | K14: 2937 | L14: euro
B15: 103 | C15: ATO 3 - TORINO | D15: 2937 | E15: SMAT S.P.A. | F15: 2013 | G15: 2012 | H15: Variazione debito IVA | I15: 13 | J15: 103 | K15: 2937 | L15: euro
B16: 103 | C16: ATO 3 - TORINO | D16: 2937 | E16: SMAT S.P.A. | F16: 2013 | G16: 2012 | H16: FLUSSI DI CASSA OPERATIVO | I16: 14 | J16: 103 | K16: 2937 | L16: euro
B17: 103 | C17: ATO 3 - TORINO | D17: 2937 | E17: SMAT S.P.A. | F17: 2013 | G17: 2012 | H17: Investimenti con utilizzo del FoNI | I17: 15 | J17: 103 | K17: 2937 | L17: euro
B18: 103 | C18: ATO 3 - TORINO | D18: 2937 | E18: SMAT S.P.A. | F18: 2013 | G18: 2012 | H18: Altri investimenti | I18: 16 | J18: 103 | K18: 2937 | L18: euro
B19: 103 | C19: ATO 3 - TORINO | D19: 2937 | E19: SMAT S.P.A. | F19: 2013 | G19: 2012 | H19: FLUSSO DI CASSA ANTE FONTI FINANZIAMENTO | I19: 17 | J19: 103 | K19: 2937 | L19: euro
B20: 103 | C20: ATO 3 - TORINO | D20: 2937 | E20: SMAT S.P.A. | F20: 2013 | G20: 2012 | H20: FoNI | I20: 18 | J20: 103 | K20: 2937 | L20: euro
B21: 103 | C21: ATO 3 - TORINO | D21: 2937 | E21: SMAT S.P.A. | F21: 2013 | G21: 2012 | H21: Erogazione debito finanziario a breve | I21: 19 | J21: 103 | K21: 2937 | L21: euro
B22: 103 | C22: ATO 3 - TORINO | D22: 2937 | E22: SMAT S.P.A. | F22: 2013 | G22: 2012 | H22: Erogazione debito finanziario medio - lungo termine | I22: 20 | J22: 103 | K22: 2937 | L22: euro
B23: 103 | C23: ATO 3 - TORINO | D23: 2937 | E23: SMAT S.P.A. | F23: 2013 | G23: 2012 | H23: Erogazione contributi pubblici | I23: 21 | J23: 103 | K23: 2937 | L23: euro
B24: 103 | C24: ATO 3 - TORINO | D24: 2937 | E24: SMAT S.P.A. | F24: 2013 | G24: 2012 | H24: Apporto capitale sociale | I24: 22 | J24: 103 | K24: 2937 | L24: euro
B25: 103 | C25: ATO 3 - TORINO | D25: 2937 | E25: SMAT S.P.A. | F25: 2013 | G25: 2012 | H25: FLUSSO DI CASSA DISPONIBILE PER RIMBORSI | I25: 23 | J25: 103 | K25: 2937 | L25: euro
B26: 103 | C26: ATO 3 - TORINO | D26: 2937 | E26: SMAT S.P.A. | F26: 2013 | G26: 2012 | H26: Rimborso quota capitale per finanziamenti pregressi | I26: 24 | J26: 103 | K26: 2937 | L26: euro
B27: 103 | C27: ATO 3 - TORINO | D27: 2937 | E27: SMAT S.P.A. | F27: 2013 | G27: 2012 | H27: Rimborso quota interessi per finanziamenti pregressi | I27: 25 | J27: 103 | K27: 2937 | L27: euro
B28: 103 | C28: ATO 3 - TORINO | D28: 2937 | E28: SMAT S.P.A. | F28: 2013 | G28: 2012 | H28: Rimborso quota capitale per nuovi finanziamenti | I28: 26 | J28: 103 | K28: 2937 | L28: euro
B29: 103 | C29: ATO 3 - TORINO | D29: 2937 | E29: SMAT S.P.A. | F29: 2013 | G29: 2012 | H29: Rimborso quota interessi per nuovi finanziamenti | I29: 27 | J29: 103 | K29: 2937 | L29: euro
B30: 103 | C30: ATO 3 - TORINO | D30: 2937 | E30: SMAT S.P.A. | F30: 2013 | G30: 2012 | H30: TOTALE SERVIZIO DEL DEBITO | I30: 28 | J30: 103 | K30: 2937 | L30: euro
B31: 103 | C31: ATO 3 - TORINO | D31: 2937 | E31: SMAT S.P.A. | F31: 2013 | G31: 2012 | H31: FLUSSO DI CASSA DISPONIBILE POST SERVIZIO DEL DEBITO | I31: 29 | J31: 103 | K31: 2937 | L31: euro
B32: 103 | C32: ATO 3 - TORINO | D32: 2937 | E32: SMAT S.P.A. | F32: 2013 | G32: 2012 | H32: Valore residuo a fine concessione | I32: 30 | J32: 103 | K32: 2937 | L32: euro
B33: 103 | C33: ATO 3 - TORINO | D33: 2937 | E33: SMAT S.P.A. | F33: 2013 | G33: 2012 | H33: Stock di debito non rimborsato a fine affidamento (capitale + interessi) | I33: 31 | J33: 103 | K33: 2937 | L33: euro
H36: INDICATORI DI REDDITIVITA' E LIQUIDITA'
B37: ID ATO | C37: Nome ATO | D37: Codice Aeeg | E37: Ragione Sociale | F37: AnnoRaccoltaDati | G37: AnnoDati | H37: Indicatore | I37: n_riga | J37: ID ATO | K37: Codice Aeeg | L37: Udm
B38: 103 | C38: ATO 3 - TORINO | D38: 2937 | E38: SMAT S.P.A. | F38: 2013 | G38: 2012 | H38: TIR unlevered | I38: 1 | J38: 103 | K38: 2937 | L38: %
B39: 103 | C39: ATO 3 - TORINO | D39: 2937 | E39: SMAT S.P.A. | F39: 2013 | G39: 2012 | H39: TIR levered | I39: 2 | J39: 103 | K39: 2937 | L39: %
B40: 103 | C40: ATO 3 - TORINO | D40: 2937 | E40: SMAT S.P.A. | F40: 2013 | G40: 2012 | H40: ADSCR | I40: 3 | J40: 103 | K40: 2937 | L40: n.
B41: 103 | C41: ATO 3 - TORINO | D41: 2937 | E41: SMAT S.P.A. | F41: 2013 | G41: 2012 | H41: DSCR minimo | I41: 4 | J41: 103 | K41: 2937 | L41: n.
B42: 103 | C42: ATO 3 - TORINO | D42: 2937 | E42: SMAT S.P.A. | F42: 2013 | G42: 2012 | H42: LLCR | I42: 5 | J42: 103 | K42: 2937 | L42: n.

Sheet TT_Gestori
A6: Area elenco gestori in anagrafica | C6: aggiornata in data 14/3/2016
A7: IDAEEG | B7: P. IVA | C7: Denominazione / Ragione Sociale
A8: 5 | B8: 00734480213 | C8: AZIENDA PUBBLISERVIZI BRUNICO
A9: 52 | B9: 04015810874 | C9: SOGIP S.R.L.
A10: 55 | B10: 00343510228 | C10: COMUNE DI VERMIGLIO
A11: 78 | B11: 00128850229 | C11: AZIENDA ELETTRICA COMUNALE CASTELLO
A12: 79 | B12: 00124130220 | C12: COMUNE DI CAVALESE - AEC
A13: 81 | B13: 00090290149 | C13: COMUNE DI GROSOTTO
A14: 85 | B14: 00359000122 | C14: M.D.G. METANIFERA DI GAVIRATE S.R.L.
A15: 183 | B15: 00100510213 | C15: COMUNE DI PARCINES - SERVIZIO DISTRIBUZIONE E.E.
A16: 188 | B16: 00148360662 | C16: COMUNE DI BARETE
A17: 199 | B17: 00272300229 | C17: COMUNE DI PALU' DEL FERSINA
A18: 205 | B18: 03586470282 | C18: Infrastrutture Distribuzione Gas S.p.A.
A19: 206 | B19: 00431040229 | C19: COMUNE DI FAI DELLA PAGANELLA
A20: 230 | B20: 01210650436 | C20: A.S.SE.M. SPA
A21: 245 | B21: 00110390226 | C21: COMUNE DI AVIO
A22: 253 | B22: 02224280137 | C22: ASME SPA
A23: 258 | B23: 00161690664 | C23: COMUNE DI ANVERSA DEGLI ABRUZZI
A24: 259 | B24: 00291090876 | C24: COMUNE DI CASTIGLIONE DI SICILIA
A25: 308 | B25: 02191980420 | C25: MULTISERVIZI SPA
A26: 314 | B26: 00159650837 | C26: COMUNE DI FRANCAVILLA DI SICILIA
A27: 335 | B27: 02066710605 | C27: AMEA S.P.A.
A28: 337 | B28: 01471630184 | C28: ASM VIGEVANO E LOMELLINA SPA
A29: 349 | B29: 00114540669 | C29: COMUNE DI CASTEL DEL MONTE
A30: 371 | B30: 02216150017 | C30: COMUNE DI VALPRATO SOANA
A31: 380 | B31: 13171830154 | C31: EROGASMET S.P.A.
A32: 387 | B32: 01599690185 | C32: BRONI-STRADELLA S.P.A
A33: 420 | B33: 01830160063 | C33: A.M.A.G. SPA
A34: 424 | B34: 01812230223 | C34: STET SPA - SERVIZI TERRITORIALI EST TRENTINO
A35: 433 | B35: 02127560163 | C35: AMIAS SERVIZI SRL
A36: 436 | B36: 02231010212 | C36: SEAB - SERVIZI ENERGIA AMBIENTE BOLZANO S.P.A. / SEAB - ENERGIE- UMWELTBETRIEBE BOZEN A.G.
A37: 439 | B37: 00399050087 | C37: AMAIE SPA
A38: 464 | B38: 01474680418 | C38: ASET S.P.A.
A39: 505 | B39: 01733220022 | C39: EDIGAS ESERCIZIO DISTRIBUZIONE GAS S.P.A
A40: 542 | B40: 00319630224 | C40: COMUNE DI ANDALO
A41: 544 | B41: 00482100211 | C41: Comune di Corvara in Badia
A42: 583 | B42: 00186560215 | C42: COMUNE DI TIRES - AZIENDA ELETTRICA
A43: 630 | B43: 02728750247 | C43: ACQUE DEL CHIAMPO S.P.A. SERVIZIO IDRICO INTEGRATO
A44: 650 | B44: 00149120222 | C44: COMUNE DI MOLVENO - AZIENDA ELETTRICA COMUNALE
A45: 666 | B45: 00100580216 | C45: ASM - AZIENDA SERVIZI MUNICIPALIZZATI LACES
A46: 691 | B46: 00307860221 | C46: COMUNE DI PIEVE DI BONO
A47: 692 | B47: 00971870258 | C47: BIM GESTIONE SERVIZI PUBBLICI SPA
A48: 723 | B48: 00414320218 | C48: COMUNE DI TUBRE
A49: 739 | B49: 02315390985 | C49: SERVER SRL
A50: 759 | B50: 01177760491 | C50: A.S.A. - AZIENDA SERVIZI AMBIENTALI SPA
A51: 765 | B51: 00500910229 | C51: COMUNE DI STRIGNO
A52: 779 | B52: 00807660212 | C52: COMUNE DI SLUDERNO
A53: 780 | B53: 01531350229 | C53: ASM TIONE - AZIENDA SERVIZI MUNICIPALIZZATI
A54: 805 | B54: 00126510213 | C54: AZIENDA ELETTRICA COMUNALE - VIPITENO
A55: 813 | B55: 00575780986 | C55: COMUNE DI MALONNO
A56: 815 | B56: 00172780702 | C56: COMUNE DI JELSI
A57: 841 | B57: 04245520376 | C57: HERA S.P.A.
A58: 896 | B58: 01300290192 | C58: ASPM SORESINA SERVIZI SRL
A59: 926 | B59: 00930530324 | C59: AcegasApsAmga S.p.A.
A60: 927 | B60: 01581060223 | C60: ALTO GARDA SERVIZI SPA
A61: 940 | B61: 01639620069 | C61: AZIENDA MULTISERVIZI CASALESE SPA
A62: 942 | B62: 00577230980 | C62: COMUNE DI EDOLO
A63: 960 | B63: 02480540125 | C63: ASPEM S.P.A.
A64: 990 | B64: 01938630025 | C64: ATENA SPA
A65: 992 | B65: 01405600220 | C65: Dolomiti Reti S.p.a
A66: 1026 | B66: 01723300206 | C66: A.SE.P. S.P.A.
A67: 1042 | B67: 00453310211 | C67: Comune di Nalles
A68: 1045 | B68: 01501460438 | C68: ASTEA SPA
A69: 1090 | B69: 00664670361 | C69: AIMAG S.P.A.
A70: 1161 | B70: 02569060540 | C70: VALLE UMBRA SERVIZI S.P.A.
A71: 1188 | B71: 01349510436 | C71: ATAC CIVITANOVA SPA UNIPERSONALE
A72: 1193 | B72: 02259590129 | C72: Lura Ambiente SpA
A73: 1211 | B73: 00584970982 | C73: COMUNE DI VEZZA D'OGLIO
A74: 1218 | B74: 03119540130 | C74: LARIO RETI HOLDING
A75: 1226 | B75: 00148590227 | C75: COMUNE DI PREDAZZO - AEC
A76: 1234 | B76: 00203870225 | C76: COMUNE DI ISERA
A77: 1250 | B77: 00278030630 | C77: COMPAGNIA NAPOLETANA DI ILLUMINAZIONE E SCALDAMENTO COL GAS S.P.A.
A78: 1261 | B78: 02013000985 | C78: AZIENDA SERVIZI VALTROMPIA SPA
A79: 1280 | B79: 02059030417 | C79: Marche Multiservizi S.p.A.
A80: 1300 | B80: 02119730428 | C80: ACQUAMBIENTE MARCHE SRL
A81: 1310 | B81: 00070680947 | C81: COMUNE DI FROSOLONE
A82: 1330 | B82: 01106460213 | C82: COMUNE DI VANDOIES
A83: 1343 | B83: 01717730210 | C83: AZIENDA SERVIZI DI BRESSANONE SPA
A84: 1348 | B84: 00670090141 | C84: S.EC.AM. S.P.A.
A85: 1352 | B85: 00149220220 | C85: COMUNE DI SANT'ORSOLA TERME
A86: 1362 | B86: 00437620222 | C86: COMUNE DI CALDES
A87: 1373 | B87: 00571350214 | C87: COMUNE DI CURON VENOSTA (BZ)
A88: 1391 | B88: 00196170666 | C88: COMUNE DI PACENTRO
A89: 1392 | B89: 01210690432 | C89: A.S.S.M. S.P.A. - TOLENTINO
A90: 1417 | B90: 01579450220 | C90: A.I.R. - AZ. INTERCOMUNALE ROTALIANA S.P.A.
A91: 1439 | B91: 00111860193 | C91: PADANIA ACQUE S.P.A.
A92: 1440 | B92: 01522960671 | C92: RUZZO RETI SPA
A93: 1473 | B93: 00149160228 | C93: COMUNE DI VARENA
A94: 1531 | B94: 00129330213 | C94: COMUNE DI CAMPO TURES
A95: 1552 | B95: 02181280138 | C95: AZIENDA SERVIZI INTEGRATI LAMBRO
A96: 1643 | B96: 01531480216 | C96: ECO-CENTER SPA
A97: 1657 | B97: 01142420056 | C97: A.S.P. S.P.A.
A98: 1699 | B98: 00244230082 | C98: Comune di Molini di Triora
A99: 1704 | B99: 02177670649 | C99: IRNO SERVICE S.P.A.
A100: 1711 | B100: 00726790983 | C100: GARDA UNO S.P.A
A101: 1761 | B101: 00132380874 | C101: ACOSET
A102: 1768 | B102: 00171760242 | C102: PEDEMONTANA PATRIMONIO E SERVIZI SRL
A103: 1791 | B103: 01133700219 | C103: Comune di Rio di Pusteria
A104: 1873 | B104: 00296550221 | C104: COMUNE DI VILLA RENDENA
A105: 1879 | B105: 00144520665 | C105: COMUNE DI ROCCA PIA
A106: 1905 | B106: 00104260229 | C106: AEC - COMUNE DI CLES
A107: 1927 | B107: 00827900218 | C107: COMUNE DI MALLES VENOSTA
A108: 1961 | B108: 00337870406 | C108: Romagna Acque Società delle Fonti S.p.A.
A109: 1964 | B109: 09909860018 | C109: AIDA AMBIENTE SRL
A110: 1976 | B110: 00070680707 | C110: COMUNE DI SAN GIULIANO DI PUGLIA
A111: 1988 | B111: 00075910703 | C111: COMUNE DI RICCIA
A112: 2071 | B112: 01685020065 | C112: Azienda Multiservizi Valenzana Spa
A113: 2136 | B113: 00125770073 | C113: COMUNE DI CHAMPDEPRAZ
A114: 2149 | B114: 00617120217 | C114: Comune di Cornedo all'Isarco
A115: 2189 | B115: 03341820276 | C115: VERITAS SPA
A116: 2323 | B116: 00177740214 | C116: Comune Moso in Passiria
A117: 2325 | B117: 00409340213 | C117: COMUNE DI PERCA
A118: 2326 | B118: 00447010216 | C118: Gemeinde St. Leonhard in Passeier
A119: 2332 | B119: 01081070219 | C119: Gemeinde Lüsen
A120: 2510 | B120: 02119870208 | C120: TEA ACQUE
A121: 2572 | B121: 00409320215 | C121: comune di Rasun-Anterselva
A122: 2872 | B122: 00146270228 | C122: COMUNE DI BASELGA DI PINE'
A123: 2886 | B123: 00288090228 | C123: COMUNE DI CARISOLO
A124: 2933 | B124: 00114190143 | C124: COMUNE DI TEGLIO
A125: 2937 | B125: 07937540016 | C125: SOCIETA' METROPOLITANA ACQUE TORINO
A126: 2958 | B126: 00432110211 | C126: Comune Città di Glorenza
A127: 2967 | B127: 03278040245 | C127: ETRA SPA
A128: 2982 | B128: 07063880962 | C128: Acsm-Agam reti gas-acqua S.p.A.
A129: 3005 | B129: 02199110020 | C129: CONSORZIO DI BONIFICA DELLA BARAGGIA BIELLESE E VERCELLESE
A130: 3045 | B130: 01791490343 | C130: IRETI S.p.A.
A131: 3061 | B131: 01340850211 | C131: Comunità Comprensoriale Val Venosta
A132: 3125 | B132: 00347000721 | C132: ACQUEDOTTO PUGLIESE SPA
A133: 3182 | B133: 02686791209 | C133: EUROFOX ITALIA S.r.l.
A134: 3299 | B134: 03258180987 | C134: A2A CICLO IDRICO
A135: 3548 | B135: 01066120211 | C135: Gemeinde Terlan
A136: 3577 | B136: 01093630216 | C136: Comune di Chiusa
A137: 3659 | B137: 00508670213 | C137: Comune di Chienes
A138: 3720 | B138: 00575930219 | C138: COMUNE DI SARENTINO
A139: 3733 | B139: 01965360991 | C139: MEDITERRANEA DELLE ACQUE SOCIETA' PER AZIONI
A140: 3800 | B140: 00266900224 | C140: COMUNE DI FONDO
A141: 3913 | B141: 00169490257 | C141: CONSORZIO PER L'ACQUEDOTTO DI AZZON
A142: 4080 | B142: 00232370213 | C142: Comune di Marlengo
A143: 4082 | B143: 00253800213 | C143: Comune di Verano
A144: 4917 | B144: 00446860215 | C144: Comune di Scena
A145: 5096 | B145: 00848050217 | C145: Comune di Lasa
A146: 5098 | B146: 00194370219 | C146: Comune di Lana
A147: 5156 | B147: 01084890217 | C147: Gemeinde Jenesien
A148: 5461 | B148: 00264460213 | C148: Comune di Appiano sulla Strada del Vino
A149: 5462 | B149: 00668860216 | C149: Comune di Terento
A150: 5516 | B150: 00247030224 | C150: COMUNE DI CASTELLO TESINO
A151: 5673 | B151: 00243880127 | C151: comune di jerago con orago
A152: 6958 | B152: 00689390573 | C152: SO.GE.A. S.P.A.
A153: 7146 | B153: 02050020136 | C153: VALBE SERVIZI S.P.A.
A154: 7331 | B154: 01271960021 | C154: CO.R.D.A.R. VALSESIA spa
A155: 7345 | B155: 00073940058 | C155: ACQUEDOTTO VALTIGLIONE S.P.A.
A156: 7373 | B156: 03798601211 | C156: ENERGIA VERDE ED IDRICA SPA IN LIQUIDAZIONE
A157: 7379 | B157: 00162000871 | C157: COMUNE DI ACI CASTELLO
A158: 7381 | B158: 01880180060 | C158: GESTIONE ACQUA SPA
A159: 7391 | B159: 00559790126 | C159: COMUNE DI BRUSIMPIANO
A160: 7396 | B160: 01070220312 | C160: IRISACQUA SRL
A161: 7423 | B161: 00305100190 | C161: COMUNE DI BORDOLANO
A162: 7442 | B162: 00411590136 | C162: COMODEPUR
A163: 7462 | B163: 03299640163 | C163: UNIACQUE SPA
A164: 7473 | B164: 00593600984 | C164: Comune di Cerveno
A165: 7521 | B165: 04564950485 | C165: Acque Toscane
A166: 7534 | B166: 01250250550 | C166: SERVIZIO IDRICO INTEGRATO S.C.p.A.
A167: 7608 | B167: 04201250877 | C167: SERVIZI IDRICI ETNEI S.P.A
A168: 7700 | B168: 01280290386 | C168: C.A.D.F. S.p.A.
A169: 7702 | B169: 00182790659 | C169: Consac Gestioni Idriche S.p.a.
A170: 7725 | B170: 00934000621 | C170: Gestione Servizi Sannio - GE.SE.SA.
A171: 7778 | B171: 01321570663 | C171: SACA SERVIZI AMBIENTALI CENTRO ABRUZZO
A172: 7806 | B172: 00451260046 | C172: ACQUEDOTTO LANGHE E ALPI CUNEESI SPA
A173: 7887 | B173: 01553450899 | C173: SAI 8 S.p.A
A174: 7942 | B174: 00131630873 | C174: Acque di Casalotto S.p.A.
A175: 8051 | B175: 01270510660 | C175: Consorzio Aquedottistico Marsicano S.p.a.
A176: 8054 | B176: 02634920546 | C176: Umbra Acque S.p.A.
A177: 8092 | B177: 03079180364 | C177: SORGEAQUA S.R.L.
A178: 8186 | B178: 00451940043 | C178: CALSO SPA - COMUNI DELL'ACQUEDOTTO LANGHE SUD OCCIDENTALI SPA
A179: 8241 | B179: 00133090878 | C179: ACQUE CARCACI DEL FASANO SPA
A180: 8246 | B180: 01855890230 | C180: AZIENDA GARDESANA SERVIZI SPA
A181: 8294 | B181: 01390570065 | C181: CONSORZIO DEPURAZIONE ACQUE REFLUE DELLA VALLE DELL'ORBA
A182: 8302 | B182: 02102300064 | C182: COMUNI RIUNITI BELFORTE MONFERRATO SRL
A183: 8739 | B183: 03170640043 | C183: Azienda Intercomunale Gestione Ottimale del Ciclo Idrico Integrato (AIGO)
A184: 9039 | B184: 04017080872 | C184: A.M.A. S.p.A.
A185: 9229 | B185: 02504010345 | C185: EMILIAMBIENTE
A186: 9240 | B186: 02371210135 | C186: PRAGMA SPA
A187: 9253 | B187: 01866890021 | C187: CORDAR SPA BIELLA SERVIZI
A188: 9281 | B188: 02180710879 | C188: ACQUE SUD S.R.L.
A189: 9369 | B189: 00083520668 | C189: GRAN SASSO ACQUA S.P.A.
A190: 9613 | B190: 01489020204 | C190: Vesentini Sandro
A191: 9735 | B191: 02156920304 | C191: CARNIACQUE
A192: 9768 | B192: 00593060650 | C192: AUSINO S.P.A
A193: 9842 | B193: 02775910132 | C193: CANTURINA SERVIZI TERRITORIALI S.P.A.
A194: 9844 | B194: 00268520657 | C194: ASIS SALERNITANA RETI ED IMPIANTI SPA
A195: 9907 | B195: 00057170946 | C195: Comune di Capracotta
A196: 9909 | B196: 05175700482 | C196: Acque S.p.A.
A197: 9918 | B197: 02111820029 | C197: COMUNI RIUNITI SOCIETA' DI GESTIONE DI SERVIZI COMUNALI
A198: 10042 | B198: 01494020462 | C198: G.E.A.L. S.P.A. Gestione esercizio acquedotti Lucchesi
A199: 10202 | B199: 07599620635 | C199: G.O.R.I. S.p.A. - GESTIONE OTTIMALE RISORSE IDRICHE
A200: 10468 | B200: 02200370167 | C200: realizzazione e gestione servizi pubblici locali spa
A201: 10612 | B201: 00064780281 | C201: CENTRO VENETO SERVIZI SPA
A202: 10626 | B202: 02645680162 | C202: ABM NEXT SRL
A203: 10783 | B203: 02468770041 | C203: Azienda Cuneese Dell' Acqua-Società per Azioni
A204: 10839 | B204: 02482390842 | C204: GIRGENTI ACQUE S.P.A.
A205: 10912 | B205: 00475450185 | C205: COMUNE DI ROMAGNESE
... 1603 more rows

Sheet TT_Comuni_ATO
A1: REGIONE | B1: Comune | C1: Comune_Prov | D1: Ente_Ambito | E1: ID_ATO | F1: ID_ATO | G1: PROVINCIA | H1: PROV | I1: Istat_Comune | J1: Comune | L1: ATO | M1: ID_ATO | N1: ID_ATO | O1: N/C/S | Q1: ID_Ente_Ambito | R1: Ente_Ambito | V1: ID_ATO | X1: Comune_Prov | Y1: Istat_Comune | Z1: REGIONE | AA1: PROVINCIA | AB1: PROV | AC1: Comune | AD1: Ente_Ambito | AE1: ID_ATO | AF1: ID_ATO
A2: VENETO | B2: Abano Terme | C2: Abano Terme (PD) | D2: Consiglio di Bacino Bacchiglione | E2: 502 | F2: 502 | G2: PADOVA | H2: PD | I2: 028001 | J2: Abano Terme | L2: ATO SARDEGNA | M2: 2001 | N2: 2001 | O2: S | Q2: 19855 | R2: Consiglio di Bacino Brenta
A3: LOMBARDIA | B3: Abbadia Cerreto | C3: Abbadia Cerreto (LO) | D3: UFFICIO D'AMBITO DI LODI | E3: 307 | F3: 307 | G3: LODI | H3: LO | I3: 098001 | J3: Abbadia Cerreto | L3: ATO 1 - AMBITO 1-2 | M3: 1001 | N3: 1001 | O3: C | Q3: 19856 | R3: Consulta d'Ambito Territoriale Ottimale Orientale Goriziano
A4: LOMBARDIA | B4: Abbadia Lariana | C4: Abbadia Lariana (LC) | D4: Ufficio d'ambito di Lecco | E4: 306 | F4: 306 | G4: LECCO | H4: LC | I4: 097001 | J4: Abbadia Lariana | L4: ATO 1 - AQUILANO | M4: 1301 | N4: 1301 | O4: S | Q4: 19857 | R4: ATO 1 Verbano Cusio Ossola e Pianura Novarese
A5: TOSCANA | B5: Abbadia San Salvatore | C5: Abbadia San Salvatore (SI) | D5: Autorità Idrica Toscana | E5: 906 | F5: 906 | G5: SIENA | H5: SI | I5: 052001 | J5: Abbadia San Salvatore | L5: ATO 1 - COSENZA | M5: 1801 | N5: 1801 | O5: S | Q5: 19858 | R5: Consiglio di Bacino Valle del Chiampo
A6: SARDEGNA | B6: Abbasanta | C6: Abbasanta (OR) | D6: Ente di Governo dell'Ambito della Sardegna | E6: 2001 | F6: 2001 | G6: ORISTANO | H6: OR | I6: 095001 | J6: Abbasanta | L6: ATO 1 - LAZIO NORD VITERBO | M6: 1201 | N6: 1201 | O6: C | Q6: 19859 | R6: Consiglio di Bacino Veronese
A7: ABRUZZO | B7: Abbateggio | C7: Abbateggio (PE) | D7: A.T.O. Pescara | E7: 1304 | F7: 1304 | G7: PESCARA | H7: PE | I7: 068001 | J7: Abbateggio | L7: ATO 1 - MARCHE NORD PESARO E URBINO | M7: 1101 | N7: 1101 | O7: C | Q7: 19860 | R7: UFFICIO D'AMBITO DELLA PROVINCIA DI SONDRIO
A8: LOMBARDIA | B8: Abbiategrasso | C8: Abbiategrasso (MI) | D8: Ufficio d'Ambito della Città metropolitana di Milano | E8: 308 | F8: 308 | G8: MILANO | H8: MI | I8: 015002 | J8: Abbiategrasso | L8: ATO 1 - PALERMO | M8: 1901 | N8: 1901 | O8: S | Q8: 19861 | R8: Ente d'Ambito Chietino
A9: TOSCANA | B9: Abetone | C9: Abetone (PT) | D9: Autorità Idrica Toscana | E9: 901 | F9: 901 | G9: PISTOIA | H9: PT | I9: 047001 | J9: Abetone | L9: ATO 1 - PIACENZA | M9: 801 | N9: 801 | O9: N | Q9: 19862 | R9: UFFICIO DI AMBITO DELLA PROVINCIA DI MANTOVA
A10: BASILICATA | B10: Abriola | C10: Abriola (PZ) | D10: Autorità d'Ambito Territoriale Ottimale della Basilicata | E10: 1701 | F10: 1701 | G10: POTENZA | H10: PZ | I10: 076001 | J10: Abriola | L10: ATO 1 - TOSCANA NORD | M10: 901 | N10: 901 | O10: C | Q10: 19863 | R10: Autorità di Ambito Calore Irpino
A11: SICILIA | B11: Acate | C11: Acate (RG) | D11: Autorità Ambito Territoriale Ottimale Ragusa "idrico" | E11: 1904 | F11: 1904 | G11: RAGUSA | H11: RG | I11: 088001 | J11: Acate | L11: ATO 1 - VERBANO-CUSIO-OSSOLA E PIANURA NOVARESE | M11: 101 | N11: 101 | O11: N | Q11: 19864 | R11: Consiglio di Bacino "Dolomiti Bellunesi"
A12: PUGLIA | B12: Accadia | C12: Accadia (FG) | D12: Autorità Idrica Pugliese | E12: 1601 | F12: 1601 | G12: Foggia | H12: FG | I12: 071001 | J12: Accadia | L12: ATO 2 - AMBITO 3 | M12: 1002 | N12: 1002 | O12: C | Q12: 19865 | R12: Consiglio di Bacino Polesine
A13: PIEMONTE | B13: Acceglio | C13: Acceglio (CN) | D13: Autorità di Ambito Territoriale Ottimale n.4 Cuneese | E13: 104 | F13: 104 | G13: CUNEO | H13: CN | I13: 004001 | J13: Acceglio | L13: ATO 2 - BASSO VALDARNO (PISA) | M13: 902 | N13: 902 | O13: C | Q13: 19867 | R13: ATO VARESE
A14: BASILICATA | B14: Accettura | C14: Accettura (MT) | D14: Autorità d'Ambito Territoriale Ottimale della Basilicata | E14: 1701 | F14: 1701 | G14: MATERA | H14: MT | I14: 077001 | J14: Accettura | L14: ATO 2 - BIELLESE, VERCELLESE, CASALESE | M14: 102 | N14: 102 | O14: N | Q14: 19869 | R14: Consiglio di Bacino Bacchiglione
A15: ABRUZZO | B15: Acciano | C15: Acciano (AQ) | D15: Ente d'Ambito Aquilano | E15: 1301 | F15: 1301 | G15: L'AQUILA | H15: AQ | I15: 066001 | J15: Acciano | L15: ATO 2 - CATANIA | M15: 1902 | N15: 1902 | O15: S | Q15: 19872 | R15: Autorità d'Ambito Territoriale Ottimale Veneto Orientale
A16: LAZIO | B16: Accumoli | C16: Accumoli (RI) | D16: ATO3 RIETI | E16: 1203 | F16: 1203 | G16: RIETI | H16: RI | I16: 057001 | J16: Accumoli | L16: ATO 2 - CATANZARO | M16: 1802 | N16: 1802 | O16: S | Q16: 19873 | R16: Autorità di Ambito Territoriale Ottimale della Provincia di Imperia
A17: BASILICATA | B17: Acerenza | C17: Acerenza (PZ) | D17: Autorità d'Ambito Territoriale Ottimale della Basilicata | E17: 1701 | F17: 1701 | G17: POTENZA | H17: PZ | I17: 076002 | J17: Acerenza | L17: ATO 2 - LAZIO CENTRALE ROMA | M17: 1202 | N17: 1202 | O17: C | Q17: 19874 | R17: CONSORZIO DI AMBITO AGRIGENTO S.I.I.
A18: CAMPANIA | B18: Acerno | C18: Acerno (SA) | D18: Autorità di Ambito Sele | E18: 1503 | F18: 1503 | G18: SALERNO | H18: SA | I18: 065001 | J18: Acerno | L18: ATO 2 - MARCHE CENTRO ANCONA | M18: 1102 | N18: 1102 | O18: C | Q18: 19876 | R18: Ente d'Ambito Napoli Volturno
A19: CAMPANIA | B19: Acerra | C19: Acerra (NA) | D19: Ente d'Ambito Napoli Volturno | E19: 1505 | F19: 1502 | G19: NAPOLI | H19: NA | I19: 063001 | J19: Acerra | L19: ATO 2 - MARSICANO | M19: 1302 | N19: 1302 | O19: S | Q19: 19879 | R19: Ente d'Ambito Sarnese Vesuviano
A20: SICILIA | B20: Aci Bonaccorsi | C20: Aci Bonaccorsi (CT) | D20: CONSORZIO AMBITO TERRITORIALE OTTIMALE 2 CATANIA | E20: 1902 | F20: 1902 | G20: CATANIA | H20: CT | I20: 087001 | J20: Aci Bonaccorsi | L20: ATO 2 - PARMA | M20: 802 | N20: 802 | O20: N | Q20: 19880 | R20: UFFICIO D'AMBITO DI LODI
A21: SICILIA | B21: Aci Castello | C21: Aci Castello (CT) | D21: CONSORZIO AMBITO TERRITORIALE OTTIMALE 2 CATANIA | E21: 1902 | F21: 1902 | G21: CATANIA | H21: CT | I21: 087002 | J21: Aci Castello | L21: ATO 3 - AMBITO 4 | M21: 1003 | N21: 1003 | O21: C | Q21: 19881 | R21: UFFICIO D'AMBITO DELLA PROVINCIA DI CREMONA
A22: SICILIA | B22: Aci Catena | C22: Aci Catena (CT) | D22: CONSORZIO AMBITO TERRITORIALE OTTIMALE 2 CATANIA | E22: 1902 | F22: 1902 | G22: CATANIA | H22: CT | I22: 087003 | J22: Aci Catena | L22: ATO 3 - CROTONE | M22: 1803 | N22: 1803 | O22: S | Q22: 19882 | R22: Autorità Idrica Pugliese
A23: SICILIA | B23: Aci Sant'Antonio | C23: Aci Sant'Antonio (CT) | D23: CONSORZIO AMBITO TERRITORIALE OTTIMALE 2 CATANIA | E23: 1902 | F23: 1902 | G23: CATANIA | H23: CT | I23: 087005 | J23: Aci Sant'Antonio | L23: ATO 3 - LAZIO CENTRALE RIETI | M23: 1203 | N23: 1203 | O23: C | Q23: 19883 | R23: Autorità d'Ambito Territoriale Ottimale 4 Lazio Meridionale - Latina
A24: SICILIA | B24: Acireale | C24: Acireale (CT) | D24: CONSORZIO AMBITO TERRITORIALE OTTIMALE 2 CATANIA | E24: 1902 | F24: 1902 | G24: CATANIA | H24: CT | I24: 087004 | J24: Acireale | L24: ATO 3 - MARCHE CENTRO MACERATA | M24: 1103 | N24: 1103 | O24: C | Q24: 19884 | R24: ATO 2 Biellese, Vercellese e Casalese
A25: MARCHE | B25: Acquacanina | C25: Acquacanina (MC) | D25: Autorità di Ambito Territoriale Ottimale n. 3 MARCHE CENTRO - MACERATA | E25: 1103 | F25: 1103 | G25: MACERATA | H25: MC | I25: 043001 | J25: Acquacanina | L25: ATO 3 - MEDIO VALDARNO (FIRENZE) | M25: 903 | N25: 903 | O25: C | Q25: 19885 | R25: Ufficio d'ambito di Lecco
A26: LAZIO | B26: Acquafondata | C26: Acquafondata (FR) | D26: Autorità d'Ambito Territoriale Ottimale 5 Lazio Meridionale - Frosinone | E26: 1205 | F26: 1205 | G26: FROSINONE | H26: FR | I26: 060001 | J26: Acquafondata | L26: ATO 3 - MESSINA | M26: 1903 | N26: 1903 | O26: S | Q26: 19886 | R26: Autorità di Ambito Territoriale Ottimale n. 2 Marche Centro - Ancona
A27: CALABRIA | B27: Acquaformosa | C27: Acquaformosa (CS) | D27: Regione Calabria | E27: 1801 | F27: 1801 | G27: COSENZA | H27: CS | I27: 078001 | J27: Acquaformosa | L27: ATO 3 - PELIGNO ALTO SANGRO | M27: 1303 | N27: 1303 | O27: S | Q27: 19887 | R27: Ente d'Ambito Teramano
A28: LOMBARDIA | B28: Acquafredda | C28: Acquafredda (BS) | D28: ATO BRESCIA | E28: 302 | F28: 302 | G28: BRESCIA | H28: BS | I28: 017001 | J28: Acquafredda | L28: ATO 3 - REGGIO NELL'EMILIA | M28: 803 | N28: 803 | O28: N | Q28: 19888 | R28: Consiglio di Bacino Laguna di Venezia
A29: MARCHE | B29: Acqualagna | C29: Acqualagna (PU) | D29: Autorità di Ambito Territoriale Ottimale n. 1 MARCHE NORD - PESARO URBINO | E29: 1101 | F29: 1101 | G29: PESARO E URBINO | H29: PU | I29: 041001 | J29: Acqualagna | L29: ATO 3 - TORINO | M29: 103 | N29: 103 | O29: N | Q29: 19890 | R29: A.T.O. Pescara
A30: LOMBARDIA | B30: Acquanegra Cremonese | C30: Acquanegra Cremonese (CR) | D30: UFFICIO D'AMBITO DELLA PROVINCIA DI CREMONA | E30: 305 | F30: 305 | G30: CREMONA | H30: CR | I30: 019001 | J30: Acquanegra Cremonese | L30: ATO 4 - ALTO VALDARNO (AREZZO) | M30: 904 | N30: 904 | O30: C | Q30: 19893 | R30: CONSORZIO AMBITO TERRITORIALE OTTIMALE 2 CATANIA
A31: LOMBARDIA | B31: Acquanegra sul Chiese | C31: Acquanegra sul Chiese (MN) | D31: UFFICIO DI AMBITO DELLA PROVINCIA DI MANTOVA | E31: 309 | F31: 309 | G31: MANTOVA | H31: MN | I31: 020001 | J31: Acquanegra sul Chiese | L31: ATO 4 - CUNEO | M31: 104 | N31: 104 | O31: N | Q31: 19898 | R31: Ambito Territoriale Ottimale 2 Lazio Centrale - Roma
A32: LAZIO | B32: Acquapendente | C32: Acquapendente (VT) | D32: Autorità d'Ambito dell'A.T.O. n° 1 Lazio Nord - Viterbo | E32: 1201 | F32: 1201 | G32: VITERBO | H32: VT | I32: 056001 | J32: Acquapendente | L32: ATO 4 - LAZIO MERIDIONALE LATINA | M32: 1204 | N32: 1204 | O32: C | Q32: 19900 | R32: UFFICIO D'AMBITO DELLA PROVINCIA DI BERGAMO
A33: CALABRIA | B33: Acquappesa | C33: Acquappesa (CS) | D33: Regione Calabria | E33: 1801 | F33: 1801 | G33: COSENZA | H33: CS | I33: 078002 | J33: Acquappesa | L33: ATO 4 - MARCHE SUD ALTO PICENO MACERATESE | M33: 1104 | N33: 1104 | O33: C | Q33: 19901 | R33: Autorità di Ambito Territoriale Ottimale n.4 Cuneese
A34: PUGLIA | B34: Acquarica del Capo | C34: Acquarica del Capo (LE) | D34: Autorità Idrica Pugliese | E34: 1601 | F34: 1601 | G34: Lecce | H34: LE | I34: 075001 | J34: Acquarica del Capo | L34: ATO 4 - MODENA | M34: 804 | N34: 804 | O34: N | Q34: 19905 | R34: ATO 6 ALESSANDRINO
A35: CALABRIA | B35: Acquaro | C35: Acquaro (VV) | D35: Regione Calabria | E35: 1804 | F35: 1804 | G35: VIBO VALENTIA | H35: VV | I35: 102001 | J35: Acquaro | L35: ATO 4 - PESCARA | M35: 1304 | N35: 1304 | O35: S | Q35: 19906 | R35: Ente d'Ambito Peligno Alto Sangro
A36: MARCHE | B36: Acquasanta Terme | C36: Acquasanta Terme (AP) | D36: Autorità di Ambito Territoriale Ottimale n. 5 MARCHE SUD - ASCOLI PICENO | E36: 1105 | F36: 1105 | G36: ASCOLI PICENO | H36: AP | I36: 044001 | J36: Acquasanta Terme | L36: ATO 4 - RAGUSA | M36: 1904 | N36: 1904 | O36: S | Q36: 19907 | R36: Ente d'ambito Marsicano n° 2
A37: UMBRIA | B37: Acquasparta | C37: Acquasparta (TR) | D37: Ambito Territoriale Integrato N. 4 | E37: 1003 | F37: 1003 | G37: TERNI | H37: TR | I37: 055001 | J37: Acquasparta | L37: ATO 4 - VIBO VALENTIA | M37: 1804 | N37: 1804 | O37: S | Q37: 19911 | R37: ATO CITTA' DI MILANO
A38: MOLISE | B38: Acquaviva Collecroce | C38: Acquaviva Collecroce (CB) | D38: Regione Molise | E38: 1401 | F38: 1401 | G38: CAMPOBASSO | H38: CB | I38: 070001 | J38: Acquaviva Collecroce | L38: ATO 5 - ASTIGIANO, MONFERRATO | M38: 105 | N38: 105 | O38: N | Q38: 19912 | R38: Autorità di Ambito Territoriale Ottimale n. 4 Marche Centro Sud - Fermano e Maceratese
A39: PUGLIA | B39: Acquaviva delle Fonti | C39: Acquaviva delle Fonti (BA) | D39: Autorità Idrica Pugliese | E39: 1601 | F39: 1601 | G39: Bari | H39: BA | I39: 072001 | J39: Acquaviva delle Fonti | L39: ATO 5 - BOLOGNA | M39: 805 | N39: 805 | O39: N | Q39: 19913 | R39: ATO PAVIA
A40: MOLISE | B40: Acquaviva d'Isernia | C40: Acquaviva d'Isernia (IS) | D40: Regione Molise | E40: 1401 | F40: 1401 | G40: ISERNIA | H40: IS | I40: 094001 | J40: Acquaviva d'Isernia | L40: ATO 5 - ENNA | M40: 1905 | N40: 1905 | O40: S | Q40: 19914 | R40: Autorità di Ambito Territoriale Ottimale n. 3 MARCHE CENTRO - MACERATA
A41: MARCHE | B41: Acquaviva Picena | C41: Acquaviva Picena (AP) | D41: Autorità di Ambito Territoriale Ottimale n. 5 MARCHE SUD - ASCOLI PICENO | E41: 1105 | F41: 1105 | G41: ASCOLI PICENO | H41: AP | I41: 044002 | J41: Acquaviva Picena | L41: ATO 5 - LAZIO MERIDIONALE FROSINONE | M41: 1205 | N41: 1205 | O41: C | Q41: 19916 | R41: Autorità di Ambito Territoriale Ottimale n. 5 MARCHE SUD - ASCOLI PICENO
A42: SICILIA | B42: Acquaviva Platani | C42: Acquaviva Platani (CL) | D42: CONSORZIO AMBITO TERRITORIALE OTTIMALE 6 CALTANISSETTA | E42: 1906 | F42: 1906 | G42: CALTANISSETTA | H42: CL | I42: 085001 | J42: Acquaviva Platani | L42: ATO 5 - MARCHE SUD ASCOLI PICENO | M42: 1105 | N42: 1105 | O42: C | Q42: 19917 | R42: Autorità di Ambito Sele
A43: SICILIA | B43: Acquedolci | C43: Acquedolci (ME) | D43: ATO 3 - MESSINA | E43: 1903 | F43: 1903 | G43: MESSINA | H43: ME | I43: 083107 | J43: Acquedolci | L43: ATO 5 - REGGIO DI CALABRIA | M43: 1805 | N43: 1805 | O43: S | Q43: 19918 | R43: ATO BRESCIA
A44: PIEMONTE | B44: Acqui Terme | C44: Acqui Terme (AL) | D44: ATO 6 ALESSANDRINO | E44: 106 | F44: 106 | G44: ALESSANDRIA | H44: AL | I44: 006001 | J44: Acqui Terme | L44: ATO 5 - TERAMO | M44: 1305 | N44: 1305 | O44: S | Q44: 19920 | R44: ATO 3 Torinese
A45: CALABRIA | B45: Acri | C45: Acri (CS) | D45: Regione Calabria | E45: 1801 | F45: 1801 | G45: COSENZA | H45: CS | I45: 078003 | J45: Acri | L45: ATO 5 - TOSCANA COSTA | M45: 905 | N45: 905 | O45: C | Q45: 19921 | R45: Ambito Territoriale Integrato N. 2
A46: LAZIO | B46: Acuto | C46: Acuto (FR) | D46: Autorità d'Ambito Territoriale Ottimale 5 Lazio Meridionale - Frosinone | E46: 1205 | F46: 1205 | G46: FROSINONE | H46: FR | I46: 060002 | J46: Acuto | L46: ATO 6 - ALESSANDRIA | M46: 106 | N46: 106 | O46: N | Q46: 19922 | R46: Ambito Territoriale Integrato N. 3
A47: PUGLIA | B47: Adelfia | C47: Adelfia (BA) | D47: Autorità Idrica Pugliese | E47: 1601 | F47: 1601 | G47: Bari | H47: BA | I47: 072002 | J47: Adelfia | L47: ATO 6 - CALTANISSETTA | M47: 1906 | N47: 1906 | O47: S | Q47: 19925 | R47: Ambito Territoriale Integrato N. 4
A48: SICILIA | B48: Adrano | C48: Adrano (CT) | D48: CONSORZIO AMBITO TERRITORIALE OTTIMALE 2 CATANIA | E48: 1902 | F48: 1902 | G48: CATANIA | H48: CT | I48: 087006 | J48: Adrano | L48: ATO 6 - CHIETI | M48: 1306 | N48: 1306 | O48: S | Q48: 19926 | R48: Autorità di Ambito Territoriale Ottimale della Provincia di Genova
A49: LOMBARDIA | B49: Adrara San Martino | C49: Adrara San Martino (BG) | D49: UFFICIO D'AMBITO DELLA PROVINCIA DI BERGAMO | E49: 301 | F49: 301 | G49: BERGAMO | H49: BG | I49: 016001 | J49: Adrara San Martino | L49: ATO 6 - FERRARA | M49: 806 | N49: 806 | O49: N | Q49: 19928 | R49: Ufficio d'Ambito della Città metropolitana di Milano
A50: LOMBARDIA | B50: Adrara San Rocco | C50: Adrara San Rocco (BG) | D50: UFFICIO D'AMBITO DELLA PROVINCIA DI BERGAMO | E50: 301 | F50: 301 | G50: BERGAMO | H50: BG | I50: 016002 | J50: Adrara San Rocco | L50: ATO 6 - OMBRONE (GROSSETO) | M50: 906 | N50: 906 | O50: C | Q50: 19929 | R50: Ufficio d'Ambito di Como
A51: VENETO | B51: Adria | C51: Adria (RO) | D51: Consiglio di Bacino Polesine | E51: 505 | F51: 505 | G51: ROVIGO | H51: RO | I51: 029001 | J51: Adria | L51: ATO 7 - RAVENNA | M51: 807 | N51: 807 | O51: N | Q51: 19930 | R51: Autorità d'Ambito Territoriale Ottimale della Basilicata
A52: LOMBARDIA | B52: Adro | C52: Adro (BS) | D52: ATO BRESCIA | E52: 302 | F52: 302 | G52: BRESCIA | H52: BS | I52: 017002 | J52: Adro | L52: ATO 7 - TRAPANI | M52: 1907 | N52: 1907 | O52: S | Q52: 19931 | R52: Ente di Governo dell'Ambito della Sardegna
A53: VENETO | B53: Affi | C53: Affi (VR) | D53: Consiglio di Bacino Veronese | E53: 506 | F53: 506 | G53: VERONA | H53: VR | I53: 023001 | J53: Affi | L53: ATO 8 - FORLì-CESENA | M53: 808 | N53: 808 | O53: N | Q53: 19934 | R53: Autorità di Ambito Territoriale Ottimale n. 1 MARCHE NORD - PESARO URBINO
A54: LAZIO | B54: Affile | C54: Affile (RM) | D54: Ambito Territoriale Ottimale 2 Lazio Centrale - Roma | E54: 1202 | F54: 1202 | G54: ROMA | H54: RM | I54: 058001 | J54: Affile | L54: ATO 8 - SIRACUSA | M54: 1908 | N54: 1908 | O54: S | Q54: 19938 | R54: ATO MONZA E BRIANZA
A55: CAMPANIA | B55: Afragola | C55: Afragola (NA) | D55: Ente d'Ambito Napoli Volturno | E55: 1505 | F55: 1502 | G55: NAPOLI | H55: NA | I55: 063002 | J55: Afragola | L55: ATO 9 - AGRIGENTO | M55: 1909 | N55: 1909 | O55: S | Q55: 19939 | R55: Consorzio ATO 5 Enna
A56: CALABRIA | B56: Africo | C56: Africo (RC) | D56: Regione Calabria | E56: 1805 | F56: 1805 | G56: REGGIO DI CALABRIA | H56: RC | I56: 080001 | J56: Africo | L56: ATO 9 - RIMINI | M56: 809 | N56: 809 | O56: N | Q56: 19941 | R56: CONSORZIO AMBITO TERRITORIALE OTTIMALE 6 CALTANISSETTA
A57: EMILIA-ROMAGNA | B57: Agazzano | C57: Agazzano (PC) | D57: ATERSIR | E57: 801 | F57: 801 | G57: PIACENZA | H57: PC | I57: 033001 | J57: Agazzano | L57: ATO AV - ALTO VENETO | M57: 501 | N57: 501 | O57: N | Q57: 19942 | R57: Consulta d'Ambito per il servizio idrico integrato dell'ATO Occidentale
A58: CAMPANIA | B58: Agerola | C58: Agerola (NA) | D58: Autorità di Ambito Sele | E58: 1503 | F58: 1503 | G58: NAPOLI | H58: NA | I58: 063003 | J58: Agerola | L58: ATO B - BACCHIGLIONE | M58: 502 | N58: 502 | O58: N | Q58: 19944 | R58: Consulta d'Ambito Territoriale Ottimale "Orientale Triestino"
A59: SARDEGNA | B59: Aggius | C59: Aggius (OT) | D59: Ente di Governo dell'Ambito della Sardegna | E59: 2001 | F59: 2001 | G59: OLBIA-TEMPIO | H59: OT | I59: 104001 | J59: Aggius | L59: ATO BASILICATA | M59: 1701 | N59: 1701 | O59: S | Q59: 19946 | R59: Consulta d'Ambito per il Servizio Idrico Integrato Centrale Friuli
A60: SICILIA | B60: Agira | C60: Agira (EN) | D60: Consorzio ATO 5 Enna | E60: 1905 | F60: 1905 | G60: ENNA | H60: EN | I60: 086001 | J60: Agira | L60: ATO BG - BERGAMO | M60: 301 | N60: 301 | O60: N | Q60: 19947 | R60: AUTORITA' D'AMBITO ASTIGIANO MONFERRATO
A61: TOSCANA | B61: Agliana | C61: Agliana (PT) | D61: Autorità Idrica Toscana | E61: 903 | F61: 903 | G61: PISTOIA | H61: PT | I61: 047002 | J61: Agliana | L61: ATO BR - BRENTA | M61: 503 | N61: 503 | O61: N | Q61: 19949 | R61: Autorità d'Ambito A.T.O. Interregionale Lemene
A62: PIEMONTE | B62: Agliano Terme | C62: Agliano Terme (AT) | D62: AUTORITA' D'AMBITO ASTIGIANO MONFERRATO | E62: 105 | F62: 105 | G62: ASTI | H62: AT | I62: 005001 | J62: Agliano Terme | L62: ATO BS - BRESCIA | M62: 302 | N62: 302 | O62: N | Q62: 19964 | R62: Autorità Idrica Toscana
A63: PIEMONTE | B63: Agliè | C63: Agliè (TO) | D63: ATO 3 Torinese | E63: 103 | F63: 103 | G63: TORINO | H63: TO | I63: 001001 | J63: Agliè | L63: ATO CDM - CITTÀ DI MILANO | M63: 303 | N63: 303 | O63: N | Q63: 19984 | R63: Autorità d'Ambito Territoriale Ottimale 5 Lazio Meridionale - Frosinone
A64: SARDEGNA | B64: Aglientu | C64: Aglientu (OT) | D64: Ente di Governo dell'Ambito della Sardegna | E64: 2001 | F64: 2001 | G64: OLBIA-TEMPIO | H64: OT | I64: 104002 | J64: Aglientu | L64: ATO CE - CASERTA | M64: 1505 | N64: 1502 | O64: S | Q64: 19992 | R64: Autorità d'Ambito dell'A.T.O. n° 1 Lazio Nord - Viterbo
A65: VENETO | B65: Agna | C65: Agna (PD) | D65: Consiglio di Bacino Bacchiglione | E65: 502 | F65: 502 | G65: PADOVA | H65: PD | I65: 028002 | J65: Agna | L65: ATO CEN - CENTRALE UDINE | M65: 601 | N65: 601 | O65: N | Q65: 19997 | R65: ATERSIR
A66: LOMBARDIA | B66: Agnadello | C66: Agnadello (CR) | D66: UFFICIO D'AMBITO DELLA PROVINCIA DI CREMONA | E66: 305 | F66: 305 | G66: CREMONA | H66: CR | I66: 019002 | J66: Agnadello | L66: ATO Centro-Ovest 1 | M66: 705 | N66: 704 | O66: N | Q66: 20007 | R66: Regione Molise
A67: CALABRIA | B67: Agnana Calabra | C67: Agnana Calabra (RC) | D67: Regione Calabria | E67: 1805 | F67: 1805 | G67: REGGIO DI CALABRIA | H67: RC | I67: 080002 | J67: Agnana Calabra | L67: ATO Centro-Ovest 2 | M67: 706 | N67: 704 | O67: N | Q67: 20011 | R67: Consorzio dei Comuni della Valle d'Aosta Bacino Imbrifero Montano
A68: MOLISE | B68: Agnone | C68: Agnone (IS) | D68: Regione Molise | E68: 1401 | F68: 1401 | G68: ISERNIA | H68: IS | I68: 094002 | J68: Agnone | L68: ATO Centro-Ovest 3 | M68: 707 | N68: 704 | O68: N | Q68: 20129 | R68: ATO 4 SPEZZINO
A69: LOMBARDIA | B69: Agnosine | C69: Agnosine (BS) | D69: ATO BRESCIA | E69: 302 | F69: 302 | G69: BRESCIA | H69: BS | I69: 017003 | J69: Agnosine | L69: ATO CI - CALORE IRPINO | M69: 1501 | N69: 1501 | O69: S | Q69: 20233 | R69: Autorità Ambito Territoriale Ottimale Ragusa "idrico"
A70: VENETO | B70: Agordo | C70: Agordo (BL) | D70: Consiglio di Bacino "Dolomiti Bellunesi" | E70: 501 | F70: 501 | G70: BELLUNO | H70: BL | I70: 025001 | J70: Agordo | L70: ATO CO - COMO | M70: 304 | N70: 304 | O70: N | Q70: 20304 | R70: Ente d'Ambito Aquilano
A71: LAZIO | B71: Agosta | C71: Agosta (RM) | D71: Ambito Territoriale Ottimale 2 Lazio Centrale - Roma | E71: 1202 | F71: 1202 | G71: ROMA | H71: RM | I71: 058002 | J71: Agosta | L71: ATO CR - CREMONA | M71: 305 | N71: 305 | O71: N | Q71: 20344 | R71: Consorzio ATO idrico 8 Siracusa
A72: LOMBARDIA | B72: Agra | C72: Agra (VA) | D72: ATO VARESE | E72: 312 | F72: 312 | G72: VARESE | H72: VA | I72: 012001 | J72: Agra | L72: ATO GE - GENOVA | M72: 701 | N72: 701 | O72: N | Q72: 20361 | R72: Autorità Ambito Territoriale Ottimale 1 Palermo
A73: LOMBARDIA | B73: Agrate Brianza | C73: Agrate Brianza (MB) | D73: ATO MONZA E BRIANZA | E73: 313 | F73: 313 | G73: MONZA E BRIANZA | H73: MB | I73: 015003 | J73: Agrate Brianza | L73: ATO IM - IMPERIA | M73: 702 | N73: 702 | O73: N | Q73: 20426 | R73: Provincia di Savona
A74: PIEMONTE | B74: Agrate Conturbia | C74: Agrate Conturbia (NO) | D74: ATO 1 Verbano Cusio Ossola e Pianura Novarese | E74: 101 | F74: 101 | G74: NOVARA | H74: NO | I74: 003001 | J74: Agrate Conturbia | L74: ATO LC - LECCO | M74: 306 | N74: 306 | O74: N | Q74: 20492 | R74: ATO3 RIETI
A75: SICILIA | B75: Agrigento | C75: Agrigento (AG) | D75: CONSORZIO DI AMBITO AGRIGENTO S.I.I. | E75: 1909 | F75: 1909 | G75: AGRIGENTO | H75: AG | I75: 084001 | J75: Agrigento | L75: ATO LEMENE (Friuli Venezia Giulia-Veneto) | M75: 1 | N75: 1 | O75: N | Q75: 20519 | R75: Regione Calabria
A76: CAMPANIA | B76: Agropoli | C76: Agropoli (SA) | D76: Autorità di Ambito Sele | E76: 1503 | F76: 1503 | G76: SALERNO | H76: SA | I76: 065002 | J76: Agropoli | L76: ATO LO - LODI | M76: 307 | N76: 307 | O76: N | R76: ATO 3 - MESSINA
A77: MARCHE | B77: Agugliano | C77: Agugliano (AN) | D77: Autorità di Ambito Territoriale Ottimale n. 2 Marche Centro - Ancona | E77: 1102 | F77: 1102 | G77: ANCONA | H77: AN | I77: 042001 | J77: Agugliano | L77: ATO LV - LAGUNA DI VENEZIA | M77: 504 | N77: 504 | O77: N | R77: ATO NL - TRENTINO
A78: VENETO | B78: Agugliaro | C78: Agugliaro (VI) | D78: Consiglio di Bacino Bacchiglione | E78: 502 | F78: 502 | G78: VICENZA | H78: VI | I78: 024001 | J78: Agugliaro | L78: ATO MB - MONZA E DELLA BRIANZA | M78: 313 | N78: 313 | O78: N | R78: ATO 7 - TRAPANI
A79: LOMBARDIA | B79: Aicurzio | C79: Aicurzio (MB) | D79: ATO MONZA E BRIANZA | E79: 313 | F79: 313 | G79: MONZA E BRIANZA | H79: MB | I79: 015004 | J79: Aicurzio | L79: ATO MI - PROVINCIA DI MILANO | M79: 308 | N79: 308 | O79: N
A80: SARDEGNA | B80: Aidomaggiore | C80: Aidomaggiore (OR) | D80: Ente di Governo dell'Ambito della Sardegna | E80: 2001 | F80: 2001 | G80: ORISTANO | H80: OR | I80: 095002 | J80: Aidomaggiore | L80: ATO MN - MANTOVA | M80: 309 | N80: 309 | O80: N
A81: SICILIA | B81: Aidone | C81: Aidone (EN) | D81: Consorzio ATO 5 Enna | E81: 1905 | F81: 1905 | G81: ENNA | H81: EN | I81: 086002 | J81: Aidone | L81: ATO MOLISE | M81: 1401 | N81: 1401 | O81: C
A82: ABRUZZO | B82: Aielli | C82: Aielli (AQ) | D82: Ente d'ambito Marsicano n° 2 | E82: 1302 | F82: 1302 | G82: L'AQUILA | H82: AQ | I82: 066002 | J82: Aielli | L82: ATO NL - TRENTINO | M82: 401 | N82: 401 | O82: N
A83: CALABRIA | B83: Aiello Calabro | C83: Aiello Calabro (CS) | D83: Regione Calabria | E83: 1801 | F83: 1801 | G83: COSENZA | H83: CS | I83: 078004 | J83: Aiello Calabro | L83: ATO NV - NAPOLI VOLTURNO | M83: 1502 | N83: 1502 | O83: S
A84: FRIULI-VENEZIA GIULIA | B84: Aiello del Friuli | C84: Aiello del Friuli (UD) | D84: Consulta d'Ambito per il Servizio Idrico Integrato Centrale Friuli | E84: 601 | F84: 601 | G84: UDINE | H84: UD | I84: 030001 | J84: Aiello del Friuli | L84: ATO OCC - OCCIDENTALE PORDENONE | M84: 602 | N84: 602 | O84: N
A85: CAMPANIA | B85: Aiello del Sabato | C85: Aiello del Sabato (AV) | D85: Autorità di Ambito Calore Irpino | E85: 1501 | F85: 1501 | G85: AVELLINO | H85: AV | I85: 064001 | J85: Aiello del Sabato | L85: ATO ORG - ORIENTALE-GORIZIANO | M85: 603 | N85: 603 | O85: N
A86: CALABRIA | B86: Aieta | C86: Aieta (CS) | D86: Regione Calabria | E86: 1801 | F86: 1801 | G86: COSENZA | H86: CS | I86: 078005 | J86: Aieta | L86: ATO ORT - ORIENTALE-TRIESTINO | M86: 604 | N86: 604 | O86: N
A87: CAMPANIA | B87: Ailano | C87: Ailano (CE) | D87: Ente d'Ambito Napoli Volturno | E87: 1505 | F87: 1502 | G87: CASERTA | H87: CE | I87: 061001 | J87: Ailano | L87: ATO P - POLESINE | M87: 505 | N87: 505 | O87: N
A88: PIEMONTE | B88: Ailoche | C88: Ailoche (BI) | D88: ATO 2 Biellese, Vercellese e Casalese | E88: 102 | F88: 102 | G88: BIELLA | H88: BI | I88: 096001 | J88: Ailoche | L88: ATO PUGLIA | M88: 1601 | N88: 1601 | O88: S
A89: PIEMONTE | B89: Airasca | C89: Airasca (TO) | D89: ATO 3 Torinese | E89: 103 | F89: 103 | G89: TORINO | H89: TO | I89: 001002 | J89: Airasca | L89: ATO PV - PAVIA | M89: 310 | N89: 310 | O89: N
A90: CAMPANIA | B90: Airola | C90: Airola (BN) | D90: Autorità di Ambito Calore Irpino | E90: 1501 | F90: 1501 | G90: BENEVENTO | H90: BN | I90: 062001 | J90: Airola | L90: ATO S - SELE | M90: 1503 | N90: 1503 | O90: S
A91: LIGURIA | B91: Airole | C91: Airole (IM) | D91: Autorità di Ambito Territoriale Ottimale della Provincia di Imperia | E91: 702 | F91: 702 | G91: IMPERIA | H91: IM | I91: 008001 | J91: Airole | L91: ATO SO - SONDRIO | M91: 311 | N91: 311 | O91: N
A92: LOMBARDIA | B92: Airuno | C92: Airuno (LC) | D92: Ufficio d'ambito di Lecco | E92: 306 | F92: 306 | G92: LECCO | H92: LC | I92: 097002 | J92: Airuno | L92: ATO SP - LA SPEZIA | M92: 703 | N92: 703 | O92: N
A93: PIEMONTE | B93: Aisone | C93: Aisone (CN) | D93: Autorità di Ambito Territoriale Ottimale n.4 Cuneese | E93: 104 | F93: 104 | G93: CUNEO | H93: CN | I93: 004002 | J93: Aisone | L93: ATO SV - SARNESE VESUVIANO | M93: 1504 | N93: 1504 | O93: S
A94: TRENTINO-ALTO ADIGE | B94: Ala | C94: Ala (TN) | D94: ATO NL - TRENTINO | E94: 401 | F94: 401 | G94: TRENTO | H94: TN | I94: 022001 | J94: Ala | L94: ATO V - VERONA | M94: 506 | N94: 506 | O94: N
A95: SARDEGNA | B95: Alà dei Sardi | C95: Alà dei Sardi (OT) | D95: Ente di Governo dell'Ambito della Sardegna | E95: 2001 | F95: 2001 | G95: OLBIA-TEMPIO | H95: OT | I95: 104003 | J95: Alà dei Sardi | L95: ATO VA - VARESE | M95: 312 | N95: 312 | O95: N
A96: PIEMONTE | B96: Ala di Stura | C96: Ala di Stura (TO) | D96: ATO 3 Torinese | E96: 103 | F96: 103 | G96: TORINO | H96: TO | I96: 001003 | J96: Ala di Stura | L96: ATO VALLE D'AOSTA | M96: 201 | N96: 201 | O96: N
A97: LOMBARDIA | B97: Alagna | C97: Alagna (PV) | D97: ATO PAVIA | E97: 310 | F97: 310 | G97: PAVIA | H97: PV | I97: 018001 | J97: Alagna | L97: ATO VC - VALLE DEL CHIAMPO | M97: 507 | N97: 507 | O97: N
A98: PIEMONTE | B98: Alagna Valsesia | C98: Alagna Valsesia (VC) | D98: ATO 2 Biellese, Vercellese e Casalese | E98: 102 | F98: 102 | G98: VERCELLI | H98: VC | I98: 002002 | J98: Alagna Valsesia | L98: ATO VO - VENETO ORIENTALE | M98: 508 | N98: 508 | O98: N
A99: ABRUZZO | B99: Alanno | C99: Alanno (PE) | D99: A.T.O. Pescara | E99: 1304 | F99: 1304 | G99: PESCARA | H99: PE | I99: 068002 | J99: Alanno
A100: VENETO | B100: Alano di Piave | C100: Alano di Piave (BL) | D100: Autorità d'Ambito Territoriale Ottimale Veneto Orientale | E100: 508 | F100: 508 | G100: BELLUNO | H100: BL | I100: 025002 | J100: Alano di Piave
A101: LIGURIA | B101: Alassio | C101: Alassio (SV) | D101: Provincia di Savona | E101: 707 | F101: 704 | G101: SAVONA | H101: SV | I101: 009001 | J101: Alassio
A102: LAZIO | B102: Alatri | C102: Alatri (FR) | D102: Autorità d'Ambito Territoriale Ottimale 5 Lazio Meridionale - Frosinone | E102: 1205 | F102: 1205 | G102: FROSINONE | H102: FR | I102: 060003 | J102: Alatri
A103: PIEMONTE | B103: Alba | C103: Alba (CN) | D103: Autorità di Ambito Territoriale Ottimale n.4 Cuneese | E103: 104 | F103: 104 | G103: CUNEO | H103: CN | I103: 004003 | J103: Alba
A104: ABRUZZO | B104: Alba Adriatica | C104: Alba Adriatica (TE) | D104: Ente d'Ambito Teramano | E104: 1305 | F104: 1305 | G104: TERAMO | H104: TE | I104: 067001 | J104: Alba Adriatica
A105: SARDEGNA | B105: Albagiara | C105: Albagiara (OR) | D105: Ente di Governo dell'Ambito della Sardegna | E105: 2001 | F105: 2001 | G105: ORISTANO | H105: OR | I105: 095003 | J105: Albagiara
A106: LOMBARDIA | B106: Albairate | C106: Albairate (MI) | D106: Ufficio d'Ambito della Città metropolitana di Milano | E106: 308 | F106: 308 | G106: MILANO | H106: MI | I106: 015005 | J106: Albairate
A107: CAMPANIA | B107: Albanella | C107: Albanella (SA) | D107: Autorità di Ambito Sele | E107: 1503 | F107: 1503 | G107: SALERNO | H107: SA | I107: 065003 | J107: Albanella
A108: BASILICATA | B108: Albano di Lucania | C108: Albano di Lucania (PZ) | D108: Autorità d'Ambito Territoriale Ottimale della Basilicata | E108: 1701 | F108: 1701 | G108: POTENZA | H108: PZ | I108: 076003 | J108: Albano di Lucania
A109: LAZIO | B109: Albano Laziale | C109: Albano Laziale (RM) | D109: Ambito Territoriale Ottimale 2 Lazio Centrale - Roma | E109: 1202 | F109: 1202 | G109: ROMA | H109: RM | I109: 058003 | J109: Albano Laziale
A110: LOMBARDIA | B110: Albano Sant'Alessandro | C110: Albano Sant'Alessandro (BG) | D110: UFFICIO D'AMBITO DELLA PROVINCIA DI BERGAMO | E110: 301 | F110: 301 | G110: BERGAMO | H110: BG | I110: 016003 | J110: Albano Sant'Alessandro
A111: PIEMONTE | B111: Albano Vercellese | C111: Albano Vercellese (VC) | D111: ATO 2 Biellese, Vercellese e Casalese | E111: 102 | F111: 102 | G111: VERCELLI | H111: VC | I111: 002003 | J111: Albano Vercellese
A112: LOMBARDIA | B112: Albaredo Arnaboldi | C112: Albaredo Arnaboldi (PV) | D112: ATO PAVIA | E112: 310 | F112: 310 | G112: PAVIA | H112: PV | I112: 018002 | J112: Albaredo Arnaboldi
A113: VENETO | B113: Albaredo d'Adige | C113: Albaredo d'Adige (VR) | D113: Consiglio di Bacino Veronese | E113: 506 | F113: 506 | G113: VERONA | H113: VR | I113: 023002 | J113: Albaredo d'Adige
A114: LOMBARDIA | B114: Albaredo per San Marco | C114: Albaredo per San Marco (SO) | D114: UFFICIO D'AMBITO DELLA PROVINCIA DI SONDRIO | E114: 311 | F114: 311 | G114: SONDRIO | H114: SO | I114: 014001 | J114: Albaredo per San Marco
A115: EMILIA-ROMAGNA | B115: Albareto | C115: Albareto (PR) | D115: ATERSIR | E115: 802 | F115: 802 | G115: PARMA | H115: PR | I115: 034001 | J115: Albareto
A116: PIEMONTE | B116: Albaretto della Torre | C116: Albaretto della Torre (CN) | D116: Autorità di Ambito Territoriale Ottimale n.4 Cuneese | E116: 104 | F116: 104 | G116: CUNEO | H116: CN | I116: 004004 | J116: Albaretto della Torre
A117: LOMBARDIA | B117: Albavilla | C117: Albavilla (CO) | D117: Ufficio d'Ambito di Como | E117: 304 | F117: 304 | G117: COMO | H117: CO | I117: 013003 | J117: Albavilla
A118: LIGURIA | B118: Albenga | C118: Albenga (SV) | D118: Provincia di Savona | E118: 707 | F118: 704 | G118: SAVONA | H118: SV | I118: 009002 | J118: Albenga
A119: PIEMONTE | B119: Albera Ligure | C119: Albera Ligure (AL) | D119: ATO 6 ALESSANDRINO | E119: 106 | F119: 106 | G119: ALESSANDRIA | H119: AL | I119: 006002 | J119: Albera Ligure
A120: PUGLIA | B120: Alberobello | C120: Alberobello (BA) | D120: Autorità Idrica Pugliese | E120: 1601 | F120: 1601 | G120: Bari | H120: BA | I120: 072003 | J120: Alberobello
A121: PUGLIA | B121: Alberona | C121: Alberona (FG) | D121: Autorità Idrica Pugliese | E121: 1601 | F121: 1601 | G121: Foggia | H121: FG | I121: 071002 | J121: Alberona
A122: LOMBARDIA | B122: Albese con Cassano | C122: Albese con Cassano (CO) | D122: Ufficio d'Ambito di Como | E122: 304 | F122: 304 | G122: COMO | H122: CO | I122: 013004 | J122: Albese con Cassano
A123: VENETO | B123: Albettone | C123: Albettone (VI) | D123: Consiglio di Bacino Bacchiglione | E123: 502 | F123: 502 | G123: VICENZA | H123: VI | I123: 024002 | J123: Albettone
A124: CALABRIA | B124: Albi | C124: Albi (CZ) | D124: Regione Calabria | E124: 1802 | F124: 1802 | G124: CATANZARO | H124: CZ | I124: 079002 | J124: Albi
A125: TRENTINO-ALTO ADIGE | B125: Albiano | C125: Albiano (TN) | D125: ATO NL - TRENTINO | E125: 401 | F125: 401 | G125: TRENTO | H125: TN | I125: 022002 | J125: Albiano
A126: PIEMONTE | B126: Albiano d'Ivrea | C126: Albiano d'Ivrea (TO) | D126: ATO 3 Torinese | E126: 103 | F126: 103 | G126: TORINO | H126: TO | I126: 001004 | J126: Albiano d'Ivrea
A127: LOMBARDIA | B127: Albiate | C127: Albiate (MB) | D127: ATO MONZA E BRIANZA | E127: 313 | F127: 313 | G127: MONZA E BRIANZA | H127: MB | I127: 015006 | J127: Albiate
A128: CALABRIA | B128: Albidona | C128: Albidona (CS) | D128: Regione Calabria | E128: 1801 | F128: 1801 | G128: COSENZA | H128: CS | I128: 078006 | J128: Albidona
A129: VENETO | B129: Albignasego | C129: Albignasego (PD) | D129: Consiglio di Bacino Bacchiglione | E129: 502 | F129: 502 | G129: PADOVA | H129: PD | I129: 028003 | J129: Albignasego
A130: EMILIA-ROMAGNA | B130: Albinea | C130: Albinea (RE) | D130: ATERSIR | E130: 803 | F130: 803 | G130: REGGIO NELL'EMILIA | H130: RE | I130: 035001 | J130: Albinea
A131: LOMBARDIA | B131: Albino | C131: Albino (BG) | D131: UFFICIO D'AMBITO DELLA PROVINCIA DI BERGAMO | E131: 301 | F131: 301 | G131: BERGAMO | H131: BG | I131: 016004 | J131: Albino
A132: LOMBARDIA | B132: Albiolo | C132: Albiolo (CO) | D132: Ufficio d'Ambito di Como | E132: 304 | F132: 304 | G132: COMO | H132: CO | I132: 013005 | J132: Albiolo
A133: LIGURIA | B133: Albisola Superiore | C133: Albisola Superiore (SV) | D133: Provincia di Savona | E133: 705 | F133: 704 | G133: SAVONA | H133: SV | I133: 009004 | J133: Albisola Superiore
A134: LIGURIA | B134: Albissola Marina | C134: Albissola Marina (SV) | D134: Provincia di Savona | E134: 705 | F134: 704 | G134: SAVONA | H134: SV | I134: 009003 | J134: Albissola Marina
A135: LOMBARDIA | B135: Albizzate | C135: Albizzate (VA) | D135: ATO VARESE | E135: 312 | F135: 312 | G135: VARESE | H135: VA | I135: 012002 | J135: Albizzate
A136: LOMBARDIA | B136: Albonese | C136: Albonese (PV) | D136: ATO PAVIA | E136: 310 | F136: 310 | G136: PAVIA | H136: PV | I136: 018003 | J136: Albonese
A137: LOMBARDIA | B137: Albosaggia | C137: Albosaggia (SO) | D137: UFFICIO D'AMBITO DELLA PROVINCIA DI SONDRIO | E137: 311 | F137: 311 | G137: SONDRIO | H137: SO | I137: 014002 | J137: Albosaggia
A138: PIEMONTE | B138: Albugnano | C138: Albugnano (AT) | D138: AUTORITA' D'AMBITO ASTIGIANO MONFERRATO | E138: 105 | F138: 105 | G138: ASTI | H138: AT | I138: 005002 | J138: Albugnano
A139: LOMBARDIA | B139: Albuzzano | C139: Albuzzano (PV) | D139: ATO PAVIA | E139: 310 | F139: 310 | G139: PAVIA | H139: PV | I139: 018004 | J139: Albuzzano
A140: SICILIA | B140: Alcamo | C140: Alcamo (TP) | D140: ATO 7 - TRAPANI | E140: 1907 | F140: 1907 | G140: TRAPANI | H140: TP | I140: 081001 | J140: Alcamo
A141: SICILIA | B141: Alcara li Fusi | C141: Alcara li Fusi (ME) | D141: ATO 3 - MESSINA | E141: 1903 | F141: 1903 | G141: MESSINA | H141: ME | I141: 083001 | J141: Alcara li Fusi
A142: TRENTINO-ALTO ADIGE | B142: Aldeno | C142: Aldeno (TN) | D142: ATO NL - TRENTINO | E142: 401 | F142: 401 | G142: TRENTO | H142: TN | I142: 022003 | J142: Aldeno
A143: TRENTINO-ALTO ADIGE | B143: Aldino | C143: Aldino (BZ) | D143: ATO NL - TRENTINO | E143: 401 | F143: 401 | G143: BOLZANO | H143: BZ | I143: 021001 | J143: Aldino
A144: SARDEGNA | B144: Ales | C144: Ales (OR) | D144: Ente di Governo dell'Ambito della Sardegna | E144: 2001 | F144: 2001 | G144: ORISTANO | H144: OR | I144: 095004 | J144: Ales
A145: PIEMONTE | B145: Alessandria | C145: Alessandria (AL) | D145: ATO 6 ALESSANDRINO | E145: 106 | F145: 106 | G145: ALESSANDRIA | H145: AL | I145: 006003 | J145: Alessandria
A146: CALABRIA | B146: Alessandria del Carretto | C146: Alessandria del Carretto (CS) | D146: Regione Calabria | E146: 1801 | F146: 1801 | G146: COSENZA | H146: CS | I146: 078007 | J146: Alessandria del Carretto
A147: SICILIA | B147: Alessandria della Rocca | C147: Alessandria della Rocca (AG) | D147: CONSORZIO DI AMBITO AGRIGENTO S.I.I. | E147: 1909 | F147: 1909 | G147: AGRIGENTO | H147: AG | I147: 084002 | J147: Alessandria della Rocca
A148: PUGLIA | B148: Alessano | C148: Alessano (LE) | D148: Autorità Idrica Pugliese | E148: 1601 | F148: 1601 | G148: Lecce | H148: LE | I148: 075002 | J148: Alessano
A149: PUGLIA | B149: Alezio | C149: Alezio (LE) | D149: Autorità Idrica Pugliese | E149: 1601 | F149: 1601 | G149: Lecce | H149: LE | I149: 075003 | J149: Alezio
A150: CAMPANIA | B150: Alfano | C150: Alfano (SA) | D150: Autorità di Ambito Sele | E150: 1503 | F150: 1503 | G150: SALERNO | H150: SA | I150: 065004 | J150: Alfano
A151: ABRUZZO | B151: Alfedena | C151: Alfedena (AQ) | D151: Ente d'Ambito Peligno Alto Sangro | E151: 1303 | F151: 1303 | G151: L'AQUILA | H151: AQ | I151: 066003 | J151: Alfedena
A152: LOMBARDIA | B152: Alfianello | C152: Alfianello (BS) | D152: ATO BRESCIA | E152: 302 | F152: 302 | G152: BRESCIA | H152: BS | I152: 017004 | J152: Alfianello
A153: PIEMONTE | B153: Alfiano Natta | C153: Alfiano Natta (AL) | D153: AUTORITA' D'AMBITO ASTIGIANO MONFERRATO | E153: 105 | F153: 105 | G153: ALESSANDRIA | H153: AL | I153: 006004 | J153: Alfiano Natta
A154: EMILIA-ROMAGNA | B154: Alfonsine | C154: Alfonsine (RA) | D154: ATERSIR | E154: 807 | F154: 807 | G154: RAVENNA | H154: RA | I154: 039001 | J154: Alfonsine
A155: SARDEGNA | B155: Alghero | C155: Alghero (SS) | D155: Ente di Governo dell'Ambito della Sardegna | E155: 2001 | F155: 2001 | G155: SASSARI | H155: SS | I155: 090003 | J155: Alghero
A156: LOMBARDIA | B156: Algua | C156: Algua (BG) | D156: UFFICIO D'AMBITO DELLA PROVINCIA DI BERGAMO | E156: 301 | F156: 301 | G156: BERGAMO | H156: BG | I156: 016248 | J156: Algua
A157: SICILIA | B157: Alì | C157: Alì (ME) | D157: ATO 3 - MESSINA | E157: 1903 | F157: 1903 | G157: MESSINA | H157: ME | I157: 083002 | J157: Alì
A158: SICILIA | B158: Alì Terme | C158: Alì Terme (ME) | D158: ATO 3 - MESSINA | E158: 1903 | F158: 1903 | G158: MESSINA | H158: ME | I158: 083003 | J158: Alì Terme
A159: SICILIA | B159: Alia | C159: Alia (PA) | D159: Autorità Ambito Territoriale Ottimale 1 Palermo | E159: 1901 | F159: 1901 | G159: PALERMO | H159: PA | I159: 082001 | J159: Alia
A160: BASILICATA | B160: Aliano | C160: Aliano (MT) | D160: Autorità d'Ambito Territoriale Ottimale della Basilicata | E160: 1701 | F160: 1701 | G160: MATERA | H160: MT | I160: 077002 | J160: Aliano
A161: PIEMONTE | B161: Alice Bel Colle | C161: Alice Bel Colle (AL) | D161: ATO 6 ALESSANDRINO | E161: 106 | F161: 106 | G161: ALESSANDRIA | H161: AL | I161: 006005 | J161: Alice Bel Colle
A162: PIEMONTE | B162: Alice Castello | C162: Alice Castello (VC) | D162: ATO 2 Biellese, Vercellese e Casalese | E162: 102 | F162: 102 | G162: VERCELLI | H162: VC | I162: 002004 | J162: Alice Castello
A163: PIEMONTE | B163: Alice Superiore | C163: Alice Superiore (TO) | D163: ATO 3 Torinese | E163: 103 | F163: 103 | G163: TORINO | H163: TO | I163: 001005 | J163: Alice Superiore
A164: CAMPANIA | B164: Alife | C164: Alife (CE) | D164: Ente d'Ambito Napoli Volturno | E164: 1505 | F164: 1502 | G164: CASERTA | H164: CE | I164: 061002 | J164: Alife
A165: SICILIA | B165: Alimena | C165: Alimena (PA) | D165: Autorità Ambito Territoriale Ottimale 1 Palermo | E165: 1901 | F165: 1901 | G165: PALERMO | H165: PA | I165: 082002 | J165: Alimena
A166: SICILIA | B166: Aliminusa | C166: Aliminusa (PA) | D166: Autorità Ambito Territoriale Ottimale 1 Palermo | E166: 1901 | F166: 1901 | G166: PALERMO | H166: PA | I166: 082003 | J166: Aliminusa
A167: SARDEGNA | B167: Allai | C167: Allai (OR) | D167: Ente di Governo dell'Ambito della Sardegna | E167: 2001 | F167: 2001 | G167: ORISTANO | H167: OR | I167: 095005 | J167: Allai
A168: VENETO | B168: Alleghe | C168: Alleghe (BL) | D168: Consiglio di Bacino "Dolomiti Bellunesi" | E168: 501 | F168: 501 | G168: BELLUNO | H168: BL | I168: 025003 | J168: Alleghe
A169: VALLE D'AOSTA | B169: Allein | C169: Allein (AO) | D169: Consorzio dei Comuni della Valle d'Aosta Bacino Imbrifero Montano | E169: 201 | F169: 201 | G169: AOSTA | H169: AO | I169: 007001 | J169: Allein
A170: UMBRIA | B170: Allerona | C170: Allerona (TR) | D170: Ambito Territoriale Integrato N. 4 | E170: 1003 | F170: 1003 | G170: TERNI | H170: TR | I170: 055002 | J170: Allerona
A171: PUGLIA | B171: Alliste | C171: Alliste (LE) | D171: Autorità Idrica Pugliese | E171: 1601 | F171: 1601 | G171: Lecce | H171: LE | I171: 075004 | J171: Alliste
A172: LAZIO | B172: Allumiere | C172: Allumiere (RM) | D172: Ambito Territoriale Ottimale 2 Lazio Centrale - Roma | E172: 1202 | F172: 1202 | G172: ROMA | H172: RM | I172: 058004 | J172: Allumiere
A173: PIEMONTE | B173: Alluvioni Cambiò | C173: Alluvioni Cambiò (AL) | D173: ATO 6 ALESSANDRINO | E173: 106 | F173: 106 | G173: ALESSANDRIA | H173: AL | I173: 006006 | J173: Alluvioni Cambiò
A174: LOMBARDIA | B174: Almè | C174: Almè (BG) | D174: UFFICIO D'AMBITO DELLA PROVINCIA DI BERGAMO | E174: 301 | F174: 301 | G174: BERGAMO | H174: BG | I174: 016005 | J174: Almè
A175: LOMBARDIA | B175: Almenno San Bartolomeo | C175: Almenno San Bartolomeo (BG) | D175: UFFICIO D'AMBITO DELLA PROVINCIA DI BERGAMO | E175: 301 | F175: 301 | G175: BERGAMO | H175: BG | I175: 016006 | J175: Almenno San Bartolomeo
A176: LOMBARDIA | B176: Almenno San Salvatore | C176: Almenno San Salvatore (BG) | D176: UFFICIO D'AMBITO DELLA PROVINCIA DI BERGAMO | E176: 301 | F176: 301 | G176: BERGAMO | H176: BG | I176: 016007 | J176: Almenno San Salvatore
A177: PIEMONTE | B177: Almese | C177: Almese (TO) | D177: ATO 3 Torinese | E177: 103 | F177: 103 | G177: TORINO | H177: TO | I177: 001006 | J177: Almese
A178: VENETO | B178: Alonte | C178: Alonte (VI) | D178: Consiglio di Bacino Bacchiglione | E178: 502 | F178: 502 | G178: VICENZA | H178: VI | I178: 024003 | J178: Alonte
A179: PIEMONTE | B179: Alpette | C179: Alpette (TO) | D179: ATO 3 Torinese | E179: 103 | F179: 103 | G179: TORINO | H179: TO | I179: 001007 | J179: Alpette
A180: PIEMONTE | B180: Alpignano | C180: Alpignano (TO) | D180: ATO 3 Torinese | E180: 103 | F180: 103 | G180: TORINO | H180: TO | I180: 001008 | J180: Alpignano
A181: EMILIA-ROMAGNA | B181: Alseno | C181: Alseno (PC) | D181: ATERSIR | E181: 801 | F181: 801 | G181: PIACENZA | H181: PC | I181: 033002 | J181: Alseno
A182: LOMBARDIA | B182: Alserio | C182: Alserio (CO) | D182: Ufficio d'Ambito di Como | E182: 304 | F182: 304 | G182: COMO | H182: CO | I182: 013006 | J182: Alserio
A183: PUGLIA | B183: Altamura | C183: Altamura (BA) | D183: Autorità Idrica Pugliese | E183: 1601 | F183: 1601 | G183: Bari | H183: BA | I183: 072004 | J183: Altamura
A184: LIGURIA | B184: Altare | C184: Altare (SV) | D184: Provincia di Savona | E184: 706 | F184: 704 | G184: SAVONA | H184: SV | I184: 009005 | J184: Altare
A185: CAMPANIA | B185: Altavilla Irpina | C185: Altavilla Irpina (AV) | D185: Autorità di Ambito Calore Irpino | E185: 1501 | F185: 1501 | G185: AVELLINO | H185: AV | I185: 064002 | J185: Altavilla Irpina
A186: SICILIA | B186: Altavilla Milicia | C186: Altavilla Milicia (PA) | D186: Autorità Ambito Territoriale Ottimale 1 Palermo | E186: 1901 | F186: 1901 | G186: PALERMO | H186: PA | I186: 082004 | J186: Altavilla Milicia
A187: PIEMONTE | B187: Altavilla Monferrato | C187: Altavilla Monferrato (AL) | D187: AUTORITA' D'AMBITO ASTIGIANO MONFERRATO | E187: 105 | F187: 105 | G187: ALESSANDRIA | H187: AL | I187: 006007 | J187: Altavilla Monferrato
A188: CAMPANIA | B188: Altavilla Silentina | C188: Altavilla Silentina (SA) | D188: Autorità di Ambito Sele | E188: 1503 | F188: 1503 | G188: SALERNO | H188: SA | I188: 065005 | J188: Altavilla Silentina
A189: VENETO | B189: Altavilla Vicentina | C189: Altavilla Vicentina (VI) | D189: Consiglio di Bacino Bacchiglione | E189: 502 | F189: 502 | G189: VICENZA | H189: VI | I189: 024004 | J189: Altavilla Vicentina
A190: MARCHE | B190: Altidona | C190: Altidona (FM) | D190: Autorità di Ambito Territoriale Ottimale n. 5 MARCHE SUD - ASCOLI PICENO | E190: 1105 | F190: 1105 | G190: FERMO | H190: FM | I190: 044003 | J190: Altidona
A191: CALABRIA | B191: Altilia | C191: Altilia (CS) | D191: Regione Calabria | E191: 1801 | F191: 1801 | G191: COSENZA | H191: CS | I191: 078008 | J191: Altilia
A192: ABRUZZO | B192: Altino | C192: Altino (CH) | D192: Ente d'Ambito Chietino | E192: 1306 | F192: 1306 | G192: CHIETI | H192: CH | I192: 069001 | J192: Altino
A193: VENETO | B193: Altissimo | C193: Altissimo (VI) | D193: Consiglio di Bacino Valle del Chiampo | E193: 507 | F193: 507 | G193: VICENZA | H193: VI | I193: 024005 | J193: Altissimo
A194: VENETO | B194: Altivole | C194: Altivole (TV) | D194: Autorità d'Ambito Territoriale Ottimale Veneto Orientale | E194: 508 | F194: 508 | G194: TREVISO | H194: TV | I194: 026001 | J194: Altivole
A195: PIEMONTE | B195: Alto | C195: Alto (CN) | D195: Autorità di Ambito Territoriale Ottimale n.4 Cuneese | E195: 104 | F195: 104 | G195: CUNEO | H195: CN | I195: 004005 | J195: Alto
A196: SICILIA | B196: Altofonte | C196: Altofonte (PA) | D196: Autorità Ambito Territoriale Ottimale 1 Palermo | E196: 1901 | F196: 1901 | G196: PALERMO | H196: PA | I196: 082005 | J196: Altofonte
A197: CALABRIA | B197: Altomonte | C197: Altomonte (CS) | D197: Regione Calabria | E197: 1801 | F197: 1801 | G197: COSENZA | H197: CS | I197: 078009 | J197: Altomonte
A198: TOSCANA | B198: Altopascio | C198: Altopascio (LU) | D198: Autorità Idrica Toscana | E198: 902 | F198: 902 | G198: LUCCA | H198: LU | I198: 046001 | J198: Altopascio
A199: UMBRIA | B199: Alviano | C199: Alviano (TR) | D199: Ambito Territoriale Integrato N. 4 | E199: 1003 | F199: 1003 | G199: TERNI | H199: TR | I199: 055003 | J199: Alviano
A200: CAMPANIA | B200: Alvignano | C200: Alvignano (CE) | D200: Ente d'Ambito Napoli Volturno | E200: 1505 | F200: 1502 | G200: CASERTA | H200: CE | I200: 061003 | J200: Alvignano
... 7850 more rows

Sheet TT_Tabelle_Riferimento
A1: scambi ingrosso costi Water e Other
A2: IDServizio_Dettaglio | B2: Servizio_Dettaglio | C2: grossista (1=water,0=other) | E2: SI/NO | F2: ID | G2: Categoria_IMMOBILIZZAZIONI | H2: ID | I2: Anno Cespite | J2: Anno Cespite
A3: 1 | B3: Captazione | C3: 1 | E3: SI | F3: 1 | G3: Servizio idrico integrato | H3: 1 | I3: 2014 | J3: 2012
A4: 2 | B4: Potabilizzazione | C4: 1 | E4: NO | F4: 2 | G4: Fognatura bianca e pulizia / manutenzione caditoie stradali | H4: 2 | I4: 2015 | J4: 2013
A5: 3 | B5: Adduzione | C5: 1 | F5: 3 | G5: Altri servizi idrici | H5: 3 | I5: 2016 | J5: 2014
A6: 4 | B6: Acquedotto distribuzione | C6: 1 | F6: 4 | G6: Attività non idriche che utilizzano anche infrastrutture del servizio idrico | H6: 4 | I6: 2017 | J6: 2015
A7: 5 | B7: Fognatura (nera e mista) | C7: 0 | J7: 2016
A8: 6 | B8: Depurazione | C8: 0 | J8: 2017
A9: 7 | B9: Fognatura bianca e pulizia / manutenzione caditoie stradali | C9: 0
A10: 8 | B10: Altri servizi idrici | C10: 0
B13: tipologia di proprietario | C13: natura giuridica del gestore | D13: servizi_idrici | E13: tipologia d'uso | G13: tipo di affidamento | I13: Conformità
B14: Altra società privata | C14: Azienda speciale | D14: acquedotto | E14: 1-Uso domestico | G14: Affidamento del SII | I14: conforme
B15: Altra società pubblica | C15: Azienda speciale consortile | D15: depurazione | E15: 1bis-Uso domestico non residenti | G15: Aziende speciali, gestioni in economia | I15: non conforme
B16: Comune | C16: Consorzio | D16: fognatura | E16: 2-Uso agricolo | G16: Gestioni in economia comuni montani autorizzati da AATO
B17: Comunità montana | C17: Gestione in economia | E17: 3-Uso allevamento animali | G17: Gestioni salvaguardate
B18: Consorzio | C18: Società a responsabilità limitata (S.r.l.) | E18: 4-Uso artigianale | G18: Gestioni tutelate, concessioni esistenti
B19: Società del patrimonio | C19: Società consortile S.p.A. | E19: 5-Uso commerciale
C20: Società consortile S.r.l. | E20: 6-Uso industriale | G20: tipo di integrazione (incidenza popolazione deliberata d'ufficio)
B21: SCHEMA REGOLATORIO | C21: Società cooperativa a r.l. | E21: 7-Usi diversi | G21: nessuna integrazione di territorio
B22: I | C22: Società in accomandita semplice (S.a.s.) | E22: 8-Altri usi | G22: Pop servita >= 50% del gestore risultante
B23: II | C23: Società in nome colletivo (S.n.c.) | E23: 9-Bocche antincendio | G23: Pop servita < 50% del gestore risultante
B24: III | C24: Società per azioni (S.p.A.)
B25: IV | G25: presenza variazioni
B26: V | G26: integrazione servizio o territorio
B27: VI | G27: miglioramenti qualità
G28: nessuna variazione
B29: X | G29: integrazione servizio o territorio e miglioramenti qualità
F31: ID | G31: Categoria Cespite | H31: ID
F32: 1 | G32: Terreni | H32: 1
F33: 2 | G33: Fabbricati non industriali | H33: 2
B34: ulteriori rimodulazioni del VRG | F34: 3 | G34: Fabbricati industriali | H34: 3
B35: Capex | F35: 4 | G35: Costruzioni leggere | H35: 4
B36: ERC | F36: 5 | G36: Condutture e opere idrauliche fisse | H36: 5
B37: Opex | F37: 6 | G37: Serbatoi | H37: 6
F38: 7 | G38: Impianti di trattamento | H38: 7
F39: 8 | G39: Impianti di sollevamento e pompaggio | H39: 8
B40: grado di completezza dei dati | F40: 9 | G40: Gruppi di misura meccanici | H40: 9
B41: dati completi | F41: 10 | G41: Gruppi di misura elettronici | H41: 10
B42: dati non completi | F42: 11 | G42: Altri impianti | H42: 11
F43: 12 | G43: Laboratori | H43: 12
B44: grado di acquisizione della gestione | F44: 13 | G44: Telecontrollo | H44: 13
B45: acquisizione totale | F45: 14 | G45: Autoveicoli | H45: 14
B46: acquisizione parziale | F46: 15 | G46: Studi, ricerche, brevetti, diritti di utilizzazione | H46: 15
F47: 16 | G47: Altre immobilizzazioni materiali e immateriali | H47: 16
B48: gestore / proprietario | F48: 17 | G48: Immobilizzazioni immateriali: avviamenti, capitalizzazione concessione, etc. | H48: 17
B49: gestore
B50: proprietario | G50: tipo di integrazione (servizio o territorio servito)
G51: integrazione servizio
B52: tipo di dati 2015 | G52: integrazione territorio
B53: dati 2015 consutivi | G53: entrambi
B54: dati 2015 preconsutivi | G54: nessuna

Sheet TT_parametri
B2: dfl - Deflatore degli investimenti / VU - Vite Utili Regolatorie / altri parametri
A4: Deflatore degli investimenti fissi lordi | G4: 0 | H4: 0 | I4: 0 | K4: Vite regolatorie | O4: Inflazione | R4: Produttorie d'inflazione
K5: (input dei fogli stratificazione)
A6: ANNO | B6: Deflatore per anno 2012 | C6: Deflatore per anno 2013 | D6: Deflatore per anno 2014 | E6: Deflatore per anno 2015 | F6: Deflatore per anno 2016 | G6: Deflatore per anno 2017 | H6: Deflatore per anno 2018 | I6: Deflatore per anno 2019 | K6: Codice | L6: Categoria di cespiti | M6: Vita utile | O6: ANNO | P6: valore | R6: ∏(1+It) / ANNO | S6: 2013 | T6: 2014 | U6: 2015 | V6: 2016 | W6: 2017 | X6: 2018 | Y6: 2019
A7: 1961 | B7: 29.865 | C7: 30.671 | D7: 31.039 | E7: 31.00801295 | F7: 31.132045 | G7: =+F7*(1+G$4) -> 31.132045 | H7: =+G7*(1+H$4) -> 31.132045 | I7: 31.132045 | K7: 1 | L7: Terreni | M7: 0 | O7: 2013 | P7: 0.03096 | R7: da t-1 a t | S7: =+P7+1 -> 1.03096 | T7: =+P8+1 -> 1.021 | U7: =+P9+1 -> 1.006 | V7: =+P10+1 -> 0.999 | W7: =+P11+1 -> 1 | X7: =+P12+1 -> 1 | Y7: =+P13+1 -> 1
A8: 1962 | B8: 28.648 | C8: 29.422 | D8: 29.775 | E8: 29.74528894 | F8: 29.86427009 | G8: 29.86427009 | H8: 29.86427009 | I8: 29.86427009 | K8: 2 | L8: Fabbricati non industriali | M8: 40 | O8: 2014 | P8: 0.021 | R8: da t-2 a t | T8: =+PRODUCT($S7:T7) -> 1.05261016 | U8: =+PRODUCT($T7:U7) -> 1.027126 | V8: =+PRODUCT($U7:V7) -> 1.004994 | W8: =+PRODUCT($V7:W7) -> 0.999 | X8: =+PRODUCT($W7:X7) -> 1 | Y8: =+PRODUCT($X7:Y7) -> 1
A9: 1963 | B9: 26.499 | C9: 27.215 | D9: 27.542 | E9: 27.51403842 | F9: 27.62409457 | G9: 27.62409457 | H9: 27.62409457 | I9: 27.62409457 | K9: 3 | L9: Fabbricati industriali | M9: 40 | O9: 2015 | P9: 0.006 | R9: da t-3 a t | U9: =+PRODUCT($S7:U7) -> 1.058925821 | V9: =+PRODUCT($T7:V7) -> 1.026098874 | W9: =+PRODUCT($U7:W7) -> 1.004994 | X9: =+PRODUCT($V7:X7) -> 0.999 | Y9: =+PRODUCT($W7:Y7) -> 1
A10: 1964 | B10: 25.39 | C10: 26.075 | D10: 26.388 | E10: 26.3615121 | F10: 26.46695815 | G10: 26.46695815 | H10: 26.46695815 | I10: 26.46695815 | K10: 4 | L10: Costruzioni leggere | M10: 40 | O10: 2016 | P10: -0.001 | R10: da t-4 a t | V10: =+PRODUCT($S7:V7) -> 1.057866895 | W10: =+PRODUCT($T7:W7) -> 1.026098874 | X10: =+PRODUCT($U7:X7) -> 1.004994 | Y10: =+PRODUCT($V7:Y7) -> 0.999
A11: 1965 | B11: 25.31 | C11: 25.993 | D11: 26.305 | E11: 26.27861108 | F11: 26.38372553 | G11: 26.38372553 | H11: 26.38372553 | I11: 26.38372553 | K11: 5 | L11: Condutture e opere idrauliche fisse | M11: 40 | O11: 2017 | P11: 0 | R11: da t-5 a t | W11: =+PRODUCT($S7:W7) -> 1.057866895 | X11: =+PRODUCT($T7:X7) -> 1.026098874 | Y11: =+PRODUCT($U7:Y7) -> 1.004994
A12: 1966 | B12: 24.629 | C12: 25.293 | D12: 25.597 | E12: 25.57091948 | F12: 25.67320316 | G12: 25.67320316 | H12: 25.67320316 | I12: 25.67320316 | K12: 6 | L12: Serbatoi | M12: 50 | O12: 2018 | P12: 0 | R12: da t-6 a t | X12: =+PRODUCT($S7:X7) -> 1.057866895 | Y12: =+PRODUCT($T7:Y7) -> 1.026098874
A13: 1967 | B13: 23.819 | C13: 24.462 | D13: 24.756 | E13: 24.73078846 | F13: 24.82971161 | G13: 24.82971161 | H13: 24.82971161 | I13: 24.82971161 | K13: 7 | L13: Impianti di trattamento | M13: 12 | O13: 2019 | P13: 0
A14: 1968 | B14: 23.283 | C14: 23.912 | D14: 24.199 | E14: 24.17474506 | F14: 24.27144404 | G14: 24.27144404 | H14: 24.27144404 | I14: 24.27144404 | K14: 8 | L14: Impianti di sollevamento e pompaggio | M14: 8
A15: 1969 | B15: 21.986 | C15: 22.579 | D15: 22.85 | E15: 22.82709805 | F15: 22.91840644 | G15: 22.91840644 | H15: 22.91840644 | I15: 22.91840644 | K15: 9 | L15: Gruppi di misura meccanici | M15: 15 | R15: Voce | S15: Valore 2016-2017 | T15: Valore 2018-2019
A16: 1970 | B16: 19.349 | C16: 19.872 | D16: 20.11 | E16: 20.09035354 | F16: 20.17071495 | G16: 20.17071495 | H16: 20.17071495 | I16: 20.17071495 | K16: 10 | L16: Gruppi di misura elettronici | M16: 15 | R16: CS/CnS | S16: 1 | T16: 1
A17: 1971 | B17: 18.374 | C17: 18.87 | D17: 19.096 | E17: 19.07734356 | F17: 19.15365293 | G17: 19.15365293 | H17: 19.15365293 | I17: 19.15365293 | K17: 11 | L17: Altri impianti | M17: 20 | R17: risk free rate | S17: 0.005 | T17: 0.005
A18: 1972 | B18: 17.789 | C18: 18.27 | D18: 18.489 | E18: 18.47075076 | F18: 18.54463376 | G18: 18.54463376 | H18: 18.54463376 | I18: 18.54463376 | K18: 12 | L18: Laboratori | M18: 10 | R18: Kd | S18: 0.028444 | T18: 0.028444
A19: 1973 | B19: 14.844 | C19: 15.244 | D19: 15.427 | E19: 15.41150107 | F19: 15.47314708 | G19: 15.47314708 | H19: 15.47314708 | I19: 15.47314708 | K19: 13 | L19: Telecontrollo e teletrasmissione | M19: 8 | R19: WRP | S19: 0.015444 | T19: 0.015444
A20: 1974 | B20: 11.453 | C20: 11.763 | D20: 11.904 | E20: 11.89225184 | F20: 11.93982085 | G20: 11.93982085 | H20: 11.93982085 | I20: 11.93982085 | K20: 14 | L20: Autoveicoli | M20: 5 | R20: β levered | S20: 0.8 | T20: 0.8
A21: 1975 | B21: 9.77 | C21: 10.034 | D21: 10.154 | E21: 10.14425359 | F21: 10.18483061 | G21: 10.18483061 | H21: 10.18483061 | I21: 10.18483061 | K21: 15 | L21: Studi, ricerche, brevetti, diritti di utilizzazione | M21: 5 | R21: ERP | S21: 0.04 | T21: 0.04
A22: 1976 | B22: 8.165 | C22: 8.386 | D22: 8.487 | E22: 8.478145368 | F22: 8.512057949 | G22: 8.512057949 | H22: 8.512057949 | I22: 8.512057949 | K22: 16 | L22: Altre immobilizzazioni materiali e immateriali (al netto categoria successiva) | M22: 7 | R22: rpi | S22: 0.015 | T22: 0.015
A23: 1977 | B23: 6.954 | C23: 7.142 | D23: 7.228 | E23: 7.220476296 | F23: 7.249358201 | G23: 7.249358201 | H23: 7.249358201 | I23: 7.249358201 | K23: 17 | L23: Avviamenti, capitalizzazioni della concessione, ecc. | M23: 0 | R23: tc | S23: 0.275 | T23: 0.275
A24: 1978 | B24: 6.141 | C24: 6.307 | D24: 6.383 | E24: 6.376301316 | F24: 6.401806521 | G24: 6.401806521 | H24: 6.401806521 | I24: 6.401806521 | R24: T | S24: 0.342 | T24: 0.342
A25: 1979 | B25: 5.339 | C25: 5.484 | D25: 5.55 | E25: 5.544258192 | F25: 5.566435225 | G25: 5.566435225 | H25: 5.566435225 | I25: 5.566435225 | R25: time lag | S25: 0.01 | T25: 0.01
A26: 1980 | B26: 4.31 | C26: 4.426 | D26: 4.479 | E26: 4.474632888 | F26: 4.49253142 | G26: 4.49253142 | H26: 4.49253142 | I26: 4.49253142
A27: 1981 | B27: 3.525 | C27: 3.62 | D27: 3.663 | E27: 3.65977656 | F27: 3.674415666 | G27: 3.674415666 | H27: =+G27*(1+H$4) -> 3.674415666 | I27: 3.674415666
A28: 1982 | B28: 3.063 | C28: 3.146 | D28: 3.184 | E28: 3.180568248 | F28: 3.193290521 | G28: 3.193290521 | H28: 3.193290521 | I28: 3.193290521 | R28: Voce | S28: Valore 2016-2017 | T28: Valore 2018-2019
A29: 1983 | B29: 2.746 | C29: 2.82 | D29: 2.854 | E29: 2.85098616 | F29: 2.862390105 | G29: 2.862390105 | H29: 2.862390105 | I29: 2.862390105 | K29: anno | L29: costo medio EE per calcolo COEE | M29: u.d.m. | R29: ω | S29: 0.5 | T29: 0.5
A30: 1984 | B30: 2.515 | C30: 2.583 | D30: 2.614 | E30: 2.611382004 | F30: 2.621827532 | G30: 2.621827532 | H30: 2.621827532 | I30: 2.621827532 | K30: 2012 | L30: 0.15164 | M30: €/KWh | R30: rpi | S30: 0.015 | T30: 0.015
A31: 1985 | B31: 2.307 | C31: 2.369 | D31: 2.397 | E31: 2.395030572 | F31: 2.404610694 | G31: 2.404610694 | H31: 2.404610694 | I31: 2.404610694 | K31: 2013 | L31: 0.15164 | M31: €/KWh | R31: K | S31: 0.05 | T31: 0.05
A32: 1986 | B32: 2.222 | C32: 2.281 | D32: 2.308 | E32: 2.306063628 | F32: 2.315287883 | G32: 2.315287883 | H32: 2.315287883 | I32: 2.315287883 | K32: 2014 | L32: 0.1674 | M32: €/KWh | R32: X | S32: 0.005 | T32: 0.005
A33: 1987 | B33: 2.128 | C33: 2.186 | D33: 2.212 | E33: 2.210019768 | F33: 2.218859847 | G33: 2.218859847 | H33: 2.218859847 | I33: 2.218859847 | K33: 2015 | L33: 0.1674 | M33: €/KWh | R33: OPM | S33: 109 | T33: 109
A34: 1988 | B34: 2.016 | C34: 2.071 | D34: 2.096 | E34: 2.093756148 | F34: 2.102131173 | G34: 2.102131173 | H34: 2.102131173 | I34: 2.102131173 | K34: 2016 | L34: 0.1674 | M34: €/KWh | R34: y min | S34: 0.4 | T34: 0.4
A35: 1989 | B35: 1.913 | C35: 1.964 | D35: 1.988 | E35: 1.985580432 | F35: 1.993522754 | G35: 1.993522754 | H35: 1.993522754 | I35: 1.993522754 | K35: 2017 | L35: 0.1674 | M35: €/KWh | R35: y max | S35: 0.8 | T35: 0.8
A36: 1990 | B36: 1.794 | C36: 1.842 | D36: 1.864 | E36: 1.862239896 | F36: 1.869688856 | G36: 1.869688856 | H36: 1.869688856 | I36: 1.869688856
A37: 1991 | B37: 1.695 | C37: 1.741 | D37: 1.762 | E37: 1.760130108 | F37: 1.767170628 | G37: 1.767170628 | H37: 1.767170628 | I37: 1.767170628
A38: 1992 | B38: 1.63 | C38: 1.674 | D38: 1.694 | E38: 1.692393912 | F38: 1.699163488 | G38: 1.699163488 | H38: 1.699163488 | I38: 1.699163488 | R38: quota % contributo AEEGSI
A39: 1993 | B39: 1.57 | C39: 1.612 | D39: 1.631 | E39: 1.629712656 | F39: 1.636231507 | G39: 1.636231507 | H39: 1.636231507 | I39: 1.636231507 | K39: anno | L39: costo medio ATO per calcolo COATO | M39: u.d.m. | R39: 2014 | S39: =0.25/1000 -> 0.00025
A40: 1994 | B40: 1.518 | C40: 1.559 | D40: 1.578 | E40: 1.576130292 | F40: 1.582434813 | G40: 1.582434813 | H40: 1.582434813 | I40: 1.582434813 | K40: 2012 | L40: 1.01 | M40: €/abit | R40: 2015 | S40: 0.00025
A41: 1995 | B41: 1.459 | C41: 1.499 | D41: 1.517 | E41: 1.515471012 | F41: 1.521532896 | G41: 1.521532896 | H41: 1.521532896 | I41: 1.521532896 | K41: 2013 | L41: =+L40 -> 1.01 | M41: €/abit | R41: 2016 | S41: 0.00025
